{"text_format":"1","workbook":"xlsx","n_sheets":6,"sheets":["List1","List2","List3","List4","List5","List6"],"not_rendered":{"charts":0,"images":12,"macros":1,"external_links":1,"defined_names":79,"comments":0,"pivot_tables":0},"unopened":[],"bounds":{"document_bytes":16777216,"sheet_cells":100000,"rows_first":2000,"rows_last":500,"rows_between":2000,"halvings":0,"cell_chars":16384,"cell_head_chars":4096},"cells_cut":0,"cells_raw":0,"read":"whole","date_system":"1900"}

{"sheet":"List1","index":0,"n_rows":360,"n_cols":11,"rows_kept":360,"cut":false,"hidden":false,"merged":[]}
[2800000,15051,null,"levá strana","pravá strana",null,"suma",null,1,{"$f":"$B$1+$B$2","v":15051},{"$f":"J1/((1+$A$10/12)^I1)","v":14988.402429426706}]
[null,0,null,{"$f":"A1","v":2800000},null,null,{"$f":"SUM(K1:K360)","v":2800000.0000000987},null,2,{"$f":"$B$1+$B$2","v":15051},{"$f":"J2/((1+$A$10/12)^I2)","v":14926.065204069124}]
["(1+x)","(1+x/12)",null,null,{"$f":"G2-D2","v":9.8720192909240723E-8},null,null,null,3,15051,14863.987241143515]
[1,360,null,null,null,null,null,null,4,15051,14802.167462369482]
[null,null,null,null,null,null,null,null,5,15051,14740.60479395121]
[null,null,null,null,null,null,null,null,6,15051,14679.298166558852]
[null,null,null,null,null,null,null,null,7,15051,14618.246515309924]
[null,"F1",null,null,null,null,null,null,8,15051,14557.448779750835]
["RPSN sazba","musí být co nejblíže 0",null,null,null,null,null,null,9,15051,14496.903903838431]
[5.0116805337757073E-2,{"$f":"E3","v":9.8720192909240723E-8},null,null,null,null,null,null,10,15051,14436.610835921698]
[null,null,null,null,null,null,null,null,11,15051,14376.568528723452]
[null,null,null,null,null,null,null,null,12,15051,14316.775939322179]
[null,null,null,null,null,null,null,null,13,15051,14257.232029133902]
[null,null,null,null,null,null,null,null,14,15051,14197.935763894147]
[null,null,null,null,null,null,null,null,15,15051,14138.886113639979]
[null,null,null,null,null,null,null,null,16,15051,14080.082052692118]
[null,null,null,null,null,null,null,null,17,15051,14021.522559637095]
[null,null,null,null,null,null,null,null,18,15051,13963.206617309546]
[null,null,null,null,null,null,null,null,19,15051,13905.13321277453]
[null,null,null,null,null,null,null,null,20,15051,13847.301337309933]
[null,null,null,null,null,null,null,null,21,15051,13789.709986388933]
[null,null,null,null,null,null,null,null,22,15051,13732.358159662588]
[null,null,null,null,null,null,null,null,23,15051,13675.244860942419]
[null,null,null,null,null,null,null,null,24,15051,13618.369098183144]
[null,null,null,null,null,null,null,null,25,15051,13561.729883465405]
[null,null,null,null,null,null,null,null,26,15051,13505.32623297865]
[null,null,null,null,null,null,null,null,27,15051,13449.157167004012]
[null,null,null,null,null,null,null,null,28,15051,13393.22170989732]
[null,null,null,null,null,null,null,null,29,15051,13337.518890072119]
[null,null,null,null,null,null,null,null,30,15051,13282.047739982829]
[null,null,null,null,null,null,null,null,31,15051,13226.807296107905]
[null,null,null,null,null,null,null,null,32,15051,13171.796598933141]
[null,null,null,null,null,null,null,null,33,15051,13117.014692934947]
[null,null,null,null,null,null,null,null,34,15051,13062.460626563816]
[null,null,null,null,null,null,null,null,35,15051,13008.133452227743]
[null,null,null,null,null,null,null,null,36,15051,12954.032226275804]
[null,null,null,null,null,null,null,null,37,15051,12900.156008981736]
[null,null,null,null,null,null,null,null,38,15051,12846.503864527631]
[null,null,null,null,null,null,null,null,39,15051,12793.074860987675]
[null,null,null,null,null,null,null,null,40,15051,12739.868070311968]
[null,null,null,null,null,null,null,null,41,15051,12686.882568310384]
[null,null,null,null,null,null,null,null,42,15051,12634.117434636551]
[null,null,null,null,null,null,null,null,43,15051,12581.57175277183]
[null,null,null,null,null,null,null,null,44,15051,12529.244610009415]
[null,null,null,null,null,null,null,null,45,15051,12477.135097438479]
[null,null,null,null,null,null,null,null,46,15051,12425.242309928386]
[null,null,null,null,null,null,null,null,47,15051,12373.565346112955]
[null,null,null,null,null,null,null,null,48,15051,12322.103308374832]
[null,null,null,null,null,null,null,null,49,15051,12270.855302829856]
[null,null,null,null,null,null,null,null,50,15051,12219.820439311581]
[null,null,null,null,null,null,null,null,51,15051,12168.997831355777]
[null,null,null,null,null,null,null,null,52,15051,12118.386596185059]
[null,null,null,null,null,null,null,null,53,15051,12067.985854693516]
[null,null,null,null,null,null,null,null,54,15051,12017.794731431497]
[null,null,null,null,null,null,null,null,55,15051,11967.812354590344]
[null,null,null,null,null,null,null,null,56,15051,11918.037855987306]
[null,null,null,null,null,null,null,null,57,15051,11868.470371050398]
[null,null,null,null,null,null,null,null,58,15051,11819.109038803448]
[null,null,null,null,null,null,null,null,59,15051,11769.953001851089]
[null,null,null,null,null,null,null,null,60,15051,11721.001406363897]
[null,null,null,null,null,null,null,null,61,15051,11672.253402063547]
[null,null,null,null,null,null,null,null,62,15051,11623.708142208054]
[null,null,null,null,null,null,null,null,63,15051,11575.364783577048]
[null,null,null,null,null,null,null,null,64,15051,11527.222486457154]
[null,null,null,null,null,null,null,null,65,15051,11479.280414627372]
[null,null,null,null,null,null,null,null,66,{"$f":"$B$1+$B$2","v":15051},{"$f":"J66/((1+$A$10/12)^I66)","v":11431.537735344582}]
[null,null,null,null,null,null,null,null,67,15051,11383.993619329067]
[null,null,null,null,null,null,null,null,68,15051,11336.647240750111]
[null,null,null,null,null,null,null,null,69,15051,11289.497777211649]
[null,null,null,null,null,null,null,null,70,15051,11242.544409737988]
[null,null,null,null,null,null,null,null,71,15051,11195.786322759583]
[null,null,null,null,null,null,null,null,72,15051,11149.222704098869]
[null,null,null,null,null,null,null,null,73,15051,11102.852744956141]
[null,null,null,null,null,null,null,null,74,15051,11056.675639895529]
[null,null,null,null,null,null,null,null,75,15051,11010.69058683099]
[null,null,null,null,null,null,null,null,76,15051,10964.896787012382]
[null,null,null,null,null,null,null,null,77,15051,10919.293445011592]
[null,null,null,null,null,null,null,null,78,15051,10873.879768708715]
[null,null,null,null,null,null,null,null,79,15051,10828.654969278292]
[null,null,null,null,null,null,null,null,80,15051,10783.61826117563]
[null,null,null,null,null,null,null,null,81,15051,10738.768862123115]
[null,null,null,null,null,null,null,null,82,15051,10694.105993096668]
[null,null,null,null,null,null,null,null,83,15051,10649.628878312191]
[null,null,null,null,null,null,null,null,84,15051,10605.336745212098]
[null,null,null,null,null,null,null,null,85,15051,10561.228824451884]
[null,null,null,null,null,null,null,null,86,15051,10517.304349886785]
[null,null,null,null,null,null,null,null,87,15051,10473.562558558442]
[null,null,null,null,null,null,null,null,88,15051,10430.002690681682]
[null,null,null,null,null,null,null,null,89,15051,10386.62398963128]
[null,null,null,null,null,null,null,null,90,15051,10343.425701928856]
[null,null,null,null,null,null,null,null,91,15051,10300.407077229756]
[null,null,null,null,null,null,null,null,92,15051,10257.567368310047]
[null,null,null,null,null,null,null,null,93,15051,10214.905831053513]
[null,null,null,null,null,null,null,null,94,15051,10172.421724438742]
[null,null,null,null,null,null,null,null,95,15051,10130.114310526251]
[null,null,null,null,null,null,null,null,96,15051,10087.982854445683]
[null,null,null,null,null,null,null,null,97,15051,10046.026624383005]
[null,null,null,null,null,null,null,null,98,15051,10004.244891567845]
[null,null,null,null,null,null,null,null,99,15051,9962.6369302607909]
[null,null,null,null,null,null,null,null,100,15051,9921.2020177408194]
[null,null,null,null,null,null,null,null,101,15051,9879.9394342927153]
[null,null,null,null,null,null,null,null,102,15051,9838.848463194583]
[null,null,null,null,null,null,null,null,103,15051,9797.9283907053923]
[null,null,null,null,null,null,null,null,104,15051,9757.1785060525981]
[null,null,null,null,null,null,null,null,105,15051,9716.5981014197569]
[null,null,null,null,null,null,null,null,106,15051,9676.1864719342793]
[null,null,null,null,null,null,null,null,107,15051,9635.942915655145]
[null,null,null,null,null,null,null,null,108,15051,9595.8667335607352]
[null,null,null,null,null,null,null,null,109,15051,9555.9572295366834]
[null,null,null,null,null,null,null,null,110,15051,9516.2137103637851]
[null,null,null,null,null,null,null,null,111,15051,9476.6354857059505]
[null,null,null,null,null,null,null,null,112,15051,9437.2218680982296]
[null,null,null,null,null,null,null,null,113,15051,9397.9721729348439]
[null,null,null,null,null,null,null,null,114,15051,9358.8857184573262]
[null,null,null,null,null,null,null,null,115,15051,9319.9618257426519]
[null,null,null,null,null,null,null,null,116,15051,9281.1998186914752]
[null,null,null,null,null,null,null,null,117,15051,9242.5990240163428]
[null,null,null,null,null,null,null,null,118,15051,9204.1587712300498]
[null,null,null,null,null,null,null,null,119,15051,9165.8783926339493]
[null,null,null,null,null,null,null,null,120,15051,9127.7572233063911]
[null,null,null,null,null,null,null,null,121,15051,9089.7946010911346]
[null,null,null,null,null,null,null,null,122,15051,9051.9898665858818]
[null,null,null,null,null,null,null,null,123,15051,9014.3423631308069]
[null,null,null,null,null,null,null,null,124,15051,8976.8514367971457]
[null,null,null,null,null,null,null,null,125,15051,8939.5164363758522]
[null,null,null,null,null,null,null,null,126,15051,8902.3367133662741]
[null,null,null,null,null,null,null,null,127,15051,8865.3116219648928]
[null,null,null,null,null,null,null,null,128,15051,8828.4405190541147]
[null,null,null,null,null,null,null,null,129,15051,8791.722764191074]
[null,null,null,null,null,null,null,null,130,{"$f":"$B$1+$B$2","v":15051},{"$f":"J130/((1+$A$10/12)^I130)","v":8755.1577195965438}]
[null,null,null,null,null,null,null,null,131,15051,8718.744750143831]
[null,null,null,null,null,null,null,null,132,15051,8682.4832233477609]
[null,null,null,null,null,null,null,null,133,15051,8646.3725093536759]
[null,null,null,null,null,null,null,null,134,15051,8610.4119809265121]
[null,null,null,null,null,null,null,null,135,15051,8574.6010134398875]
[null,null,null,null,null,null,null,null,136,15051,8538.9389848652681]
[null,null,null,null,null,null,null,null,137,15051,8503.425275761143]
[null,null,null,null,null,null,null,null,138,15051,8468.0592692622959]
[null,null,null,null,null,null,null,null,139,15051,8432.8403510690532]
[null,null,null,null,null,null,null,null,140,15051,8397.7679094366449]
[null,null,null,null,null,null,null,null,141,15051,8362.8413351645631]
[null,null,null,null,null,null,null,null,142,15051,8328.0600215859831]
[null,null,null,null,null,null,null,null,143,15051,8293.4233645572222]
[null,null,null,null,null,null,null,null,144,15051,8258.9307624472622]
[null,null,null,null,null,null,null,null,145,15051,8224.5816161272651]
[null,null,null,null,null,null,null,null,146,15051,8190.3753289602118]
[null,null,null,null,null,null,null,null,147,15051,8156.3113067904969]
[null,null,null,null,null,null,null,null,148,15051,8122.3889579336419]
[null,null,null,null,null,null,null,null,149,15051,8088.6076931659836]
[null,null,null,null,null,null,null,null,150,15051,8054.9669257144769]
[null,null,null,null,null,null,null,null,151,15051,8021.4660712464683]
[null,null,null,null,null,null,null,null,152,15051,7988.1045478595779]
[null,null,null,null,null,null,null,null,153,15051,7954.8817760715583]
[null,null,null,null,null,null,null,null,154,15051,7921.7971788102568]
[null,null,null,null,null,null,null,null,155,15051,7888.850181403579]
[null,null,null,null,null,null,null,null,156,15051,7856.0402115695124]
[null,null,null,null,null,null,null,null,157,15051,7823.3666994061768]
[null,null,null,null,null,null,null,null,158,15051,7790.8290773819363]
[null,null,null,null,null,null,null,null,159,15051,7758.4267803255343]
[null,null,null,null,null,null,null,null,160,15051,7726.1592454162856]
[null,null,null,null,null,null,null,null,161,15051,7694.0259121742774]
[null,null,null,null,null,null,null,null,162,15051,7662.0262224506669]
[null,null,null,null,null,null,null,null,163,15051,7630.1596204179577]
[null,null,null,null,null,null,null,null,164,15051,7598.4255525603667]
[null,null,null,null,null,null,null,null,165,15051,7566.8234676641932]
[null,null,null,null,null,null,null,null,166,15051,7535.3528168082521]
[null,null,null,null,null,null,null,null,167,15051,7504.0130533543397]
[null,null,null,null,null,null,null,null,168,15051,7472.8036329377401]
[null,null,null,null,null,null,null,null,169,15051,7441.7240134577587]
[null,null,null,null,null,null,null,null,170,15051,7410.7736550683239]
[null,null,null,null,null,null,null,null,171,15051,7379.9520201685937]
[null,null,null,null,null,null,null,null,172,15051,7349.2585733936266]
[null,null,null,null,null,null,null,null,173,15051,7318.6927816050802]
[null,null,null,null,null,null,null,null,174,15051,7288.2541138819552]
[null,null,null,null,null,null,null,null,175,15051,7257.9420415113582]
[null,null,null,null,null,null,null,null,176,15051,7227.7560379793449]
[null,null,null,null,null,null,null,null,177,15051,7197.6955789617405]
[null,null,null,null,null,null,null,null,178,15051,7167.7601423150627]
[null,null,null,null,null,null,null,null,179,15051,7137.9492080674372]
[null,null,null,null,null,null,null,null,180,15051,7108.2622584095698]
[null,null,null,null,null,null,null,null,181,15051,7078.698777685745]
[null,null,null,null,null,null,null,null,182,15051,7049.2582523848832]
[null,null,null,null,null,null,null,null,183,15051,7019.9401711316068]
[null,null,null,null,null,null,null,null,184,15051,6990.744024677374]
[null,null,null,null,null,null,null,null,185,15051,6961.6693058916062]
[null,null,null,null,null,null,null,null,186,15051,6932.715509752913]
[null,null,null,null,null,null,null,null,187,15051,6903.8821333402939]
[null,null,null,null,null,null,null,null,188,15051,6875.1686758244168]
[null,null,null,null,null,null,null,null,189,15051,6846.5746384589111]
[null,null,null,null,null,null,null,null,190,15051,6818.0995245717095]
[null,null,null,null,null,null,null,null,191,15051,6789.7428395564193]
[null,null,null,null,null,null,null,null,192,15051,6761.5040908637338]
[null,null,null,null,null,null,null,null,193,15051,6733.382787992864]
[null,null,null,null,null,null,null,null,194,{"$f":"$B$1+$B$2","v":15051},{"$f":"J194/((1+$A$10/12)^I194)","v":6705.3784424830392}]
[null,null,null,null,null,null,null,null,195,15051,6677.4905679050053]
[null,null,null,null,null,null,null,null,196,15051,6649.7186798525881]
[null,null,null,null,null,null,null,null,197,15051,6622.0622959342681]
[null,null,null,null,null,null,null,null,198,15051,6594.5209357648109]
[null,null,null,null,null,null,null,null,199,15051,6567.0941209569173]
[null,null,null,null,null,null,null,null,200,15051,6539.7813751129188]
[null,null,null,null,null,null,null,null,201,15051,6512.5822238164901]
[null,null,null,null,null,null,null,null,202,15051,6485.4961946244284]
[null,null,null,null,null,null,null,null,203,15051,6458.5228170584305]
[null,null,null,null,null,null,null,null,204,15051,6431.6616225969301]
[null,null,null,null,null,null,null,null,205,15051,6404.9121446669551]
[null,null,null,null,null,null,null,null,206,15051,6378.2739186360241]
[null,null,null,null,null,null,null,null,207,15051,6351.7464818040771]
[null,null,null,null,null,null,null,null,208,15051,6325.3293733954424]
[null,null,null,null,null,null,null,null,209,15051,6299.0221345508171]
[null,null,null,null,null,null,null,null,210,15051,6272.8243083193183]
[null,null,null,null,null,null,null,null,211,15051,6246.7354396505325]
[null,null,null,null,null,null,null,null,212,15051,6220.7550753866162]
[null,null,null,null,null,null,null,null,213,15051,6194.8827642544184]
[null,null,null,null,null,null,null,null,214,15051,6169.1180568576556]
[null,null,null,null,null,null,null,null,215,15051,6143.4605056690871]
[null,null,null,null,null,null,null,null,216,15051,6117.9096650227621]
[null,null,null,null,null,null,null,null,217,15051,6092.4650911062572]
[null,null,null,null,null,null,null,null,218,15051,6067.1263419529896]
[null,null,null,null,null,null,null,null,219,15051,6041.8929774345188]
[null,null,null,null,null,null,null,null,220,15051,6016.7645592529207]
[null,null,null,null,null,null,null,null,221,15051,5991.7406509331595]
[null,null,null,null,null,null,null,null,222,15051,5966.8208178155146]
[null,null,null,null,null,null,null,null,223,15051,5942.0046270480298]
[null,null,null,null,null,null,null,null,224,15051,5917.2916475789953]
[null,null,null,null,null,null,null,null,225,15051,5892.6814501494482]
[null,null,null,null,null,null,null,null,226,15051,5868.173607285742]
[null,null,null,null,null,null,null,null,227,15051,5843.7676932920922]
[null,null,null,null,null,null,null,null,228,15051,5819.4632842432056]
[null,null,null,null,null,null,null,null,229,15051,5795.2599579769048]
[null,null,null,null,null,null,null,null,230,15051,5771.1572940867945]
[null,null,null,null,null,null,null,null,231,15051,5747.1548739149666]
[null,null,null,null,null,null,null,null,232,15051,5723.2522805447243]
[null,null,null,null,null,null,null,null,233,15051,5699.4490987933341]
[null,null,null,null,null,null,null,null,234,15051,5675.7449152048284]
[null,null,null,null,null,null,null,null,235,15051,5652.1393180428095]
[null,null,null,null,null,null,null,null,236,15051,5628.6318972833069]
[null,null,null,null,null,null,null,null,237,15051,5605.2222446076503]
[null,null,null,null,null,null,null,null,238,15051,5581.9099533953849]
[null,null,null,null,null,null,null,null,239,15051,5558.6946187171934]
[null,null,null,null,null,null,null,null,240,15051,5535.5758373278832]
[null,null,null,null,null,null,null,null,241,15051,5512.5532076593599]
[null,null,null,null,null,null,null,null,242,15051,5489.6263298136691]
[null,null,null,null,null,null,null,null,243,15051,5466.7948055560428]
[null,null,null,null,null,null,null,null,244,15051,5444.0582383079873]
[null,null,null,null,null,null,null,null,245,15051,5421.4162331403813]
[null,null,null,null,null,null,null,null,246,15051,5398.8683967666402]
[null,null,null,null,null,null,null,null,247,15051,5376.4143375358544]
[null,null,null,null,null,null,null,null,248,15051,5354.0536654260195]
[null,null,null,null,null,null,null,null,249,15051,5331.7859920372266]
[null,null,null,null,null,null,null,null,250,15051,5309.6109305849486]
[null,null,null,null,null,null,null,null,251,15051,5287.5280958932972]
[null,null,null,null,null,null,null,null,252,15051,5265.5371043883506]
[null,null,null,null,null,null,null,null,253,15051,5243.6375740914764]
[null,null,null,null,null,null,null,null,254,15051,5221.8291246127064]
[null,null,null,null,null,null,null,null,255,15051,5200.1113771441242]
[null,null,null,null,null,null,null,null,256,15051,5178.4839544532915]
[null,null,null,null,null,null,null,null,257,15051,5156.9464808766807]
[null,null,null,null,null,null,null,null,258,{"$f":"$B$1+$B$2","v":15051},{"$f":"J258/((1+$A$10/12)^I258)","v":5135.4985823131719}]
[null,null,null,null,null,null,null,null,259,15051,5114.1398862175365]
[null,null,null,null,null,null,null,null,260,15051,5092.8700215939771]
[null,null,null,null,null,null,null,null,261,15051,5071.6886189896759]
[null,null,null,null,null,null,null,null,262,15051,5050.5953104883811]
[null,null,null,null,null,null,null,null,263,15051,5029.5897297040183]
[null,null,null,null,null,null,null,null,264,15051,5008.6715117743233]
[null,null,null,null,null,null,null,null,265,15051,4987.8402933545003]
[null,null,null,null,null,null,null,null,266,15051,4967.0957126109242]
[null,null,null,null,null,null,null,null,267,15051,4946.43740921484]
[null,null,null,null,null,null,null,null,268,15051,4925.8650243361135]
[null,null,null,null,null,null,null,null,269,15051,4905.3782006369975]
[null,null,null,null,null,null,null,null,270,15051,4884.976582265921]
[null,null,null,null,null,null,null,null,271,15051,4864.6598148513112]
[null,null,null,null,null,null,null,null,272,15051,4844.4275454954413]
[null,null,null,null,null,null,null,null,273,15051,4824.2794227682898]
[null,null,null,null,null,null,null,null,274,15051,4804.2150967014486]
[null,null,null,null,null,null,null,null,275,15051,4784.2342187820368]
[null,null,null,null,null,null,null,null,276,15051,4764.3364419466543]
[null,null,null,null,null,null,null,null,277,15051,4744.5214205753373]
[null,null,null,null,null,null,null,null,278,15051,4724.7888104855783]
[null,null,null,null,null,null,null,null,279,15051,4705.1382689263264]
[null,null,null,null,null,null,null,null,280,15051,4685.5694545720517]
[null,null,null,null,null,null,null,null,281,15051,4666.0820275167971]
[null,null,null,null,null,null,null,null,282,15051,4646.6756492682916]
[null,null,null,null,null,null,null,null,283,15051,4627.349982742061]
[null,null,null,null,null,null,null,null,284,15051,4608.1046922555806]
[null,null,null,null,null,null,null,null,285,15051,4588.9394435224331]
[null,null,null,null,null,null,null,null,286,15051,4569.8539036465136]
[null,null,null,null,null,null,null,null,287,15051,4550.8477411162385]
[null,null,null,null,null,null,null,null,288,15051,4531.9206257987971]
[null,null,null,null,null,null,null,null,289,15051,4513.0722289344021]
[null,null,null,null,null,null,null,null,290,15051,4494.3022231305958]
[null,null,null,null,null,null,null,null,291,15051,4475.6102823565516]
[null,null,null,null,null,null,null,null,292,15051,4456.9960819374191]
[null,null,null,null,null,null,null,null,293,15051,4438.4592985486761]
[null,null,null,null,null,null,null,null,294,15051,4419.9996102105197]
[null,null,null,null,null,null,null,null,295,15051,4401.6166962822699]
[null,null,null,null,null,null,null,null,296,15051,4383.3102374568034]
[null,null,null,null,null,null,null,null,297,15051,4365.0799157549991]
[null,null,null,null,null,null,null,null,298,15051,4346.9254145202285]
[null,null,null,null,null,null,null,null,299,15051,4328.8464184128425]
[null,null,null,null,null,null,null,null,300,15051,4310.8426134046995]
[null,null,null,null,null,null,null,null,301,15051,4292.9136867737134]
[null,null,null,null,null,null,null,null,302,15051,4275.0593270984182]
[null,null,null,null,null,null,null,null,303,15051,4257.2792242525557]
[null,null,null,null,null,null,null,null,304,15051,4239.5730693997002]
[null,null,null,null,null,null,null,null,305,15051,4221.9405549878738]
[null,null,null,null,null,null,null,null,306,15051,4204.3813747442291]
[null,null,null,null,null,null,null,null,307,15051,4186.8952236697087]
[null,null,null,null,null,null,null,null,308,15051,4169.481798033763]
[null,null,null,null,null,null,null,null,309,15051,4152.1407953690559]
[null,null,null,null,null,null,null,null,310,15051,4134.8719144662355]
[null,null,null,null,null,null,null,null,311,15051,4117.6748553686766]
[null,null,null,null,null,null,null,null,312,15051,4100.5493193672955]
[null,null,null,null,null,null,null,null,313,15051,4083.495008995335]
[null,null,null,null,null,null,null,null,314,15051,4066.5116280232223]
[null,null,null,null,null,null,null,null,315,15051,4049.5988814534057]
[null,null,null,null,null,null,null,null,316,15051,4032.7564755152416]
[null,null,null,null,null,null,null,null,317,15051,4015.9841176598843]
[null,null,null,null,null,null,null,null,318,15051,3999.2815165552106]
[null,null,null,null,null,null,null,null,319,15051,3982.6483820807548]
[null,null,null,null,null,null,null,null,320,15051,3966.0844253226728]
[null,null,null,null,null,null,null,null,321,15051,3949.5893585687177]
[null,null,null,null,null,null,null,null,322,{"$f":"$B$1+$B$2","v":15051},{"$f":"J322/((1+$A$10/12)^I322)","v":3933.1628953032509}]
[null,null,null,null,null,null,null,null,323,15051,3916.8047502022605]
[null,null,null,null,null,null,null,null,324,15051,3900.5146391284056]
[null,null,null,null,null,null,null,null,325,15051,3884.2922791260789]
[null,null,null,null,null,null,null,null,326,15051,3868.1373884164987]
[null,null,null,null,null,null,null,null,327,15051,3852.0496863928056]
[null,null,null,null,null,null,null,null,328,15051,3836.0288936151969]
[null,null,null,null,null,null,null,null,329,15051,3820.0747318060626]
[null,null,null,null,null,null,null,null,330,15051,3804.186923845165]
[null,null,null,null,null,null,null,null,331,15051,3788.365193764811]
[null,null,null,null,null,null,null,null,332,15051,3772.6092667450712]
[null,null,null,null,null,null,null,null,333,15051,3756.918869108998]
[null,null,null,null,null,null,null,null,334,15051,3741.2937283178753]
[null,null,null,null,null,null,null,null,335,15051,3725.7335729664828]
[null,null,null,null,null,null,null,null,336,15051,3710.2381327783869]
[null,null,null,null,null,null,null,null,337,15051,3694.8071386012348]
[null,null,null,null,null,null,null,null,338,15051,3679.4403224020907]
[null,null,null,null,null,null,null,null,339,15051,3664.1374172627789]
[null,null,null,null,null,null,null,null,340,15051,3648.8981573752403]
[null,null,null,null,null,null,null,null,341,15051,3633.7222780369193]
[null,null,null,null,null,null,null,null,342,15051,3618.6095156461702]
[null,null,null,null,null,null,null,null,343,15051,3603.5596076976708]
[null,null,null,null,null,null,null,null,344,15051,3588.5722927778711]
[null,null,null,null,null,null,null,null,345,15051,3573.6473105604418]
[null,null,null,null,null,null,null,null,346,15051,3558.784401801764]
[null,null,null,null,null,null,null,null,347,15051,3543.9833083364169]
[null,null,null,null,null,null,null,null,348,15051,3529.2437730727033]
[null,null,null,null,null,null,null,null,349,15051,3514.5655399881716]
[null,null,null,null,null,null,null,null,350,15051,3499.9483541251807]
[null,null,null,null,null,null,null,null,351,15051,3485.3919615864629]
[null,null,null,null,null,null,null,null,352,15051,3470.8961095307209]
[null,null,null,null,null,null,null,null,353,15051,3456.4605461682245]
[null,null,null,null,null,null,null,null,354,15051,3442.085020756454]
[null,null,null,null,null,null,null,null,355,15051,3427.7692835957278]
[null,null,null,null,null,null,null,null,356,15051,3413.5130860248787]
[null,null,null,null,null,null,null,null,357,15051,3399.3161804169263]
[null,null,null,null,null,null,null,null,358,15051,3385.1783201747767]
[null,null,null,null,null,null,null,null,359,15051,3371.0992597269437]
[null,null,null,null,null,null,null,null,360,15051,3357.078754523282]

{"sheet":"List2","index":1,"n_rows":499,"n_cols":63,"rows_kept":499,"cut":false,"hidden":false,"merged":[[5,4,5,5],[6,4,6,5]]}
[null,null,null,null,null,null,null,null,null,null,null,null,null,null,null,null,null,null,null,null,null,null,null,null,null,null,null,null,null,null,null,null,null,null,null,null,null,null,null,null,null,null,null,null,null,null,null,null,"D",365,null,null,null,"denní","D"]
["Výpočet RPSN u jednorázově čerpaného a pravidelně měsíčně spláceného úvěru",null,null,null,null,null,null,null,null,null,null,null,null,null,null,null,null,null,null,null,null,null,null,null,null,null,null,null,null,null,null,null,null,null,null,null,null,null,null,null,null,null,"Levá strana rovnice (poskytnutí úvěru)",null,null,null,null,null,"T",52,null,null,null,"týdenní","T"]
[null,null,null,null,null,null,null,null,null,null,null,null,null,null,null,null,null,null,null,null,null,null,null,null,null,null,null,null,null,null,null,null,null,null,null,null,null,null,null,null,null,null,null,null,null,null,null,null,"M",12,null,null,null,"měsíční","M"]
["Výše úvěru (jednorázově čerpaného)",{"$f":"G8","v":10000},null,null,null,null,null,null,"měsíční",null,null,null,null,null,null,null,null,null,null,null,null,null,null,null,null,null,null,null,null,null,null,null,null,null,null,null,null,null,null,null,null,null,{"$f":"B4","v":10000},null,null,null,null,null,"Q",4,null,null,null,"čtvrtletní","Q"]
["Sjednaná pravidelná měsíční splátka",1000,null,null,null,null,10000,null,"Petr Kalousek, Ph.D.",null,null,null,null,null,null,null,null,null,null,null,null,null,null,null,null,null,null,null,null,null,null,null,null,null,null,null,null,null,null,null,null,null,null,null,null,null,null,null,"S",2,null,null,null,"půlroční","S"]
["Poslední měsíční splátka",1000,null,null,"RPSN =",null,0.44122704462380508,null,"Ing. Radek Urban",null,null,null,null,null,null,null,null,null,null,null,null,null,null,null,null,null,null,null,null,null,null,null,null,null,null,null,null,null,null,null,null,null,null,null,null,null,null,null,"R",1,null,null,null,"roční","R"]
["Poplatek za uzavření smlouvy 1",100,null,null,null,null,0,null,null,null,null,null,null,null,null,null,null,null,null,null,null,null,null,null,null,null,null,null,null,null,null,null,null,null,null,null,null,null,null,null,null,null,"Pravá strana rovnice (splácení úvěru)"]
["Poplatek za uzavření smlouvy 2",null,null,null,null,null,{"$f":"G5-G7","v":10000}]
["Průběžný pravidelný poplatek 1",null,null,null,null,null,null,null,null,null,null,null,null,null,null,null,null,null,null,null,null,null,null,null,null,null,null,null,null,null,null,null,null,null,null,null,null,null,null,null,null,null,{"$f":"SUM(BB19:BB499)","v":9999.9999999941301}]
["Průběžný pravidelný poplatek 2"]
["Délka období splatnosti první splátky",{"$f":"IF(I15=0,I13,30.41666)","v":30.41666},"/",{"$f":"IF(OR(J11=2000,J11=2004,J11=2008,J11=2012,J11=2016,J11=2020),366,365)","v":366},"dní (dle aktuálně platné zákonné konvence)",null,null,null,"1.1.2012",{"$f":"YEAR(I11)","v":2012},null,null,null,null,null,null,null,null,null,null,null,null,null,null,null,null,null,null,null,null,null,null,null,null,null,null,null,null,null,"Počet",null,null,"Rozdíl"]
["Počet měsíčních splátek",12,null,null,null,null,null,null,"1.2.2012",{"$f":"TEXT(DATEVALUE(I12),0)","v":"40940"},null,null,null,null,null,null,null,null,null,null,null,null,null,null,null,null,null,null,null,null,null,null,null,null,null,null,null,null,null,{"$f":"pocet","v":12}]
["Sjednaná úroková sazba",0.1,null,null,null,null,null,null,{"$f":"I12-I11","v":31},null,null,null,null,null,null,null,null,null,null,null,null,null,null,null,null,null,null,null,null,null,null,null,null,null,null,null,null,null,null,{"$f":"AN12/12","v":1},null,null,{"$f":"AQ9-AQ4","v":-5.8698788052424788E-9}]
["Rozdíl",{"$f":"AQ13","v":-5.8698788052424788E-9},null,null,null,null,null,null,{"$f":"EDATE(I11,1)","v":"2012-02-01"},{"$f":"CONCATENATE(I14)","v":"40940"},null,null,null,null,null,null,null,null,null,null,null,null,null,null,null,null,null,null,null,null,null,null,null,null,null,null,null,null,null,null,null,null,null,null,null,null,null,null,{"$f":"VLOOKUP($I$4,BB1:BC6,2,0)","v":"M"}]
[null,null,null,null,null,null,null,null,{"$f":"IF(AND((J14=J12),AW14=\"M\"),1,0)","v":1},null,null,null,null,null,null,null,null,null,null,null,null,null,null,null,null,null,null,null,null,null,null,null,null,null,null,null,null,null,null,null,null,null,null,null,null,null,null,null,{"$f":"VLOOKUP($AW$14,$AW$1:$AX$6,2,0)","v":12}]
[null,null,null,null,null,null,null,null,null,null,null,null,null,null,null,null,null,null,null,null,null,null,null,null,null,null,null,null,null,null,null,null,null,null,null,null,null,null,null,null,null,null,null,null,null,null,null,null,{"$f":"SUM(AY20:AY499,AZ20:BA499)","v":12000.000000000002}]
[null,null,null,null,null,null,null,null,null,null,null,null,null,null,null,null,null,null,null,null,null,null,null,null,null,null,null,null,null,null,null,null,null,null,null,null,null,null,null,null,null,null,null,null,null,null,null,null,{"$f":"SUM(AY20:AY499)","v":2547.700073340563}]
[null,null,null,null,null,null,null,null,null,null,null,null,null,null,null,null,null,null,null,null,null,null,null,null,null,null,null,null,null,null,null,null,null,null,null,null,null,null,null,null,null,null,null,null,null,null,null,null,"období","úrok0","úrok","poplatky","úmor","diskont. splátky","zůstatek",null,null,"měsíc","splátka","úrok","poplatky","úmor","zůstatek"]
[null,null,null,null,null,null,null,null,null,null,null,null,null,null,null,null,null,null,null,null,null,null,null,null,null,null,null,null,null,null,null,null,null,null,null,null,null,null,null,null,null,null,null,null,null,null,null,0,0,0,0,{"$f":"$B$7+$B$8","v":100},0,{"$f":"AZ19","v":100},{"$f":"credit","v":10000},null,null,0,0,0,{"$f":"B7+B8","v":100},0,{"$f":"credit","v":10000}]
[null,null,null,null,null,null,null,null,null,null,null,null,null,null,null,null,null,null,null,null,null,null,null,null,null,null,null,null,null,null,null,null,null,null,null,null,null,null,null,null,null,null,null,null,null,null,null,1,1,{"$f":"-IPMT($G$6/$AW$15,AW20,pocet,credit)","v":367.68920385317085},{"$f":"IF(ISERR(IPMT($G$6/$AW$15,AW20,pocet,$B$4)),0,-IPMT($G$6/$AW$15,AW20,pocet,$B$4))","v":367.68920385317085},{"$f":"IF(AY20=0,0,$B$9+$B$10)","v":0},{"$f":"IF(ISERR(AX20),0,$B$5-AY20)","v":632.31079614682915},{"$f":"IF(ISERR(AX20),0,IF(AND(NOT(splatka=splatka2),BF20=pocet),SUM(splatka2+AZ20)/(1+$G$6)^(prvni/konvence),SUM(splatka+AZ20)/(1+$G$6)^(prvni/konvence)))","v":970.08199469488773},{"$f":"IF(ISERR(AX20),0,credit-BA20)","v":9367.6892038531714},null,null,{"$f":"IF(BH20=\"\",\"\",1)","v":1},{"$f":"IF(ISERR(AX20),\"\",IF(AND(NOT(splatka=splatka2),BF20=pocet),splatka2,splatka))","v":1000},{"$f":"IF(OR(AY20<0,ISERR(AX20)),\"\",urok/$AW$15*credit)","v":83.333333333333329},{"$f":"IF(BH20=\"\",\"\",AZ20)","v":0},{"$f":"BG20-BH20","v":916.66666666666663},{"$f":"credit-BJ20","v":9083.3333333333339}]
[null,null,null,null,null,null,null,null,null,null,null,null,null,null,null,null,null,null,null,null,null,null,null,null,null,null,null,null,null,null,null,null,null,null,null,null,null,null,null,null,null,null,null,null,null,null,null,2,2,342.76162349823068,342.76162349823068,{"$f":"IF(AY21=0,0,$B$9+$B$10)","v":0},{"$f":"IF(ISERR(AX21),0,$B$5-AY21)","v":657.23837650176938},{"$f":"IF(ISERR(AX21),0,IF(AND(NOT(splatka=splatka2),BF21=pocet),SUM(splatka2+AZ21)/(1+$G$6)^(prvni/konvence+AW20/$AW$15),SUM(splatka+AZ21)/(1+$G$6)^(prvni/konvence+AW20/$AW$15)))","v":940.9807600689893},{"$f":"IF(ISERR(AX21),0,BC20-BA21)","v":8710.450827351402},null,null,{"$f":"IF(BH21=\"\",\"\",BF20+1)","v":2},1000,{"$f":"IF(OR(AY21<0,ISERR(AX21)),\"\",urok/$AW$15*BK20)","v":75.694444444444443},{"$f":"IF(BH21=\"\",\"\",AZ21)","v":0},{"$f":"BG21-BH21","v":924.30555555555554},{"$f":"BK20-BJ21","v":8159.0277777777783}]
[null,null,null,null,null,null,null,null,null,null,null,null,null,null,null,null,null,null,null,null,null,null,null,null,null,null,null,null,null,null,null,null,null,null,null,null,null,null,null,null,null,null,null,null,null,null,null,3,3,316.91748292582105,316.91748292582105,0,683.0825170741789,912.75252572696672,{"$f":"IF(ISERR(AX22),0,BC21-BA22)","v":8027.3683102772229},null,null,{"$f":"IF(BH22=\"\",\"\",BF21+1)","v":3},1000,67.991898148148152,0,932.00810185185185,{"$f":"BK21-BJ22","v":7227.0196759259261}]
[null,null,null,null,null,null,null,null,null,null,null,null,null,null,null,null,null,null,null,null,null,null,null,null,null,null,null,null,null,null,null,null,null,null,null,null,null,null,null,null,null,null,null,null,null,null,null,4,4,290.12308120627767,290.12308120627767,0,709.87691879372233,885.37110276290457,7317.4913914835006,null,null,4,1000,60.225163966049386,0,939.77483603395058,6287.2448398919751]
[null,null,null,null,null,null,null,null,null,null,null,null,null,null,null,null,null,null,null,null,null,null,null,null,null,null,null,null,null,null,null,null,null,null,null,null,null,null,null,null,null,null,null,null,null,null,null,5,5,262.34347826313609,262.34347826313609,0,737.65652173686385,858.81108790498774,6579.8348697466372,null,null,5,1000,52.393706999099791,0,947.60629300090022,5339.6385468910748]
[null,null,null,null,null,null,null,null,null,null,null,null,null,null,null,null,null,null,null,null,null,null,null,null,null,null,null,null,null,null,null,null,null,null,null,null,null,null,null,null,null,null,null,null,null,null,null,6,6,233.54244931104247,233.54244931104247,0,766.45755068895755,833.04783994747174,5813.3773190576794,null,null,6,1000,44.496987890758959,0,955.50301210924101,4384.1355347818335]
[null,null,null,null,null,null,null,null,null,null,null,null,null,null,null,null,null,null,null,null,null,null,null,null,null,null,null,null,null,null,null,null,null,null,null,null,null,null,null,null,null,null,null,null,null,null,null,7,7,203.68243761839415,203.68243761839415,0,796.31756238160585,808.05745688966203,5017.0597566760734,null,null,7,1000,36.534462789848611,0,963.46553721015141,3420.669997571682]
[null,null,null,null,null,null,null,null,null,null,null,null,null,null,null,null,null,null,null,null,null,null,null,null,null,null,null,null,null,null,null,null,null,null,null,null,null,null,null,null,null,null,null,null,null,null,null,8,8,172.72450553311413,172.72450553311413,0,827.2754944668859,783.816753760697,4189.7842622091875,null,null,8,1000,28.50558331309735,0,971.4944166869027,2449.1755808847793]
[null,null,null,null,null,null,null,null,null,null,null,null,null,null,null,null,null,null,null,null,null,null,null,null,null,null,null,null,null,null,null,null,null,null,null,null,null,null,null,null,null,null,null,null,null,null,null,9,9,140.62828370769643,140.62828370769643,0,859.37171629230352,760.30324110955837,3330.412545916884,null,null,9,1000,20.409796507373159,0,979.59020349262687,1469.5853773921524]
[null,null,null,null,null,null,null,null,null,null,null,null,null,null,null,null,null,null,null,null,null,null,null,null,null,null,null,null,null,null,null,null,null,null,null,null,null,null,null,null,null,null,null,null,null,null,null,10,10,107.35191845731046,107.35191845731046,0,892.64808154268951,737.49510414035365,2437.7644643741946,null,null,10,1000,12.24654481160127,0,987.75345518839868,481.83192220375372]
[null,null,null,null,null,null,null,null,null,null,null,null,null,null,null,null,null,null,null,null,null,null,null,null,null,null,null,null,null,null,null,null,null,null,null,null,null,null,null,null,null,null,null,null,null,null,null,11,11,72.85201718232031,72.85201718232031,0,927.14798281767969,715.37118247351532,1510.6164815565148,null,null,11,1000,4.0152660183646143,0,995.98473398163537,-514.15281177788165]
[null,null,null,null,null,null,null,null,null,null,null,null,null,null,null,null,null,null,null,null,null,null,null,null,null,null,null,null,null,null,null,null,null,null,null,null,null,null,null,null,null,null,null,null,null,null,null,12,12,37.083591784048757,37.083591784048757,0,962.91640821595126,693.91095051413765,547.70007334056356,null,null,12,1000,-4.2846067648156803,0,1004.2846067648156,-1518.4374185426973]
[null,null,null,null,null,null,null,null,null,null,null,null,null,null,null,null,null,null,null,null,null,null,null,null,null,null,null,null,null,null,null,null,null,null,null,null,null,null,null,null,null,null,null,null,null,null,null,13,13,{"$error":"#NUM!"},0,0,0,0,0,null,null,"","","","",{"$error":"#VALUE!"},{"$error":"#VALUE!"}]
[null,null,null,null,null,null,null,null,null,null,null,null,null,null,null,null,null,null,null,null,null,null,null,null,null,null,null,null,null,null,null,null,null,null,null,null,null,null,null,null,null,null,null,null,null,null,null,14,14,{"$error":"#NUM!"},0,0,0,0,0,null,null,"","","","",{"$error":"#VALUE!"},{"$error":"#VALUE!"}]
[null,null,null,null,null,null,null,null,null,null,null,null,null,null,null,null,null,null,null,null,null,null,null,null,null,null,null,null,null,null,null,null,null,null,null,null,null,null,null,null,null,null,null,null,null,null,null,15,15,{"$error":"#NUM!"},0,0,0,0,0,null,null,"","","","",{"$error":"#VALUE!"},{"$error":"#VALUE!"}]
[null,null,null,null,null,null,null,null,null,null,null,null,null,null,null,null,null,null,null,null,null,null,null,null,null,null,null,null,null,null,null,null,null,null,null,null,null,null,null,null,null,null,null,null,null,null,null,16,16,{"$error":"#NUM!"},0,0,0,0,0,null,null,"","","","",{"$error":"#VALUE!"},{"$error":"#VALUE!"}]
[null,null,null,null,null,null,null,null,null,null,null,null,null,null,null,null,null,null,null,null,null,null,null,null,null,null,null,null,null,null,null,null,null,null,null,null,null,null,null,null,null,null,null,null,null,null,null,17,17,{"$error":"#NUM!"},0,0,0,0,0,null,null,"","","","",{"$error":"#VALUE!"},{"$error":"#VALUE!"}]
[null,null,null,null,null,null,null,null,null,null,null,null,null,null,null,null,null,null,null,null,null,null,null,null,null,null,null,null,null,null,null,null,null,null,null,null,null,null,null,null,null,null,null,null,null,null,null,18,18,{"$error":"#NUM!"},0,0,0,0,0,null,null,"","","","",{"$error":"#VALUE!"},{"$error":"#VALUE!"}]
[null,null,null,null,null,null,null,null,null,null,null,null,null,null,null,null,null,null,null,null,null,null,null,null,null,null,null,null,null,null,null,null,null,null,null,null,null,null,null,null,null,null,null,null,null,null,null,19,19,{"$error":"#NUM!"},0,0,0,0,0,null,null,"","","","",{"$error":"#VALUE!"},{"$error":"#VALUE!"}]
[null,null,null,null,null,null,null,null,null,null,null,null,null,null,null,null,null,null,null,null,null,null,null,null,null,null,null,null,null,null,null,null,null,null,null,null,null,null,null,null,null,null,null,null,null,null,null,20,20,{"$error":"#NUM!"},0,0,0,0,0,null,null,"","","","",{"$error":"#VALUE!"},{"$error":"#VALUE!"}]
[null,null,null,null,null,null,null,null,null,null,null,null,null,null,null,null,null,null,null,null,null,null,null,null,null,null,null,null,null,null,null,null,null,null,null,null,null,null,null,null,null,null,null,null,null,null,null,21,21,{"$error":"#NUM!"},0,0,0,0,0,null,null,"","","","",{"$error":"#VALUE!"},{"$error":"#VALUE!"}]
[null,null,null,null,null,null,null,null,null,null,null,null,null,null,null,null,null,null,null,null,null,null,null,null,null,null,null,null,null,null,null,null,null,null,null,null,null,null,null,null,null,null,null,null,null,null,null,22,22,{"$error":"#NUM!"},0,0,0,0,0,null,null,"","","","",{"$error":"#VALUE!"},{"$error":"#VALUE!"}]
[null,null,null,null,null,null,null,null,null,null,null,null,null,null,null,null,null,null,null,null,null,null,null,null,null,null,null,null,null,null,null,null,null,null,null,null,null,null,null,null,null,null,null,null,null,null,null,23,23,{"$error":"#NUM!"},0,0,0,0,0,null,null,"","","","",{"$error":"#VALUE!"},{"$error":"#VALUE!"}]
[null,null,null,null,null,null,null,null,null,null,null,null,null,null,null,null,null,null,null,null,null,null,null,null,null,null,null,null,null,null,null,null,null,null,null,null,null,null,null,null,null,null,null,null,null,null,null,24,24,{"$error":"#NUM!"},0,0,0,0,0,null,null,"","","","",{"$error":"#VALUE!"},{"$error":"#VALUE!"}]
[null,null,null,null,null,null,null,null,null,null,null,null,null,null,null,null,null,null,null,null,null,null,null,null,null,null,null,null,null,null,null,null,null,null,null,null,null,null,null,null,null,null,null,null,null,null,null,25,25,{"$error":"#NUM!"},0,0,0,0,0,null,null,"","","","",{"$error":"#VALUE!"},{"$error":"#VALUE!"}]
[null,null,null,null,null,null,null,null,null,null,null,null,null,null,null,null,null,null,null,null,null,null,null,null,null,null,null,null,null,null,null,null,null,null,null,null,null,null,null,null,null,null,null,null,null,null,null,26,26,{"$error":"#NUM!"},0,0,0,0,0,null,null,"","","","",{"$error":"#VALUE!"},{"$error":"#VALUE!"}]
[null,null,null,null,null,null,null,null,null,null,null,null,null,null,null,null,null,null,null,null,null,null,null,null,null,null,null,null,null,null,null,null,null,null,null,null,null,null,null,null,null,null,null,null,null,null,null,27,27,{"$error":"#NUM!"},0,0,0,0,0,null,null,"","","","",{"$error":"#VALUE!"},{"$error":"#VALUE!"}]
[null,null,null,null,null,null,null,null,null,null,null,null,null,null,null,null,null,null,null,null,null,null,null,null,null,null,null,null,null,null,null,null,null,null,null,null,null,null,null,null,null,null,null,null,null,null,null,28,28,{"$error":"#NUM!"},0,0,0,0,0,null,null,"","","","",{"$error":"#VALUE!"},{"$error":"#VALUE!"}]
[null,null,null,null,null,null,null,null,null,null,null,null,null,null,null,null,null,null,null,null,null,null,null,null,null,null,null,null,null,null,null,null,null,null,null,null,null,null,null,null,null,null,null,null,null,null,null,29,29,{"$error":"#NUM!"},0,0,0,0,0,null,null,"","","","",{"$error":"#VALUE!"},{"$error":"#VALUE!"}]
[null,null,null,null,null,null,null,null,null,null,null,null,null,null,null,null,null,null,null,null,null,null,null,null,null,null,null,null,null,null,null,null,null,null,null,null,null,null,null,null,null,null,null,null,null,null,null,30,30,{"$error":"#NUM!"},0,0,0,0,0,null,null,"","","","",{"$error":"#VALUE!"},{"$error":"#VALUE!"}]
[null,null,null,null,null,null,null,null,null,null,null,null,null,null,null,null,null,null,null,null,null,null,null,null,null,null,null,null,null,null,null,null,null,null,null,null,null,null,null,null,null,null,null,null,null,null,null,31,31,{"$error":"#NUM!"},0,0,0,0,0,null,null,"","","","",{"$error":"#VALUE!"},{"$error":"#VALUE!"}]
[null,null,null,null,null,null,null,null,null,null,null,null,null,null,null,null,null,null,null,null,null,null,null,null,null,null,null,null,null,null,null,null,null,null,null,null,null,null,null,null,null,null,null,null,null,null,null,32,32,{"$error":"#NUM!"},0,0,0,0,0,null,null,"","","","",{"$error":"#VALUE!"},{"$error":"#VALUE!"}]
[null,null,null,null,null,null,null,null,null,null,null,null,null,null,null,null,null,null,null,null,null,null,null,null,null,null,null,null,null,null,null,null,null,null,null,null,null,null,null,null,null,null,null,null,null,null,null,33,33,{"$error":"#NUM!"},0,0,0,0,0,null,null,"","","","",{"$error":"#VALUE!"},{"$error":"#VALUE!"}]
[null,null,null,null,null,null,null,null,null,null,null,null,null,null,null,null,null,null,null,null,null,null,null,null,null,null,null,null,null,null,null,null,null,null,null,null,null,null,null,null,null,null,null,null,null,null,null,34,34,{"$error":"#NUM!"},0,0,0,0,0,null,null,"","","","",{"$error":"#VALUE!"},{"$error":"#VALUE!"}]
[null,null,null,null,null,null,null,null,null,null,null,null,null,null,null,null,null,null,null,null,null,null,null,null,null,null,null,null,null,null,null,null,null,null,null,null,null,null,null,null,null,null,null,null,null,null,null,35,35,{"$error":"#NUM!"},0,0,0,0,0,null,null,"","","","",{"$error":"#VALUE!"},{"$error":"#VALUE!"}]
[null,null,null,null,null,null,null,null,null,null,null,null,null,null,null,null,null,null,null,null,null,null,null,null,null,null,null,null,null,null,null,null,null,null,null,null,null,null,null,null,null,null,null,null,null,null,null,36,36,{"$error":"#NUM!"},0,0,0,0,0,null,null,"","","","",{"$error":"#VALUE!"},{"$error":"#VALUE!"}]
[null,null,null,null,null,null,null,null,null,null,null,null,null,null,null,null,null,null,null,null,null,null,null,null,null,null,null,null,null,null,null,null,null,null,null,null,null,null,null,null,null,null,null,null,null,null,null,37,37,{"$error":"#NUM!"},0,0,0,0,0,null,null,{"$f":"IF(BH56=\"\",\"\",BF55+1)","v":""},"","",{"$f":"IF(BH56=\"\",\"\",AZ56)","v":""},{"$error":"#VALUE!"},{"$error":"#VALUE!"}]
[null,null,null,null,null,null,null,null,null,null,null,null,null,null,null,null,null,null,null,null,null,null,null,null,null,null,null,null,null,null,null,null,null,null,null,null,null,null,null,null,null,null,null,null,null,null,null,38,38,{"$error":"#NUM!"},0,0,0,0,0,null,null,"","","","",{"$error":"#VALUE!"},{"$error":"#VALUE!"}]
[null,null,null,null,null,null,null,null,null,null,null,null,null,null,null,null,null,null,null,null,null,null,null,null,null,null,null,null,null,null,null,null,null,null,null,null,null,null,null,null,null,null,null,null,null,null,null,39,39,{"$error":"#NUM!"},0,0,0,0,0,null,null,"","","","",{"$error":"#VALUE!"},{"$error":"#VALUE!"}]
[null,null,null,null,null,null,null,null,null,null,null,null,null,null,null,null,null,null,null,null,null,null,null,null,null,null,null,null,null,null,null,null,null,null,null,null,null,null,null,null,null,null,null,null,null,null,null,40,40,{"$error":"#NUM!"},0,0,0,0,0,null,null,"","","","",{"$error":"#VALUE!"},{"$error":"#VALUE!"}]
[null,null,null,null,null,null,null,null,null,null,null,null,null,null,null,null,null,null,null,null,null,null,null,null,null,null,null,null,null,null,null,null,null,null,null,null,null,null,null,null,null,null,null,null,null,null,null,41,41,{"$error":"#NUM!"},0,0,0,0,0,null,null,"","","","",{"$error":"#VALUE!"},{"$error":"#VALUE!"}]
[null,null,null,null,null,null,null,null,null,null,null,null,null,null,null,null,null,null,null,null,null,null,null,null,null,null,null,null,null,null,null,null,null,null,null,null,null,null,null,null,null,null,null,null,null,null,null,42,42,{"$error":"#NUM!"},0,0,0,0,0,null,null,"","","","",{"$error":"#VALUE!"},{"$error":"#VALUE!"}]
[null,null,null,null,null,null,null,null,null,null,null,null,null,null,null,null,null,null,null,null,null,null,null,null,null,null,null,null,null,null,null,null,null,null,null,null,null,null,null,null,null,null,null,null,null,null,null,43,43,{"$error":"#NUM!"},0,0,0,0,0,null,null,"","","","",{"$error":"#VALUE!"},{"$error":"#VALUE!"}]
[null,null,null,null,null,null,null,null,null,null,null,null,null,null,null,null,null,null,null,null,null,null,null,null,null,null,null,null,null,null,null,null,null,null,null,null,null,null,null,null,null,null,null,null,null,null,null,44,44,{"$error":"#NUM!"},0,0,0,0,0,null,null,"","","","",{"$error":"#VALUE!"},{"$error":"#VALUE!"}]
[null,null,null,null,null,null,null,null,null,null,null,null,null,null,null,null,null,null,null,null,null,null,null,null,null,null,null,null,null,null,null,null,null,null,null,null,null,null,null,null,null,null,null,null,null,null,null,45,45,{"$error":"#NUM!"},0,0,0,0,0,null,null,"","","","",{"$error":"#VALUE!"},{"$error":"#VALUE!"}]
[null,null,null,null,null,null,null,null,null,null,null,null,null,null,null,null,null,null,null,null,null,null,null,null,null,null,null,null,null,null,null,null,null,null,null,null,null,null,null,null,null,null,null,null,null,null,null,46,46,{"$error":"#NUM!"},0,0,0,0,0,null,null,"","","","",{"$error":"#VALUE!"},{"$error":"#VALUE!"}]
[null,null,null,null,null,null,null,null,null,null,null,null,null,null,null,null,null,null,null,null,null,null,null,null,null,null,null,null,null,null,null,null,null,null,null,null,null,null,null,null,null,null,null,null,null,null,null,47,47,{"$error":"#NUM!"},0,0,0,0,0,null,null,"","","","",{"$error":"#VALUE!"},{"$error":"#VALUE!"}]
[null,null,null,null,null,null,null,null,null,null,null,null,null,null,null,null,null,null,null,null,null,null,null,null,null,null,null,null,null,null,null,null,null,null,null,null,null,null,null,null,null,null,null,null,null,null,null,48,48,{"$error":"#NUM!"},0,0,0,0,0,null,null,"","","","",{"$error":"#VALUE!"},{"$error":"#VALUE!"}]
[null,null,null,null,null,null,null,null,null,null,null,null,null,null,null,null,null,null,null,null,null,null,null,null,null,null,null,null,null,null,null,null,null,null,null,null,null,null,null,null,null,null,null,null,null,null,null,49,49,{"$error":"#NUM!"},0,0,0,0,0,null,null,"","","","",{"$error":"#VALUE!"},{"$error":"#VALUE!"}]
[null,null,null,null,null,null,null,null,null,null,null,null,null,null,null,null,null,null,null,null,null,null,null,null,null,null,null,null,null,null,null,null,null,null,null,null,null,null,null,null,null,null,null,null,null,null,null,50,50,{"$error":"#NUM!"},0,0,0,0,0,null,null,"","","","",{"$error":"#VALUE!"},{"$error":"#VALUE!"}]
[null,null,null,null,null,null,null,null,null,null,null,null,null,null,null,null,null,null,null,null,null,null,null,null,null,null,null,null,null,null,null,null,null,null,null,null,null,null,null,null,null,null,null,null,null,null,null,51,51,{"$error":"#NUM!"},0,0,0,0,0,null,null,"","","","",{"$error":"#VALUE!"},{"$error":"#VALUE!"}]
[null,null,null,null,null,null,null,null,null,null,null,null,null,null,null,null,null,null,null,null,null,null,null,null,null,null,null,null,null,null,null,null,null,null,null,null,null,null,null,null,null,null,null,null,null,null,null,52,52,{"$error":"#NUM!"},0,0,0,0,0,null,null,"","","","",{"$error":"#VALUE!"},{"$error":"#VALUE!"}]
[null,null,null,null,null,null,null,null,null,null,null,null,null,null,null,null,null,null,null,null,null,null,null,null,null,null,null,null,null,null,null,null,null,null,null,null,null,null,null,null,null,null,null,null,null,null,null,53,53,{"$error":"#NUM!"},0,0,0,0,0,null,null,"","","","",{"$error":"#VALUE!"},{"$error":"#VALUE!"}]
[null,null,null,null,null,null,null,null,null,null,null,null,null,null,null,null,null,null,null,null,null,null,null,null,null,null,null,null,null,null,null,null,null,null,null,null,null,null,null,null,null,null,null,null,null,null,null,54,54,{"$error":"#NUM!"},0,0,0,0,0,null,null,"","","","",{"$error":"#VALUE!"},{"$error":"#VALUE!"}]
[null,null,null,null,null,null,null,null,null,null,null,null,null,null,null,null,null,null,null,null,null,null,null,null,null,null,null,null,null,null,null,null,null,null,null,null,null,null,null,null,null,null,null,null,null,null,null,55,55,{"$error":"#NUM!"},0,0,0,0,0,null,null,"","","","",{"$error":"#VALUE!"},{"$error":"#VALUE!"}]
[null,null,null,null,null,null,null,null,null,null,null,null,null,null,null,null,null,null,null,null,null,null,null,null,null,null,null,null,null,null,null,null,null,null,null,null,null,null,null,null,null,null,null,null,null,null,null,56,56,{"$error":"#NUM!"},0,0,0,0,0,null,null,"","","","",{"$error":"#VALUE!"},{"$error":"#VALUE!"}]
[null,null,null,null,null,null,null,null,null,null,null,null,null,null,null,null,null,null,null,null,null,null,null,null,null,null,null,null,null,null,null,null,null,null,null,null,null,null,null,null,null,null,null,null,null,null,null,57,57,{"$error":"#NUM!"},0,0,0,0,0,null,null,"","","","",{"$error":"#VALUE!"},{"$error":"#VALUE!"}]
[null,null,null,null,null,null,null,null,null,null,null,null,null,null,null,null,null,null,null,null,null,null,null,null,null,null,null,null,null,null,null,null,null,null,null,null,null,null,null,null,null,null,null,null,null,null,null,58,58,{"$error":"#NUM!"},0,0,0,0,0,null,null,"","","","",{"$error":"#VALUE!"},{"$error":"#VALUE!"}]
[null,null,null,null,null,null,null,null,null,null,null,null,null,null,null,null,null,null,null,null,null,null,null,null,null,null,null,null,null,null,null,null,null,null,null,null,null,null,null,null,null,null,null,null,null,null,null,59,59,{"$error":"#NUM!"},0,0,0,0,0,null,null,"","","","",{"$error":"#VALUE!"},{"$error":"#VALUE!"}]
[null,null,null,null,null,null,null,null,null,null,null,null,null,null,null,null,null,null,null,null,null,null,null,null,null,null,null,null,null,null,null,null,null,null,null,null,null,null,null,null,null,null,null,null,null,null,null,60,60,{"$error":"#NUM!"},0,0,0,0,0,null,null,"","","","",{"$error":"#VALUE!"},{"$error":"#VALUE!"}]
[null,null,null,null,null,null,null,null,null,null,null,null,null,null,null,null,null,null,null,null,null,null,null,null,null,null,null,null,null,null,null,null,null,null,null,null,null,null,null,null,null,null,null,null,null,null,null,61,61,{"$error":"#NUM!"},0,0,0,0,0,null,null,"","","","",{"$error":"#VALUE!"},{"$error":"#VALUE!"}]
[null,null,null,null,null,null,null,null,null,null,null,null,null,null,null,null,null,null,null,null,null,null,null,null,null,null,null,null,null,null,null,null,null,null,null,null,null,null,null,null,null,null,null,null,null,null,null,62,62,{"$error":"#NUM!"},0,0,0,0,0,null,null,"","","","",{"$error":"#VALUE!"},{"$error":"#VALUE!"}]
[null,null,null,null,null,null,null,null,null,null,null,null,null,null,null,null,null,null,null,null,null,null,null,null,null,null,null,null,null,null,null,null,null,null,null,null,null,null,null,null,null,null,null,null,null,null,null,63,63,{"$error":"#NUM!"},0,0,0,0,0,null,null,"","","","",{"$error":"#VALUE!"},{"$error":"#VALUE!"}]
[null,null,null,null,null,null,null,null,null,null,null,null,null,null,null,null,null,null,null,null,null,null,null,null,null,null,null,null,null,null,null,null,null,null,null,null,null,null,null,null,null,null,null,null,null,null,null,64,64,{"$error":"#NUM!"},0,0,0,0,0,null,null,"","","","",{"$error":"#VALUE!"},{"$error":"#VALUE!"}]
[null,null,null,null,null,null,null,null,null,null,null,null,null,null,null,null,null,null,null,null,null,null,null,null,null,null,null,null,null,null,null,null,null,null,null,null,null,null,null,null,null,null,null,null,null,null,null,65,65,{"$f":"-IPMT($G$6/$AW$15,AW84,pocet,credit)","v":{"$error":"#NUM!"}},{"$f":"IF(ISERR(IPMT($G$6/$AW$15,AW84,pocet,$B$4)),0,-IPMT($G$6/$AW$15,AW84,pocet,$B$4))","v":0},0,0,0,0,null,null,"",{"$f":"IF(ISERR(AX84),\"\",IF(AND(NOT(splatka=splatka2),BF84=pocet),splatka2,splatka))","v":""},"","",{"$error":"#VALUE!"},{"$error":"#VALUE!"}]
[null,null,null,null,null,null,null,null,null,null,null,null,null,null,null,null,null,null,null,null,null,null,null,null,null,null,null,null,null,null,null,null,null,null,null,null,null,null,null,null,null,null,null,null,null,null,null,66,66,{"$error":"#NUM!"},0,{"$f":"IF(AY85=0,0,$B$9+$B$10)","v":0},{"$f":"IF(ISERR(AX85),0,$B$5-AY85)","v":0},{"$f":"IF(ISERR(AX85),0,IF(AND(NOT(splatka=splatka2),BF85=pocet),SUM(splatka2+AZ85)/(1+$G$6)^(prvni/konvence+AW84/$AW$15),SUM(splatka+AZ85)/(1+$G$6)^(prvni/konvence+AW84/$AW$15)))","v":0},0,null,null,"","",{"$f":"IF(OR(AY85<0,ISERR(AX85)),\"\",urok/$AW$15*BK84)","v":""},"",{"$f":"BG85-BH85","v":{"$error":"#VALUE!"}},{"$error":"#VALUE!"}]
[null,null,null,null,null,null,null,null,null,null,null,null,null,null,null,null,null,null,null,null,null,null,null,null,null,null,null,null,null,null,null,null,null,null,null,null,null,null,null,null,null,null,null,null,null,null,null,67,67,{"$error":"#NUM!"},0,0,0,0,{"$f":"IF(ISERR(AX86),0,BC85-BA86)","v":0},null,null,"","","","",{"$error":"#VALUE!"},{"$f":"BK85-BJ86","v":{"$error":"#VALUE!"}}]
[null,null,null,null,null,null,null,null,null,null,null,null,null,null,null,null,null,null,null,null,null,null,null,null,null,null,null,null,null,null,null,null,null,null,null,null,null,null,null,null,null,null,null,null,null,null,null,68,68,{"$error":"#NUM!"},0,0,0,0,0,null,null,"","","","",{"$error":"#VALUE!"},{"$error":"#VALUE!"}]
[null,null,null,null,null,null,null,null,null,null,null,null,null,null,null,null,null,null,null,null,null,null,null,null,null,null,null,null,null,null,null,null,null,null,null,null,null,null,null,null,null,null,null,null,null,null,null,69,69,{"$error":"#NUM!"},0,0,0,0,0,null,null,"","","","",{"$error":"#VALUE!"},{"$error":"#VALUE!"}]
[null,null,null,null,null,null,null,null,null,null,null,null,null,null,null,null,null,null,null,null,null,null,null,null,null,null,null,null,null,null,null,null,null,null,null,null,null,null,null,null,null,null,null,null,null,null,null,70,70,{"$error":"#NUM!"},0,0,0,0,0,null,null,"","","","",{"$error":"#VALUE!"},{"$error":"#VALUE!"}]
[null,null,null,null,null,null,null,null,null,null,null,null,null,null,null,null,null,null,null,null,null,null,null,null,null,null,null,null,null,null,null,null,null,null,null,null,null,null,null,null,null,null,null,null,null,null,null,71,71,{"$error":"#NUM!"},0,0,0,0,0,null,null,"","","","",{"$error":"#VALUE!"},{"$error":"#VALUE!"}]
[null,null,null,null,null,null,null,null,null,null,null,null,null,null,null,null,null,null,null,null,null,null,null,null,null,null,null,null,null,null,null,null,null,null,null,null,null,null,null,null,null,null,null,null,null,null,null,72,72,{"$error":"#NUM!"},0,0,0,0,0,null,null,"","","","",{"$error":"#VALUE!"},{"$error":"#VALUE!"}]
[null,null,null,null,null,null,null,null,null,null,null,null,null,null,null,null,null,null,null,null,null,null,null,null,null,null,null,null,null,null,null,null,null,null,null,null,null,null,null,null,null,null,null,null,null,null,null,73,73,{"$error":"#NUM!"},0,0,0,0,0,null,null,"","","","",{"$error":"#VALUE!"},{"$error":"#VALUE!"}]
[null,null,null,null,null,null,null,null,null,null,null,null,null,null,null,null,null,null,null,null,null,null,null,null,null,null,null,null,null,null,null,null,null,null,null,null,null,null,null,null,null,null,null,null,null,null,null,74,74,{"$error":"#NUM!"},0,0,0,0,0,null,null,"","","","",{"$error":"#VALUE!"},{"$error":"#VALUE!"}]
[null,null,null,null,null,null,null,null,null,null,null,null,null,null,null,null,null,null,null,null,null,null,null,null,null,null,null,null,null,null,null,null,null,null,null,null,null,null,null,null,null,null,null,null,null,null,null,75,75,{"$error":"#NUM!"},0,0,0,0,0,null,null,"","","","",{"$error":"#VALUE!"},{"$error":"#VALUE!"}]
[null,null,null,null,null,null,null,null,null,null,null,null,null,null,null,null,null,null,null,null,null,null,null,null,null,null,null,null,null,null,null,null,null,null,null,null,null,null,null,null,null,null,null,null,null,null,null,76,76,{"$error":"#NUM!"},0,0,0,0,0,null,null,"","","","",{"$error":"#VALUE!"},{"$error":"#VALUE!"}]
[null,null,null,null,null,null,null,null,null,null,null,null,null,null,null,null,null,null,null,null,null,null,null,null,null,null,null,null,null,null,null,null,null,null,null,null,null,null,null,null,null,null,null,null,null,null,null,77,77,{"$error":"#NUM!"},0,0,0,0,0,null,null,"","","","",{"$error":"#VALUE!"},{"$error":"#VALUE!"}]
[null,null,null,null,null,null,null,null,null,null,null,null,null,null,null,null,null,null,null,null,null,null,null,null,null,null,null,null,null,null,null,null,null,null,null,null,null,null,null,null,null,null,null,null,null,null,null,78,78,{"$error":"#NUM!"},0,0,0,0,0,null,null,"","","","",{"$error":"#VALUE!"},{"$error":"#VALUE!"}]
[null,null,null,null,null,null,null,null,null,null,null,null,null,null,null,null,null,null,null,null,null,null,null,null,null,null,null,null,null,null,null,null,null,null,null,null,null,null,null,null,null,null,null,null,null,null,null,79,79,{"$error":"#NUM!"},0,0,0,0,0,null,null,"","","","",{"$error":"#VALUE!"},{"$error":"#VALUE!"}]
[null,null,null,null,null,null,null,null,null,null,null,null,null,null,null,null,null,null,null,null,null,null,null,null,null,null,null,null,null,null,null,null,null,null,null,null,null,null,null,null,null,null,null,null,null,null,null,80,80,{"$error":"#NUM!"},0,0,0,0,0,null,null,"","","","",{"$error":"#VALUE!"},{"$error":"#VALUE!"}]
[null,null,null,null,null,null,null,null,null,null,null,null,null,null,null,null,null,null,null,null,null,null,null,null,null,null,null,null,null,null,null,null,null,null,null,null,null,null,null,null,null,null,null,null,null,null,null,81,81,{"$error":"#NUM!"},0,0,0,0,0,null,null,"","","","",{"$error":"#VALUE!"},{"$error":"#VALUE!"}]
[null,null,null,null,null,null,null,null,null,null,null,null,null,null,null,null,null,null,null,null,null,null,null,null,null,null,null,null,null,null,null,null,null,null,null,null,null,null,null,null,null,null,null,null,null,null,null,82,82,{"$error":"#NUM!"},0,0,0,0,0,null,null,"","","","",{"$error":"#VALUE!"},{"$error":"#VALUE!"}]
[null,null,null,null,null,null,null,null,null,null,null,null,null,null,null,null,null,null,null,null,null,null,null,null,null,null,null,null,null,null,null,null,null,null,null,null,null,null,null,null,null,null,null,null,null,null,null,83,83,{"$error":"#NUM!"},0,0,0,0,0,null,null,"","","","",{"$error":"#VALUE!"},{"$error":"#VALUE!"}]
[null,null,null,null,null,null,null,null,null,null,null,null,null,null,null,null,null,null,null,null,null,null,null,null,null,null,null,null,null,null,null,null,null,null,null,null,null,null,null,null,null,null,null,null,null,null,null,84,84,{"$error":"#NUM!"},0,0,0,0,0,null,null,"","","","",{"$error":"#VALUE!"},{"$error":"#VALUE!"}]
[null,null,null,null,null,null,null,null,null,null,null,null,null,null,null,null,null,null,null,null,null,null,null,null,null,null,null,null,null,null,null,null,null,null,null,null,null,null,null,null,null,null,null,null,null,null,null,85,85,{"$error":"#NUM!"},0,0,0,0,0,null,null,"","","","",{"$error":"#VALUE!"},{"$error":"#VALUE!"}]
[null,null,null,null,null,null,null,null,null,null,null,null,null,null,null,null,null,null,null,null,null,null,null,null,null,null,null,null,null,null,null,null,null,null,null,null,null,null,null,null,null,null,null,null,null,null,null,86,86,{"$error":"#NUM!"},0,0,0,0,0,null,null,"","","","",{"$error":"#VALUE!"},{"$error":"#VALUE!"}]
[null,null,null,null,null,null,null,null,null,null,null,null,null,null,null,null,null,null,null,null,null,null,null,null,null,null,null,null,null,null,null,null,null,null,null,null,null,null,null,null,null,null,null,null,null,null,null,87,87,{"$error":"#NUM!"},0,0,0,0,0,null,null,"","","","",{"$error":"#VALUE!"},{"$error":"#VALUE!"}]
[null,null,null,null,null,null,null,null,null,null,null,null,null,null,null,null,null,null,null,null,null,null,null,null,null,null,null,null,null,null,null,null,null,null,null,null,null,null,null,null,null,null,null,null,null,null,null,88,88,{"$error":"#NUM!"},0,0,0,0,0,null,null,"","","","",{"$error":"#VALUE!"},{"$error":"#VALUE!"}]
[null,null,null,null,null,null,null,null,null,null,null,null,null,null,null,null,null,null,null,null,null,null,null,null,null,null,null,null,null,null,null,null,null,null,null,null,null,null,null,null,null,null,null,null,null,null,null,89,89,{"$error":"#NUM!"},0,0,0,0,0,null,null,"","","","",{"$error":"#VALUE!"},{"$error":"#VALUE!"}]
[null,null,null,null,null,null,null,null,null,null,null,null,null,null,null,null,null,null,null,null,null,null,null,null,null,null,null,null,null,null,null,null,null,null,null,null,null,null,null,null,null,null,null,null,null,null,null,90,90,{"$error":"#NUM!"},0,0,0,0,0,null,null,"","","","",{"$error":"#VALUE!"},{"$error":"#VALUE!"}]
[null,null,null,null,null,null,null,null,null,null,null,null,null,null,null,null,null,null,null,null,null,null,null,null,null,null,null,null,null,null,null,null,null,null,null,null,null,null,null,null,null,null,null,null,null,null,null,91,91,{"$error":"#NUM!"},0,0,0,0,0,null,null,"","","","",{"$error":"#VALUE!"},{"$error":"#VALUE!"}]
[null,null,null,null,null,null,null,null,null,null,null,null,null,null,null,null,null,null,null,null,null,null,null,null,null,null,null,null,null,null,null,null,null,null,null,null,null,null,null,null,null,null,null,null,null,null,null,92,92,{"$error":"#NUM!"},0,0,0,0,0,null,null,"","","","",{"$error":"#VALUE!"},{"$error":"#VALUE!"}]
[null,null,null,null,null,null,null,null,null,null,null,null,null,null,null,null,null,null,null,null,null,null,null,null,null,null,null,null,null,null,null,null,null,null,null,null,null,null,null,null,null,null,null,null,null,null,null,93,93,{"$error":"#NUM!"},0,0,0,0,0,null,null,"","","","",{"$error":"#VALUE!"},{"$error":"#VALUE!"}]
[null,null,null,null,null,null,null,null,null,null,null,null,null,null,null,null,null,null,null,null,null,null,null,null,null,null,null,null,null,null,null,null,null,null,null,null,null,null,null,null,null,null,null,null,null,null,null,94,94,{"$error":"#NUM!"},0,0,0,0,0,null,null,"","","","",{"$error":"#VALUE!"},{"$error":"#VALUE!"}]
[null,null,null,null,null,null,null,null,null,null,null,null,null,null,null,null,null,null,null,null,null,null,null,null,null,null,null,null,null,null,null,null,null,null,null,null,null,null,null,null,null,null,null,null,null,null,null,95,95,{"$error":"#NUM!"},0,0,0,0,0,null,null,"","","","",{"$error":"#VALUE!"},{"$error":"#VALUE!"}]
[null,null,null,null,null,null,null,null,null,null,null,null,null,null,null,null,null,null,null,null,null,null,null,null,null,null,null,null,null,null,null,null,null,null,null,null,null,null,null,null,null,null,null,null,null,null,null,96,96,{"$error":"#NUM!"},0,0,0,0,0,null,null,"","","","",{"$error":"#VALUE!"},{"$error":"#VALUE!"}]
[null,null,null,null,null,null,null,null,null,null,null,null,null,null,null,null,null,null,null,null,null,null,null,null,null,null,null,null,null,null,null,null,null,null,null,null,null,null,null,null,null,null,null,null,null,null,null,97,97,{"$error":"#NUM!"},0,0,0,0,0,null,null,"","","","",{"$error":"#VALUE!"},{"$error":"#VALUE!"}]
[null,null,null,null,null,null,null,null,null,null,null,null,null,null,null,null,null,null,null,null,null,null,null,null,null,null,null,null,null,null,null,null,null,null,null,null,null,null,null,null,null,null,null,null,null,null,null,98,98,{"$error":"#NUM!"},0,0,0,0,0,null,null,"","","","",{"$error":"#VALUE!"},{"$error":"#VALUE!"}]
[null,null,null,null,null,null,null,null,null,null,null,null,null,null,null,null,null,null,null,null,null,null,null,null,null,null,null,null,null,null,null,null,null,null,null,null,null,null,null,null,null,null,null,null,null,null,null,99,99,{"$error":"#NUM!"},0,0,0,0,0,null,null,"","","","",{"$error":"#VALUE!"},{"$error":"#VALUE!"}]
[null,null,null,null,null,null,null,null,null,null,null,null,null,null,null,null,null,null,null,null,null,null,null,null,null,null,null,null,null,null,null,null,null,null,null,null,null,null,null,null,null,null,null,null,null,null,null,100,100,{"$error":"#NUM!"},0,0,0,0,0,null,null,"","","","",{"$error":"#VALUE!"},{"$error":"#VALUE!"}]
[null,null,null,null,null,null,null,null,null,null,null,null,null,null,null,null,null,null,null,null,null,null,null,null,null,null,null,null,null,null,null,null,null,null,null,null,null,null,null,null,null,null,null,null,null,null,null,101,101,{"$error":"#NUM!"},0,0,0,0,0,null,null,{"$f":"IF(BH120=\"\",\"\",BF119+1)","v":""},"","",{"$f":"IF(BH120=\"\",\"\",AZ120)","v":""},{"$error":"#VALUE!"},{"$error":"#VALUE!"}]
[null,null,null,null,null,null,null,null,null,null,null,null,null,null,null,null,null,null,null,null,null,null,null,null,null,null,null,null,null,null,null,null,null,null,null,null,null,null,null,null,null,null,null,null,null,null,null,102,102,{"$error":"#NUM!"},0,0,0,0,0,null,null,"","","","",{"$error":"#VALUE!"},{"$error":"#VALUE!"}]
[null,null,null,null,null,null,null,null,null,null,null,null,null,null,null,null,null,null,null,null,null,null,null,null,null,null,null,null,null,null,null,null,null,null,null,null,null,null,null,null,null,null,null,null,null,null,null,103,103,{"$error":"#NUM!"},0,0,0,0,0,null,null,"","","","",{"$error":"#VALUE!"},{"$error":"#VALUE!"}]
[null,null,null,null,null,null,null,null,null,null,null,null,null,null,null,null,null,null,null,null,null,null,null,null,null,null,null,null,null,null,null,null,null,null,null,null,null,null,null,null,null,null,null,null,null,null,null,104,104,{"$error":"#NUM!"},0,0,0,0,0,null,null,"","","","",{"$error":"#VALUE!"},{"$error":"#VALUE!"}]
[null,null,null,null,null,null,null,null,null,null,null,null,null,null,null,null,null,null,null,null,null,null,null,null,null,null,null,null,null,null,null,null,null,null,null,null,null,null,null,null,null,null,null,null,null,null,null,105,105,{"$error":"#NUM!"},0,0,0,0,0,null,null,"","","","",{"$error":"#VALUE!"},{"$error":"#VALUE!"}]
[null,null,null,null,null,null,null,null,null,null,null,null,null,null,null,null,null,null,null,null,null,null,null,null,null,null,null,null,null,null,null,null,null,null,null,null,null,null,null,null,null,null,null,null,null,null,null,106,106,{"$error":"#NUM!"},0,0,0,0,0,null,null,"","","","",{"$error":"#VALUE!"},{"$error":"#VALUE!"}]
[null,null,null,null,null,null,null,null,null,null,null,null,null,null,null,null,null,null,null,null,null,null,null,null,null,null,null,null,null,null,null,null,null,null,null,null,null,null,null,null,null,null,null,null,null,null,null,107,107,{"$error":"#NUM!"},0,0,0,0,0,null,null,"","","","",{"$error":"#VALUE!"},{"$error":"#VALUE!"}]
[null,null,null,null,null,null,null,null,null,null,null,null,null,null,null,null,null,null,null,null,null,null,null,null,null,null,null,null,null,null,null,null,null,null,null,null,null,null,null,null,null,null,null,null,null,null,null,108,108,{"$error":"#NUM!"},0,0,0,0,0,null,null,"","","","",{"$error":"#VALUE!"},{"$error":"#VALUE!"}]
[null,null,null,null,null,null,null,null,null,null,null,null,null,null,null,null,null,null,null,null,null,null,null,null,null,null,null,null,null,null,null,null,null,null,null,null,null,null,null,null,null,null,null,null,null,null,null,109,109,{"$error":"#NUM!"},0,0,0,0,0,null,null,"","","","",{"$error":"#VALUE!"},{"$error":"#VALUE!"}]
[null,null,null,null,null,null,null,null,null,null,null,null,null,null,null,null,null,null,null,null,null,null,null,null,null,null,null,null,null,null,null,null,null,null,null,null,null,null,null,null,null,null,null,null,null,null,null,110,110,{"$error":"#NUM!"},0,0,0,0,0,null,null,"","","","",{"$error":"#VALUE!"},{"$error":"#VALUE!"}]
[null,null,null,null,null,null,null,null,null,null,null,null,null,null,null,null,null,null,null,null,null,null,null,null,null,null,null,null,null,null,null,null,null,null,null,null,null,null,null,null,null,null,null,null,null,null,null,111,111,{"$error":"#NUM!"},0,0,0,0,0,null,null,"","","","",{"$error":"#VALUE!"},{"$error":"#VALUE!"}]
[null,null,null,null,null,null,null,null,null,null,null,null,null,null,null,null,null,null,null,null,null,null,null,null,null,null,null,null,null,null,null,null,null,null,null,null,null,null,null,null,null,null,null,null,null,null,null,112,112,{"$error":"#NUM!"},0,0,0,0,0,null,null,"","","","",{"$error":"#VALUE!"},{"$error":"#VALUE!"}]
[null,null,null,null,null,null,null,null,null,null,null,null,null,null,null,null,null,null,null,null,null,null,null,null,null,null,null,null,null,null,null,null,null,null,null,null,null,null,null,null,null,null,null,null,null,null,null,113,113,{"$error":"#NUM!"},0,0,0,0,0,null,null,"","","","",{"$error":"#VALUE!"},{"$error":"#VALUE!"}]
[null,null,null,null,null,null,null,null,null,null,null,null,null,null,null,null,null,null,null,null,null,null,null,null,null,null,null,null,null,null,null,null,null,null,null,null,null,null,null,null,null,null,null,null,null,null,null,114,114,{"$error":"#NUM!"},0,0,0,0,0,null,null,"","","","",{"$error":"#VALUE!"},{"$error":"#VALUE!"}]
[null,null,null,null,null,null,null,null,null,null,null,null,null,null,null,null,null,null,null,null,null,null,null,null,null,null,null,null,null,null,null,null,null,null,null,null,null,null,null,null,null,null,null,null,null,null,null,115,115,{"$error":"#NUM!"},0,0,0,0,0,null,null,"","","","",{"$error":"#VALUE!"},{"$error":"#VALUE!"}]
[null,null,null,null,null,null,null,null,null,null,null,null,null,null,null,null,null,null,null,null,null,null,null,null,null,null,null,null,null,null,null,null,null,null,null,null,null,null,null,null,null,null,null,null,null,null,null,116,116,{"$error":"#NUM!"},0,0,0,0,0,null,null,"","","","",{"$error":"#VALUE!"},{"$error":"#VALUE!"}]
[null,null,null,null,null,null,null,null,null,null,null,null,null,null,null,null,null,null,null,null,null,null,null,null,null,null,null,null,null,null,null,null,null,null,null,null,null,null,null,null,null,null,null,null,null,null,null,117,117,{"$error":"#NUM!"},0,0,0,0,0,null,null,"","","","",{"$error":"#VALUE!"},{"$error":"#VALUE!"}]
[null,null,null,null,null,null,null,null,null,null,null,null,null,null,null,null,null,null,null,null,null,null,null,null,null,null,null,null,null,null,null,null,null,null,null,null,null,null,null,null,null,null,null,null,null,null,null,118,118,{"$error":"#NUM!"},0,0,0,0,0,null,null,"","","","",{"$error":"#VALUE!"},{"$error":"#VALUE!"}]
[null,null,null,null,null,null,null,null,null,null,null,null,null,null,null,null,null,null,null,null,null,null,null,null,null,null,null,null,null,null,null,null,null,null,null,null,null,null,null,null,null,null,null,null,null,null,null,119,119,{"$error":"#NUM!"},0,0,0,0,0,null,null,"","","","",{"$error":"#VALUE!"},{"$error":"#VALUE!"}]
[null,null,null,null,null,null,null,null,null,null,null,null,null,null,null,null,null,null,null,null,null,null,null,null,null,null,null,null,null,null,null,null,null,null,null,null,null,null,null,null,null,null,null,null,null,null,null,120,120,{"$error":"#NUM!"},0,0,0,0,0,null,null,"","","","",{"$error":"#VALUE!"},{"$error":"#VALUE!"}]
[null,null,null,null,null,null,null,null,null,null,null,null,null,null,null,null,null,null,null,null,null,null,null,null,null,null,null,null,null,null,null,null,null,null,null,null,null,null,null,null,null,null,null,null,null,null,null,121,121,{"$error":"#NUM!"},0,0,0,0,0,null,null,"","","","",{"$error":"#VALUE!"},{"$error":"#VALUE!"}]
[null,null,null,null,null,null,null,null,null,null,null,null,null,null,null,null,null,null,null,null,null,null,null,null,null,null,null,null,null,null,null,null,null,null,null,null,null,null,null,null,null,null,null,null,null,null,null,122,122,{"$error":"#NUM!"},0,0,0,0,0,null,null,"","","","",{"$error":"#VALUE!"},{"$error":"#VALUE!"}]
[null,null,null,null,null,null,null,null,null,null,null,null,null,null,null,null,null,null,null,null,null,null,null,null,null,null,null,null,null,null,null,null,null,null,null,null,null,null,null,null,null,null,null,null,null,null,null,123,123,{"$error":"#NUM!"},0,0,0,0,0,null,null,"","","","",{"$error":"#VALUE!"},{"$error":"#VALUE!"}]
[null,null,null,null,null,null,null,null,null,null,null,null,null,null,null,null,null,null,null,null,null,null,null,null,null,null,null,null,null,null,null,null,null,null,null,null,null,null,null,null,null,null,null,null,null,null,null,124,124,{"$error":"#NUM!"},0,0,0,0,0,null,null,"","","","",{"$error":"#VALUE!"},{"$error":"#VALUE!"}]
[null,null,null,null,null,null,null,null,null,null,null,null,null,null,null,null,null,null,null,null,null,null,null,null,null,null,null,null,null,null,null,null,null,null,null,null,null,null,null,null,null,null,null,null,null,null,null,125,125,{"$error":"#NUM!"},0,0,0,0,0,null,null,"","","","",{"$error":"#VALUE!"},{"$error":"#VALUE!"}]
[null,null,null,null,null,null,null,null,null,null,null,null,null,null,null,null,null,null,null,null,null,null,null,null,null,null,null,null,null,null,null,null,null,null,null,null,null,null,null,null,null,null,null,null,null,null,null,126,126,{"$error":"#NUM!"},0,0,0,0,0,null,null,"","","","",{"$error":"#VALUE!"},{"$error":"#VALUE!"}]
[null,null,null,null,null,null,null,null,null,null,null,null,null,null,null,null,null,null,null,null,null,null,null,null,null,null,null,null,null,null,null,null,null,null,null,null,null,null,null,null,null,null,null,null,null,null,null,127,127,{"$error":"#NUM!"},0,0,0,0,0,null,null,"","","","",{"$error":"#VALUE!"},{"$error":"#VALUE!"}]
[null,null,null,null,null,null,null,null,null,null,null,null,null,null,null,null,null,null,null,null,null,null,null,null,null,null,null,null,null,null,null,null,null,null,null,null,null,null,null,null,null,null,null,null,null,null,null,128,128,{"$error":"#NUM!"},0,0,0,0,0,null,null,"","","","",{"$error":"#VALUE!"},{"$error":"#VALUE!"}]
[null,null,null,null,null,null,null,null,null,null,null,null,null,null,null,null,null,null,null,null,null,null,null,null,null,null,null,null,null,null,null,null,null,null,null,null,null,null,null,null,null,null,null,null,null,null,null,129,129,{"$f":"-IPMT($G$6/$AW$15,AW148,pocet,credit)","v":{"$error":"#NUM!"}},{"$f":"IF(ISERR(IPMT($G$6/$AW$15,AW148,pocet,$B$4)),0,-IPMT($G$6/$AW$15,AW148,pocet,$B$4))","v":0},0,0,0,0,null,null,"",{"$f":"IF(ISERR(AX148),\"\",IF(AND(NOT(splatka=splatka2),BF148=pocet),splatka2,splatka))","v":""},"","",{"$error":"#VALUE!"},{"$error":"#VALUE!"}]
[null,null,null,null,null,null,null,null,null,null,null,null,null,null,null,null,null,null,null,null,null,null,null,null,null,null,null,null,null,null,null,null,null,null,null,null,null,null,null,null,null,null,null,null,null,null,null,130,130,{"$error":"#NUM!"},0,{"$f":"IF(AY149=0,0,$B$9+$B$10)","v":0},{"$f":"IF(ISERR(AX149),0,$B$5-AY149)","v":0},{"$f":"IF(ISERR(AX149),0,IF(AND(NOT(splatka=splatka2),BF149=pocet),SUM(splatka2+AZ149)/(1+$G$6)^(prvni/konvence+AW148/$AW$15),SUM(splatka+AZ149)/(1+$G$6)^(prvni/konvence+AW148/$AW$15)))","v":0},0,null,null,"","",{"$f":"IF(OR(AY149<0,ISERR(AX149)),\"\",urok/$AW$15*BK148)","v":""},"",{"$f":"BG149-BH149","v":{"$error":"#VALUE!"}},{"$error":"#VALUE!"}]
[null,null,null,null,null,null,null,null,null,null,null,null,null,null,null,null,null,null,null,null,null,null,null,null,null,null,null,null,null,null,null,null,null,null,null,null,null,null,null,null,null,null,null,null,null,null,null,131,131,{"$error":"#NUM!"},0,0,0,0,{"$f":"IF(ISERR(AX150),0,BC149-BA150)","v":0},null,null,"","","","",{"$error":"#VALUE!"},{"$f":"BK149-BJ150","v":{"$error":"#VALUE!"}}]
[null,null,null,null,null,null,null,null,null,null,null,null,null,null,null,null,null,null,null,null,null,null,null,null,null,null,null,null,null,null,null,null,null,null,null,null,null,null,null,null,null,null,null,null,null,null,null,132,132,{"$error":"#NUM!"},0,0,0,0,0,null,null,"","","","",{"$error":"#VALUE!"},{"$error":"#VALUE!"}]
[null,null,null,null,null,null,null,null,null,null,null,null,null,null,null,null,null,null,null,null,null,null,null,null,null,null,null,null,null,null,null,null,null,null,null,null,null,null,null,null,null,null,null,null,null,null,null,133,133,{"$error":"#NUM!"},0,0,0,0,0,null,null,"","","","",{"$error":"#VALUE!"},{"$error":"#VALUE!"}]
[null,null,null,null,null,null,null,null,null,null,null,null,null,null,null,null,null,null,null,null,null,null,null,null,null,null,null,null,null,null,null,null,null,null,null,null,null,null,null,null,null,null,null,null,null,null,null,134,134,{"$error":"#NUM!"},0,0,0,0,0,null,null,"","","","",{"$error":"#VALUE!"},{"$error":"#VALUE!"}]
[null,null,null,null,null,null,null,null,null,null,null,null,null,null,null,null,null,null,null,null,null,null,null,null,null,null,null,null,null,null,null,null,null,null,null,null,null,null,null,null,null,null,null,null,null,null,null,135,135,{"$error":"#NUM!"},0,0,0,0,0,null,null,"","","","",{"$error":"#VALUE!"},{"$error":"#VALUE!"}]
[null,null,null,null,null,null,null,null,null,null,null,null,null,null,null,null,null,null,null,null,null,null,null,null,null,null,null,null,null,null,null,null,null,null,null,null,null,null,null,null,null,null,null,null,null,null,null,136,136,{"$error":"#NUM!"},0,0,0,0,0,null,null,"","","","",{"$error":"#VALUE!"},{"$error":"#VALUE!"}]
[null,null,null,null,null,null,null,null,null,null,null,null,null,null,null,null,null,null,null,null,null,null,null,null,null,null,null,null,null,null,null,null,null,null,null,null,null,null,null,null,null,null,null,null,null,null,null,137,137,{"$error":"#NUM!"},0,0,0,0,0,null,null,"","","","",{"$error":"#VALUE!"},{"$error":"#VALUE!"}]
[null,null,null,null,null,null,null,null,null,null,null,null,null,null,null,null,null,null,null,null,null,null,null,null,null,null,null,null,null,null,null,null,null,null,null,null,null,null,null,null,null,null,null,null,null,null,null,138,138,{"$error":"#NUM!"},0,0,0,0,0,null,null,"","","","",{"$error":"#VALUE!"},{"$error":"#VALUE!"}]
[null,null,null,null,null,null,null,null,null,null,null,null,null,null,null,null,null,null,null,null,null,null,null,null,null,null,null,null,null,null,null,null,null,null,null,null,null,null,null,null,null,null,null,null,null,null,null,139,139,{"$error":"#NUM!"},0,0,0,0,0,null,null,"","","","",{"$error":"#VALUE!"},{"$error":"#VALUE!"}]
[null,null,null,null,null,null,null,null,null,null,null,null,null,null,null,null,null,null,null,null,null,null,null,null,null,null,null,null,null,null,null,null,null,null,null,null,null,null,null,null,null,null,null,null,null,null,null,140,140,{"$error":"#NUM!"},0,0,0,0,0,null,null,"","","","",{"$error":"#VALUE!"},{"$error":"#VALUE!"}]
[null,null,null,null,null,null,null,null,null,null,null,null,null,null,null,null,null,null,null,null,null,null,null,null,null,null,null,null,null,null,null,null,null,null,null,null,null,null,null,null,null,null,null,null,null,null,null,141,141,{"$error":"#NUM!"},0,0,0,0,0,null,null,"","","","",{"$error":"#VALUE!"},{"$error":"#VALUE!"}]
[null,null,null,null,null,null,null,null,null,null,null,null,null,null,null,null,null,null,null,null,null,null,null,null,null,null,null,null,null,null,null,null,null,null,null,null,null,null,null,null,null,null,null,null,null,null,null,142,142,{"$error":"#NUM!"},0,0,0,0,0,null,null,"","","","",{"$error":"#VALUE!"},{"$error":"#VALUE!"}]
[null,null,null,null,null,null,null,null,null,null,null,null,null,null,null,null,null,null,null,null,null,null,null,null,null,null,null,null,null,null,null,null,null,null,null,null,null,null,null,null,null,null,null,null,null,null,null,143,143,{"$error":"#NUM!"},0,0,0,0,0,null,null,"","","","",{"$error":"#VALUE!"},{"$error":"#VALUE!"}]
[null,null,null,null,null,null,null,null,null,null,null,null,null,null,null,null,null,null,null,null,null,null,null,null,null,null,null,null,null,null,null,null,null,null,null,null,null,null,null,null,null,null,null,null,null,null,null,144,144,{"$error":"#NUM!"},0,0,0,0,0,null,null,"","","","",{"$error":"#VALUE!"},{"$error":"#VALUE!"}]
[null,null,null,null,null,null,null,null,null,null,null,null,null,null,null,null,null,null,null,null,null,null,null,null,null,null,null,null,null,null,null,null,null,null,null,null,null,null,null,null,null,null,null,null,null,null,null,145,145,{"$error":"#NUM!"},0,0,0,0,0,null,null,"","","","",{"$error":"#VALUE!"},{"$error":"#VALUE!"}]
[null,null,null,null,null,null,null,null,null,null,null,null,null,null,null,null,null,null,null,null,null,null,null,null,null,null,null,null,null,null,null,null,null,null,null,null,null,null,null,null,null,null,null,null,null,null,null,146,146,{"$error":"#NUM!"},0,0,0,0,0,null,null,"","","","",{"$error":"#VALUE!"},{"$error":"#VALUE!"}]
[null,null,null,null,null,null,null,null,null,null,null,null,null,null,null,null,null,null,null,null,null,null,null,null,null,null,null,null,null,null,null,null,null,null,null,null,null,null,null,null,null,null,null,null,null,null,null,147,147,{"$error":"#NUM!"},0,0,0,0,0,null,null,"","","","",{"$error":"#VALUE!"},{"$error":"#VALUE!"}]
[null,null,null,null,null,null,null,null,null,null,null,null,null,null,null,null,null,null,null,null,null,null,null,null,null,null,null,null,null,null,null,null,null,null,null,null,null,null,null,null,null,null,null,null,null,null,null,148,148,{"$error":"#NUM!"},0,0,0,0,0,null,null,"","","","",{"$error":"#VALUE!"},{"$error":"#VALUE!"}]
[null,null,null,null,null,null,null,null,null,null,null,null,null,null,null,null,null,null,null,null,null,null,null,null,null,null,null,null,null,null,null,null,null,null,null,null,null,null,null,null,null,null,null,null,null,null,null,149,149,{"$error":"#NUM!"},0,0,0,0,0,null,null,"","","","",{"$error":"#VALUE!"},{"$error":"#VALUE!"}]
[null,null,null,null,null,null,null,null,null,null,null,null,null,null,null,null,null,null,null,null,null,null,null,null,null,null,null,null,null,null,null,null,null,null,null,null,null,null,null,null,null,null,null,null,null,null,null,150,150,{"$error":"#NUM!"},0,0,0,0,0,null,null,"","","","",{"$error":"#VALUE!"},{"$error":"#VALUE!"}]
[null,null,null,null,null,null,null,null,null,null,null,null,null,null,null,null,null,null,null,null,null,null,null,null,null,null,null,null,null,null,null,null,null,null,null,null,null,null,null,null,null,null,null,null,null,null,null,151,151,{"$error":"#NUM!"},0,0,0,0,0,null,null,"","","","",{"$error":"#VALUE!"},{"$error":"#VALUE!"}]
[null,null,null,null,null,null,null,null,null,null,null,null,null,null,null,null,null,null,null,null,null,null,null,null,null,null,null,null,null,null,null,null,null,null,null,null,null,null,null,null,null,null,null,null,null,null,null,152,152,{"$error":"#NUM!"},0,0,0,0,0,null,null,"","","","",{"$error":"#VALUE!"},{"$error":"#VALUE!"}]
[null,null,null,null,null,null,null,null,null,null,null,null,null,null,null,null,null,null,null,null,null,null,null,null,null,null,null,null,null,null,null,null,null,null,null,null,null,null,null,null,null,null,null,null,null,null,null,153,153,{"$error":"#NUM!"},0,0,0,0,0,null,null,"","","","",{"$error":"#VALUE!"},{"$error":"#VALUE!"}]
[null,null,null,null,null,null,null,null,null,null,null,null,null,null,null,null,null,null,null,null,null,null,null,null,null,null,null,null,null,null,null,null,null,null,null,null,null,null,null,null,null,null,null,null,null,null,null,154,154,{"$error":"#NUM!"},0,0,0,0,0,null,null,"","","","",{"$error":"#VALUE!"},{"$error":"#VALUE!"}]
[null,null,null,null,null,null,null,null,null,null,null,null,null,null,null,null,null,null,null,null,null,null,null,null,null,null,null,null,null,null,null,null,null,null,null,null,null,null,null,null,null,null,null,null,null,null,null,155,155,{"$error":"#NUM!"},0,0,0,0,0,null,null,"","","","",{"$error":"#VALUE!"},{"$error":"#VALUE!"}]
[null,null,null,null,null,null,null,null,null,null,null,null,null,null,null,null,null,null,null,null,null,null,null,null,null,null,null,null,null,null,null,null,null,null,null,null,null,null,null,null,null,null,null,null,null,null,null,156,156,{"$error":"#NUM!"},0,0,0,0,0,null,null,"","","","",{"$error":"#VALUE!"},{"$error":"#VALUE!"}]
[null,null,null,null,null,null,null,null,null,null,null,null,null,null,null,null,null,null,null,null,null,null,null,null,null,null,null,null,null,null,null,null,null,null,null,null,null,null,null,null,null,null,null,null,null,null,null,157,157,{"$error":"#NUM!"},0,0,0,0,0,null,null,"","","","",{"$error":"#VALUE!"},{"$error":"#VALUE!"}]
[null,null,null,null,null,null,null,null,null,null,null,null,null,null,null,null,null,null,null,null,null,null,null,null,null,null,null,null,null,null,null,null,null,null,null,null,null,null,null,null,null,null,null,null,null,null,null,158,158,{"$error":"#NUM!"},0,0,0,0,0,null,null,"","","","",{"$error":"#VALUE!"},{"$error":"#VALUE!"}]
[null,null,null,null,null,null,null,null,null,null,null,null,null,null,null,null,null,null,null,null,null,null,null,null,null,null,null,null,null,null,null,null,null,null,null,null,null,null,null,null,null,null,null,null,null,null,null,159,159,{"$error":"#NUM!"},0,0,0,0,0,null,null,"","","","",{"$error":"#VALUE!"},{"$error":"#VALUE!"}]
[null,null,null,null,null,null,null,null,null,null,null,null,null,null,null,null,null,null,null,null,null,null,null,null,null,null,null,null,null,null,null,null,null,null,null,null,null,null,null,null,null,null,null,null,null,null,null,160,160,{"$error":"#NUM!"},0,0,0,0,0,null,null,"","","","",{"$error":"#VALUE!"},{"$error":"#VALUE!"}]
[null,null,null,null,null,null,null,null,null,null,null,null,null,null,null,null,null,null,null,null,null,null,null,null,null,null,null,null,null,null,null,null,null,null,null,null,null,null,null,null,null,null,null,null,null,null,null,161,161,{"$error":"#NUM!"},0,0,0,0,0,null,null,"","","","",{"$error":"#VALUE!"},{"$error":"#VALUE!"}]
[null,null,null,null,null,null,null,null,null,null,null,null,null,null,null,null,null,null,null,null,null,null,null,null,null,null,null,null,null,null,null,null,null,null,null,null,null,null,null,null,null,null,null,null,null,null,null,162,162,{"$error":"#NUM!"},0,0,0,0,0,null,null,"","","","",{"$error":"#VALUE!"},{"$error":"#VALUE!"}]
[null,null,null,null,null,null,null,null,null,null,null,null,null,null,null,null,null,null,null,null,null,null,null,null,null,null,null,null,null,null,null,null,null,null,null,null,null,null,null,null,null,null,null,null,null,null,null,163,163,{"$error":"#NUM!"},0,0,0,0,0,null,null,"","","","",{"$error":"#VALUE!"},{"$error":"#VALUE!"}]
[null,null,null,null,null,null,null,null,null,null,null,null,null,null,null,null,null,null,null,null,null,null,null,null,null,null,null,null,null,null,null,null,null,null,null,null,null,null,null,null,null,null,null,null,null,null,null,164,164,{"$error":"#NUM!"},0,0,0,0,0,null,null,"","","","",{"$error":"#VALUE!"},{"$error":"#VALUE!"}]
[null,null,null,null,null,null,null,null,null,null,null,null,null,null,null,null,null,null,null,null,null,null,null,null,null,null,null,null,null,null,null,null,null,null,null,null,null,null,null,null,null,null,null,null,null,null,null,165,165,{"$error":"#NUM!"},0,0,0,0,0,null,null,{"$f":"IF(BH184=\"\",\"\",BF183+1)","v":""},"","",{"$f":"IF(BH184=\"\",\"\",AZ184)","v":""},{"$error":"#VALUE!"},{"$error":"#VALUE!"}]
[null,null,null,null,null,null,null,null,null,null,null,null,null,null,null,null,null,null,null,null,null,null,null,null,null,null,null,null,null,null,null,null,null,null,null,null,null,null,null,null,null,null,null,null,null,null,null,166,166,{"$error":"#NUM!"},0,0,0,0,0,null,null,"","","","",{"$error":"#VALUE!"},{"$error":"#VALUE!"}]
[null,null,null,null,null,null,null,null,null,null,null,null,null,null,null,null,null,null,null,null,null,null,null,null,null,null,null,null,null,null,null,null,null,null,null,null,null,null,null,null,null,null,null,null,null,null,null,167,167,{"$error":"#NUM!"},0,0,0,0,0,null,null,"","","","",{"$error":"#VALUE!"},{"$error":"#VALUE!"}]
[null,null,null,null,null,null,null,null,null,null,null,null,null,null,null,null,null,null,null,null,null,null,null,null,null,null,null,null,null,null,null,null,null,null,null,null,null,null,null,null,null,null,null,null,null,null,null,168,168,{"$error":"#NUM!"},0,0,0,0,0,null,null,"","","","",{"$error":"#VALUE!"},{"$error":"#VALUE!"}]
[null,null,null,null,null,null,null,null,null,null,null,null,null,null,null,null,null,null,null,null,null,null,null,null,null,null,null,null,null,null,null,null,null,null,null,null,null,null,null,null,null,null,null,null,null,null,null,169,169,{"$error":"#NUM!"},0,0,0,0,0,null,null,"","","","",{"$error":"#VALUE!"},{"$error":"#VALUE!"}]
[null,null,null,null,null,null,null,null,null,null,null,null,null,null,null,null,null,null,null,null,null,null,null,null,null,null,null,null,null,null,null,null,null,null,null,null,null,null,null,null,null,null,null,null,null,null,null,170,170,{"$error":"#NUM!"},0,0,0,0,0,null,null,"","","","",{"$error":"#VALUE!"},{"$error":"#VALUE!"}]
[null,null,null,null,null,null,null,null,null,null,null,null,null,null,null,null,null,null,null,null,null,null,null,null,null,null,null,null,null,null,null,null,null,null,null,null,null,null,null,null,null,null,null,null,null,null,null,171,171,{"$error":"#NUM!"},0,0,0,0,0,null,null,"","","","",{"$error":"#VALUE!"},{"$error":"#VALUE!"}]
[null,null,null,null,null,null,null,null,null,null,null,null,null,null,null,null,null,null,null,null,null,null,null,null,null,null,null,null,null,null,null,null,null,null,null,null,null,null,null,null,null,null,null,null,null,null,null,172,172,{"$error":"#NUM!"},0,0,0,0,0,null,null,"","","","",{"$error":"#VALUE!"},{"$error":"#VALUE!"}]
[null,null,null,null,null,null,null,null,null,null,null,null,null,null,null,null,null,null,null,null,null,null,null,null,null,null,null,null,null,null,null,null,null,null,null,null,null,null,null,null,null,null,null,null,null,null,null,173,173,{"$error":"#NUM!"},0,0,0,0,0,null,null,"","","","",{"$error":"#VALUE!"},{"$error":"#VALUE!"}]
[null,null,null,null,null,null,null,null,null,null,null,null,null,null,null,null,null,null,null,null,null,null,null,null,null,null,null,null,null,null,null,null,null,null,null,null,null,null,null,null,null,null,null,null,null,null,null,174,174,{"$error":"#NUM!"},0,0,0,0,0,null,null,"","","","",{"$error":"#VALUE!"},{"$error":"#VALUE!"}]
[null,null,null,null,null,null,null,null,null,null,null,null,null,null,null,null,null,null,null,null,null,null,null,null,null,null,null,null,null,null,null,null,null,null,null,null,null,null,null,null,null,null,null,null,null,null,null,175,175,{"$error":"#NUM!"},0,0,0,0,0,null,null,"","","","",{"$error":"#VALUE!"},{"$error":"#VALUE!"}]
[null,null,null,null,null,null,null,null,null,null,null,null,null,null,null,null,null,null,null,null,null,null,null,null,null,null,null,null,null,null,null,null,null,null,null,null,null,null,null,null,null,null,null,null,null,null,null,176,176,{"$error":"#NUM!"},0,0,0,0,0,null,null,"","","","",{"$error":"#VALUE!"},{"$error":"#VALUE!"}]
[null,null,null,null,null,null,null,null,null,null,null,null,null,null,null,null,null,null,null,null,null,null,null,null,null,null,null,null,null,null,null,null,null,null,null,null,null,null,null,null,null,null,null,null,null,null,null,177,177,{"$error":"#NUM!"},0,0,0,0,0,null,null,"","","","",{"$error":"#VALUE!"},{"$error":"#VALUE!"}]
[null,null,null,null,null,null,null,null,null,null,null,null,null,null,null,null,null,null,null,null,null,null,null,null,null,null,null,null,null,null,null,null,null,null,null,null,null,null,null,null,null,null,null,null,null,null,null,178,178,{"$error":"#NUM!"},0,0,0,0,0,null,null,"","","","",{"$error":"#VALUE!"},{"$error":"#VALUE!"}]
[null,null,null,null,null,null,null,null,null,null,null,null,null,null,null,null,null,null,null,null,null,null,null,null,null,null,null,null,null,null,null,null,null,null,null,null,null,null,null,null,null,null,null,null,null,null,null,179,179,{"$error":"#NUM!"},0,0,0,0,0,null,null,"","","","",{"$error":"#VALUE!"},{"$error":"#VALUE!"}]
[null,null,null,null,null,null,null,null,null,null,null,null,null,null,null,null,null,null,null,null,null,null,null,null,null,null,null,null,null,null,null,null,null,null,null,null,null,null,null,null,null,null,null,null,null,null,null,180,180,{"$error":"#NUM!"},0,0,0,0,0,null,null,"","","","",{"$error":"#VALUE!"},{"$error":"#VALUE!"}]
[null,null,null,null,null,null,null,null,null,null,null,null,null,null,null,null,null,null,null,null,null,null,null,null,null,null,null,null,null,null,null,null,null,null,null,null,null,null,null,null,null,null,null,null,null,null,null,181,181,{"$error":"#NUM!"},0,0,0,0,0,null,null,"","","","",{"$error":"#VALUE!"},{"$error":"#VALUE!"}]
[null,null,null,null,null,null,null,null,null,null,null,null,null,null,null,null,null,null,null,null,null,null,null,null,null,null,null,null,null,null,null,null,null,null,null,null,null,null,null,null,null,null,null,null,null,null,null,182,182,{"$error":"#NUM!"},0,0,0,0,0,null,null,"","","","",{"$error":"#VALUE!"},{"$error":"#VALUE!"}]
[null,null,null,null,null,null,null,null,null,null,null,null,null,null,null,null,null,null,null,null,null,null,null,null,null,null,null,null,null,null,null,null,null,null,null,null,null,null,null,null,null,null,null,null,null,null,null,183,183,{"$error":"#NUM!"},0,0,0,0,0,null,null,"","","","",{"$error":"#VALUE!"},{"$error":"#VALUE!"}]
[null,null,null,null,null,null,null,null,null,null,null,null,null,null,null,null,null,null,null,null,null,null,null,null,null,null,null,null,null,null,null,null,null,null,null,null,null,null,null,null,null,null,null,null,null,null,null,184,184,{"$error":"#NUM!"},0,0,0,0,0,null,null,"","","","",{"$error":"#VALUE!"},{"$error":"#VALUE!"}]
[null,null,null,null,null,null,null,null,null,null,null,null,null,null,null,null,null,null,null,null,null,null,null,null,null,null,null,null,null,null,null,null,null,null,null,null,null,null,null,null,null,null,null,null,null,null,null,185,185,{"$error":"#NUM!"},0,0,0,0,0,null,null,"","","","",{"$error":"#VALUE!"},{"$error":"#VALUE!"}]
[null,null,null,null,null,null,null,null,null,null,null,null,null,null,null,null,null,null,null,null,null,null,null,null,null,null,null,null,null,null,null,null,null,null,null,null,null,null,null,null,null,null,null,null,null,null,null,186,186,{"$error":"#NUM!"},0,0,0,0,0,null,null,"","","","",{"$error":"#VALUE!"},{"$error":"#VALUE!"}]
[null,null,null,null,null,null,null,null,null,null,null,null,null,null,null,null,null,null,null,null,null,null,null,null,null,null,null,null,null,null,null,null,null,null,null,null,null,null,null,null,null,null,null,null,null,null,null,187,187,{"$error":"#NUM!"},0,0,0,0,0,null,null,"","","","",{"$error":"#VALUE!"},{"$error":"#VALUE!"}]
[null,null,null,null,null,null,null,null,null,null,null,null,null,null,null,null,null,null,null,null,null,null,null,null,null,null,null,null,null,null,null,null,null,null,null,null,null,null,null,null,null,null,null,null,null,null,null,188,188,{"$error":"#NUM!"},0,0,0,0,0,null,null,"","","","",{"$error":"#VALUE!"},{"$error":"#VALUE!"}]
[null,null,null,null,null,null,null,null,null,null,null,null,null,null,null,null,null,null,null,null,null,null,null,null,null,null,null,null,null,null,null,null,null,null,null,null,null,null,null,null,null,null,null,null,null,null,null,189,189,{"$error":"#NUM!"},0,0,0,0,0,null,null,"","","","",{"$error":"#VALUE!"},{"$error":"#VALUE!"}]
[null,null,null,null,null,null,null,null,null,null,null,null,null,null,null,null,null,null,null,null,null,null,null,null,null,null,null,null,null,null,null,null,null,null,null,null,null,null,null,null,null,null,null,null,null,null,null,190,190,{"$error":"#NUM!"},0,0,0,0,0,null,null,"","","","",{"$error":"#VALUE!"},{"$error":"#VALUE!"}]
[null,null,null,null,null,null,null,null,null,null,null,null,null,null,null,null,null,null,null,null,null,null,null,null,null,null,null,null,null,null,null,null,null,null,null,null,null,null,null,null,null,null,null,null,null,null,null,191,191,{"$error":"#NUM!"},0,0,0,0,0,null,null,"","","","",{"$error":"#VALUE!"},{"$error":"#VALUE!"}]
[null,null,null,null,null,null,null,null,null,null,null,null,null,null,null,null,null,null,null,null,null,null,null,null,null,null,null,null,null,null,null,null,null,null,null,null,null,null,null,null,null,null,null,null,null,null,null,192,192,{"$error":"#NUM!"},0,0,0,0,0,null,null,"","","","",{"$error":"#VALUE!"},{"$error":"#VALUE!"}]
[null,null,null,null,null,null,null,null,null,null,null,null,null,null,null,null,null,null,null,null,null,null,null,null,null,null,null,null,null,null,null,null,null,null,null,null,null,null,null,null,null,null,null,null,null,null,null,193,193,{"$f":"-IPMT($G$6/$AW$15,AW212,pocet,credit)","v":{"$error":"#NUM!"}},{"$f":"IF(ISERR(IPMT($G$6/$AW$15,AW212,pocet,$B$4)),0,-IPMT($G$6/$AW$15,AW212,pocet,$B$4))","v":0},0,0,0,0,null,null,"",{"$f":"IF(ISERR(AX212),\"\",IF(AND(NOT(splatka=splatka2),BF212=pocet),splatka2,splatka))","v":""},"","",{"$error":"#VALUE!"},{"$error":"#VALUE!"}]
[null,null,null,null,null,null,null,null,null,null,null,null,null,null,null,null,null,null,null,null,null,null,null,null,null,null,null,null,null,null,null,null,null,null,null,null,null,null,null,null,null,null,null,null,null,null,null,194,194,{"$error":"#NUM!"},0,{"$f":"IF(AY213=0,0,$B$9+$B$10)","v":0},{"$f":"IF(ISERR(AX213),0,$B$5-AY213)","v":0},{"$f":"IF(ISERR(AX213),0,IF(AND(NOT(splatka=splatka2),BF213=pocet),SUM(splatka2+AZ213)/(1+$G$6)^(prvni/konvence+AW212/$AW$15),SUM(splatka+AZ213)/(1+$G$6)^(prvni/konvence+AW212/$AW$15)))","v":0},0,null,null,"","",{"$f":"IF(OR(AY213<0,ISERR(AX213)),\"\",urok/$AW$15*BK212)","v":""},"",{"$f":"BG213-BH213","v":{"$error":"#VALUE!"}},{"$error":"#VALUE!"}]
[null,null,null,null,null,null,null,null,null,null,null,null,null,null,null,null,null,null,null,null,null,null,null,null,null,null,null,null,null,null,null,null,null,null,null,null,null,null,null,null,null,null,null,null,null,null,null,195,195,{"$error":"#NUM!"},0,0,0,0,{"$f":"IF(ISERR(AX214),0,BC213-BA214)","v":0},null,null,"","","","",{"$error":"#VALUE!"},{"$f":"BK213-BJ214","v":{"$error":"#VALUE!"}}]
[null,null,null,null,null,null,null,null,null,null,null,null,null,null,null,null,null,null,null,null,null,null,null,null,null,null,null,null,null,null,null,null,null,null,null,null,null,null,null,null,null,null,null,null,null,null,null,196,196,{"$error":"#NUM!"},0,0,0,0,0,null,null,"","","","",{"$error":"#VALUE!"},{"$error":"#VALUE!"}]
[null,null,null,null,null,null,null,null,null,null,null,null,null,null,null,null,null,null,null,null,null,null,null,null,null,null,null,null,null,null,null,null,null,null,null,null,null,null,null,null,null,null,null,null,null,null,null,197,197,{"$error":"#NUM!"},0,0,0,0,0,null,null,"","","","",{"$error":"#VALUE!"},{"$error":"#VALUE!"}]
[null,null,null,null,null,null,null,null,null,null,null,null,null,null,null,null,null,null,null,null,null,null,null,null,null,null,null,null,null,null,null,null,null,null,null,null,null,null,null,null,null,null,null,null,null,null,null,198,198,{"$error":"#NUM!"},0,0,0,0,0,null,null,"","","","",{"$error":"#VALUE!"},{"$error":"#VALUE!"}]
[null,null,null,null,null,null,null,null,null,null,null,null,null,null,null,null,null,null,null,null,null,null,null,null,null,null,null,null,null,null,null,null,null,null,null,null,null,null,null,null,null,null,null,null,null,null,null,199,199,{"$error":"#NUM!"},0,0,0,0,0,null,null,"","","","",{"$error":"#VALUE!"},{"$error":"#VALUE!"}]
[null,null,null,null,null,null,null,null,null,null,null,null,null,null,null,null,null,null,null,null,null,null,null,null,null,null,null,null,null,null,null,null,null,null,null,null,null,null,null,null,null,null,null,null,null,null,null,200,200,{"$error":"#NUM!"},0,0,0,0,0,null,null,"","","","",{"$error":"#VALUE!"},{"$error":"#VALUE!"}]
[null,null,null,null,null,null,null,null,null,null,null,null,null,null,null,null,null,null,null,null,null,null,null,null,null,null,null,null,null,null,null,null,null,null,null,null,null,null,null,null,null,null,null,null,null,null,null,201,201,{"$error":"#NUM!"},0,0,0,0,0,null,null,"","","","",{"$error":"#VALUE!"},{"$error":"#VALUE!"}]
[null,null,null,null,null,null,null,null,null,null,null,null,null,null,null,null,null,null,null,null,null,null,null,null,null,null,null,null,null,null,null,null,null,null,null,null,null,null,null,null,null,null,null,null,null,null,null,202,202,{"$error":"#NUM!"},0,0,0,0,0,null,null,"","","","",{"$error":"#VALUE!"},{"$error":"#VALUE!"}]
[null,null,null,null,null,null,null,null,null,null,null,null,null,null,null,null,null,null,null,null,null,null,null,null,null,null,null,null,null,null,null,null,null,null,null,null,null,null,null,null,null,null,null,null,null,null,null,203,203,{"$error":"#NUM!"},0,0,0,0,0,null,null,"","","","",{"$error":"#VALUE!"},{"$error":"#VALUE!"}]
[null,null,null,null,null,null,null,null,null,null,null,null,null,null,null,null,null,null,null,null,null,null,null,null,null,null,null,null,null,null,null,null,null,null,null,null,null,null,null,null,null,null,null,null,null,null,null,204,204,{"$error":"#NUM!"},0,0,0,0,0,null,null,"","","","",{"$error":"#VALUE!"},{"$error":"#VALUE!"}]
[null,null,null,null,null,null,null,null,null,null,null,null,null,null,null,null,null,null,null,null,null,null,null,null,null,null,null,null,null,null,null,null,null,null,null,null,null,null,null,null,null,null,null,null,null,null,null,205,205,{"$error":"#NUM!"},0,0,0,0,0,null,null,"","","","",{"$error":"#VALUE!"},{"$error":"#VALUE!"}]
[null,null,null,null,null,null,null,null,null,null,null,null,null,null,null,null,null,null,null,null,null,null,null,null,null,null,null,null,null,null,null,null,null,null,null,null,null,null,null,null,null,null,null,null,null,null,null,206,206,{"$error":"#NUM!"},0,0,0,0,0,null,null,"","","","",{"$error":"#VALUE!"},{"$error":"#VALUE!"}]
[null,null,null,null,null,null,null,null,null,null,null,null,null,null,null,null,null,null,null,null,null,null,null,null,null,null,null,null,null,null,null,null,null,null,null,null,null,null,null,null,null,null,null,null,null,null,null,207,207,{"$error":"#NUM!"},0,0,0,0,0,null,null,"","","","",{"$error":"#VALUE!"},{"$error":"#VALUE!"}]
[null,null,null,null,null,null,null,null,null,null,null,null,null,null,null,null,null,null,null,null,null,null,null,null,null,null,null,null,null,null,null,null,null,null,null,null,null,null,null,null,null,null,null,null,null,null,null,208,208,{"$error":"#NUM!"},0,0,0,0,0,null,null,"","","","",{"$error":"#VALUE!"},{"$error":"#VALUE!"}]
[null,null,null,null,null,null,null,null,null,null,null,null,null,null,null,null,null,null,null,null,null,null,null,null,null,null,null,null,null,null,null,null,null,null,null,null,null,null,null,null,null,null,null,null,null,null,null,209,209,{"$error":"#NUM!"},0,0,0,0,0,null,null,"","","","",{"$error":"#VALUE!"},{"$error":"#VALUE!"}]
[null,null,null,null,null,null,null,null,null,null,null,null,null,null,null,null,null,null,null,null,null,null,null,null,null,null,null,null,null,null,null,null,null,null,null,null,null,null,null,null,null,null,null,null,null,null,null,210,210,{"$error":"#NUM!"},0,0,0,0,0,null,null,"","","","",{"$error":"#VALUE!"},{"$error":"#VALUE!"}]
[null,null,null,null,null,null,null,null,null,null,null,null,null,null,null,null,null,null,null,null,null,null,null,null,null,null,null,null,null,null,null,null,null,null,null,null,null,null,null,null,null,null,null,null,null,null,null,211,211,{"$error":"#NUM!"},0,0,0,0,0,null,null,"","","","",{"$error":"#VALUE!"},{"$error":"#VALUE!"}]
[null,null,null,null,null,null,null,null,null,null,null,null,null,null,null,null,null,null,null,null,null,null,null,null,null,null,null,null,null,null,null,null,null,null,null,null,null,null,null,null,null,null,null,null,null,null,null,212,212,{"$error":"#NUM!"},0,0,0,0,0,null,null,"","","","",{"$error":"#VALUE!"},{"$error":"#VALUE!"}]
[null,null,null,null,null,null,null,null,null,null,null,null,null,null,null,null,null,null,null,null,null,null,null,null,null,null,null,null,null,null,null,null,null,null,null,null,null,null,null,null,null,null,null,null,null,null,null,213,213,{"$error":"#NUM!"},0,0,0,0,0,null,null,"","","","",{"$error":"#VALUE!"},{"$error":"#VALUE!"}]
[null,null,null,null,null,null,null,null,null,null,null,null,null,null,null,null,null,null,null,null,null,null,null,null,null,null,null,null,null,null,null,null,null,null,null,null,null,null,null,null,null,null,null,null,null,null,null,214,214,{"$error":"#NUM!"},0,0,0,0,0,null,null,"","","","",{"$error":"#VALUE!"},{"$error":"#VALUE!"}]
[null,null,null,null,null,null,null,null,null,null,null,null,null,null,null,null,null,null,null,null,null,null,null,null,null,null,null,null,null,null,null,null,null,null,null,null,null,null,null,null,null,null,null,null,null,null,null,215,215,{"$error":"#NUM!"},0,0,0,0,0,null,null,"","","","",{"$error":"#VALUE!"},{"$error":"#VALUE!"}]
[null,null,null,null,null,null,null,null,null,null,null,null,null,null,null,null,null,null,null,null,null,null,null,null,null,null,null,null,null,null,null,null,null,null,null,null,null,null,null,null,null,null,null,null,null,null,null,216,216,{"$error":"#NUM!"},0,0,0,0,0,null,null,"","","","",{"$error":"#VALUE!"},{"$error":"#VALUE!"}]
[null,null,null,null,null,null,null,null,null,null,null,null,null,null,null,null,null,null,null,null,null,null,null,null,null,null,null,null,null,null,null,null,null,null,null,null,null,null,null,null,null,null,null,null,null,null,null,217,217,{"$error":"#NUM!"},0,0,0,0,0,null,null,"","","","",{"$error":"#VALUE!"},{"$error":"#VALUE!"}]
[null,null,null,null,null,null,null,null,null,null,null,null,null,null,null,null,null,null,null,null,null,null,null,null,null,null,null,null,null,null,null,null,null,null,null,null,null,null,null,null,null,null,null,null,null,null,null,218,218,{"$error":"#NUM!"},0,0,0,0,0,null,null,"","","","",{"$error":"#VALUE!"},{"$error":"#VALUE!"}]
[null,null,null,null,null,null,null,null,null,null,null,null,null,null,null,null,null,null,null,null,null,null,null,null,null,null,null,null,null,null,null,null,null,null,null,null,null,null,null,null,null,null,null,null,null,null,null,219,219,{"$error":"#NUM!"},0,0,0,0,0,null,null,"","","","",{"$error":"#VALUE!"},{"$error":"#VALUE!"}]
[null,null,null,null,null,null,null,null,null,null,null,null,null,null,null,null,null,null,null,null,null,null,null,null,null,null,null,null,null,null,null,null,null,null,null,null,null,null,null,null,null,null,null,null,null,null,null,220,220,{"$error":"#NUM!"},0,0,0,0,0,null,null,"","","","",{"$error":"#VALUE!"},{"$error":"#VALUE!"}]
[null,null,null,null,null,null,null,null,null,null,null,null,null,null,null,null,null,null,null,null,null,null,null,null,null,null,null,null,null,null,null,null,null,null,null,null,null,null,null,null,null,null,null,null,null,null,null,221,221,{"$error":"#NUM!"},0,0,0,0,0,null,null,"","","","",{"$error":"#VALUE!"},{"$error":"#VALUE!"}]
[null,null,null,null,null,null,null,null,null,null,null,null,null,null,null,null,null,null,null,null,null,null,null,null,null,null,null,null,null,null,null,null,null,null,null,null,null,null,null,null,null,null,null,null,null,null,null,222,222,{"$error":"#NUM!"},0,0,0,0,0,null,null,"","","","",{"$error":"#VALUE!"},{"$error":"#VALUE!"}]
[null,null,null,null,null,null,null,null,null,null,null,null,null,null,null,null,null,null,null,null,null,null,null,null,null,null,null,null,null,null,null,null,null,null,null,null,null,null,null,null,null,null,null,null,null,null,null,223,223,{"$error":"#NUM!"},0,0,0,0,0,null,null,"","","","",{"$error":"#VALUE!"},{"$error":"#VALUE!"}]
[null,null,null,null,null,null,null,null,null,null,null,null,null,null,null,null,null,null,null,null,null,null,null,null,null,null,null,null,null,null,null,null,null,null,null,null,null,null,null,null,null,null,null,null,null,null,null,224,224,{"$error":"#NUM!"},0,0,0,0,0,null,null,"","","","",{"$error":"#VALUE!"},{"$error":"#VALUE!"}]
[null,null,null,null,null,null,null,null,null,null,null,null,null,null,null,null,null,null,null,null,null,null,null,null,null,null,null,null,null,null,null,null,null,null,null,null,null,null,null,null,null,null,null,null,null,null,null,225,225,{"$error":"#NUM!"},0,0,0,0,0,null,null,"","","","",{"$error":"#VALUE!"},{"$error":"#VALUE!"}]
[null,null,null,null,null,null,null,null,null,null,null,null,null,null,null,null,null,null,null,null,null,null,null,null,null,null,null,null,null,null,null,null,null,null,null,null,null,null,null,null,null,null,null,null,null,null,null,226,226,{"$error":"#NUM!"},0,0,0,0,0,null,null,"","","","",{"$error":"#VALUE!"},{"$error":"#VALUE!"}]
[null,null,null,null,null,null,null,null,null,null,null,null,null,null,null,null,null,null,null,null,null,null,null,null,null,null,null,null,null,null,null,null,null,null,null,null,null,null,null,null,null,null,null,null,null,null,null,227,227,{"$error":"#NUM!"},0,0,0,0,0,null,null,"","","","",{"$error":"#VALUE!"},{"$error":"#VALUE!"}]
[null,null,null,null,null,null,null,null,null,null,null,null,null,null,null,null,null,null,null,null,null,null,null,null,null,null,null,null,null,null,null,null,null,null,null,null,null,null,null,null,null,null,null,null,null,null,null,228,228,{"$error":"#NUM!"},0,0,0,0,0,null,null,"","","","",{"$error":"#VALUE!"},{"$error":"#VALUE!"}]
[null,null,null,null,null,null,null,null,null,null,null,null,null,null,null,null,null,null,null,null,null,null,null,null,null,null,null,null,null,null,null,null,null,null,null,null,null,null,null,null,null,null,null,null,null,null,null,229,229,{"$error":"#NUM!"},0,0,0,0,0,null,null,{"$f":"IF(BH248=\"\",\"\",BF247+1)","v":""},"","",{"$f":"IF(BH248=\"\",\"\",AZ248)","v":""},{"$error":"#VALUE!"},{"$error":"#VALUE!"}]
[null,null,null,null,null,null,null,null,null,null,null,null,null,null,null,null,null,null,null,null,null,null,null,null,null,null,null,null,null,null,null,null,null,null,null,null,null,null,null,null,null,null,null,null,null,null,null,230,230,{"$error":"#NUM!"},0,0,0,0,0,null,null,"","","","",{"$error":"#VALUE!"},{"$error":"#VALUE!"}]
[null,null,null,null,null,null,null,null,null,null,null,null,null,null,null,null,null,null,null,null,null,null,null,null,null,null,null,null,null,null,null,null,null,null,null,null,null,null,null,null,null,null,null,null,null,null,null,231,231,{"$error":"#NUM!"},0,0,0,0,0,null,null,"","","","",{"$error":"#VALUE!"},{"$error":"#VALUE!"}]
[null,null,null,null,null,null,null,null,null,null,null,null,null,null,null,null,null,null,null,null,null,null,null,null,null,null,null,null,null,null,null,null,null,null,null,null,null,null,null,null,null,null,null,null,null,null,null,232,232,{"$error":"#NUM!"},0,0,0,0,0,null,null,"","","","",{"$error":"#VALUE!"},{"$error":"#VALUE!"}]
[null,null,null,null,null,null,null,null,null,null,null,null,null,null,null,null,null,null,null,null,null,null,null,null,null,null,null,null,null,null,null,null,null,null,null,null,null,null,null,null,null,null,null,null,null,null,null,233,233,{"$error":"#NUM!"},0,0,0,0,0,null,null,"","","","",{"$error":"#VALUE!"},{"$error":"#VALUE!"}]
[null,null,null,null,null,null,null,null,null,null,null,null,null,null,null,null,null,null,null,null,null,null,null,null,null,null,null,null,null,null,null,null,null,null,null,null,null,null,null,null,null,null,null,null,null,null,null,234,234,{"$error":"#NUM!"},0,0,0,0,0,null,null,"","","","",{"$error":"#VALUE!"},{"$error":"#VALUE!"}]
[null,null,null,null,null,null,null,null,null,null,null,null,null,null,null,null,null,null,null,null,null,null,null,null,null,null,null,null,null,null,null,null,null,null,null,null,null,null,null,null,null,null,null,null,null,null,null,235,235,{"$error":"#NUM!"},0,0,0,0,0,null,null,"","","","",{"$error":"#VALUE!"},{"$error":"#VALUE!"}]
[null,null,null,null,null,null,null,null,null,null,null,null,null,null,null,null,null,null,null,null,null,null,null,null,null,null,null,null,null,null,null,null,null,null,null,null,null,null,null,null,null,null,null,null,null,null,null,236,236,{"$error":"#NUM!"},0,0,0,0,0,null,null,"","","","",{"$error":"#VALUE!"},{"$error":"#VALUE!"}]
[null,null,null,null,null,null,null,null,null,null,null,null,null,null,null,null,null,null,null,null,null,null,null,null,null,null,null,null,null,null,null,null,null,null,null,null,null,null,null,null,null,null,null,null,null,null,null,237,237,{"$error":"#NUM!"},0,0,0,0,0,null,null,"","","","",{"$error":"#VALUE!"},{"$error":"#VALUE!"}]
[null,null,null,null,null,null,null,null,null,null,null,null,null,null,null,null,null,null,null,null,null,null,null,null,null,null,null,null,null,null,null,null,null,null,null,null,null,null,null,null,null,null,null,null,null,null,null,238,238,{"$error":"#NUM!"},0,0,0,0,0,null,null,"","","","",{"$error":"#VALUE!"},{"$error":"#VALUE!"}]
[null,null,null,null,null,null,null,null,null,null,null,null,null,null,null,null,null,null,null,null,null,null,null,null,null,null,null,null,null,null,null,null,null,null,null,null,null,null,null,null,null,null,null,null,null,null,null,239,239,{"$error":"#NUM!"},0,0,0,0,0,null,null,"","","","",{"$error":"#VALUE!"},{"$error":"#VALUE!"}]
[null,null,null,null,null,null,null,null,null,null,null,null,null,null,null,null,null,null,null,null,null,null,null,null,null,null,null,null,null,null,null,null,null,null,null,null,null,null,null,null,null,null,null,null,null,null,null,240,240,{"$error":"#NUM!"},0,0,0,0,0,null,null,"","","","",{"$error":"#VALUE!"},{"$error":"#VALUE!"}]
[null,null,null,null,null,null,null,null,null,null,null,null,null,null,null,null,null,null,null,null,null,null,null,null,null,null,null,null,null,null,null,null,null,null,null,null,null,null,null,null,null,null,null,null,null,null,null,241,241,{"$error":"#NUM!"},0,0,0,0,0,null,null,"","","","",{"$error":"#VALUE!"},{"$error":"#VALUE!"}]
[null,null,null,null,null,null,null,null,null,null,null,null,null,null,null,null,null,null,null,null,null,null,null,null,null,null,null,null,null,null,null,null,null,null,null,null,null,null,null,null,null,null,null,null,null,null,null,242,242,{"$error":"#NUM!"},0,0,0,0,0,null,null,"","","","",{"$error":"#VALUE!"},{"$error":"#VALUE!"}]
[null,null,null,null,null,null,null,null,null,null,null,null,null,null,null,null,null,null,null,null,null,null,null,null,null,null,null,null,null,null,null,null,null,null,null,null,null,null,null,null,null,null,null,null,null,null,null,243,243,{"$error":"#NUM!"},0,0,0,0,0,null,null,"","","","",{"$error":"#VALUE!"},{"$error":"#VALUE!"}]
[null,null,null,null,null,null,null,null,null,null,null,null,null,null,null,null,null,null,null,null,null,null,null,null,null,null,null,null,null,null,null,null,null,null,null,null,null,null,null,null,null,null,null,null,null,null,null,244,244,{"$error":"#NUM!"},0,0,0,0,0,null,null,"","","","",{"$error":"#VALUE!"},{"$error":"#VALUE!"}]
[null,null,null,null,null,null,null,null,null,null,null,null,null,null,null,null,null,null,null,null,null,null,null,null,null,null,null,null,null,null,null,null,null,null,null,null,null,null,null,null,null,null,null,null,null,null,null,245,245,{"$error":"#NUM!"},0,0,0,0,0,null,null,"","","","",{"$error":"#VALUE!"},{"$error":"#VALUE!"}]
[null,null,null,null,null,null,null,null,null,null,null,null,null,null,null,null,null,null,null,null,null,null,null,null,null,null,null,null,null,null,null,null,null,null,null,null,null,null,null,null,null,null,null,null,null,null,null,246,246,{"$error":"#NUM!"},0,0,0,0,0,null,null,"","","","",{"$error":"#VALUE!"},{"$error":"#VALUE!"}]
[null,null,null,null,null,null,null,null,null,null,null,null,null,null,null,null,null,null,null,null,null,null,null,null,null,null,null,null,null,null,null,null,null,null,null,null,null,null,null,null,null,null,null,null,null,null,null,247,247,{"$error":"#NUM!"},0,0,0,0,0,null,null,"","","","",{"$error":"#VALUE!"},{"$error":"#VALUE!"}]
[null,null,null,null,null,null,null,null,null,null,null,null,null,null,null,null,null,null,null,null,null,null,null,null,null,null,null,null,null,null,null,null,null,null,null,null,null,null,null,null,null,null,null,null,null,null,null,248,248,{"$error":"#NUM!"},0,0,0,0,0,null,null,"","","","",{"$error":"#VALUE!"},{"$error":"#VALUE!"}]
[null,null,null,null,null,null,null,null,null,null,null,null,null,null,null,null,null,null,null,null,null,null,null,null,null,null,null,null,null,null,null,null,null,null,null,null,null,null,null,null,null,null,null,null,null,null,null,249,249,{"$error":"#NUM!"},0,0,0,0,0,null,null,"","","","",{"$error":"#VALUE!"},{"$error":"#VALUE!"}]
[null,null,null,null,null,null,null,null,null,null,null,null,null,null,null,null,null,null,null,null,null,null,null,null,null,null,null,null,null,null,null,null,null,null,null,null,null,null,null,null,null,null,null,null,null,null,null,250,250,{"$error":"#NUM!"},0,0,0,0,0,null,null,"","","","",{"$error":"#VALUE!"},{"$error":"#VALUE!"}]
[null,null,null,null,null,null,null,null,null,null,null,null,null,null,null,null,null,null,null,null,null,null,null,null,null,null,null,null,null,null,null,null,null,null,null,null,null,null,null,null,null,null,null,null,null,null,null,251,251,{"$error":"#NUM!"},0,0,0,0,0,null,null,"","","","",{"$error":"#VALUE!"},{"$error":"#VALUE!"}]
[null,null,null,null,null,null,null,null,null,null,null,null,null,null,null,null,null,null,null,null,null,null,null,null,null,null,null,null,null,null,null,null,null,null,null,null,null,null,null,null,null,null,null,null,null,null,null,252,252,{"$error":"#NUM!"},0,0,0,0,0,null,null,"","","","",{"$error":"#VALUE!"},{"$error":"#VALUE!"}]
[null,null,null,null,null,null,null,null,null,null,null,null,null,null,null,null,null,null,null,null,null,null,null,null,null,null,null,null,null,null,null,null,null,null,null,null,null,null,null,null,null,null,null,null,null,null,null,253,253,{"$error":"#NUM!"},0,0,0,0,0,null,null,"","","","",{"$error":"#VALUE!"},{"$error":"#VALUE!"}]
[null,null,null,null,null,null,null,null,null,null,null,null,null,null,null,null,null,null,null,null,null,null,null,null,null,null,null,null,null,null,null,null,null,null,null,null,null,null,null,null,null,null,null,null,null,null,null,254,254,{"$error":"#NUM!"},0,0,0,0,0,null,null,"","","","",{"$error":"#VALUE!"},{"$error":"#VALUE!"}]
[null,null,null,null,null,null,null,null,null,null,null,null,null,null,null,null,null,null,null,null,null,null,null,null,null,null,null,null,null,null,null,null,null,null,null,null,null,null,null,null,null,null,null,null,null,null,null,255,255,{"$error":"#NUM!"},0,0,0,0,0,null,null,"","","","",{"$error":"#VALUE!"},{"$error":"#VALUE!"}]
[null,null,null,null,null,null,null,null,null,null,null,null,null,null,null,null,null,null,null,null,null,null,null,null,null,null,null,null,null,null,null,null,null,null,null,null,null,null,null,null,null,null,null,null,null,null,null,256,256,{"$error":"#NUM!"},0,0,0,0,0,null,null,"","","","",{"$error":"#VALUE!"},{"$error":"#VALUE!"}]
[null,null,null,null,null,null,null,null,null,null,null,null,null,null,null,null,null,null,null,null,null,null,null,null,null,null,null,null,null,null,null,null,null,null,null,null,null,null,null,null,null,null,null,null,null,null,null,257,257,{"$f":"-IPMT($G$6/$AW$15,AW276,pocet,credit)","v":{"$error":"#NUM!"}},{"$f":"IF(ISERR(IPMT($G$6/$AW$15,AW276,pocet,$B$4)),0,-IPMT($G$6/$AW$15,AW276,pocet,$B$4))","v":0},0,0,0,0,null,null,"",{"$f":"IF(ISERR(AX276),\"\",IF(AND(NOT(splatka=splatka2),BF276=pocet),splatka2,splatka))","v":""},"","",{"$error":"#VALUE!"},{"$error":"#VALUE!"}]
[null,null,null,null,null,null,null,null,null,null,null,null,null,null,null,null,null,null,null,null,null,null,null,null,null,null,null,null,null,null,null,null,null,null,null,null,null,null,null,null,null,null,null,null,null,null,null,258,258,{"$error":"#NUM!"},0,{"$f":"IF(AY277=0,0,$B$9+$B$10)","v":0},{"$f":"IF(ISERR(AX277),0,$B$5-AY277)","v":0},{"$f":"IF(ISERR(AX277),0,IF(AND(NOT(splatka=splatka2),BF277=pocet),SUM(splatka2+AZ277)/(1+$G$6)^(prvni/konvence+AW276/$AW$15),SUM(splatka+AZ277)/(1+$G$6)^(prvni/konvence+AW276/$AW$15)))","v":0},0,null,null,"","",{"$f":"IF(OR(AY277<0,ISERR(AX277)),\"\",urok/$AW$15*BK276)","v":""},"",{"$f":"BG277-BH277","v":{"$error":"#VALUE!"}},{"$error":"#VALUE!"}]
[null,null,null,null,null,null,null,null,null,null,null,null,null,null,null,null,null,null,null,null,null,null,null,null,null,null,null,null,null,null,null,null,null,null,null,null,null,null,null,null,null,null,null,null,null,null,null,259,259,{"$error":"#NUM!"},0,0,0,0,{"$f":"IF(ISERR(AX278),0,BC277-BA278)","v":0},null,null,"","","","",{"$error":"#VALUE!"},{"$f":"BK277-BJ278","v":{"$error":"#VALUE!"}}]
[null,null,null,null,null,null,null,null,null,null,null,null,null,null,null,null,null,null,null,null,null,null,null,null,null,null,null,null,null,null,null,null,null,null,null,null,null,null,null,null,null,null,null,null,null,null,null,260,260,{"$error":"#NUM!"},0,0,0,0,0,null,null,"","","","",{"$error":"#VALUE!"},{"$error":"#VALUE!"}]
[null,null,null,null,null,null,null,null,null,null,null,null,null,null,null,null,null,null,null,null,null,null,null,null,null,null,null,null,null,null,null,null,null,null,null,null,null,null,null,null,null,null,null,null,null,null,null,261,261,{"$error":"#NUM!"},0,0,0,0,0,null,null,"","","","",{"$error":"#VALUE!"},{"$error":"#VALUE!"}]
[null,null,null,null,null,null,null,null,null,null,null,null,null,null,null,null,null,null,null,null,null,null,null,null,null,null,null,null,null,null,null,null,null,null,null,null,null,null,null,null,null,null,null,null,null,null,null,262,262,{"$error":"#NUM!"},0,0,0,0,0,null,null,"","","","",{"$error":"#VALUE!"},{"$error":"#VALUE!"}]
[null,null,null,null,null,null,null,null,null,null,null,null,null,null,null,null,null,null,null,null,null,null,null,null,null,null,null,null,null,null,null,null,null,null,null,null,null,null,null,null,null,null,null,null,null,null,null,263,263,{"$error":"#NUM!"},0,0,0,0,0,null,null,"","","","",{"$error":"#VALUE!"},{"$error":"#VALUE!"}]
[null,null,null,null,null,null,null,null,null,null,null,null,null,null,null,null,null,null,null,null,null,null,null,null,null,null,null,null,null,null,null,null,null,null,null,null,null,null,null,null,null,null,null,null,null,null,null,264,264,{"$error":"#NUM!"},0,0,0,0,0,null,null,"","","","",{"$error":"#VALUE!"},{"$error":"#VALUE!"}]
[null,null,null,null,null,null,null,null,null,null,null,null,null,null,null,null,null,null,null,null,null,null,null,null,null,null,null,null,null,null,null,null,null,null,null,null,null,null,null,null,null,null,null,null,null,null,null,265,265,{"$error":"#NUM!"},0,0,0,0,0,null,null,"","","","",{"$error":"#VALUE!"},{"$error":"#VALUE!"}]
[null,null,null,null,null,null,null,null,null,null,null,null,null,null,null,null,null,null,null,null,null,null,null,null,null,null,null,null,null,null,null,null,null,null,null,null,null,null,null,null,null,null,null,null,null,null,null,266,266,{"$error":"#NUM!"},0,0,0,0,0,null,null,"","","","",{"$error":"#VALUE!"},{"$error":"#VALUE!"}]
[null,null,null,null,null,null,null,null,null,null,null,null,null,null,null,null,null,null,null,null,null,null,null,null,null,null,null,null,null,null,null,null,null,null,null,null,null,null,null,null,null,null,null,null,null,null,null,267,267,{"$error":"#NUM!"},0,0,0,0,0,null,null,"","","","",{"$error":"#VALUE!"},{"$error":"#VALUE!"}]
[null,null,null,null,null,null,null,null,null,null,null,null,null,null,null,null,null,null,null,null,null,null,null,null,null,null,null,null,null,null,null,null,null,null,null,null,null,null,null,null,null,null,null,null,null,null,null,268,268,{"$error":"#NUM!"},0,0,0,0,0,null,null,"","","","",{"$error":"#VALUE!"},{"$error":"#VALUE!"}]
[null,null,null,null,null,null,null,null,null,null,null,null,null,null,null,null,null,null,null,null,null,null,null,null,null,null,null,null,null,null,null,null,null,null,null,null,null,null,null,null,null,null,null,null,null,null,null,269,269,{"$error":"#NUM!"},0,0,0,0,0,null,null,"","","","",{"$error":"#VALUE!"},{"$error":"#VALUE!"}]
[null,null,null,null,null,null,null,null,null,null,null,null,null,null,null,null,null,null,null,null,null,null,null,null,null,null,null,null,null,null,null,null,null,null,null,null,null,null,null,null,null,null,null,null,null,null,null,270,270,{"$error":"#NUM!"},0,0,0,0,0,null,null,"","","","",{"$error":"#VALUE!"},{"$error":"#VALUE!"}]
[null,null,null,null,null,null,null,null,null,null,null,null,null,null,null,null,null,null,null,null,null,null,null,null,null,null,null,null,null,null,null,null,null,null,null,null,null,null,null,null,null,null,null,null,null,null,null,271,271,{"$error":"#NUM!"},0,0,0,0,0,null,null,"","","","",{"$error":"#VALUE!"},{"$error":"#VALUE!"}]
[null,null,null,null,null,null,null,null,null,null,null,null,null,null,null,null,null,null,null,null,null,null,null,null,null,null,null,null,null,null,null,null,null,null,null,null,null,null,null,null,null,null,null,null,null,null,null,272,272,{"$error":"#NUM!"},0,0,0,0,0,null,null,"","","","",{"$error":"#VALUE!"},{"$error":"#VALUE!"}]
[null,null,null,null,null,null,null,null,null,null,null,null,null,null,null,null,null,null,null,null,null,null,null,null,null,null,null,null,null,null,null,null,null,null,null,null,null,null,null,null,null,null,null,null,null,null,null,273,273,{"$error":"#NUM!"},0,0,0,0,0,null,null,"","","","",{"$error":"#VALUE!"},{"$error":"#VALUE!"}]
[null,null,null,null,null,null,null,null,null,null,null,null,null,null,null,null,null,null,null,null,null,null,null,null,null,null,null,null,null,null,null,null,null,null,null,null,null,null,null,null,null,null,null,null,null,null,null,274,274,{"$error":"#NUM!"},0,0,0,0,0,null,null,"","","","",{"$error":"#VALUE!"},{"$error":"#VALUE!"}]
[null,null,null,null,null,null,null,null,null,null,null,null,null,null,null,null,null,null,null,null,null,null,null,null,null,null,null,null,null,null,null,null,null,null,null,null,null,null,null,null,null,null,null,null,null,null,null,275,275,{"$error":"#NUM!"},0,0,0,0,0,null,null,"","","","",{"$error":"#VALUE!"},{"$error":"#VALUE!"}]
[null,null,null,null,null,null,null,null,null,null,null,null,null,null,null,null,null,null,null,null,null,null,null,null,null,null,null,null,null,null,null,null,null,null,null,null,null,null,null,null,null,null,null,null,null,null,null,276,276,{"$error":"#NUM!"},0,0,0,0,0,null,null,"","","","",{"$error":"#VALUE!"},{"$error":"#VALUE!"}]
[null,null,null,null,null,null,null,null,null,null,null,null,null,null,null,null,null,null,null,null,null,null,null,null,null,null,null,null,null,null,null,null,null,null,null,null,null,null,null,null,null,null,null,null,null,null,null,277,277,{"$error":"#NUM!"},0,0,0,0,0,null,null,"","","","",{"$error":"#VALUE!"},{"$error":"#VALUE!"}]
[null,null,null,null,null,null,null,null,null,null,null,null,null,null,null,null,null,null,null,null,null,null,null,null,null,null,null,null,null,null,null,null,null,null,null,null,null,null,null,null,null,null,null,null,null,null,null,278,278,{"$error":"#NUM!"},0,0,0,0,0,null,null,"","","","",{"$error":"#VALUE!"},{"$error":"#VALUE!"}]
[null,null,null,null,null,null,null,null,null,null,null,null,null,null,null,null,null,null,null,null,null,null,null,null,null,null,null,null,null,null,null,null,null,null,null,null,null,null,null,null,null,null,null,null,null,null,null,279,279,{"$error":"#NUM!"},0,0,0,0,0,null,null,"","","","",{"$error":"#VALUE!"},{"$error":"#VALUE!"}]
[null,null,null,null,null,null,null,null,null,null,null,null,null,null,null,null,null,null,null,null,null,null,null,null,null,null,null,null,null,null,null,null,null,null,null,null,null,null,null,null,null,null,null,null,null,null,null,280,280,{"$error":"#NUM!"},0,0,0,0,0,null,null,"","","","",{"$error":"#VALUE!"},{"$error":"#VALUE!"}]
[null,null,null,null,null,null,null,null,null,null,null,null,null,null,null,null,null,null,null,null,null,null,null,null,null,null,null,null,null,null,null,null,null,null,null,null,null,null,null,null,null,null,null,null,null,null,null,281,281,{"$error":"#NUM!"},0,0,0,0,0,null,null,"","","","",{"$error":"#VALUE!"},{"$error":"#VALUE!"}]
[null,null,null,null,null,null,null,null,null,null,null,null,null,null,null,null,null,null,null,null,null,null,null,null,null,null,null,null,null,null,null,null,null,null,null,null,null,null,null,null,null,null,null,null,null,null,null,282,282,{"$error":"#NUM!"},0,0,0,0,0,null,null,"","","","",{"$error":"#VALUE!"},{"$error":"#VALUE!"}]
[null,null,null,null,null,null,null,null,null,null,null,null,null,null,null,null,null,null,null,null,null,null,null,null,null,null,null,null,null,null,null,null,null,null,null,null,null,null,null,null,null,null,null,null,null,null,null,283,283,{"$error":"#NUM!"},0,0,0,0,0,null,null,"","","","",{"$error":"#VALUE!"},{"$error":"#VALUE!"}]
[null,null,null,null,null,null,null,null,null,null,null,null,null,null,null,null,null,null,null,null,null,null,null,null,null,null,null,null,null,null,null,null,null,null,null,null,null,null,null,null,null,null,null,null,null,null,null,284,284,{"$error":"#NUM!"},0,0,0,0,0,null,null,"","","","",{"$error":"#VALUE!"},{"$error":"#VALUE!"}]
[null,null,null,null,null,null,null,null,null,null,null,null,null,null,null,null,null,null,null,null,null,null,null,null,null,null,null,null,null,null,null,null,null,null,null,null,null,null,null,null,null,null,null,null,null,null,null,285,285,{"$error":"#NUM!"},0,0,0,0,0,null,null,"","","","",{"$error":"#VALUE!"},{"$error":"#VALUE!"}]
[null,null,null,null,null,null,null,null,null,null,null,null,null,null,null,null,null,null,null,null,null,null,null,null,null,null,null,null,null,null,null,null,null,null,null,null,null,null,null,null,null,null,null,null,null,null,null,286,286,{"$error":"#NUM!"},0,0,0,0,0,null,null,"","","","",{"$error":"#VALUE!"},{"$error":"#VALUE!"}]
[null,null,null,null,null,null,null,null,null,null,null,null,null,null,null,null,null,null,null,null,null,null,null,null,null,null,null,null,null,null,null,null,null,null,null,null,null,null,null,null,null,null,null,null,null,null,null,287,287,{"$error":"#NUM!"},0,0,0,0,0,null,null,"","","","",{"$error":"#VALUE!"},{"$error":"#VALUE!"}]
[null,null,null,null,null,null,null,null,null,null,null,null,null,null,null,null,null,null,null,null,null,null,null,null,null,null,null,null,null,null,null,null,null,null,null,null,null,null,null,null,null,null,null,null,null,null,null,288,288,{"$error":"#NUM!"},0,0,0,0,0,null,null,"","","","",{"$error":"#VALUE!"},{"$error":"#VALUE!"}]
[null,null,null,null,null,null,null,null,null,null,null,null,null,null,null,null,null,null,null,null,null,null,null,null,null,null,null,null,null,null,null,null,null,null,null,null,null,null,null,null,null,null,null,null,null,null,null,289,289,{"$error":"#NUM!"},0,0,0,0,0,null,null,"","","","",{"$error":"#VALUE!"},{"$error":"#VALUE!"}]
[null,null,null,null,null,null,null,null,null,null,null,null,null,null,null,null,null,null,null,null,null,null,null,null,null,null,null,null,null,null,null,null,null,null,null,null,null,null,null,null,null,null,null,null,null,null,null,290,290,{"$error":"#NUM!"},0,0,0,0,0,null,null,"","","","",{"$error":"#VALUE!"},{"$error":"#VALUE!"}]
[null,null,null,null,null,null,null,null,null,null,null,null,null,null,null,null,null,null,null,null,null,null,null,null,null,null,null,null,null,null,null,null,null,null,null,null,null,null,null,null,null,null,null,null,null,null,null,291,291,{"$error":"#NUM!"},0,0,0,0,0,null,null,"","","","",{"$error":"#VALUE!"},{"$error":"#VALUE!"}]
[null,null,null,null,null,null,null,null,null,null,null,null,null,null,null,null,null,null,null,null,null,null,null,null,null,null,null,null,null,null,null,null,null,null,null,null,null,null,null,null,null,null,null,null,null,null,null,292,292,{"$error":"#NUM!"},0,0,0,0,0,null,null,"","","","",{"$error":"#VALUE!"},{"$error":"#VALUE!"}]
[null,null,null,null,null,null,null,null,null,null,null,null,null,null,null,null,null,null,null,null,null,null,null,null,null,null,null,null,null,null,null,null,null,null,null,null,null,null,null,null,null,null,null,null,null,null,null,293,293,{"$error":"#NUM!"},0,0,0,0,0,null,null,{"$f":"IF(BH312=\"\",\"\",BF311+1)","v":""},"","",{"$f":"IF(BH312=\"\",\"\",AZ312)","v":""},{"$error":"#VALUE!"},{"$error":"#VALUE!"}]
[null,null,null,null,null,null,null,null,null,null,null,null,null,null,null,null,null,null,null,null,null,null,null,null,null,null,null,null,null,null,null,null,null,null,null,null,null,null,null,null,null,null,null,null,null,null,null,294,294,{"$error":"#NUM!"},0,0,0,0,0,null,null,"","","","",{"$error":"#VALUE!"},{"$error":"#VALUE!"}]
[null,null,null,null,null,null,null,null,null,null,null,null,null,null,null,null,null,null,null,null,null,null,null,null,null,null,null,null,null,null,null,null,null,null,null,null,null,null,null,null,null,null,null,null,null,null,null,295,295,{"$error":"#NUM!"},0,0,0,0,0,null,null,"","","","",{"$error":"#VALUE!"},{"$error":"#VALUE!"}]
[null,null,null,null,null,null,null,null,null,null,null,null,null,null,null,null,null,null,null,null,null,null,null,null,null,null,null,null,null,null,null,null,null,null,null,null,null,null,null,null,null,null,null,null,null,null,null,296,296,{"$error":"#NUM!"},0,0,0,0,0,null,null,"","","","",{"$error":"#VALUE!"},{"$error":"#VALUE!"}]
[null,null,null,null,null,null,null,null,null,null,null,null,null,null,null,null,null,null,null,null,null,null,null,null,null,null,null,null,null,null,null,null,null,null,null,null,null,null,null,null,null,null,null,null,null,null,null,297,297,{"$error":"#NUM!"},0,0,0,0,0,null,null,"","","","",{"$error":"#VALUE!"},{"$error":"#VALUE!"}]
[null,null,null,null,null,null,null,null,null,null,null,null,null,null,null,null,null,null,null,null,null,null,null,null,null,null,null,null,null,null,null,null,null,null,null,null,null,null,null,null,null,null,null,null,null,null,null,298,298,{"$error":"#NUM!"},0,0,0,0,0,null,null,"","","","",{"$error":"#VALUE!"},{"$error":"#VALUE!"}]
[null,null,null,null,null,null,null,null,null,null,null,null,null,null,null,null,null,null,null,null,null,null,null,null,null,null,null,null,null,null,null,null,null,null,null,null,null,null,null,null,null,null,null,null,null,null,null,299,299,{"$error":"#NUM!"},0,0,0,0,0,null,null,"","","","",{"$error":"#VALUE!"},{"$error":"#VALUE!"}]
[null,null,null,null,null,null,null,null,null,null,null,null,null,null,null,null,null,null,null,null,null,null,null,null,null,null,null,null,null,null,null,null,null,null,null,null,null,null,null,null,null,null,null,null,null,null,null,300,300,{"$error":"#NUM!"},0,0,0,0,0,null,null,"","","","",{"$error":"#VALUE!"},{"$error":"#VALUE!"}]
[null,null,null,null,null,null,null,null,null,null,null,null,null,null,null,null,null,null,null,null,null,null,null,null,null,null,null,null,null,null,null,null,null,null,null,null,null,null,null,null,null,null,null,null,null,null,null,301,301,{"$error":"#NUM!"},0,0,0,0,0,null,null,"","","","",{"$error":"#VALUE!"},{"$error":"#VALUE!"}]
[null,null,null,null,null,null,null,null,null,null,null,null,null,null,null,null,null,null,null,null,null,null,null,null,null,null,null,null,null,null,null,null,null,null,null,null,null,null,null,null,null,null,null,null,null,null,null,302,302,{"$error":"#NUM!"},0,0,0,0,0,null,null,"","","","",{"$error":"#VALUE!"},{"$error":"#VALUE!"}]
[null,null,null,null,null,null,null,null,null,null,null,null,null,null,null,null,null,null,null,null,null,null,null,null,null,null,null,null,null,null,null,null,null,null,null,null,null,null,null,null,null,null,null,null,null,null,null,303,303,{"$error":"#NUM!"},0,0,0,0,0,null,null,"","","","",{"$error":"#VALUE!"},{"$error":"#VALUE!"}]
[null,null,null,null,null,null,null,null,null,null,null,null,null,null,null,null,null,null,null,null,null,null,null,null,null,null,null,null,null,null,null,null,null,null,null,null,null,null,null,null,null,null,null,null,null,null,null,304,304,{"$error":"#NUM!"},0,0,0,0,0,null,null,"","","","",{"$error":"#VALUE!"},{"$error":"#VALUE!"}]
[null,null,null,null,null,null,null,null,null,null,null,null,null,null,null,null,null,null,null,null,null,null,null,null,null,null,null,null,null,null,null,null,null,null,null,null,null,null,null,null,null,null,null,null,null,null,null,305,305,{"$error":"#NUM!"},0,0,0,0,0,null,null,"","","","",{"$error":"#VALUE!"},{"$error":"#VALUE!"}]
[null,null,null,null,null,null,null,null,null,null,null,null,null,null,null,null,null,null,null,null,null,null,null,null,null,null,null,null,null,null,null,null,null,null,null,null,null,null,null,null,null,null,null,null,null,null,null,306,306,{"$error":"#NUM!"},0,0,0,0,0,null,null,"","","","",{"$error":"#VALUE!"},{"$error":"#VALUE!"}]
[null,null,null,null,null,null,null,null,null,null,null,null,null,null,null,null,null,null,null,null,null,null,null,null,null,null,null,null,null,null,null,null,null,null,null,null,null,null,null,null,null,null,null,null,null,null,null,307,307,{"$error":"#NUM!"},0,0,0,0,0,null,null,"","","","",{"$error":"#VALUE!"},{"$error":"#VALUE!"}]
[null,null,null,null,null,null,null,null,null,null,null,null,null,null,null,null,null,null,null,null,null,null,null,null,null,null,null,null,null,null,null,null,null,null,null,null,null,null,null,null,null,null,null,null,null,null,null,308,308,{"$error":"#NUM!"},0,0,0,0,0,null,null,"","","","",{"$error":"#VALUE!"},{"$error":"#VALUE!"}]
[null,null,null,null,null,null,null,null,null,null,null,null,null,null,null,null,null,null,null,null,null,null,null,null,null,null,null,null,null,null,null,null,null,null,null,null,null,null,null,null,null,null,null,null,null,null,null,309,309,{"$error":"#NUM!"},0,0,0,0,0,null,null,"","","","",{"$error":"#VALUE!"},{"$error":"#VALUE!"}]
[null,null,null,null,null,null,null,null,null,null,null,null,null,null,null,null,null,null,null,null,null,null,null,null,null,null,null,null,null,null,null,null,null,null,null,null,null,null,null,null,null,null,null,null,null,null,null,310,310,{"$error":"#NUM!"},0,0,0,0,0,null,null,"","","","",{"$error":"#VALUE!"},{"$error":"#VALUE!"}]
[null,null,null,null,null,null,null,null,null,null,null,null,null,null,null,null,null,null,null,null,null,null,null,null,null,null,null,null,null,null,null,null,null,null,null,null,null,null,null,null,null,null,null,null,null,null,null,311,311,{"$error":"#NUM!"},0,0,0,0,0,null,null,"","","","",{"$error":"#VALUE!"},{"$error":"#VALUE!"}]
[null,null,null,null,null,null,null,null,null,null,null,null,null,null,null,null,null,null,null,null,null,null,null,null,null,null,null,null,null,null,null,null,null,null,null,null,null,null,null,null,null,null,null,null,null,null,null,312,312,{"$error":"#NUM!"},0,0,0,0,0,null,null,"","","","",{"$error":"#VALUE!"},{"$error":"#VALUE!"}]
[null,null,null,null,null,null,null,null,null,null,null,null,null,null,null,null,null,null,null,null,null,null,null,null,null,null,null,null,null,null,null,null,null,null,null,null,null,null,null,null,null,null,null,null,null,null,null,313,313,{"$error":"#NUM!"},0,0,0,0,0,null,null,"","","","",{"$error":"#VALUE!"},{"$error":"#VALUE!"}]
[null,null,null,null,null,null,null,null,null,null,null,null,null,null,null,null,null,null,null,null,null,null,null,null,null,null,null,null,null,null,null,null,null,null,null,null,null,null,null,null,null,null,null,null,null,null,null,314,314,{"$error":"#NUM!"},0,0,0,0,0,null,null,"","","","",{"$error":"#VALUE!"},{"$error":"#VALUE!"}]
[null,null,null,null,null,null,null,null,null,null,null,null,null,null,null,null,null,null,null,null,null,null,null,null,null,null,null,null,null,null,null,null,null,null,null,null,null,null,null,null,null,null,null,null,null,null,null,315,315,{"$error":"#NUM!"},0,0,0,0,0,null,null,"","","","",{"$error":"#VALUE!"},{"$error":"#VALUE!"}]
[null,null,null,null,null,null,null,null,null,null,null,null,null,null,null,null,null,null,null,null,null,null,null,null,null,null,null,null,null,null,null,null,null,null,null,null,null,null,null,null,null,null,null,null,null,null,null,316,316,{"$error":"#NUM!"},0,0,0,0,0,null,null,"","","","",{"$error":"#VALUE!"},{"$error":"#VALUE!"}]
[null,null,null,null,null,null,null,null,null,null,null,null,null,null,null,null,null,null,null,null,null,null,null,null,null,null,null,null,null,null,null,null,null,null,null,null,null,null,null,null,null,null,null,null,null,null,null,317,317,{"$error":"#NUM!"},0,0,0,0,0,null,null,"","","","",{"$error":"#VALUE!"},{"$error":"#VALUE!"}]
[null,null,null,null,null,null,null,null,null,null,null,null,null,null,null,null,null,null,null,null,null,null,null,null,null,null,null,null,null,null,null,null,null,null,null,null,null,null,null,null,null,null,null,null,null,null,null,318,318,{"$error":"#NUM!"},0,0,0,0,0,null,null,"","","","",{"$error":"#VALUE!"},{"$error":"#VALUE!"}]
[null,null,null,null,null,null,null,null,null,null,null,null,null,null,null,null,null,null,null,null,null,null,null,null,null,null,null,null,null,null,null,null,null,null,null,null,null,null,null,null,null,null,null,null,null,null,null,319,319,{"$error":"#NUM!"},0,0,0,0,0,null,null,"","","","",{"$error":"#VALUE!"},{"$error":"#VALUE!"}]
[null,null,null,null,null,null,null,null,null,null,null,null,null,null,null,null,null,null,null,null,null,null,null,null,null,null,null,null,null,null,null,null,null,null,null,null,null,null,null,null,null,null,null,null,null,null,null,320,320,{"$error":"#NUM!"},0,0,0,0,0,null,null,"","","","",{"$error":"#VALUE!"},{"$error":"#VALUE!"}]
[null,null,null,null,null,null,null,null,null,null,null,null,null,null,null,null,null,null,null,null,null,null,null,null,null,null,null,null,null,null,null,null,null,null,null,null,null,null,null,null,null,null,null,null,null,null,null,321,321,{"$f":"-IPMT($G$6/$AW$15,AW340,pocet,credit)","v":{"$error":"#NUM!"}},{"$f":"IF(ISERR(IPMT($G$6/$AW$15,AW340,pocet,$B$4)),0,-IPMT($G$6/$AW$15,AW340,pocet,$B$4))","v":0},0,0,0,0,null,null,"",{"$f":"IF(ISERR(AX340),\"\",IF(AND(NOT(splatka=splatka2),BF340=pocet),splatka2,splatka))","v":""},"","",{"$error":"#VALUE!"},{"$error":"#VALUE!"}]
[null,null,null,null,null,null,null,null,null,null,null,null,null,null,null,null,null,null,null,null,null,null,null,null,null,null,null,null,null,null,null,null,null,null,null,null,null,null,null,null,null,null,null,null,null,null,null,322,322,{"$error":"#NUM!"},0,{"$f":"IF(AY341=0,0,$B$9+$B$10)","v":0},{"$f":"IF(ISERR(AX341),0,$B$5-AY341)","v":0},{"$f":"IF(ISERR(AX341),0,IF(AND(NOT(splatka=splatka2),BF341=pocet),SUM(splatka2+AZ341)/(1+$G$6)^(prvni/konvence+AW340/$AW$15),SUM(splatka+AZ341)/(1+$G$6)^(prvni/konvence+AW340/$AW$15)))","v":0},0,null,null,"","",{"$f":"IF(OR(AY341<0,ISERR(AX341)),\"\",urok/$AW$15*BK340)","v":""},"",{"$f":"BG341-BH341","v":{"$error":"#VALUE!"}},{"$error":"#VALUE!"}]
[null,null,null,null,null,null,null,null,null,null,null,null,null,null,null,null,null,null,null,null,null,null,null,null,null,null,null,null,null,null,null,null,null,null,null,null,null,null,null,null,null,null,null,null,null,null,null,323,323,{"$error":"#NUM!"},0,0,0,0,{"$f":"IF(ISERR(AX342),0,BC341-BA342)","v":0},null,null,"","","","",{"$error":"#VALUE!"},{"$f":"BK341-BJ342","v":{"$error":"#VALUE!"}}]
[null,null,null,null,null,null,null,null,null,null,null,null,null,null,null,null,null,null,null,null,null,null,null,null,null,null,null,null,null,null,null,null,null,null,null,null,null,null,null,null,null,null,null,null,null,null,null,324,324,{"$error":"#NUM!"},0,0,0,0,0,null,null,"","","","",{"$error":"#VALUE!"},{"$error":"#VALUE!"}]
[null,null,null,null,null,null,null,null,null,null,null,null,null,null,null,null,null,null,null,null,null,null,null,null,null,null,null,null,null,null,null,null,null,null,null,null,null,null,null,null,null,null,null,null,null,null,null,325,325,{"$error":"#NUM!"},0,0,0,0,0,null,null,"","","","",{"$error":"#VALUE!"},{"$error":"#VALUE!"}]
[null,null,null,null,null,null,null,null,null,null,null,null,null,null,null,null,null,null,null,null,null,null,null,null,null,null,null,null,null,null,null,null,null,null,null,null,null,null,null,null,null,null,null,null,null,null,null,326,326,{"$error":"#NUM!"},0,0,0,0,0,null,null,"","","","",{"$error":"#VALUE!"},{"$error":"#VALUE!"}]
[null,null,null,null,null,null,null,null,null,null,null,null,null,null,null,null,null,null,null,null,null,null,null,null,null,null,null,null,null,null,null,null,null,null,null,null,null,null,null,null,null,null,null,null,null,null,null,327,327,{"$error":"#NUM!"},0,0,0,0,0,null,null,"","","","",{"$error":"#VALUE!"},{"$error":"#VALUE!"}]
[null,null,null,null,null,null,null,null,null,null,null,null,null,null,null,null,null,null,null,null,null,null,null,null,null,null,null,null,null,null,null,null,null,null,null,null,null,null,null,null,null,null,null,null,null,null,null,328,328,{"$error":"#NUM!"},0,0,0,0,0,null,null,"","","","",{"$error":"#VALUE!"},{"$error":"#VALUE!"}]
[null,null,null,null,null,null,null,null,null,null,null,null,null,null,null,null,null,null,null,null,null,null,null,null,null,null,null,null,null,null,null,null,null,null,null,null,null,null,null,null,null,null,null,null,null,null,null,329,329,{"$error":"#NUM!"},0,0,0,0,0,null,null,"","","","",{"$error":"#VALUE!"},{"$error":"#VALUE!"}]
[null,null,null,null,null,null,null,null,null,null,null,null,null,null,null,null,null,null,null,null,null,null,null,null,null,null,null,null,null,null,null,null,null,null,null,null,null,null,null,null,null,null,null,null,null,null,null,330,330,{"$error":"#NUM!"},0,0,0,0,0,null,null,"","","","",{"$error":"#VALUE!"},{"$error":"#VALUE!"}]
[null,null,null,null,null,null,null,null,null,null,null,null,null,null,null,null,null,null,null,null,null,null,null,null,null,null,null,null,null,null,null,null,null,null,null,null,null,null,null,null,null,null,null,null,null,null,null,331,331,{"$error":"#NUM!"},0,0,0,0,0,null,null,"","","","",{"$error":"#VALUE!"},{"$error":"#VALUE!"}]
[null,null,null,null,null,null,null,null,null,null,null,null,null,null,null,null,null,null,null,null,null,null,null,null,null,null,null,null,null,null,null,null,null,null,null,null,null,null,null,null,null,null,null,null,null,null,null,332,332,{"$error":"#NUM!"},0,0,0,0,0,null,null,"","","","",{"$error":"#VALUE!"},{"$error":"#VALUE!"}]
[null,null,null,null,null,null,null,null,null,null,null,null,null,null,null,null,null,null,null,null,null,null,null,null,null,null,null,null,null,null,null,null,null,null,null,null,null,null,null,null,null,null,null,null,null,null,null,333,333,{"$error":"#NUM!"},0,0,0,0,0,null,null,"","","","",{"$error":"#VALUE!"},{"$error":"#VALUE!"}]
[null,null,null,null,null,null,null,null,null,null,null,null,null,null,null,null,null,null,null,null,null,null,null,null,null,null,null,null,null,null,null,null,null,null,null,null,null,null,null,null,null,null,null,null,null,null,null,334,334,{"$error":"#NUM!"},0,0,0,0,0,null,null,"","","","",{"$error":"#VALUE!"},{"$error":"#VALUE!"}]
[null,null,null,null,null,null,null,null,null,null,null,null,null,null,null,null,null,null,null,null,null,null,null,null,null,null,null,null,null,null,null,null,null,null,null,null,null,null,null,null,null,null,null,null,null,null,null,335,335,{"$error":"#NUM!"},0,0,0,0,0,null,null,"","","","",{"$error":"#VALUE!"},{"$error":"#VALUE!"}]
[null,null,null,null,null,null,null,null,null,null,null,null,null,null,null,null,null,null,null,null,null,null,null,null,null,null,null,null,null,null,null,null,null,null,null,null,null,null,null,null,null,null,null,null,null,null,null,336,336,{"$error":"#NUM!"},0,0,0,0,0,null,null,"","","","",{"$error":"#VALUE!"},{"$error":"#VALUE!"}]
[null,null,null,null,null,null,null,null,null,null,null,null,null,null,null,null,null,null,null,null,null,null,null,null,null,null,null,null,null,null,null,null,null,null,null,null,null,null,null,null,null,null,null,null,null,null,null,337,337,{"$error":"#NUM!"},0,0,0,0,0,null,null,"","","","",{"$error":"#VALUE!"},{"$error":"#VALUE!"}]
[null,null,null,null,null,null,null,null,null,null,null,null,null,null,null,null,null,null,null,null,null,null,null,null,null,null,null,null,null,null,null,null,null,null,null,null,null,null,null,null,null,null,null,null,null,null,null,338,338,{"$error":"#NUM!"},0,0,0,0,0,null,null,"","","","",{"$error":"#VALUE!"},{"$error":"#VALUE!"}]
[null,null,null,null,null,null,null,null,null,null,null,null,null,null,null,null,null,null,null,null,null,null,null,null,null,null,null,null,null,null,null,null,null,null,null,null,null,null,null,null,null,null,null,null,null,null,null,339,339,{"$error":"#NUM!"},0,0,0,0,0,null,null,"","","","",{"$error":"#VALUE!"},{"$error":"#VALUE!"}]
[null,null,null,null,null,null,null,null,null,null,null,null,null,null,null,null,null,null,null,null,null,null,null,null,null,null,null,null,null,null,null,null,null,null,null,null,null,null,null,null,null,null,null,null,null,null,null,340,340,{"$error":"#NUM!"},0,0,0,0,0,null,null,"","","","",{"$error":"#VALUE!"},{"$error":"#VALUE!"}]
[null,null,null,null,null,null,null,null,null,null,null,null,null,null,null,null,null,null,null,null,null,null,null,null,null,null,null,null,null,null,null,null,null,null,null,null,null,null,null,null,null,null,null,null,null,null,null,341,341,{"$error":"#NUM!"},0,0,0,0,0,null,null,"","","","",{"$error":"#VALUE!"},{"$error":"#VALUE!"}]
[null,null,null,null,null,null,null,null,null,null,null,null,null,null,null,null,null,null,null,null,null,null,null,null,null,null,null,null,null,null,null,null,null,null,null,null,null,null,null,null,null,null,null,null,null,null,null,342,342,{"$error":"#NUM!"},0,0,0,0,0,null,null,"","","","",{"$error":"#VALUE!"},{"$error":"#VALUE!"}]
[null,null,null,null,null,null,null,null,null,null,null,null,null,null,null,null,null,null,null,null,null,null,null,null,null,null,null,null,null,null,null,null,null,null,null,null,null,null,null,null,null,null,null,null,null,null,null,343,343,{"$error":"#NUM!"},0,0,0,0,0,null,null,"","","","",{"$error":"#VALUE!"},{"$error":"#VALUE!"}]
[null,null,null,null,null,null,null,null,null,null,null,null,null,null,null,null,null,null,null,null,null,null,null,null,null,null,null,null,null,null,null,null,null,null,null,null,null,null,null,null,null,null,null,null,null,null,null,344,344,{"$error":"#NUM!"},0,0,0,0,0,null,null,"","","","",{"$error":"#VALUE!"},{"$error":"#VALUE!"}]
[null,null,null,null,null,null,null,null,null,null,null,null,null,null,null,null,null,null,null,null,null,null,null,null,null,null,null,null,null,null,null,null,null,null,null,null,null,null,null,null,null,null,null,null,null,null,null,345,345,{"$error":"#NUM!"},0,0,0,0,0,null,null,"","","","",{"$error":"#VALUE!"},{"$error":"#VALUE!"}]
[null,null,null,null,null,null,null,null,null,null,null,null,null,null,null,null,null,null,null,null,null,null,null,null,null,null,null,null,null,null,null,null,null,null,null,null,null,null,null,null,null,null,null,null,null,null,null,346,346,{"$error":"#NUM!"},0,0,0,0,0,null,null,"","","","",{"$error":"#VALUE!"},{"$error":"#VALUE!"}]
[null,null,null,null,null,null,null,null,null,null,null,null,null,null,null,null,null,null,null,null,null,null,null,null,null,null,null,null,null,null,null,null,null,null,null,null,null,null,null,null,null,null,null,null,null,null,null,347,347,{"$error":"#NUM!"},0,0,0,0,0,null,null,"","","","",{"$error":"#VALUE!"},{"$error":"#VALUE!"}]
[null,null,null,null,null,null,null,null,null,null,null,null,null,null,null,null,null,null,null,null,null,null,null,null,null,null,null,null,null,null,null,null,null,null,null,null,null,null,null,null,null,null,null,null,null,null,null,348,348,{"$error":"#NUM!"},0,0,0,0,0,null,null,"","","","",{"$error":"#VALUE!"},{"$error":"#VALUE!"}]
[null,null,null,null,null,null,null,null,null,null,null,null,null,null,null,null,null,null,null,null,null,null,null,null,null,null,null,null,null,null,null,null,null,null,null,null,null,null,null,null,null,null,null,null,null,null,null,349,349,{"$error":"#NUM!"},0,0,0,0,0,null,null,"","","","",{"$error":"#VALUE!"},{"$error":"#VALUE!"}]
[null,null,null,null,null,null,null,null,null,null,null,null,null,null,null,null,null,null,null,null,null,null,null,null,null,null,null,null,null,null,null,null,null,null,null,null,null,null,null,null,null,null,null,null,null,null,null,350,350,{"$error":"#NUM!"},0,0,0,0,0,null,null,"","","","",{"$error":"#VALUE!"},{"$error":"#VALUE!"}]
[null,null,null,null,null,null,null,null,null,null,null,null,null,null,null,null,null,null,null,null,null,null,null,null,null,null,null,null,null,null,null,null,null,null,null,null,null,null,null,null,null,null,null,null,null,null,null,351,351,{"$error":"#NUM!"},0,0,0,0,0,null,null,"","","","",{"$error":"#VALUE!"},{"$error":"#VALUE!"}]
[null,null,null,null,null,null,null,null,null,null,null,null,null,null,null,null,null,null,null,null,null,null,null,null,null,null,null,null,null,null,null,null,null,null,null,null,null,null,null,null,null,null,null,null,null,null,null,352,352,{"$error":"#NUM!"},0,0,0,0,0,null,null,"","","","",{"$error":"#VALUE!"},{"$error":"#VALUE!"}]
[null,null,null,null,null,null,null,null,null,null,null,null,null,null,null,null,null,null,null,null,null,null,null,null,null,null,null,null,null,null,null,null,null,null,null,null,null,null,null,null,null,null,null,null,null,null,null,353,353,{"$error":"#NUM!"},0,0,0,0,0,null,null,"","","","",{"$error":"#VALUE!"},{"$error":"#VALUE!"}]
[null,null,null,null,null,null,null,null,null,null,null,null,null,null,null,null,null,null,null,null,null,null,null,null,null,null,null,null,null,null,null,null,null,null,null,null,null,null,null,null,null,null,null,null,null,null,null,354,354,{"$error":"#NUM!"},0,0,0,0,0,null,null,"","","","",{"$error":"#VALUE!"},{"$error":"#VALUE!"}]
[null,null,null,null,null,null,null,null,null,null,null,null,null,null,null,null,null,null,null,null,null,null,null,null,null,null,null,null,null,null,null,null,null,null,null,null,null,null,null,null,null,null,null,null,null,null,null,355,355,{"$error":"#NUM!"},0,0,0,0,0,null,null,"","","","",{"$error":"#VALUE!"},{"$error":"#VALUE!"}]
[null,null,null,null,null,null,null,null,null,null,null,null,null,null,null,null,null,null,null,null,null,null,null,null,null,null,null,null,null,null,null,null,null,null,null,null,null,null,null,null,null,null,null,null,null,null,null,356,356,{"$error":"#NUM!"},0,0,0,0,0,null,null,"","","","",{"$error":"#VALUE!"},{"$error":"#VALUE!"}]
[null,null,null,null,null,null,null,null,null,null,null,null,null,null,null,null,null,null,null,null,null,null,null,null,null,null,null,null,null,null,null,null,null,null,null,null,null,null,null,null,null,null,null,null,null,null,null,357,357,{"$error":"#NUM!"},0,0,0,0,0,null,null,{"$f":"IF(BH376=\"\",\"\",BF375+1)","v":""},"","",{"$f":"IF(BH376=\"\",\"\",AZ376)","v":""},{"$error":"#VALUE!"},{"$error":"#VALUE!"}]
[null,null,null,null,null,null,null,null,null,null,null,null,null,null,null,null,null,null,null,null,null,null,null,null,null,null,null,null,null,null,null,null,null,null,null,null,null,null,null,null,null,null,null,null,null,null,null,358,358,{"$error":"#NUM!"},0,0,0,0,0,null,null,"","","","",{"$error":"#VALUE!"},{"$error":"#VALUE!"}]
[null,null,null,null,null,null,null,null,null,null,null,null,null,null,null,null,null,null,null,null,null,null,null,null,null,null,null,null,null,null,null,null,null,null,null,null,null,null,null,null,null,null,null,null,null,null,null,359,359,{"$error":"#NUM!"},0,0,0,0,0,null,null,"","","","",{"$error":"#VALUE!"},{"$error":"#VALUE!"}]
[null,null,null,null,null,null,null,null,null,null,null,null,null,null,null,null,null,null,null,null,null,null,null,null,null,null,null,null,null,null,null,null,null,null,null,null,null,null,null,null,null,null,null,null,null,null,null,360,360,{"$error":"#NUM!"},0,0,0,0,0,null,null,"","","","",{"$error":"#VALUE!"},{"$error":"#VALUE!"}]
[null,null,null,null,null,null,null,null,null,null,null,null,null,null,null,null,null,null,null,null,null,null,null,null,null,null,null,null,null,null,null,null,null,null,null,null,null,null,null,null,null,null,null,null,null,null,null,361,361,{"$error":"#NUM!"},0,0,0,0,0,null,null,"","","","",{"$error":"#VALUE!"},{"$error":"#VALUE!"}]
[null,null,null,null,null,null,null,null,null,null,null,null,null,null,null,null,null,null,null,null,null,null,null,null,null,null,null,null,null,null,null,null,null,null,null,null,null,null,null,null,null,null,null,null,null,null,null,362,362,{"$error":"#NUM!"},0,0,0,0,0,null,null,"","","","",{"$error":"#VALUE!"},{"$error":"#VALUE!"}]
[null,null,null,null,null,null,null,null,null,null,null,null,null,null,null,null,null,null,null,null,null,null,null,null,null,null,null,null,null,null,null,null,null,null,null,null,null,null,null,null,null,null,null,null,null,null,null,363,363,{"$error":"#NUM!"},0,0,0,0,0,null,null,"","","","",{"$error":"#VALUE!"},{"$error":"#VALUE!"}]
[null,null,null,null,null,null,null,null,null,null,null,null,null,null,null,null,null,null,null,null,null,null,null,null,null,null,null,null,null,null,null,null,null,null,null,null,null,null,null,null,null,null,null,null,null,null,null,364,364,{"$error":"#NUM!"},0,0,0,0,0,null,null,"","","","",{"$error":"#VALUE!"},{"$error":"#VALUE!"}]
[null,null,null,null,null,null,null,null,null,null,null,null,null,null,null,null,null,null,null,null,null,null,null,null,null,null,null,null,null,null,null,null,null,null,null,null,null,null,null,null,null,null,null,null,null,null,null,365,365,{"$error":"#NUM!"},0,0,0,0,0,null,null,"","","","",{"$error":"#VALUE!"},{"$error":"#VALUE!"}]
[null,null,null,null,null,null,null,null,null,null,null,null,null,null,null,null,null,null,null,null,null,null,null,null,null,null,null,null,null,null,null,null,null,null,null,null,null,null,null,null,null,null,null,null,null,null,null,366,366,{"$error":"#NUM!"},0,0,0,0,0,null,null,"","","","",{"$error":"#VALUE!"},{"$error":"#VALUE!"}]
[null,null,null,null,null,null,null,null,null,null,null,null,null,null,null,null,null,null,null,null,null,null,null,null,null,null,null,null,null,null,null,null,null,null,null,null,null,null,null,null,null,null,null,null,null,null,null,367,367,{"$error":"#NUM!"},0,0,0,0,0,null,null,"","","","",{"$error":"#VALUE!"},{"$error":"#VALUE!"}]
[null,null,null,null,null,null,null,null,null,null,null,null,null,null,null,null,null,null,null,null,null,null,null,null,null,null,null,null,null,null,null,null,null,null,null,null,null,null,null,null,null,null,null,null,null,null,null,368,368,{"$error":"#NUM!"},0,0,0,0,0,null,null,"","","","",{"$error":"#VALUE!"},{"$error":"#VALUE!"}]
[null,null,null,null,null,null,null,null,null,null,null,null,null,null,null,null,null,null,null,null,null,null,null,null,null,null,null,null,null,null,null,null,null,null,null,null,null,null,null,null,null,null,null,null,null,null,null,369,369,{"$error":"#NUM!"},0,0,0,0,0,null,null,"","","","",{"$error":"#VALUE!"},{"$error":"#VALUE!"}]
[null,null,null,null,null,null,null,null,null,null,null,null,null,null,null,null,null,null,null,null,null,null,null,null,null,null,null,null,null,null,null,null,null,null,null,null,null,null,null,null,null,null,null,null,null,null,null,370,370,{"$error":"#NUM!"},0,0,0,0,0,null,null,"","","","",{"$error":"#VALUE!"},{"$error":"#VALUE!"}]
[null,null,null,null,null,null,null,null,null,null,null,null,null,null,null,null,null,null,null,null,null,null,null,null,null,null,null,null,null,null,null,null,null,null,null,null,null,null,null,null,null,null,null,null,null,null,null,371,371,{"$error":"#NUM!"},0,0,0,0,0,null,null,"","","","",{"$error":"#VALUE!"},{"$error":"#VALUE!"}]
[null,null,null,null,null,null,null,null,null,null,null,null,null,null,null,null,null,null,null,null,null,null,null,null,null,null,null,null,null,null,null,null,null,null,null,null,null,null,null,null,null,null,null,null,null,null,null,372,372,{"$error":"#NUM!"},0,0,0,0,0,null,null,"","","","",{"$error":"#VALUE!"},{"$error":"#VALUE!"}]
[null,null,null,null,null,null,null,null,null,null,null,null,null,null,null,null,null,null,null,null,null,null,null,null,null,null,null,null,null,null,null,null,null,null,null,null,null,null,null,null,null,null,null,null,null,null,null,373,373,{"$error":"#NUM!"},0,0,0,0,0,null,null,"","","","",{"$error":"#VALUE!"},{"$error":"#VALUE!"}]
[null,null,null,null,null,null,null,null,null,null,null,null,null,null,null,null,null,null,null,null,null,null,null,null,null,null,null,null,null,null,null,null,null,null,null,null,null,null,null,null,null,null,null,null,null,null,null,374,374,{"$error":"#NUM!"},0,0,0,0,0,null,null,"","","","",{"$error":"#VALUE!"},{"$error":"#VALUE!"}]
[null,null,null,null,null,null,null,null,null,null,null,null,null,null,null,null,null,null,null,null,null,null,null,null,null,null,null,null,null,null,null,null,null,null,null,null,null,null,null,null,null,null,null,null,null,null,null,375,375,{"$error":"#NUM!"},0,0,0,0,0,null,null,"","","","",{"$error":"#VALUE!"},{"$error":"#VALUE!"}]
[null,null,null,null,null,null,null,null,null,null,null,null,null,null,null,null,null,null,null,null,null,null,null,null,null,null,null,null,null,null,null,null,null,null,null,null,null,null,null,null,null,null,null,null,null,null,null,376,376,{"$error":"#NUM!"},0,0,0,0,0,null,null,"","","","",{"$error":"#VALUE!"},{"$error":"#VALUE!"}]
[null,null,null,null,null,null,null,null,null,null,null,null,null,null,null,null,null,null,null,null,null,null,null,null,null,null,null,null,null,null,null,null,null,null,null,null,null,null,null,null,null,null,null,null,null,null,null,377,377,{"$error":"#NUM!"},0,0,0,0,0,null,null,"","","","",{"$error":"#VALUE!"},{"$error":"#VALUE!"}]
[null,null,null,null,null,null,null,null,null,null,null,null,null,null,null,null,null,null,null,null,null,null,null,null,null,null,null,null,null,null,null,null,null,null,null,null,null,null,null,null,null,null,null,null,null,null,null,378,378,{"$error":"#NUM!"},0,0,0,0,0,null,null,"","","","",{"$error":"#VALUE!"},{"$error":"#VALUE!"}]
[null,null,null,null,null,null,null,null,null,null,null,null,null,null,null,null,null,null,null,null,null,null,null,null,null,null,null,null,null,null,null,null,null,null,null,null,null,null,null,null,null,null,null,null,null,null,null,379,379,{"$error":"#NUM!"},0,0,0,0,0,null,null,"","","","",{"$error":"#VALUE!"},{"$error":"#VALUE!"}]
[null,null,null,null,null,null,null,null,null,null,null,null,null,null,null,null,null,null,null,null,null,null,null,null,null,null,null,null,null,null,null,null,null,null,null,null,null,null,null,null,null,null,null,null,null,null,null,380,380,{"$error":"#NUM!"},0,0,0,0,0,null,null,"","","","",{"$error":"#VALUE!"},{"$error":"#VALUE!"}]
[null,null,null,null,null,null,null,null,null,null,null,null,null,null,null,null,null,null,null,null,null,null,null,null,null,null,null,null,null,null,null,null,null,null,null,null,null,null,null,null,null,null,null,null,null,null,null,381,381,{"$error":"#NUM!"},0,0,0,0,0,null,null,"","","","",{"$error":"#VALUE!"},{"$error":"#VALUE!"}]
[null,null,null,null,null,null,null,null,null,null,null,null,null,null,null,null,null,null,null,null,null,null,null,null,null,null,null,null,null,null,null,null,null,null,null,null,null,null,null,null,null,null,null,null,null,null,null,382,382,{"$error":"#NUM!"},0,0,0,0,0,null,null,"","","","",{"$error":"#VALUE!"},{"$error":"#VALUE!"}]
[null,null,null,null,null,null,null,null,null,null,null,null,null,null,null,null,null,null,null,null,null,null,null,null,null,null,null,null,null,null,null,null,null,null,null,null,null,null,null,null,null,null,null,null,null,null,null,383,383,{"$error":"#NUM!"},0,0,0,0,0,null,null,"","","","",{"$error":"#VALUE!"},{"$error":"#VALUE!"}]
[null,null,null,null,null,null,null,null,null,null,null,null,null,null,null,null,null,null,null,null,null,null,null,null,null,null,null,null,null,null,null,null,null,null,null,null,null,null,null,null,null,null,null,null,null,null,null,384,384,{"$error":"#NUM!"},0,0,0,0,0,null,null,"","","","",{"$error":"#VALUE!"},{"$error":"#VALUE!"}]
[null,null,null,null,null,null,null,null,null,null,null,null,null,null,null,null,null,null,null,null,null,null,null,null,null,null,null,null,null,null,null,null,null,null,null,null,null,null,null,null,null,null,null,null,null,null,null,385,385,{"$f":"-IPMT($G$6/$AW$15,AW404,pocet,credit)","v":{"$error":"#NUM!"}},{"$f":"IF(ISERR(IPMT($G$6/$AW$15,AW404,pocet,$B$4)),0,-IPMT($G$6/$AW$15,AW404,pocet,$B$4))","v":0},0,0,0,0,null,null,"",{"$f":"IF(ISERR(AX404),\"\",IF(AND(NOT(splatka=splatka2),BF404=pocet),splatka2,splatka))","v":""},"","",{"$error":"#VALUE!"},{"$error":"#VALUE!"}]
[null,null,null,null,null,null,null,null,null,null,null,null,null,null,null,null,null,null,null,null,null,null,null,null,null,null,null,null,null,null,null,null,null,null,null,null,null,null,null,null,null,null,null,null,null,null,null,386,386,{"$error":"#NUM!"},0,{"$f":"IF(AY405=0,0,$B$9+$B$10)","v":0},{"$f":"IF(ISERR(AX405),0,$B$5-AY405)","v":0},{"$f":"IF(ISERR(AX405),0,IF(AND(NOT(splatka=splatka2),BF405=pocet),SUM(splatka2+AZ405)/(1+$G$6)^(prvni/konvence+AW404/$AW$15),SUM(splatka+AZ405)/(1+$G$6)^(prvni/konvence+AW404/$AW$15)))","v":0},0,null,null,"","",{"$f":"IF(OR(AY405<0,ISERR(AX405)),\"\",urok/$AW$15*BK404)","v":""},"",{"$f":"BG405-BH405","v":{"$error":"#VALUE!"}},{"$error":"#VALUE!"}]
[null,null,null,null,null,null,null,null,null,null,null,null,null,null,null,null,null,null,null,null,null,null,null,null,null,null,null,null,null,null,null,null,null,null,null,null,null,null,null,null,null,null,null,null,null,null,null,387,387,{"$error":"#NUM!"},0,0,0,0,{"$f":"IF(ISERR(AX406),0,BC405-BA406)","v":0},null,null,"","","","",{"$error":"#VALUE!"},{"$f":"BK405-BJ406","v":{"$error":"#VALUE!"}}]
[null,null,null,null,null,null,null,null,null,null,null,null,null,null,null,null,null,null,null,null,null,null,null,null,null,null,null,null,null,null,null,null,null,null,null,null,null,null,null,null,null,null,null,null,null,null,null,388,388,{"$error":"#NUM!"},0,0,0,0,0,null,null,"","","","",{"$error":"#VALUE!"},{"$error":"#VALUE!"}]
[null,null,null,null,null,null,null,null,null,null,null,null,null,null,null,null,null,null,null,null,null,null,null,null,null,null,null,null,null,null,null,null,null,null,null,null,null,null,null,null,null,null,null,null,null,null,null,389,389,{"$error":"#NUM!"},0,0,0,0,0,null,null,"","","","",{"$error":"#VALUE!"},{"$error":"#VALUE!"}]
[null,null,null,null,null,null,null,null,null,null,null,null,null,null,null,null,null,null,null,null,null,null,null,null,null,null,null,null,null,null,null,null,null,null,null,null,null,null,null,null,null,null,null,null,null,null,null,390,390,{"$error":"#NUM!"},0,0,0,0,0,null,null,"","","","",{"$error":"#VALUE!"},{"$error":"#VALUE!"}]
[null,null,null,null,null,null,null,null,null,null,null,null,null,null,null,null,null,null,null,null,null,null,null,null,null,null,null,null,null,null,null,null,null,null,null,null,null,null,null,null,null,null,null,null,null,null,null,391,391,{"$error":"#NUM!"},0,0,0,0,0,null,null,"","","","",{"$error":"#VALUE!"},{"$error":"#VALUE!"}]
[null,null,null,null,null,null,null,null,null,null,null,null,null,null,null,null,null,null,null,null,null,null,null,null,null,null,null,null,null,null,null,null,null,null,null,null,null,null,null,null,null,null,null,null,null,null,null,392,392,{"$error":"#NUM!"},0,0,0,0,0,null,null,"","","","",{"$error":"#VALUE!"},{"$error":"#VALUE!"}]
[null,null,null,null,null,null,null,null,null,null,null,null,null,null,null,null,null,null,null,null,null,null,null,null,null,null,null,null,null,null,null,null,null,null,null,null,null,null,null,null,null,null,null,null,null,null,null,393,393,{"$error":"#NUM!"},0,0,0,0,0,null,null,"","","","",{"$error":"#VALUE!"},{"$error":"#VALUE!"}]
[null,null,null,null,null,null,null,null,null,null,null,null,null,null,null,null,null,null,null,null,null,null,null,null,null,null,null,null,null,null,null,null,null,null,null,null,null,null,null,null,null,null,null,null,null,null,null,394,394,{"$error":"#NUM!"},0,0,0,0,0,null,null,"","","","",{"$error":"#VALUE!"},{"$error":"#VALUE!"}]
[null,null,null,null,null,null,null,null,null,null,null,null,null,null,null,null,null,null,null,null,null,null,null,null,null,null,null,null,null,null,null,null,null,null,null,null,null,null,null,null,null,null,null,null,null,null,null,395,395,{"$error":"#NUM!"},0,0,0,0,0,null,null,"","","","",{"$error":"#VALUE!"},{"$error":"#VALUE!"}]
[null,null,null,null,null,null,null,null,null,null,null,null,null,null,null,null,null,null,null,null,null,null,null,null,null,null,null,null,null,null,null,null,null,null,null,null,null,null,null,null,null,null,null,null,null,null,null,396,396,{"$error":"#NUM!"},0,0,0,0,0,null,null,"","","","",{"$error":"#VALUE!"},{"$error":"#VALUE!"}]
[null,null,null,null,null,null,null,null,null,null,null,null,null,null,null,null,null,null,null,null,null,null,null,null,null,null,null,null,null,null,null,null,null,null,null,null,null,null,null,null,null,null,null,null,null,null,null,397,397,{"$error":"#NUM!"},0,0,0,0,0,null,null,"","","","",{"$error":"#VALUE!"},{"$error":"#VALUE!"}]
[null,null,null,null,null,null,null,null,null,null,null,null,null,null,null,null,null,null,null,null,null,null,null,null,null,null,null,null,null,null,null,null,null,null,null,null,null,null,null,null,null,null,null,null,null,null,null,398,398,{"$error":"#NUM!"},0,0,0,0,0,null,null,"","","","",{"$error":"#VALUE!"},{"$error":"#VALUE!"}]
[null,null,null,null,null,null,null,null,null,null,null,null,null,null,null,null,null,null,null,null,null,null,null,null,null,null,null,null,null,null,null,null,null,null,null,null,null,null,null,null,null,null,null,null,null,null,null,399,399,{"$error":"#NUM!"},0,0,0,0,0,null,null,"","","","",{"$error":"#VALUE!"},{"$error":"#VALUE!"}]
[null,null,null,null,null,null,null,null,null,null,null,null,null,null,null,null,null,null,null,null,null,null,null,null,null,null,null,null,null,null,null,null,null,null,null,null,null,null,null,null,null,null,null,null,null,null,null,400,400,{"$error":"#NUM!"},0,0,0,0,0,null,null,"","","","",{"$error":"#VALUE!"},{"$error":"#VALUE!"}]
[null,null,null,null,null,null,null,null,null,null,null,null,null,null,null,null,null,null,null,null,null,null,null,null,null,null,null,null,null,null,null,null,null,null,null,null,null,null,null,null,null,null,null,null,null,null,null,401,401,{"$error":"#NUM!"},0,0,0,0,0,null,null,"","","","",{"$error":"#VALUE!"},{"$error":"#VALUE!"}]
[null,null,null,null,null,null,null,null,null,null,null,null,null,null,null,null,null,null,null,null,null,null,null,null,null,null,null,null,null,null,null,null,null,null,null,null,null,null,null,null,null,null,null,null,null,null,null,402,402,{"$error":"#NUM!"},0,0,0,0,0,null,null,"","","","",{"$error":"#VALUE!"},{"$error":"#VALUE!"}]
[null,null,null,null,null,null,null,null,null,null,null,null,null,null,null,null,null,null,null,null,null,null,null,null,null,null,null,null,null,null,null,null,null,null,null,null,null,null,null,null,null,null,null,null,null,null,null,403,403,{"$error":"#NUM!"},0,0,0,0,0,null,null,"","","","",{"$error":"#VALUE!"},{"$error":"#VALUE!"}]
[null,null,null,null,null,null,null,null,null,null,null,null,null,null,null,null,null,null,null,null,null,null,null,null,null,null,null,null,null,null,null,null,null,null,null,null,null,null,null,null,null,null,null,null,null,null,null,404,404,{"$error":"#NUM!"},0,0,0,0,0,null,null,"","","","",{"$error":"#VALUE!"},{"$error":"#VALUE!"}]
[null,null,null,null,null,null,null,null,null,null,null,null,null,null,null,null,null,null,null,null,null,null,null,null,null,null,null,null,null,null,null,null,null,null,null,null,null,null,null,null,null,null,null,null,null,null,null,405,405,{"$error":"#NUM!"},0,0,0,0,0,null,null,"","","","",{"$error":"#VALUE!"},{"$error":"#VALUE!"}]
[null,null,null,null,null,null,null,null,null,null,null,null,null,null,null,null,null,null,null,null,null,null,null,null,null,null,null,null,null,null,null,null,null,null,null,null,null,null,null,null,null,null,null,null,null,null,null,406,406,{"$error":"#NUM!"},0,0,0,0,0,null,null,"","","","",{"$error":"#VALUE!"},{"$error":"#VALUE!"}]
[null,null,null,null,null,null,null,null,null,null,null,null,null,null,null,null,null,null,null,null,null,null,null,null,null,null,null,null,null,null,null,null,null,null,null,null,null,null,null,null,null,null,null,null,null,null,null,407,407,{"$error":"#NUM!"},0,0,0,0,0,null,null,"","","","",{"$error":"#VALUE!"},{"$error":"#VALUE!"}]
[null,null,null,null,null,null,null,null,null,null,null,null,null,null,null,null,null,null,null,null,null,null,null,null,null,null,null,null,null,null,null,null,null,null,null,null,null,null,null,null,null,null,null,null,null,null,null,408,408,{"$error":"#NUM!"},0,0,0,0,0,null,null,"","","","",{"$error":"#VALUE!"},{"$error":"#VALUE!"}]
[null,null,null,null,null,null,null,null,null,null,null,null,null,null,null,null,null,null,null,null,null,null,null,null,null,null,null,null,null,null,null,null,null,null,null,null,null,null,null,null,null,null,null,null,null,null,null,409,409,{"$error":"#NUM!"},0,0,0,0,0,null,null,"","","","",{"$error":"#VALUE!"},{"$error":"#VALUE!"}]
[null,null,null,null,null,null,null,null,null,null,null,null,null,null,null,null,null,null,null,null,null,null,null,null,null,null,null,null,null,null,null,null,null,null,null,null,null,null,null,null,null,null,null,null,null,null,null,410,410,{"$error":"#NUM!"},0,0,0,0,0,null,null,"","","","",{"$error":"#VALUE!"},{"$error":"#VALUE!"}]
[null,null,null,null,null,null,null,null,null,null,null,null,null,null,null,null,null,null,null,null,null,null,null,null,null,null,null,null,null,null,null,null,null,null,null,null,null,null,null,null,null,null,null,null,null,null,null,411,411,{"$error":"#NUM!"},0,0,0,0,0,null,null,"","","","",{"$error":"#VALUE!"},{"$error":"#VALUE!"}]
[null,null,null,null,null,null,null,null,null,null,null,null,null,null,null,null,null,null,null,null,null,null,null,null,null,null,null,null,null,null,null,null,null,null,null,null,null,null,null,null,null,null,null,null,null,null,null,412,412,{"$error":"#NUM!"},0,0,0,0,0,null,null,"","","","",{"$error":"#VALUE!"},{"$error":"#VALUE!"}]
[null,null,null,null,null,null,null,null,null,null,null,null,null,null,null,null,null,null,null,null,null,null,null,null,null,null,null,null,null,null,null,null,null,null,null,null,null,null,null,null,null,null,null,null,null,null,null,413,413,{"$error":"#NUM!"},0,0,0,0,0,null,null,"","","","",{"$error":"#VALUE!"},{"$error":"#VALUE!"}]
[null,null,null,null,null,null,null,null,null,null,null,null,null,null,null,null,null,null,null,null,null,null,null,null,null,null,null,null,null,null,null,null,null,null,null,null,null,null,null,null,null,null,null,null,null,null,null,414,414,{"$error":"#NUM!"},0,0,0,0,0,null,null,"","","","",{"$error":"#VALUE!"},{"$error":"#VALUE!"}]
[null,null,null,null,null,null,null,null,null,null,null,null,null,null,null,null,null,null,null,null,null,null,null,null,null,null,null,null,null,null,null,null,null,null,null,null,null,null,null,null,null,null,null,null,null,null,null,415,415,{"$error":"#NUM!"},0,0,0,0,0,null,null,"","","","",{"$error":"#VALUE!"},{"$error":"#VALUE!"}]
[null,null,null,null,null,null,null,null,null,null,null,null,null,null,null,null,null,null,null,null,null,null,null,null,null,null,null,null,null,null,null,null,null,null,null,null,null,null,null,null,null,null,null,null,null,null,null,416,416,{"$error":"#NUM!"},0,0,0,0,0,null,null,"","","","",{"$error":"#VALUE!"},{"$error":"#VALUE!"}]
[null,null,null,null,null,null,null,null,null,null,null,null,null,null,null,null,null,null,null,null,null,null,null,null,null,null,null,null,null,null,null,null,null,null,null,null,null,null,null,null,null,null,null,null,null,null,null,417,417,{"$error":"#NUM!"},0,0,0,0,0,null,null,"","","","",{"$error":"#VALUE!"},{"$error":"#VALUE!"}]
[null,null,null,null,null,null,null,null,null,null,null,null,null,null,null,null,null,null,null,null,null,null,null,null,null,null,null,null,null,null,null,null,null,null,null,null,null,null,null,null,null,null,null,null,null,null,null,418,418,{"$error":"#NUM!"},0,0,0,0,0,null,null,"","","","",{"$error":"#VALUE!"},{"$error":"#VALUE!"}]
[null,null,null,null,null,null,null,null,null,null,null,null,null,null,null,null,null,null,null,null,null,null,null,null,null,null,null,null,null,null,null,null,null,null,null,null,null,null,null,null,null,null,null,null,null,null,null,419,419,{"$error":"#NUM!"},0,0,0,0,0,null,null,"","","","",{"$error":"#VALUE!"},{"$error":"#VALUE!"}]
[null,null,null,null,null,null,null,null,null,null,null,null,null,null,null,null,null,null,null,null,null,null,null,null,null,null,null,null,null,null,null,null,null,null,null,null,null,null,null,null,null,null,null,null,null,null,null,420,420,{"$error":"#NUM!"},0,0,0,0,0,null,null,"","","","",{"$error":"#VALUE!"},{"$error":"#VALUE!"}]
[null,null,null,null,null,null,null,null,null,null,null,null,null,null,null,null,null,null,null,null,null,null,null,null,null,null,null,null,null,null,null,null,null,null,null,null,null,null,null,null,null,null,null,null,null,null,null,421,421,{"$error":"#NUM!"},0,0,0,0,0,null,null,{"$f":"IF(BH440=\"\",\"\",BF439+1)","v":""},"","",{"$f":"IF(BH440=\"\",\"\",AZ440)","v":""},{"$error":"#VALUE!"},{"$error":"#VALUE!"}]
[null,null,null,null,null,null,null,null,null,null,null,null,null,null,null,null,null,null,null,null,null,null,null,null,null,null,null,null,null,null,null,null,null,null,null,null,null,null,null,null,null,null,null,null,null,null,null,422,422,{"$error":"#NUM!"},0,0,0,0,0,null,null,"","","","",{"$error":"#VALUE!"},{"$error":"#VALUE!"}]
[null,null,null,null,null,null,null,null,null,null,null,null,null,null,null,null,null,null,null,null,null,null,null,null,null,null,null,null,null,null,null,null,null,null,null,null,null,null,null,null,null,null,null,null,null,null,null,423,423,{"$error":"#NUM!"},0,0,0,0,0,null,null,"","","","",{"$error":"#VALUE!"},{"$error":"#VALUE!"}]
[null,null,null,null,null,null,null,null,null,null,null,null,null,null,null,null,null,null,null,null,null,null,null,null,null,null,null,null,null,null,null,null,null,null,null,null,null,null,null,null,null,null,null,null,null,null,null,424,424,{"$error":"#NUM!"},0,0,0,0,0,null,null,"","","","",{"$error":"#VALUE!"},{"$error":"#VALUE!"}]
[null,null,null,null,null,null,null,null,null,null,null,null,null,null,null,null,null,null,null,null,null,null,null,null,null,null,null,null,null,null,null,null,null,null,null,null,null,null,null,null,null,null,null,null,null,null,null,425,425,{"$error":"#NUM!"},0,0,0,0,0,null,null,"","","","",{"$error":"#VALUE!"},{"$error":"#VALUE!"}]
[null,null,null,null,null,null,null,null,null,null,null,null,null,null,null,null,null,null,null,null,null,null,null,null,null,null,null,null,null,null,null,null,null,null,null,null,null,null,null,null,null,null,null,null,null,null,null,426,426,{"$error":"#NUM!"},0,0,0,0,0,null,null,"","","","",{"$error":"#VALUE!"},{"$error":"#VALUE!"}]
[null,null,null,null,null,null,null,null,null,null,null,null,null,null,null,null,null,null,null,null,null,null,null,null,null,null,null,null,null,null,null,null,null,null,null,null,null,null,null,null,null,null,null,null,null,null,null,427,427,{"$error":"#NUM!"},0,0,0,0,0,null,null,"","","","",{"$error":"#VALUE!"},{"$error":"#VALUE!"}]
[null,null,null,null,null,null,null,null,null,null,null,null,null,null,null,null,null,null,null,null,null,null,null,null,null,null,null,null,null,null,null,null,null,null,null,null,null,null,null,null,null,null,null,null,null,null,null,428,428,{"$error":"#NUM!"},0,0,0,0,0,null,null,"","","","",{"$error":"#VALUE!"},{"$error":"#VALUE!"}]
[null,null,null,null,null,null,null,null,null,null,null,null,null,null,null,null,null,null,null,null,null,null,null,null,null,null,null,null,null,null,null,null,null,null,null,null,null,null,null,null,null,null,null,null,null,null,null,429,429,{"$error":"#NUM!"},0,0,0,0,0,null,null,"","","","",{"$error":"#VALUE!"},{"$error":"#VALUE!"}]
[null,null,null,null,null,null,null,null,null,null,null,null,null,null,null,null,null,null,null,null,null,null,null,null,null,null,null,null,null,null,null,null,null,null,null,null,null,null,null,null,null,null,null,null,null,null,null,430,430,{"$error":"#NUM!"},0,0,0,0,0,null,null,"","","","",{"$error":"#VALUE!"},{"$error":"#VALUE!"}]
[null,null,null,null,null,null,null,null,null,null,null,null,null,null,null,null,null,null,null,null,null,null,null,null,null,null,null,null,null,null,null,null,null,null,null,null,null,null,null,null,null,null,null,null,null,null,null,431,431,{"$error":"#NUM!"},0,0,0,0,0,null,null,"","","","",{"$error":"#VALUE!"},{"$error":"#VALUE!"}]
[null,null,null,null,null,null,null,null,null,null,null,null,null,null,null,null,null,null,null,null,null,null,null,null,null,null,null,null,null,null,null,null,null,null,null,null,null,null,null,null,null,null,null,null,null,null,null,432,432,{"$error":"#NUM!"},0,0,0,0,0,null,null,"","","","",{"$error":"#VALUE!"},{"$error":"#VALUE!"}]
[null,null,null,null,null,null,null,null,null,null,null,null,null,null,null,null,null,null,null,null,null,null,null,null,null,null,null,null,null,null,null,null,null,null,null,null,null,null,null,null,null,null,null,null,null,null,null,433,433,{"$error":"#NUM!"},0,0,0,0,0,null,null,"","","","",{"$error":"#VALUE!"},{"$error":"#VALUE!"}]
[null,null,null,null,null,null,null,null,null,null,null,null,null,null,null,null,null,null,null,null,null,null,null,null,null,null,null,null,null,null,null,null,null,null,null,null,null,null,null,null,null,null,null,null,null,null,null,434,434,{"$error":"#NUM!"},0,0,0,0,0,null,null,"","","","",{"$error":"#VALUE!"},{"$error":"#VALUE!"}]
[null,null,null,null,null,null,null,null,null,null,null,null,null,null,null,null,null,null,null,null,null,null,null,null,null,null,null,null,null,null,null,null,null,null,null,null,null,null,null,null,null,null,null,null,null,null,null,435,435,{"$error":"#NUM!"},0,0,0,0,0,null,null,"","","","",{"$error":"#VALUE!"},{"$error":"#VALUE!"}]
[null,null,null,null,null,null,null,null,null,null,null,null,null,null,null,null,null,null,null,null,null,null,null,null,null,null,null,null,null,null,null,null,null,null,null,null,null,null,null,null,null,null,null,null,null,null,null,436,436,{"$error":"#NUM!"},0,0,0,0,0,null,null,"","","","",{"$error":"#VALUE!"},{"$error":"#VALUE!"}]
[null,null,null,null,null,null,null,null,null,null,null,null,null,null,null,null,null,null,null,null,null,null,null,null,null,null,null,null,null,null,null,null,null,null,null,null,null,null,null,null,null,null,null,null,null,null,null,437,437,{"$error":"#NUM!"},0,0,0,0,0,null,null,"","","","",{"$error":"#VALUE!"},{"$error":"#VALUE!"}]
[null,null,null,null,null,null,null,null,null,null,null,null,null,null,null,null,null,null,null,null,null,null,null,null,null,null,null,null,null,null,null,null,null,null,null,null,null,null,null,null,null,null,null,null,null,null,null,438,438,{"$error":"#NUM!"},0,0,0,0,0,null,null,"","","","",{"$error":"#VALUE!"},{"$error":"#VALUE!"}]
[null,null,null,null,null,null,null,null,null,null,null,null,null,null,null,null,null,null,null,null,null,null,null,null,null,null,null,null,null,null,null,null,null,null,null,null,null,null,null,null,null,null,null,null,null,null,null,439,439,{"$error":"#NUM!"},0,0,0,0,0,null,null,"","","","",{"$error":"#VALUE!"},{"$error":"#VALUE!"}]
[null,null,null,null,null,null,null,null,null,null,null,null,null,null,null,null,null,null,null,null,null,null,null,null,null,null,null,null,null,null,null,null,null,null,null,null,null,null,null,null,null,null,null,null,null,null,null,440,440,{"$error":"#NUM!"},0,0,0,0,0,null,null,"","","","",{"$error":"#VALUE!"},{"$error":"#VALUE!"}]
[null,null,null,null,null,null,null,null,null,null,null,null,null,null,null,null,null,null,null,null,null,null,null,null,null,null,null,null,null,null,null,null,null,null,null,null,null,null,null,null,null,null,null,null,null,null,null,441,441,{"$error":"#NUM!"},0,0,0,0,0,null,null,"","","","",{"$error":"#VALUE!"},{"$error":"#VALUE!"}]
[null,null,null,null,null,null,null,null,null,null,null,null,null,null,null,null,null,null,null,null,null,null,null,null,null,null,null,null,null,null,null,null,null,null,null,null,null,null,null,null,null,null,null,null,null,null,null,442,442,{"$error":"#NUM!"},0,0,0,0,0,null,null,"","","","",{"$error":"#VALUE!"},{"$error":"#VALUE!"}]
[null,null,null,null,null,null,null,null,null,null,null,null,null,null,null,null,null,null,null,null,null,null,null,null,null,null,null,null,null,null,null,null,null,null,null,null,null,null,null,null,null,null,null,null,null,null,null,443,443,{"$error":"#NUM!"},0,0,0,0,0,null,null,"","","","",{"$error":"#VALUE!"},{"$error":"#VALUE!"}]
[null,null,null,null,null,null,null,null,null,null,null,null,null,null,null,null,null,null,null,null,null,null,null,null,null,null,null,null,null,null,null,null,null,null,null,null,null,null,null,null,null,null,null,null,null,null,null,444,444,{"$error":"#NUM!"},0,0,0,0,0,null,null,"","","","",{"$error":"#VALUE!"},{"$error":"#VALUE!"}]
[null,null,null,null,null,null,null,null,null,null,null,null,null,null,null,null,null,null,null,null,null,null,null,null,null,null,null,null,null,null,null,null,null,null,null,null,null,null,null,null,null,null,null,null,null,null,null,445,445,{"$error":"#NUM!"},0,0,0,0,0,null,null,"","","","",{"$error":"#VALUE!"},{"$error":"#VALUE!"}]
[null,null,null,null,null,null,null,null,null,null,null,null,null,null,null,null,null,null,null,null,null,null,null,null,null,null,null,null,null,null,null,null,null,null,null,null,null,null,null,null,null,null,null,null,null,null,null,446,446,{"$error":"#NUM!"},0,0,0,0,0,null,null,"","","","",{"$error":"#VALUE!"},{"$error":"#VALUE!"}]
[null,null,null,null,null,null,null,null,null,null,null,null,null,null,null,null,null,null,null,null,null,null,null,null,null,null,null,null,null,null,null,null,null,null,null,null,null,null,null,null,null,null,null,null,null,null,null,447,447,{"$error":"#NUM!"},0,0,0,0,0,null,null,"","","","",{"$error":"#VALUE!"},{"$error":"#VALUE!"}]
[null,null,null,null,null,null,null,null,null,null,null,null,null,null,null,null,null,null,null,null,null,null,null,null,null,null,null,null,null,null,null,null,null,null,null,null,null,null,null,null,null,null,null,null,null,null,null,448,448,{"$error":"#NUM!"},0,0,0,0,0,null,null,"","","","",{"$error":"#VALUE!"},{"$error":"#VALUE!"}]
[null,null,null,null,null,null,null,null,null,null,null,null,null,null,null,null,null,null,null,null,null,null,null,null,null,null,null,null,null,null,null,null,null,null,null,null,null,null,null,null,null,null,null,null,null,null,null,449,449,{"$f":"-IPMT($G$6/$AW$15,AW468,pocet,credit)","v":{"$error":"#NUM!"}},{"$f":"IF(ISERR(IPMT($G$6/$AW$15,AW468,pocet,$B$4)),0,-IPMT($G$6/$AW$15,AW468,pocet,$B$4))","v":0},0,0,0,0,null,null,"",{"$f":"IF(ISERR(AX468),\"\",IF(AND(NOT(splatka=splatka2),BF468=pocet),splatka2,splatka))","v":""},"","",{"$error":"#VALUE!"},{"$error":"#VALUE!"}]
[null,null,null,null,null,null,null,null,null,null,null,null,null,null,null,null,null,null,null,null,null,null,null,null,null,null,null,null,null,null,null,null,null,null,null,null,null,null,null,null,null,null,null,null,null,null,null,450,450,{"$error":"#NUM!"},0,{"$f":"IF(AY469=0,0,$B$9+$B$10)","v":0},{"$f":"IF(ISERR(AX469),0,$B$5-AY469)","v":0},{"$f":"IF(ISERR(AX469),0,IF(AND(NOT(splatka=splatka2),BF469=pocet),SUM(splatka2+AZ469)/(1+$G$6)^(prvni/konvence+AW468/$AW$15),SUM(splatka+AZ469)/(1+$G$6)^(prvni/konvence+AW468/$AW$15)))","v":0},0,null,null,"","",{"$f":"IF(OR(AY469<0,ISERR(AX469)),\"\",urok/$AW$15*BK468)","v":""},"",{"$f":"BG469-BH469","v":{"$error":"#VALUE!"}},{"$error":"#VALUE!"}]
[null,null,null,null,null,null,null,null,null,null,null,null,null,null,null,null,null,null,null,null,null,null,null,null,null,null,null,null,null,null,null,null,null,null,null,null,null,null,null,null,null,null,null,null,null,null,null,451,451,{"$error":"#NUM!"},0,0,0,0,{"$f":"IF(ISERR(AX470),0,BC469-BA470)","v":0},null,null,"","","","",{"$error":"#VALUE!"},{"$f":"BK469-BJ470","v":{"$error":"#VALUE!"}}]
[null,null,null,null,null,null,null,null,null,null,null,null,null,null,null,null,null,null,null,null,null,null,null,null,null,null,null,null,null,null,null,null,null,null,null,null,null,null,null,null,null,null,null,null,null,null,null,452,452,{"$error":"#NUM!"},0,0,0,0,0,null,null,"","","","",{"$error":"#VALUE!"},{"$error":"#VALUE!"}]
[null,null,null,null,null,null,null,null,null,null,null,null,null,null,null,null,null,null,null,null,null,null,null,null,null,null,null,null,null,null,null,null,null,null,null,null,null,null,null,null,null,null,null,null,null,null,null,453,453,{"$error":"#NUM!"},0,0,0,0,0,null,null,"","","","",{"$error":"#VALUE!"},{"$error":"#VALUE!"}]
[null,null,null,null,null,null,null,null,null,null,null,null,null,null,null,null,null,null,null,null,null,null,null,null,null,null,null,null,null,null,null,null,null,null,null,null,null,null,null,null,null,null,null,null,null,null,null,454,454,{"$error":"#NUM!"},0,0,0,0,0,null,null,"","","","",{"$error":"#VALUE!"},{"$error":"#VALUE!"}]
[null,null,null,null,null,null,null,null,null,null,null,null,null,null,null,null,null,null,null,null,null,null,null,null,null,null,null,null,null,null,null,null,null,null,null,null,null,null,null,null,null,null,null,null,null,null,null,455,455,{"$error":"#NUM!"},0,0,0,0,0,null,null,"","","","",{"$error":"#VALUE!"},{"$error":"#VALUE!"}]
[null,null,null,null,null,null,null,null,null,null,null,null,null,null,null,null,null,null,null,null,null,null,null,null,null,null,null,null,null,null,null,null,null,null,null,null,null,null,null,null,null,null,null,null,null,null,null,456,456,{"$error":"#NUM!"},0,0,0,0,0,null,null,"","","","",{"$error":"#VALUE!"},{"$error":"#VALUE!"}]
[null,null,null,null,null,null,null,null,null,null,null,null,null,null,null,null,null,null,null,null,null,null,null,null,null,null,null,null,null,null,null,null,null,null,null,null,null,null,null,null,null,null,null,null,null,null,null,457,457,{"$error":"#NUM!"},0,0,0,0,0,null,null,"","","","",{"$error":"#VALUE!"},{"$error":"#VALUE!"}]
[null,null,null,null,null,null,null,null,null,null,null,null,null,null,null,null,null,null,null,null,null,null,null,null,null,null,null,null,null,null,null,null,null,null,null,null,null,null,null,null,null,null,null,null,null,null,null,458,458,{"$error":"#NUM!"},0,0,0,0,0,null,null,"","","","",{"$error":"#VALUE!"},{"$error":"#VALUE!"}]
[null,null,null,null,null,null,null,null,null,null,null,null,null,null,null,null,null,null,null,null,null,null,null,null,null,null,null,null,null,null,null,null,null,null,null,null,null,null,null,null,null,null,null,null,null,null,null,459,459,{"$error":"#NUM!"},0,0,0,0,0,null,null,"","","","",{"$error":"#VALUE!"},{"$error":"#VALUE!"}]
[null,null,null,null,null,null,null,null,null,null,null,null,null,null,null,null,null,null,null,null,null,null,null,null,null,null,null,null,null,null,null,null,null,null,null,null,null,null,null,null,null,null,null,null,null,null,null,460,460,{"$error":"#NUM!"},0,0,0,0,0,null,null,"","","","",{"$error":"#VALUE!"},{"$error":"#VALUE!"}]
[null,null,null,null,null,null,null,null,null,null,null,null,null,null,null,null,null,null,null,null,null,null,null,null,null,null,null,null,null,null,null,null,null,null,null,null,null,null,null,null,null,null,null,null,null,null,null,461,461,{"$error":"#NUM!"},0,0,0,0,0,null,null,"","","","",{"$error":"#VALUE!"},{"$error":"#VALUE!"}]
[null,null,null,null,null,null,null,null,null,null,null,null,null,null,null,null,null,null,null,null,null,null,null,null,null,null,null,null,null,null,null,null,null,null,null,null,null,null,null,null,null,null,null,null,null,null,null,462,462,{"$error":"#NUM!"},0,0,0,0,0,null,null,"","","","",{"$error":"#VALUE!"},{"$error":"#VALUE!"}]
[null,null,null,null,null,null,null,null,null,null,null,null,null,null,null,null,null,null,null,null,null,null,null,null,null,null,null,null,null,null,null,null,null,null,null,null,null,null,null,null,null,null,null,null,null,null,null,463,463,{"$error":"#NUM!"},0,0,0,0,0,null,null,"","","","",{"$error":"#VALUE!"},{"$error":"#VALUE!"}]
[null,null,null,null,null,null,null,null,null,null,null,null,null,null,null,null,null,null,null,null,null,null,null,null,null,null,null,null,null,null,null,null,null,null,null,null,null,null,null,null,null,null,null,null,null,null,null,464,464,{"$error":"#NUM!"},0,0,0,0,0,null,null,"","","","",{"$error":"#VALUE!"},{"$error":"#VALUE!"}]
[null,null,null,null,null,null,null,null,null,null,null,null,null,null,null,null,null,null,null,null,null,null,null,null,null,null,null,null,null,null,null,null,null,null,null,null,null,null,null,null,null,null,null,null,null,null,null,465,465,{"$error":"#NUM!"},0,0,0,0,0,null,null,"","","","",{"$error":"#VALUE!"},{"$error":"#VALUE!"}]
[null,null,null,null,null,null,null,null,null,null,null,null,null,null,null,null,null,null,null,null,null,null,null,null,null,null,null,null,null,null,null,null,null,null,null,null,null,null,null,null,null,null,null,null,null,null,null,466,466,{"$error":"#NUM!"},0,0,0,0,0,null,null,"","","","",{"$error":"#VALUE!"},{"$error":"#VALUE!"}]
[null,null,null,null,null,null,null,null,null,null,null,null,null,null,null,null,null,null,null,null,null,null,null,null,null,null,null,null,null,null,null,null,null,null,null,null,null,null,null,null,null,null,null,null,null,null,null,467,467,{"$error":"#NUM!"},0,0,0,0,0,null,null,"","","","",{"$error":"#VALUE!"},{"$error":"#VALUE!"}]
[null,null,null,null,null,null,null,null,null,null,null,null,null,null,null,null,null,null,null,null,null,null,null,null,null,null,null,null,null,null,null,null,null,null,null,null,null,null,null,null,null,null,null,null,null,null,null,468,468,{"$error":"#NUM!"},0,0,0,0,0,null,null,"","","","",{"$error":"#VALUE!"},{"$error":"#VALUE!"}]
[null,null,null,null,null,null,null,null,null,null,null,null,null,null,null,null,null,null,null,null,null,null,null,null,null,null,null,null,null,null,null,null,null,null,null,null,null,null,null,null,null,null,null,null,null,null,null,469,469,{"$error":"#NUM!"},0,0,0,0,0,null,null,"","","","",{"$error":"#VALUE!"},{"$error":"#VALUE!"}]
[null,null,null,null,null,null,null,null,null,null,null,null,null,null,null,null,null,null,null,null,null,null,null,null,null,null,null,null,null,null,null,null,null,null,null,null,null,null,null,null,null,null,null,null,null,null,null,470,470,{"$error":"#NUM!"},0,0,0,0,0,null,null,"","","","",{"$error":"#VALUE!"},{"$error":"#VALUE!"}]
[null,null,null,null,null,null,null,null,null,null,null,null,null,null,null,null,null,null,null,null,null,null,null,null,null,null,null,null,null,null,null,null,null,null,null,null,null,null,null,null,null,null,null,null,null,null,null,471,471,{"$error":"#NUM!"},0,0,0,0,0,null,null,"","","","",{"$error":"#VALUE!"},{"$error":"#VALUE!"}]
[null,null,null,null,null,null,null,null,null,null,null,null,null,null,null,null,null,null,null,null,null,null,null,null,null,null,null,null,null,null,null,null,null,null,null,null,null,null,null,null,null,null,null,null,null,null,null,472,472,{"$error":"#NUM!"},0,0,0,0,0,null,null,"","","","",{"$error":"#VALUE!"},{"$error":"#VALUE!"}]
[null,null,null,null,null,null,null,null,null,null,null,null,null,null,null,null,null,null,null,null,null,null,null,null,null,null,null,null,null,null,null,null,null,null,null,null,null,null,null,null,null,null,null,null,null,null,null,473,473,{"$error":"#NUM!"},0,0,0,0,0,null,null,"","","","",{"$error":"#VALUE!"},{"$error":"#VALUE!"}]
[null,null,null,null,null,null,null,null,null,null,null,null,null,null,null,null,null,null,null,null,null,null,null,null,null,null,null,null,null,null,null,null,null,null,null,null,null,null,null,null,null,null,null,null,null,null,null,474,474,{"$error":"#NUM!"},0,0,0,0,0,null,null,"","","","",{"$error":"#VALUE!"},{"$error":"#VALUE!"}]
[null,null,null,null,null,null,null,null,null,null,null,null,null,null,null,null,null,null,null,null,null,null,null,null,null,null,null,null,null,null,null,null,null,null,null,null,null,null,null,null,null,null,null,null,null,null,null,475,475,{"$error":"#NUM!"},0,0,0,0,0,null,null,"","","","",{"$error":"#VALUE!"},{"$error":"#VALUE!"}]
[null,null,null,null,null,null,null,null,null,null,null,null,null,null,null,null,null,null,null,null,null,null,null,null,null,null,null,null,null,null,null,null,null,null,null,null,null,null,null,null,null,null,null,null,null,null,null,476,476,{"$error":"#NUM!"},0,0,0,0,0,null,null,"","","","",{"$error":"#VALUE!"},{"$error":"#VALUE!"}]
[null,null,null,null,null,null,null,null,null,null,null,null,null,null,null,null,null,null,null,null,null,null,null,null,null,null,null,null,null,null,null,null,null,null,null,null,null,null,null,null,null,null,null,null,null,null,null,477,477,{"$error":"#NUM!"},0,0,0,0,0,null,null,"","","","",{"$error":"#VALUE!"},{"$error":"#VALUE!"}]
[null,null,null,null,null,null,null,null,null,null,null,null,null,null,null,null,null,null,null,null,null,null,null,null,null,null,null,null,null,null,null,null,null,null,null,null,null,null,null,null,null,null,null,null,null,null,null,478,478,{"$error":"#NUM!"},0,0,0,0,0,null,null,"","","","",{"$error":"#VALUE!"},{"$error":"#VALUE!"}]
[null,null,null,null,null,null,null,null,null,null,null,null,null,null,null,null,null,null,null,null,null,null,null,null,null,null,null,null,null,null,null,null,null,null,null,null,null,null,null,null,null,null,null,null,null,null,null,479,479,{"$error":"#NUM!"},0,0,0,0,0,null,null,"","","","",{"$error":"#VALUE!"},{"$error":"#VALUE!"}]
[null,null,null,null,null,null,null,null,null,null,null,null,null,null,null,null,null,null,null,null,null,null,null,null,null,null,null,null,null,null,null,null,null,null,null,null,null,null,null,null,null,null,null,null,null,null,null,480,480,{"$error":"#NUM!"},0,0,0,0,0,null,null,"","","","",{"$error":"#VALUE!"},{"$error":"#VALUE!"}]

{"sheet":"List3","index":2,"n_rows":484,"n_cols":10,"rows_kept":484,"cut":false,"hidden":false,"merged":[[2,0,2,1]]}
["Splátkový kalendář:"]
[]
["výše úvěru:",null,{"$f":"credit","v":10000},null,"sazba:",{"$f":"List2!B13","v":0.1}]
["období",{"$f":"List2!BG18","v":"splátka"},{"$f":"List2!BH18","v":"úrok"},{"$f":"List2!BI18","v":"poplatky"},{"$f":"List2!BJ18","v":"úmor"},{"$f":"List2!BK18","v":"zůstatek"},null,"celkem na úrocích :",null,{"$f":"SUM(C5:C484)","v":481.56258145730339}]
[{"$f":"List2!BF20","v":1},{"$f":"List2!BG20","v":1000},{"$f":"List2!BH20","v":83.333333333333329},{"$f":"List2!BI20","v":0},{"$f":"IF(ISERR(List2!BJ20),\"\",List2!BJ20)","v":916.66666666666663},{"$f":"IF(ISERR(List2!BK20),\"\",List2!BK20)","v":9083.3333333333339},null,"celkem na poplatcích:",null,{"$f":"SUM(D5:D484)","v":0}]
[{"$f":"List2!BF21","v":2},{"$f":"List2!BG21","v":1000},{"$f":"List2!BH21","v":75.694444444444443},{"$f":"List2!BI21","v":0},{"$f":"IF(ISERR(List2!BJ21),\"\",List2!BJ21)","v":924.30555555555554},{"$f":"IF(ISERR(List2!BK21),\"\",List2!BK21)","v":8159.0277777777783},null,"celkem přeplaceno:",null,{"$f":"J4+J5","v":481.56258145730339}]
[{"$f":"List2!BF22","v":3},{"$f":"List2!BG22","v":1000},{"$f":"List2!BH22","v":67.991898148148152},{"$f":"List2!BI22","v":0},{"$f":"IF(ISERR(List2!BJ22),\"\",List2!BJ22)","v":932.00810185185185},{"$f":"IF(ISERR(List2!BK22),\"\",List2!BK22)","v":7227.0196759259261},null,"přeplaceno v %:",null,{"$f":"(credit+J6)/credit-1","v":4.8156258145730213E-2}]
[{"$f":"List2!BF23","v":4},{"$f":"List2!BG23","v":1000},{"$f":"List2!BH23","v":60.225163966049386},{"$f":"List2!BI23","v":0},{"$f":"IF(ISERR(List2!BJ23),\"\",List2!BJ23)","v":939.77483603395058},{"$f":"IF(ISERR(List2!BK23),\"\",List2!BK23)","v":6287.2448398919751}]
[{"$f":"List2!BF24","v":5},{"$f":"List2!BG24","v":1000},{"$f":"List2!BH24","v":52.393706999099791},{"$f":"List2!BI24","v":0},{"$f":"IF(ISERR(List2!BJ24),\"\",List2!BJ24)","v":947.60629300090022},{"$f":"IF(ISERR(List2!BK24),\"\",List2!BK24)","v":5339.6385468910748}]
[{"$f":"List2!BF25","v":6},{"$f":"List2!BG25","v":1000},{"$f":"List2!BH25","v":44.496987890758959},{"$f":"List2!BI25","v":0},{"$f":"IF(ISERR(List2!BJ25),\"\",List2!BJ25)","v":955.50301210924101},{"$f":"IF(ISERR(List2!BK25),\"\",List2!BK25)","v":4384.1355347818335}]
[{"$f":"List2!BF26","v":7},{"$f":"List2!BG26","v":1000},{"$f":"List2!BH26","v":36.534462789848611},{"$f":"List2!BI26","v":0},{"$f":"IF(ISERR(List2!BJ26),\"\",List2!BJ26)","v":963.46553721015141},{"$f":"IF(ISERR(List2!BK26),\"\",List2!BK26)","v":3420.669997571682}]
[{"$f":"List2!BF27","v":8},{"$f":"List2!BG27","v":1000},{"$f":"List2!BH27","v":28.50558331309735},{"$f":"List2!BI27","v":0},{"$f":"IF(ISERR(List2!BJ27),\"\",List2!BJ27)","v":971.4944166869027},{"$f":"IF(ISERR(List2!BK27),\"\",List2!BK27)","v":2449.1755808847793}]
[{"$f":"List2!BF28","v":9},{"$f":"List2!BG28","v":1000},{"$f":"List2!BH28","v":20.409796507373159},{"$f":"List2!BI28","v":0},{"$f":"IF(ISERR(List2!BJ28),\"\",List2!BJ28)","v":979.59020349262687},{"$f":"IF(ISERR(List2!BK28),\"\",List2!BK28)","v":1469.5853773921524}]
[{"$f":"List2!BF29","v":10},{"$f":"List2!BG29","v":1000},{"$f":"List2!BH29","v":12.24654481160127},{"$f":"List2!BI29","v":0},{"$f":"IF(ISERR(List2!BJ29),\"\",List2!BJ29)","v":987.75345518839868},{"$f":"IF(ISERR(List2!BK29),\"\",List2!BK29)","v":481.83192220375372}]
[{"$f":"List2!BF30","v":11},{"$f":"List2!BG30","v":1000},{"$f":"List2!BH30","v":4.0152660183646143},{"$f":"List2!BI30","v":0},{"$f":"IF(ISERR(List2!BJ30),\"\",List2!BJ30)","v":995.98473398163537},{"$f":"IF(ISERR(List2!BK30),\"\",List2!BK30)","v":-514.15281177788165}]
[{"$f":"List2!BF31","v":12},{"$f":"List2!BG31","v":1000},{"$f":"List2!BH31","v":-4.2846067648156803},{"$f":"List2!BI31","v":0},{"$f":"IF(ISERR(List2!BJ31),\"\",List2!BJ31)","v":1004.2846067648156},{"$f":"IF(ISERR(List2!BK31),\"\",List2!BK31)","v":-1518.4374185426973}]
[{"$f":"List2!BF32","v":""},{"$f":"List2!BG32","v":""},{"$f":"List2!BH32","v":""},{"$f":"List2!BI32","v":""},{"$f":"IF(ISERR(List2!BJ32),\"\",List2!BJ32)","v":""},{"$f":"IF(ISERR(List2!BK32),\"\",List2!BK32)","v":""}]
[{"$f":"List2!BF33","v":""},{"$f":"List2!BG33","v":""},{"$f":"List2!BH33","v":""},{"$f":"List2!BI33","v":""},{"$f":"IF(ISERR(List2!BJ33),\"\",List2!BJ33)","v":""},{"$f":"IF(ISERR(List2!BK33),\"\",List2!BK33)","v":""}]
[{"$f":"List2!BF34","v":""},{"$f":"List2!BG34","v":""},{"$f":"List2!BH34","v":""},{"$f":"List2!BI34","v":""},{"$f":"IF(ISERR(List2!BJ34),\"\",List2!BJ34)","v":""},{"$f":"IF(ISERR(List2!BK34),\"\",List2!BK34)","v":""}]
[{"$f":"List2!BF35","v":""},{"$f":"List2!BG35","v":""},{"$f":"List2!BH35","v":""},{"$f":"List2!BI35","v":""},{"$f":"IF(ISERR(List2!BJ35),\"\",List2!BJ35)","v":""},{"$f":"IF(ISERR(List2!BK35),\"\",List2!BK35)","v":""}]
[{"$f":"List2!BF36","v":""},{"$f":"List2!BG36","v":""},{"$f":"List2!BH36","v":""},{"$f":"List2!BI36","v":""},{"$f":"IF(ISERR(List2!BJ36),\"\",List2!BJ36)","v":""},{"$f":"IF(ISERR(List2!BK36),\"\",List2!BK36)","v":""}]
[{"$f":"List2!BF37","v":""},{"$f":"List2!BG37","v":""},{"$f":"List2!BH37","v":""},{"$f":"List2!BI37","v":""},{"$f":"IF(ISERR(List2!BJ37),\"\",List2!BJ37)","v":""},{"$f":"IF(ISERR(List2!BK37),\"\",List2!BK37)","v":""}]
[{"$f":"List2!BF38","v":""},{"$f":"List2!BG38","v":""},{"$f":"List2!BH38","v":""},{"$f":"List2!BI38","v":""},{"$f":"IF(ISERR(List2!BJ38),\"\",List2!BJ38)","v":""},{"$f":"IF(ISERR(List2!BK38),\"\",List2!BK38)","v":""}]
[{"$f":"List2!BF39","v":""},{"$f":"List2!BG39","v":""},{"$f":"List2!BH39","v":""},{"$f":"List2!BI39","v":""},{"$f":"IF(ISERR(List2!BJ39),\"\",List2!BJ39)","v":""},{"$f":"IF(ISERR(List2!BK39),\"\",List2!BK39)","v":""}]
[{"$f":"List2!BF40","v":""},{"$f":"List2!BG40","v":""},{"$f":"List2!BH40","v":""},{"$f":"List2!BI40","v":""},{"$f":"IF(ISERR(List2!BJ40),\"\",List2!BJ40)","v":""},{"$f":"IF(ISERR(List2!BK40),\"\",List2!BK40)","v":""}]
[{"$f":"List2!BF41","v":""},{"$f":"List2!BG41","v":""},{"$f":"List2!BH41","v":""},{"$f":"List2!BI41","v":""},{"$f":"IF(ISERR(List2!BJ41),\"\",List2!BJ41)","v":""},{"$f":"IF(ISERR(List2!BK41),\"\",List2!BK41)","v":""}]
[{"$f":"List2!BF42","v":""},{"$f":"List2!BG42","v":""},{"$f":"List2!BH42","v":""},{"$f":"List2!BI42","v":""},{"$f":"IF(ISERR(List2!BJ42),\"\",List2!BJ42)","v":""},{"$f":"IF(ISERR(List2!BK42),\"\",List2!BK42)","v":""}]
[{"$f":"List2!BF43","v":""},{"$f":"List2!BG43","v":""},{"$f":"List2!BH43","v":""},{"$f":"List2!BI43","v":""},{"$f":"IF(ISERR(List2!BJ43),\"\",List2!BJ43)","v":""},{"$f":"IF(ISERR(List2!BK43),\"\",List2!BK43)","v":""}]
[{"$f":"List2!BF44","v":""},{"$f":"List2!BG44","v":""},{"$f":"List2!BH44","v":""},{"$f":"List2!BI44","v":""},{"$f":"IF(ISERR(List2!BJ44),\"\",List2!BJ44)","v":""},{"$f":"IF(ISERR(List2!BK44),\"\",List2!BK44)","v":""}]
[{"$f":"List2!BF45","v":""},{"$f":"List2!BG45","v":""},{"$f":"List2!BH45","v":""},{"$f":"List2!BI45","v":""},{"$f":"IF(ISERR(List2!BJ45),\"\",List2!BJ45)","v":""},{"$f":"IF(ISERR(List2!BK45),\"\",List2!BK45)","v":""}]
[{"$f":"List2!BF46","v":""},{"$f":"List2!BG46","v":""},{"$f":"List2!BH46","v":""},{"$f":"List2!BI46","v":""},{"$f":"IF(ISERR(List2!BJ46),\"\",List2!BJ46)","v":""},{"$f":"IF(ISERR(List2!BK46),\"\",List2!BK46)","v":""}]
[{"$f":"List2!BF47","v":""},{"$f":"List2!BG47","v":""},{"$f":"List2!BH47","v":""},{"$f":"List2!BI47","v":""},{"$f":"IF(ISERR(List2!BJ47),\"\",List2!BJ47)","v":""},{"$f":"IF(ISERR(List2!BK47),\"\",List2!BK47)","v":""}]
[{"$f":"List2!BF48","v":""},{"$f":"List2!BG48","v":""},{"$f":"List2!BH48","v":""},{"$f":"List2!BI48","v":""},{"$f":"IF(ISERR(List2!BJ48),\"\",List2!BJ48)","v":""},{"$f":"IF(ISERR(List2!BK48),\"\",List2!BK48)","v":""}]
[{"$f":"List2!BF49","v":""},{"$f":"List2!BG49","v":""},{"$f":"List2!BH49","v":""},{"$f":"List2!BI49","v":""},{"$f":"IF(ISERR(List2!BJ49),\"\",List2!BJ49)","v":""},{"$f":"IF(ISERR(List2!BK49),\"\",List2!BK49)","v":""}]
[{"$f":"List2!BF50","v":""},{"$f":"List2!BG50","v":""},{"$f":"List2!BH50","v":""},{"$f":"List2!BI50","v":""},{"$f":"IF(ISERR(List2!BJ50),\"\",List2!BJ50)","v":""},{"$f":"IF(ISERR(List2!BK50),\"\",List2!BK50)","v":""}]
[{"$f":"List2!BF51","v":""},{"$f":"List2!BG51","v":""},{"$f":"List2!BH51","v":""},{"$f":"List2!BI51","v":""},{"$f":"IF(ISERR(List2!BJ51),\"\",List2!BJ51)","v":""},{"$f":"IF(ISERR(List2!BK51),\"\",List2!BK51)","v":""}]
[{"$f":"List2!BF52","v":""},{"$f":"List2!BG52","v":""},{"$f":"List2!BH52","v":""},{"$f":"List2!BI52","v":""},{"$f":"IF(ISERR(List2!BJ52),\"\",List2!BJ52)","v":""},{"$f":"IF(ISERR(List2!BK52),\"\",List2!BK52)","v":""}]
[{"$f":"List2!BF53","v":""},{"$f":"List2!BG53","v":""},{"$f":"List2!BH53","v":""},{"$f":"List2!BI53","v":""},{"$f":"IF(ISERR(List2!BJ53),\"\",List2!BJ53)","v":""},{"$f":"IF(ISERR(List2!BK53),\"\",List2!BK53)","v":""}]
[{"$f":"List2!BF54","v":""},{"$f":"List2!BG54","v":""},{"$f":"List2!BH54","v":""},{"$f":"List2!BI54","v":""},{"$f":"IF(ISERR(List2!BJ54),\"\",List2!BJ54)","v":""},{"$f":"IF(ISERR(List2!BK54),\"\",List2!BK54)","v":""}]
[{"$f":"List2!BF55","v":""},{"$f":"List2!BG55","v":""},{"$f":"List2!BH55","v":""},{"$f":"List2!BI55","v":""},{"$f":"IF(ISERR(List2!BJ55),\"\",List2!BJ55)","v":""},{"$f":"IF(ISERR(List2!BK55),\"\",List2!BK55)","v":""}]
[{"$f":"List2!BF56","v":""},{"$f":"List2!BG56","v":""},{"$f":"List2!BH56","v":""},{"$f":"List2!BI56","v":""},{"$f":"IF(ISERR(List2!BJ56),\"\",List2!BJ56)","v":""},{"$f":"IF(ISERR(List2!BK56),\"\",List2!BK56)","v":""}]
[{"$f":"List2!BF57","v":""},{"$f":"List2!BG57","v":""},{"$f":"List2!BH57","v":""},{"$f":"List2!BI57","v":""},{"$f":"IF(ISERR(List2!BJ57),\"\",List2!BJ57)","v":""},{"$f":"IF(ISERR(List2!BK57),\"\",List2!BK57)","v":""}]
[{"$f":"List2!BF58","v":""},{"$f":"List2!BG58","v":""},{"$f":"List2!BH58","v":""},{"$f":"List2!BI58","v":""},{"$f":"IF(ISERR(List2!BJ58),\"\",List2!BJ58)","v":""},{"$f":"IF(ISERR(List2!BK58),\"\",List2!BK58)","v":""}]
[{"$f":"List2!BF59","v":""},{"$f":"List2!BG59","v":""},{"$f":"List2!BH59","v":""},{"$f":"List2!BI59","v":""},{"$f":"IF(ISERR(List2!BJ59),\"\",List2!BJ59)","v":""},{"$f":"IF(ISERR(List2!BK59),\"\",List2!BK59)","v":""}]
[{"$f":"List2!BF60","v":""},{"$f":"List2!BG60","v":""},{"$f":"List2!BH60","v":""},{"$f":"List2!BI60","v":""},{"$f":"IF(ISERR(List2!BJ60),\"\",List2!BJ60)","v":""},{"$f":"IF(ISERR(List2!BK60),\"\",List2!BK60)","v":""}]
[{"$f":"List2!BF61","v":""},{"$f":"List2!BG61","v":""},{"$f":"List2!BH61","v":""},{"$f":"List2!BI61","v":""},{"$f":"IF(ISERR(List2!BJ61),\"\",List2!BJ61)","v":""},{"$f":"IF(ISERR(List2!BK61),\"\",List2!BK61)","v":""}]
[{"$f":"List2!BF62","v":""},{"$f":"List2!BG62","v":""},{"$f":"List2!BH62","v":""},{"$f":"List2!BI62","v":""},{"$f":"IF(ISERR(List2!BJ62),\"\",List2!BJ62)","v":""},{"$f":"IF(ISERR(List2!BK62),\"\",List2!BK62)","v":""}]
[{"$f":"List2!BF63","v":""},{"$f":"List2!BG63","v":""},{"$f":"List2!BH63","v":""},{"$f":"List2!BI63","v":""},{"$f":"IF(ISERR(List2!BJ63),\"\",List2!BJ63)","v":""},{"$f":"IF(ISERR(List2!BK63),\"\",List2!BK63)","v":""}]
[{"$f":"List2!BF64","v":""},{"$f":"List2!BG64","v":""},{"$f":"List2!BH64","v":""},{"$f":"List2!BI64","v":""},{"$f":"IF(ISERR(List2!BJ64),\"\",List2!BJ64)","v":""},{"$f":"IF(ISERR(List2!BK64),\"\",List2!BK64)","v":""}]
[{"$f":"List2!BF65","v":""},{"$f":"List2!BG65","v":""},{"$f":"List2!BH65","v":""},{"$f":"List2!BI65","v":""},{"$f":"IF(ISERR(List2!BJ65),\"\",List2!BJ65)","v":""},{"$f":"IF(ISERR(List2!BK65),\"\",List2!BK65)","v":""}]
[{"$f":"List2!BF66","v":""},{"$f":"List2!BG66","v":""},{"$f":"List2!BH66","v":""},{"$f":"List2!BI66","v":""},{"$f":"IF(ISERR(List2!BJ66),\"\",List2!BJ66)","v":""},{"$f":"IF(ISERR(List2!BK66),\"\",List2!BK66)","v":""}]
[{"$f":"List2!BF67","v":""},{"$f":"List2!BG67","v":""},{"$f":"List2!BH67","v":""},{"$f":"List2!BI67","v":""},{"$f":"IF(ISERR(List2!BJ67),\"\",List2!BJ67)","v":""},{"$f":"IF(ISERR(List2!BK67),\"\",List2!BK67)","v":""}]
[{"$f":"List2!BF68","v":""},{"$f":"List2!BG68","v":""},{"$f":"List2!BH68","v":""},{"$f":"List2!BI68","v":""},{"$f":"IF(ISERR(List2!BJ68),\"\",List2!BJ68)","v":""},{"$f":"IF(ISERR(List2!BK68),\"\",List2!BK68)","v":""}]
[{"$f":"List2!BF69","v":""},{"$f":"List2!BG69","v":""},{"$f":"List2!BH69","v":""},{"$f":"List2!BI69","v":""},{"$f":"IF(ISERR(List2!BJ69),\"\",List2!BJ69)","v":""},{"$f":"IF(ISERR(List2!BK69),\"\",List2!BK69)","v":""}]
[{"$f":"List2!BF70","v":""},{"$f":"List2!BG70","v":""},{"$f":"List2!BH70","v":""},{"$f":"List2!BI70","v":""},{"$f":"IF(ISERR(List2!BJ70),\"\",List2!BJ70)","v":""},{"$f":"IF(ISERR(List2!BK70),\"\",List2!BK70)","v":""}]
[{"$f":"List2!BF71","v":""},{"$f":"List2!BG71","v":""},{"$f":"List2!BH71","v":""},{"$f":"List2!BI71","v":""},{"$f":"IF(ISERR(List2!BJ71),\"\",List2!BJ71)","v":""},{"$f":"IF(ISERR(List2!BK71),\"\",List2!BK71)","v":""}]
[{"$f":"List2!BF72","v":""},{"$f":"List2!BG72","v":""},{"$f":"List2!BH72","v":""},{"$f":"List2!BI72","v":""},{"$f":"IF(ISERR(List2!BJ72),\"\",List2!BJ72)","v":""},{"$f":"IF(ISERR(List2!BK72),\"\",List2!BK72)","v":""}]
[{"$f":"List2!BF73","v":""},{"$f":"List2!BG73","v":""},{"$f":"List2!BH73","v":""},{"$f":"List2!BI73","v":""},{"$f":"IF(ISERR(List2!BJ73),\"\",List2!BJ73)","v":""},{"$f":"IF(ISERR(List2!BK73),\"\",List2!BK73)","v":""}]
[{"$f":"List2!BF74","v":""},{"$f":"List2!BG74","v":""},{"$f":"List2!BH74","v":""},{"$f":"List2!BI74","v":""},{"$f":"IF(ISERR(List2!BJ74),\"\",List2!BJ74)","v":""},{"$f":"IF(ISERR(List2!BK74),\"\",List2!BK74)","v":""}]
[{"$f":"List2!BF75","v":""},{"$f":"List2!BG75","v":""},{"$f":"List2!BH75","v":""},{"$f":"List2!BI75","v":""},{"$f":"IF(ISERR(List2!BJ75),\"\",List2!BJ75)","v":""},{"$f":"IF(ISERR(List2!BK75),\"\",List2!BK75)","v":""}]
[{"$f":"List2!BF76","v":""},{"$f":"List2!BG76","v":""},{"$f":"List2!BH76","v":""},{"$f":"List2!BI76","v":""},{"$f":"IF(ISERR(List2!BJ76),\"\",List2!BJ76)","v":""},{"$f":"IF(ISERR(List2!BK76),\"\",List2!BK76)","v":""}]
[{"$f":"List2!BF77","v":""},{"$f":"List2!BG77","v":""},{"$f":"List2!BH77","v":""},{"$f":"List2!BI77","v":""},{"$f":"IF(ISERR(List2!BJ77),\"\",List2!BJ77)","v":""},{"$f":"IF(ISERR(List2!BK77),\"\",List2!BK77)","v":""}]
[{"$f":"List2!BF78","v":""},{"$f":"List2!BG78","v":""},{"$f":"List2!BH78","v":""},{"$f":"List2!BI78","v":""},{"$f":"IF(ISERR(List2!BJ78),\"\",List2!BJ78)","v":""},{"$f":"IF(ISERR(List2!BK78),\"\",List2!BK78)","v":""}]
[{"$f":"List2!BF79","v":""},{"$f":"List2!BG79","v":""},{"$f":"List2!BH79","v":""},{"$f":"List2!BI79","v":""},{"$f":"IF(ISERR(List2!BJ79),\"\",List2!BJ79)","v":""},{"$f":"IF(ISERR(List2!BK79),\"\",List2!BK79)","v":""}]
[{"$f":"List2!BF80","v":""},{"$f":"List2!BG80","v":""},{"$f":"List2!BH80","v":""},{"$f":"List2!BI80","v":""},{"$f":"IF(ISERR(List2!BJ80),\"\",List2!BJ80)","v":""},{"$f":"IF(ISERR(List2!BK80),\"\",List2!BK80)","v":""}]
[{"$f":"List2!BF81","v":""},{"$f":"List2!BG81","v":""},{"$f":"List2!BH81","v":""},{"$f":"List2!BI81","v":""},{"$f":"IF(ISERR(List2!BJ81),\"\",List2!BJ81)","v":""},{"$f":"IF(ISERR(List2!BK81),\"\",List2!BK81)","v":""}]
[{"$f":"List2!BF82","v":""},{"$f":"List2!BG82","v":""},{"$f":"List2!BH82","v":""},{"$f":"List2!BI82","v":""},{"$f":"IF(ISERR(List2!BJ82),\"\",List2!BJ82)","v":""},{"$f":"IF(ISERR(List2!BK82),\"\",List2!BK82)","v":""}]
[{"$f":"List2!BF83","v":""},{"$f":"List2!BG83","v":""},{"$f":"List2!BH83","v":""},{"$f":"List2!BI83","v":""},{"$f":"IF(ISERR(List2!BJ83),\"\",List2!BJ83)","v":""},{"$f":"IF(ISERR(List2!BK83),\"\",List2!BK83)","v":""}]
[{"$f":"List2!BF84","v":""},{"$f":"List2!BG84","v":""},{"$f":"List2!BH84","v":""},{"$f":"List2!BI84","v":""},{"$f":"IF(ISERR(List2!BJ84),\"\",List2!BJ84)","v":""},{"$f":"IF(ISERR(List2!BK84),\"\",List2!BK84)","v":""}]
[{"$f":"List2!BF85","v":""},{"$f":"List2!BG85","v":""},{"$f":"List2!BH85","v":""},{"$f":"List2!BI85","v":""},{"$f":"IF(ISERR(List2!BJ85),\"\",List2!BJ85)","v":""},{"$f":"IF(ISERR(List2!BK85),\"\",List2!BK85)","v":""}]
[{"$f":"List2!BF86","v":""},{"$f":"List2!BG86","v":""},{"$f":"List2!BH86","v":""},{"$f":"List2!BI86","v":""},{"$f":"IF(ISERR(List2!BJ86),\"\",List2!BJ86)","v":""},{"$f":"IF(ISERR(List2!BK86),\"\",List2!BK86)","v":""}]
[{"$f":"List2!BF87","v":""},{"$f":"List2!BG87","v":""},{"$f":"List2!BH87","v":""},{"$f":"List2!BI87","v":""},{"$f":"IF(ISERR(List2!BJ87),\"\",List2!BJ87)","v":""},{"$f":"IF(ISERR(List2!BK87),\"\",List2!BK87)","v":""}]
[{"$f":"List2!BF88","v":""},{"$f":"List2!BG88","v":""},{"$f":"List2!BH88","v":""},{"$f":"List2!BI88","v":""},{"$f":"IF(ISERR(List2!BJ88),\"\",List2!BJ88)","v":""},{"$f":"IF(ISERR(List2!BK88),\"\",List2!BK88)","v":""}]
[{"$f":"List2!BF89","v":""},{"$f":"List2!BG89","v":""},{"$f":"List2!BH89","v":""},{"$f":"List2!BI89","v":""},{"$f":"IF(ISERR(List2!BJ89),\"\",List2!BJ89)","v":""},{"$f":"IF(ISERR(List2!BK89),\"\",List2!BK89)","v":""}]
[{"$f":"List2!BF90","v":""},{"$f":"List2!BG90","v":""},{"$f":"List2!BH90","v":""},{"$f":"List2!BI90","v":""},{"$f":"IF(ISERR(List2!BJ90),\"\",List2!BJ90)","v":""},{"$f":"IF(ISERR(List2!BK90),\"\",List2!BK90)","v":""}]
[{"$f":"List2!BF91","v":""},{"$f":"List2!BG91","v":""},{"$f":"List2!BH91","v":""},{"$f":"List2!BI91","v":""},{"$f":"IF(ISERR(List2!BJ91),\"\",List2!BJ91)","v":""},{"$f":"IF(ISERR(List2!BK91),\"\",List2!BK91)","v":""}]
[{"$f":"List2!BF92","v":""},{"$f":"List2!BG92","v":""},{"$f":"List2!BH92","v":""},{"$f":"List2!BI92","v":""},{"$f":"IF(ISERR(List2!BJ92),\"\",List2!BJ92)","v":""},{"$f":"IF(ISERR(List2!BK92),\"\",List2!BK92)","v":""}]
[{"$f":"List2!BF93","v":""},{"$f":"List2!BG93","v":""},{"$f":"List2!BH93","v":""},{"$f":"List2!BI93","v":""},{"$f":"IF(ISERR(List2!BJ93),\"\",List2!BJ93)","v":""},{"$f":"IF(ISERR(List2!BK93),\"\",List2!BK93)","v":""}]
[{"$f":"List2!BF94","v":""},{"$f":"List2!BG94","v":""},{"$f":"List2!BH94","v":""},{"$f":"List2!BI94","v":""},{"$f":"IF(ISERR(List2!BJ94),\"\",List2!BJ94)","v":""},{"$f":"IF(ISERR(List2!BK94),\"\",List2!BK94)","v":""}]
[{"$f":"List2!BF95","v":""},{"$f":"List2!BG95","v":""},{"$f":"List2!BH95","v":""},{"$f":"List2!BI95","v":""},{"$f":"IF(ISERR(List2!BJ95),\"\",List2!BJ95)","v":""},{"$f":"IF(ISERR(List2!BK95),\"\",List2!BK95)","v":""}]
[{"$f":"List2!BF96","v":""},{"$f":"List2!BG96","v":""},{"$f":"List2!BH96","v":""},{"$f":"List2!BI96","v":""},{"$f":"IF(ISERR(List2!BJ96),\"\",List2!BJ96)","v":""},{"$f":"IF(ISERR(List2!BK96),\"\",List2!BK96)","v":""}]
[{"$f":"List2!BF97","v":""},{"$f":"List2!BG97","v":""},{"$f":"List2!BH97","v":""},{"$f":"List2!BI97","v":""},{"$f":"IF(ISERR(List2!BJ97),\"\",List2!BJ97)","v":""},{"$f":"IF(ISERR(List2!BK97),\"\",List2!BK97)","v":""}]
[{"$f":"List2!BF98","v":""},{"$f":"List2!BG98","v":""},{"$f":"List2!BH98","v":""},{"$f":"List2!BI98","v":""},{"$f":"IF(ISERR(List2!BJ98),\"\",List2!BJ98)","v":""},{"$f":"IF(ISERR(List2!BK98),\"\",List2!BK98)","v":""}]
[{"$f":"List2!BF99","v":""},{"$f":"List2!BG99","v":""},{"$f":"List2!BH99","v":""},{"$f":"List2!BI99","v":""},{"$f":"IF(ISERR(List2!BJ99),\"\",List2!BJ99)","v":""},{"$f":"IF(ISERR(List2!BK99),\"\",List2!BK99)","v":""}]
[{"$f":"List2!BF100","v":""},{"$f":"List2!BG100","v":""},{"$f":"List2!BH100","v":""},{"$f":"List2!BI100","v":""},{"$f":"IF(ISERR(List2!BJ100),\"\",List2!BJ100)","v":""},{"$f":"IF(ISERR(List2!BK100),\"\",List2!BK100)","v":""}]
[{"$f":"List2!BF101","v":""},{"$f":"List2!BG101","v":""},{"$f":"List2!BH101","v":""},{"$f":"List2!BI101","v":""},{"$f":"IF(ISERR(List2!BJ101),\"\",List2!BJ101)","v":""},{"$f":"IF(ISERR(List2!BK101),\"\",List2!BK101)","v":""}]
[{"$f":"List2!BF102","v":""},{"$f":"List2!BG102","v":""},{"$f":"List2!BH102","v":""},{"$f":"List2!BI102","v":""},{"$f":"IF(ISERR(List2!BJ102),\"\",List2!BJ102)","v":""},{"$f":"IF(ISERR(List2!BK102),\"\",List2!BK102)","v":""}]
[{"$f":"List2!BF103","v":""},{"$f":"List2!BG103","v":""},{"$f":"List2!BH103","v":""},{"$f":"List2!BI103","v":""},{"$f":"IF(ISERR(List2!BJ103),\"\",List2!BJ103)","v":""},{"$f":"IF(ISERR(List2!BK103),\"\",List2!BK103)","v":""}]
[{"$f":"List2!BF104","v":""},{"$f":"List2!BG104","v":""},{"$f":"List2!BH104","v":""},{"$f":"List2!BI104","v":""},{"$f":"IF(ISERR(List2!BJ104),\"\",List2!BJ104)","v":""},{"$f":"IF(ISERR(List2!BK104),\"\",List2!BK104)","v":""}]
[{"$f":"List2!BF105","v":""},{"$f":"List2!BG105","v":""},{"$f":"List2!BH105","v":""},{"$f":"List2!BI105","v":""},{"$f":"IF(ISERR(List2!BJ105),\"\",List2!BJ105)","v":""},{"$f":"IF(ISERR(List2!BK105),\"\",List2!BK105)","v":""}]
[{"$f":"List2!BF106","v":""},{"$f":"List2!BG106","v":""},{"$f":"List2!BH106","v":""},{"$f":"List2!BI106","v":""},{"$f":"IF(ISERR(List2!BJ106),\"\",List2!BJ106)","v":""},{"$f":"IF(ISERR(List2!BK106),\"\",List2!BK106)","v":""}]
[{"$f":"List2!BF107","v":""},{"$f":"List2!BG107","v":""},{"$f":"List2!BH107","v":""},{"$f":"List2!BI107","v":""},{"$f":"IF(ISERR(List2!BJ107),\"\",List2!BJ107)","v":""},{"$f":"IF(ISERR(List2!BK107),\"\",List2!BK107)","v":""}]
[{"$f":"List2!BF108","v":""},{"$f":"List2!BG108","v":""},{"$f":"List2!BH108","v":""},{"$f":"List2!BI108","v":""},{"$f":"IF(ISERR(List2!BJ108),\"\",List2!BJ108)","v":""},{"$f":"IF(ISERR(List2!BK108),\"\",List2!BK108)","v":""}]
[{"$f":"List2!BF109","v":""},{"$f":"List2!BG109","v":""},{"$f":"List2!BH109","v":""},{"$f":"List2!BI109","v":""},{"$f":"IF(ISERR(List2!BJ109),\"\",List2!BJ109)","v":""},{"$f":"IF(ISERR(List2!BK109),\"\",List2!BK109)","v":""}]
[{"$f":"List2!BF110","v":""},{"$f":"List2!BG110","v":""},{"$f":"List2!BH110","v":""},{"$f":"List2!BI110","v":""},{"$f":"IF(ISERR(List2!BJ110),\"\",List2!BJ110)","v":""},{"$f":"IF(ISERR(List2!BK110),\"\",List2!BK110)","v":""}]
[{"$f":"List2!BF111","v":""},{"$f":"List2!BG111","v":""},{"$f":"List2!BH111","v":""},{"$f":"List2!BI111","v":""},{"$f":"IF(ISERR(List2!BJ111),\"\",List2!BJ111)","v":""},{"$f":"IF(ISERR(List2!BK111),\"\",List2!BK111)","v":""}]
[{"$f":"List2!BF112","v":""},{"$f":"List2!BG112","v":""},{"$f":"List2!BH112","v":""},{"$f":"List2!BI112","v":""},{"$f":"IF(ISERR(List2!BJ112),\"\",List2!BJ112)","v":""},{"$f":"IF(ISERR(List2!BK112),\"\",List2!BK112)","v":""}]
[{"$f":"List2!BF113","v":""},{"$f":"List2!BG113","v":""},{"$f":"List2!BH113","v":""},{"$f":"List2!BI113","v":""},{"$f":"IF(ISERR(List2!BJ113),\"\",List2!BJ113)","v":""},{"$f":"IF(ISERR(List2!BK113),\"\",List2!BK113)","v":""}]
[{"$f":"List2!BF114","v":""},{"$f":"List2!BG114","v":""},{"$f":"List2!BH114","v":""},{"$f":"List2!BI114","v":""},{"$f":"IF(ISERR(List2!BJ114),\"\",List2!BJ114)","v":""},{"$f":"IF(ISERR(List2!BK114),\"\",List2!BK114)","v":""}]
[{"$f":"List2!BF115","v":""},{"$f":"List2!BG115","v":""},{"$f":"List2!BH115","v":""},{"$f":"List2!BI115","v":""},{"$f":"IF(ISERR(List2!BJ115),\"\",List2!BJ115)","v":""},{"$f":"IF(ISERR(List2!BK115),\"\",List2!BK115)","v":""}]
[{"$f":"List2!BF116","v":""},{"$f":"List2!BG116","v":""},{"$f":"List2!BH116","v":""},{"$f":"List2!BI116","v":""},{"$f":"IF(ISERR(List2!BJ116),\"\",List2!BJ116)","v":""},{"$f":"IF(ISERR(List2!BK116),\"\",List2!BK116)","v":""}]
[{"$f":"List2!BF117","v":""},{"$f":"List2!BG117","v":""},{"$f":"List2!BH117","v":""},{"$f":"List2!BI117","v":""},{"$f":"IF(ISERR(List2!BJ117),\"\",List2!BJ117)","v":""},{"$f":"IF(ISERR(List2!BK117),\"\",List2!BK117)","v":""}]
[{"$f":"List2!BF118","v":""},{"$f":"List2!BG118","v":""},{"$f":"List2!BH118","v":""},{"$f":"List2!BI118","v":""},{"$f":"IF(ISERR(List2!BJ118),\"\",List2!BJ118)","v":""},{"$f":"IF(ISERR(List2!BK118),\"\",List2!BK118)","v":""}]
[{"$f":"List2!BF119","v":""},{"$f":"List2!BG119","v":""},{"$f":"List2!BH119","v":""},{"$f":"List2!BI119","v":""},{"$f":"IF(ISERR(List2!BJ119),\"\",List2!BJ119)","v":""},{"$f":"IF(ISERR(List2!BK119),\"\",List2!BK119)","v":""}]
[{"$f":"List2!BF120","v":""},{"$f":"List2!BG120","v":""},{"$f":"List2!BH120","v":""},{"$f":"List2!BI120","v":""},{"$f":"IF(ISERR(List2!BJ120),\"\",List2!BJ120)","v":""},{"$f":"IF(ISERR(List2!BK120),\"\",List2!BK120)","v":""}]
[{"$f":"List2!BF121","v":""},{"$f":"List2!BG121","v":""},{"$f":"List2!BH121","v":""},{"$f":"List2!BI121","v":""},{"$f":"IF(ISERR(List2!BJ121),\"\",List2!BJ121)","v":""},{"$f":"IF(ISERR(List2!BK121),\"\",List2!BK121)","v":""}]
[{"$f":"List2!BF122","v":""},{"$f":"List2!BG122","v":""},{"$f":"List2!BH122","v":""},{"$f":"List2!BI122","v":""},{"$f":"IF(ISERR(List2!BJ122),\"\",List2!BJ122)","v":""},{"$f":"IF(ISERR(List2!BK122),\"\",List2!BK122)","v":""}]
[{"$f":"List2!BF123","v":""},{"$f":"List2!BG123","v":""},{"$f":"List2!BH123","v":""},{"$f":"List2!BI123","v":""},{"$f":"IF(ISERR(List2!BJ123),\"\",List2!BJ123)","v":""},{"$f":"IF(ISERR(List2!BK123),\"\",List2!BK123)","v":""}]
[{"$f":"List2!BF124","v":""},{"$f":"List2!BG124","v":""},{"$f":"List2!BH124","v":""},{"$f":"List2!BI124","v":""},{"$f":"IF(ISERR(List2!BJ124),\"\",List2!BJ124)","v":""},{"$f":"IF(ISERR(List2!BK124),\"\",List2!BK124)","v":""}]
[{"$f":"List2!BF125","v":""},{"$f":"List2!BG125","v":""},{"$f":"List2!BH125","v":""},{"$f":"List2!BI125","v":""},{"$f":"IF(ISERR(List2!BJ125),\"\",List2!BJ125)","v":""},{"$f":"IF(ISERR(List2!BK125),\"\",List2!BK125)","v":""}]
[{"$f":"List2!BF126","v":""},{"$f":"List2!BG126","v":""},{"$f":"List2!BH126","v":""},{"$f":"List2!BI126","v":""},{"$f":"IF(ISERR(List2!BJ126),\"\",List2!BJ126)","v":""},{"$f":"IF(ISERR(List2!BK126),\"\",List2!BK126)","v":""}]
[{"$f":"List2!BF127","v":""},{"$f":"List2!BG127","v":""},{"$f":"List2!BH127","v":""},{"$f":"List2!BI127","v":""},{"$f":"IF(ISERR(List2!BJ127),\"\",List2!BJ127)","v":""},{"$f":"IF(ISERR(List2!BK127),\"\",List2!BK127)","v":""}]
[{"$f":"List2!BF128","v":""},{"$f":"List2!BG128","v":""},{"$f":"List2!BH128","v":""},{"$f":"List2!BI128","v":""},{"$f":"IF(ISERR(List2!BJ128),\"\",List2!BJ128)","v":""},{"$f":"IF(ISERR(List2!BK128),\"\",List2!BK128)","v":""}]
[{"$f":"List2!BF129","v":""},{"$f":"List2!BG129","v":""},{"$f":"List2!BH129","v":""},{"$f":"List2!BI129","v":""},{"$f":"IF(ISERR(List2!BJ129),\"\",List2!BJ129)","v":""},{"$f":"IF(ISERR(List2!BK129),\"\",List2!BK129)","v":""}]
[{"$f":"List2!BF130","v":""},{"$f":"List2!BG130","v":""},{"$f":"List2!BH130","v":""},{"$f":"List2!BI130","v":""},{"$f":"IF(ISERR(List2!BJ130),\"\",List2!BJ130)","v":""},{"$f":"IF(ISERR(List2!BK130),\"\",List2!BK130)","v":""}]
[{"$f":"List2!BF131","v":""},{"$f":"List2!BG131","v":""},{"$f":"List2!BH131","v":""},{"$f":"List2!BI131","v":""},{"$f":"IF(ISERR(List2!BJ131),\"\",List2!BJ131)","v":""},{"$f":"IF(ISERR(List2!BK131),\"\",List2!BK131)","v":""}]
[{"$f":"List2!BF132","v":""},{"$f":"List2!BG132","v":""},{"$f":"List2!BH132","v":""},{"$f":"List2!BI132","v":""},{"$f":"IF(ISERR(List2!BJ132),\"\",List2!BJ132)","v":""},{"$f":"IF(ISERR(List2!BK132),\"\",List2!BK132)","v":""}]
[{"$f":"List2!BF133","v":""},{"$f":"List2!BG133","v":""},{"$f":"List2!BH133","v":""},{"$f":"List2!BI133","v":""},{"$f":"IF(ISERR(List2!BJ133),\"\",List2!BJ133)","v":""},{"$f":"IF(ISERR(List2!BK133),\"\",List2!BK133)","v":""}]
[{"$f":"List2!BF134","v":""},{"$f":"List2!BG134","v":""},{"$f":"List2!BH134","v":""},{"$f":"List2!BI134","v":""},{"$f":"IF(ISERR(List2!BJ134),\"\",List2!BJ134)","v":""},{"$f":"IF(ISERR(List2!BK134),\"\",List2!BK134)","v":""}]
[{"$f":"List2!BF135","v":""},{"$f":"List2!BG135","v":""},{"$f":"List2!BH135","v":""},{"$f":"List2!BI135","v":""},{"$f":"IF(ISERR(List2!BJ135),\"\",List2!BJ135)","v":""},{"$f":"IF(ISERR(List2!BK135),\"\",List2!BK135)","v":""}]
[{"$f":"List2!BF136","v":""},{"$f":"List2!BG136","v":""},{"$f":"List2!BH136","v":""},{"$f":"List2!BI136","v":""},{"$f":"IF(ISERR(List2!BJ136),\"\",List2!BJ136)","v":""},{"$f":"IF(ISERR(List2!BK136),\"\",List2!BK136)","v":""}]
[{"$f":"List2!BF137","v":""},{"$f":"List2!BG137","v":""},{"$f":"List2!BH137","v":""},{"$f":"List2!BI137","v":""},{"$f":"IF(ISERR(List2!BJ137),\"\",List2!BJ137)","v":""},{"$f":"IF(ISERR(List2!BK137),\"\",List2!BK137)","v":""}]
[{"$f":"List2!BF138","v":""},{"$f":"List2!BG138","v":""},{"$f":"List2!BH138","v":""},{"$f":"List2!BI138","v":""},{"$f":"IF(ISERR(List2!BJ138),\"\",List2!BJ138)","v":""},{"$f":"IF(ISERR(List2!BK138),\"\",List2!BK138)","v":""}]
[{"$f":"List2!BF139","v":""},{"$f":"List2!BG139","v":""},{"$f":"List2!BH139","v":""},{"$f":"List2!BI139","v":""},{"$f":"IF(ISERR(List2!BJ139),\"\",List2!BJ139)","v":""},{"$f":"IF(ISERR(List2!BK139),\"\",List2!BK139)","v":""}]
[{"$f":"List2!BF140","v":""},{"$f":"List2!BG140","v":""},{"$f":"List2!BH140","v":""},{"$f":"List2!BI140","v":""},{"$f":"IF(ISERR(List2!BJ140),\"\",List2!BJ140)","v":""},{"$f":"IF(ISERR(List2!BK140),\"\",List2!BK140)","v":""}]
[{"$f":"List2!BF141","v":""},{"$f":"List2!BG141","v":""},{"$f":"List2!BH141","v":""},{"$f":"List2!BI141","v":""},{"$f":"IF(ISERR(List2!BJ141),\"\",List2!BJ141)","v":""},{"$f":"IF(ISERR(List2!BK141),\"\",List2!BK141)","v":""}]
[{"$f":"List2!BF142","v":""},{"$f":"List2!BG142","v":""},{"$f":"List2!BH142","v":""},{"$f":"List2!BI142","v":""},{"$f":"IF(ISERR(List2!BJ142),\"\",List2!BJ142)","v":""},{"$f":"IF(ISERR(List2!BK142),\"\",List2!BK142)","v":""}]
[{"$f":"List2!BF143","v":""},{"$f":"List2!BG143","v":""},{"$f":"List2!BH143","v":""},{"$f":"List2!BI143","v":""},{"$f":"IF(ISERR(List2!BJ143),\"\",List2!BJ143)","v":""},{"$f":"IF(ISERR(List2!BK143),\"\",List2!BK143)","v":""}]
[{"$f":"List2!BF144","v":""},{"$f":"List2!BG144","v":""},{"$f":"List2!BH144","v":""},{"$f":"List2!BI144","v":""},{"$f":"IF(ISERR(List2!BJ144),\"\",List2!BJ144)","v":""},{"$f":"IF(ISERR(List2!BK144),\"\",List2!BK144)","v":""}]
[{"$f":"List2!BF145","v":""},{"$f":"List2!BG145","v":""},{"$f":"List2!BH145","v":""},{"$f":"List2!BI145","v":""},{"$f":"IF(ISERR(List2!BJ145),\"\",List2!BJ145)","v":""},{"$f":"IF(ISERR(List2!BK145),\"\",List2!BK145)","v":""}]
[{"$f":"List2!BF146","v":""},{"$f":"List2!BG146","v":""},{"$f":"List2!BH146","v":""},{"$f":"List2!BI146","v":""},{"$f":"IF(ISERR(List2!BJ146),\"\",List2!BJ146)","v":""},{"$f":"IF(ISERR(List2!BK146),\"\",List2!BK146)","v":""}]
[{"$f":"List2!BF147","v":""},{"$f":"List2!BG147","v":""},{"$f":"List2!BH147","v":""},{"$f":"List2!BI147","v":""},{"$f":"IF(ISERR(List2!BJ147),\"\",List2!BJ147)","v":""},{"$f":"IF(ISERR(List2!BK147),\"\",List2!BK147)","v":""}]
[{"$f":"List2!BF148","v":""},{"$f":"List2!BG148","v":""},{"$f":"List2!BH148","v":""},{"$f":"List2!BI148","v":""},{"$f":"IF(ISERR(List2!BJ148),\"\",List2!BJ148)","v":""},{"$f":"IF(ISERR(List2!BK148),\"\",List2!BK148)","v":""}]
[{"$f":"List2!BF149","v":""},{"$f":"List2!BG149","v":""},{"$f":"List2!BH149","v":""},{"$f":"List2!BI149","v":""},{"$f":"IF(ISERR(List2!BJ149),\"\",List2!BJ149)","v":""},{"$f":"IF(ISERR(List2!BK149),\"\",List2!BK149)","v":""}]
[{"$f":"List2!BF150","v":""},{"$f":"List2!BG150","v":""},{"$f":"List2!BH150","v":""},{"$f":"List2!BI150","v":""},{"$f":"IF(ISERR(List2!BJ150),\"\",List2!BJ150)","v":""},{"$f":"IF(ISERR(List2!BK150),\"\",List2!BK150)","v":""}]
[{"$f":"List2!BF151","v":""},{"$f":"List2!BG151","v":""},{"$f":"List2!BH151","v":""},{"$f":"List2!BI151","v":""},{"$f":"IF(ISERR(List2!BJ151),\"\",List2!BJ151)","v":""},{"$f":"IF(ISERR(List2!BK151),\"\",List2!BK151)","v":""}]
[{"$f":"List2!BF152","v":""},{"$f":"List2!BG152","v":""},{"$f":"List2!BH152","v":""},{"$f":"List2!BI152","v":""},{"$f":"IF(ISERR(List2!BJ152),\"\",List2!BJ152)","v":""},{"$f":"IF(ISERR(List2!BK152),\"\",List2!BK152)","v":""}]
[{"$f":"List2!BF153","v":""},{"$f":"List2!BG153","v":""},{"$f":"List2!BH153","v":""},{"$f":"List2!BI153","v":""},{"$f":"IF(ISERR(List2!BJ153),\"\",List2!BJ153)","v":""},{"$f":"IF(ISERR(List2!BK153),\"\",List2!BK153)","v":""}]
[{"$f":"List2!BF154","v":""},{"$f":"List2!BG154","v":""},{"$f":"List2!BH154","v":""},{"$f":"List2!BI154","v":""},{"$f":"IF(ISERR(List2!BJ154),\"\",List2!BJ154)","v":""},{"$f":"IF(ISERR(List2!BK154),\"\",List2!BK154)","v":""}]
[{"$f":"List2!BF155","v":""},{"$f":"List2!BG155","v":""},{"$f":"List2!BH155","v":""},{"$f":"List2!BI155","v":""},{"$f":"IF(ISERR(List2!BJ155),\"\",List2!BJ155)","v":""},{"$f":"IF(ISERR(List2!BK155),\"\",List2!BK155)","v":""}]
[{"$f":"List2!BF156","v":""},{"$f":"List2!BG156","v":""},{"$f":"List2!BH156","v":""},{"$f":"List2!BI156","v":""},{"$f":"IF(ISERR(List2!BJ156),\"\",List2!BJ156)","v":""},{"$f":"IF(ISERR(List2!BK156),\"\",List2!BK156)","v":""}]
[{"$f":"List2!BF157","v":""},{"$f":"List2!BG157","v":""},{"$f":"List2!BH157","v":""},{"$f":"List2!BI157","v":""},{"$f":"IF(ISERR(List2!BJ157),\"\",List2!BJ157)","v":""},{"$f":"IF(ISERR(List2!BK157),\"\",List2!BK157)","v":""}]
[{"$f":"List2!BF158","v":""},{"$f":"List2!BG158","v":""},{"$f":"List2!BH158","v":""},{"$f":"List2!BI158","v":""},{"$f":"IF(ISERR(List2!BJ158),\"\",List2!BJ158)","v":""},{"$f":"IF(ISERR(List2!BK158),\"\",List2!BK158)","v":""}]
[{"$f":"List2!BF159","v":""},{"$f":"List2!BG159","v":""},{"$f":"List2!BH159","v":""},{"$f":"List2!BI159","v":""},{"$f":"IF(ISERR(List2!BJ159),\"\",List2!BJ159)","v":""},{"$f":"IF(ISERR(List2!BK159),\"\",List2!BK159)","v":""}]
[{"$f":"List2!BF160","v":""},{"$f":"List2!BG160","v":""},{"$f":"List2!BH160","v":""},{"$f":"List2!BI160","v":""},{"$f":"IF(ISERR(List2!BJ160),\"\",List2!BJ160)","v":""},{"$f":"IF(ISERR(List2!BK160),\"\",List2!BK160)","v":""}]
[{"$f":"List2!BF161","v":""},{"$f":"List2!BG161","v":""},{"$f":"List2!BH161","v":""},{"$f":"List2!BI161","v":""},{"$f":"IF(ISERR(List2!BJ161),\"\",List2!BJ161)","v":""},{"$f":"IF(ISERR(List2!BK161),\"\",List2!BK161)","v":""}]
[{"$f":"List2!BF162","v":""},{"$f":"List2!BG162","v":""},{"$f":"List2!BH162","v":""},{"$f":"List2!BI162","v":""},{"$f":"IF(ISERR(List2!BJ162),\"\",List2!BJ162)","v":""},{"$f":"IF(ISERR(List2!BK162),\"\",List2!BK162)","v":""}]
[{"$f":"List2!BF163","v":""},{"$f":"List2!BG163","v":""},{"$f":"List2!BH163","v":""},{"$f":"List2!BI163","v":""},{"$f":"IF(ISERR(List2!BJ163),\"\",List2!BJ163)","v":""},{"$f":"IF(ISERR(List2!BK163),\"\",List2!BK163)","v":""}]
[{"$f":"List2!BF164","v":""},{"$f":"List2!BG164","v":""},{"$f":"List2!BH164","v":""},{"$f":"List2!BI164","v":""},{"$f":"IF(ISERR(List2!BJ164),\"\",List2!BJ164)","v":""},{"$f":"IF(ISERR(List2!BK164),\"\",List2!BK164)","v":""}]
[{"$f":"List2!BF165","v":""},{"$f":"List2!BG165","v":""},{"$f":"List2!BH165","v":""},{"$f":"List2!BI165","v":""},{"$f":"IF(ISERR(List2!BJ165),\"\",List2!BJ165)","v":""},{"$f":"IF(ISERR(List2!BK165),\"\",List2!BK165)","v":""}]
[{"$f":"List2!BF166","v":""},{"$f":"List2!BG166","v":""},{"$f":"List2!BH166","v":""},{"$f":"List2!BI166","v":""},{"$f":"IF(ISERR(List2!BJ166),\"\",List2!BJ166)","v":""},{"$f":"IF(ISERR(List2!BK166),\"\",List2!BK166)","v":""}]
[{"$f":"List2!BF167","v":""},{"$f":"List2!BG167","v":""},{"$f":"List2!BH167","v":""},{"$f":"List2!BI167","v":""},{"$f":"IF(ISERR(List2!BJ167),\"\",List2!BJ167)","v":""},{"$f":"IF(ISERR(List2!BK167),\"\",List2!BK167)","v":""}]
[{"$f":"List2!BF168","v":""},{"$f":"List2!BG168","v":""},{"$f":"List2!BH168","v":""},{"$f":"List2!BI168","v":""},{"$f":"IF(ISERR(List2!BJ168),\"\",List2!BJ168)","v":""},{"$f":"IF(ISERR(List2!BK168),\"\",List2!BK168)","v":""}]
[{"$f":"List2!BF169","v":""},{"$f":"List2!BG169","v":""},{"$f":"List2!BH169","v":""},{"$f":"List2!BI169","v":""},{"$f":"IF(ISERR(List2!BJ169),\"\",List2!BJ169)","v":""},{"$f":"IF(ISERR(List2!BK169),\"\",List2!BK169)","v":""}]
[{"$f":"List2!BF170","v":""},{"$f":"List2!BG170","v":""},{"$f":"List2!BH170","v":""},{"$f":"List2!BI170","v":""},{"$f":"IF(ISERR(List2!BJ170),\"\",List2!BJ170)","v":""},{"$f":"IF(ISERR(List2!BK170),\"\",List2!BK170)","v":""}]
[{"$f":"List2!BF171","v":""},{"$f":"List2!BG171","v":""},{"$f":"List2!BH171","v":""},{"$f":"List2!BI171","v":""},{"$f":"IF(ISERR(List2!BJ171),\"\",List2!BJ171)","v":""},{"$f":"IF(ISERR(List2!BK171),\"\",List2!BK171)","v":""}]
[{"$f":"List2!BF172","v":""},{"$f":"List2!BG172","v":""},{"$f":"List2!BH172","v":""},{"$f":"List2!BI172","v":""},{"$f":"IF(ISERR(List2!BJ172),\"\",List2!BJ172)","v":""},{"$f":"IF(ISERR(List2!BK172),\"\",List2!BK172)","v":""}]
[{"$f":"List2!BF173","v":""},{"$f":"List2!BG173","v":""},{"$f":"List2!BH173","v":""},{"$f":"List2!BI173","v":""},{"$f":"IF(ISERR(List2!BJ173),\"\",List2!BJ173)","v":""},{"$f":"IF(ISERR(List2!BK173),\"\",List2!BK173)","v":""}]
[{"$f":"List2!BF174","v":""},{"$f":"List2!BG174","v":""},{"$f":"List2!BH174","v":""},{"$f":"List2!BI174","v":""},{"$f":"IF(ISERR(List2!BJ174),\"\",List2!BJ174)","v":""},{"$f":"IF(ISERR(List2!BK174),\"\",List2!BK174)","v":""}]
[{"$f":"List2!BF175","v":""},{"$f":"List2!BG175","v":""},{"$f":"List2!BH175","v":""},{"$f":"List2!BI175","v":""},{"$f":"IF(ISERR(List2!BJ175),\"\",List2!BJ175)","v":""},{"$f":"IF(ISERR(List2!BK175),\"\",List2!BK175)","v":""}]
[{"$f":"List2!BF176","v":""},{"$f":"List2!BG176","v":""},{"$f":"List2!BH176","v":""},{"$f":"List2!BI176","v":""},{"$f":"IF(ISERR(List2!BJ176),\"\",List2!BJ176)","v":""},{"$f":"IF(ISERR(List2!BK176),\"\",List2!BK176)","v":""}]
[{"$f":"List2!BF177","v":""},{"$f":"List2!BG177","v":""},{"$f":"List2!BH177","v":""},{"$f":"List2!BI177","v":""},{"$f":"IF(ISERR(List2!BJ177),\"\",List2!BJ177)","v":""},{"$f":"IF(ISERR(List2!BK177),\"\",List2!BK177)","v":""}]
[{"$f":"List2!BF178","v":""},{"$f":"List2!BG178","v":""},{"$f":"List2!BH178","v":""},{"$f":"List2!BI178","v":""},{"$f":"IF(ISERR(List2!BJ178),\"\",List2!BJ178)","v":""},{"$f":"IF(ISERR(List2!BK178),\"\",List2!BK178)","v":""}]
[{"$f":"List2!BF179","v":""},{"$f":"List2!BG179","v":""},{"$f":"List2!BH179","v":""},{"$f":"List2!BI179","v":""},{"$f":"IF(ISERR(List2!BJ179),\"\",List2!BJ179)","v":""},{"$f":"IF(ISERR(List2!BK179),\"\",List2!BK179)","v":""}]
[{"$f":"List2!BF180","v":""},{"$f":"List2!BG180","v":""},{"$f":"List2!BH180","v":""},{"$f":"List2!BI180","v":""},{"$f":"IF(ISERR(List2!BJ180),\"\",List2!BJ180)","v":""},{"$f":"IF(ISERR(List2!BK180),\"\",List2!BK180)","v":""}]
[{"$f":"List2!BF181","v":""},{"$f":"List2!BG181","v":""},{"$f":"List2!BH181","v":""},{"$f":"List2!BI181","v":""},{"$f":"IF(ISERR(List2!BJ181),\"\",List2!BJ181)","v":""},{"$f":"IF(ISERR(List2!BK181),\"\",List2!BK181)","v":""}]
[{"$f":"List2!BF182","v":""},{"$f":"List2!BG182","v":""},{"$f":"List2!BH182","v":""},{"$f":"List2!BI182","v":""},{"$f":"IF(ISERR(List2!BJ182),\"\",List2!BJ182)","v":""},{"$f":"IF(ISERR(List2!BK182),\"\",List2!BK182)","v":""}]
[{"$f":"List2!BF183","v":""},{"$f":"List2!BG183","v":""},{"$f":"List2!BH183","v":""},{"$f":"List2!BI183","v":""},{"$f":"IF(ISERR(List2!BJ183),\"\",List2!BJ183)","v":""},{"$f":"IF(ISERR(List2!BK183),\"\",List2!BK183)","v":""}]
[{"$f":"List2!BF184","v":""},{"$f":"List2!BG184","v":""},{"$f":"List2!BH184","v":""},{"$f":"List2!BI184","v":""},{"$f":"IF(ISERR(List2!BJ184),\"\",List2!BJ184)","v":""},{"$f":"IF(ISERR(List2!BK184),\"\",List2!BK184)","v":""}]
[{"$f":"List2!BF185","v":""},{"$f":"List2!BG185","v":""},{"$f":"List2!BH185","v":""},{"$f":"List2!BI185","v":""},{"$f":"IF(ISERR(List2!BJ185),\"\",List2!BJ185)","v":""},{"$f":"IF(ISERR(List2!BK185),\"\",List2!BK185)","v":""}]
[{"$f":"List2!BF186","v":""},{"$f":"List2!BG186","v":""},{"$f":"List2!BH186","v":""},{"$f":"List2!BI186","v":""},{"$f":"IF(ISERR(List2!BJ186),\"\",List2!BJ186)","v":""},{"$f":"IF(ISERR(List2!BK186),\"\",List2!BK186)","v":""}]
[{"$f":"List2!BF187","v":""},{"$f":"List2!BG187","v":""},{"$f":"List2!BH187","v":""},{"$f":"List2!BI187","v":""},{"$f":"IF(ISERR(List2!BJ187),\"\",List2!BJ187)","v":""},{"$f":"IF(ISERR(List2!BK187),\"\",List2!BK187)","v":""}]
[{"$f":"List2!BF188","v":""},{"$f":"List2!BG188","v":""},{"$f":"List2!BH188","v":""},{"$f":"List2!BI188","v":""},{"$f":"IF(ISERR(List2!BJ188),\"\",List2!BJ188)","v":""},{"$f":"IF(ISERR(List2!BK188),\"\",List2!BK188)","v":""}]
[{"$f":"List2!BF189","v":""},{"$f":"List2!BG189","v":""},{"$f":"List2!BH189","v":""},{"$f":"List2!BI189","v":""},{"$f":"IF(ISERR(List2!BJ189),\"\",List2!BJ189)","v":""},{"$f":"IF(ISERR(List2!BK189),\"\",List2!BK189)","v":""}]
[{"$f":"List2!BF190","v":""},{"$f":"List2!BG190","v":""},{"$f":"List2!BH190","v":""},{"$f":"List2!BI190","v":""},{"$f":"IF(ISERR(List2!BJ190),\"\",List2!BJ190)","v":""},{"$f":"IF(ISERR(List2!BK190),\"\",List2!BK190)","v":""}]
[{"$f":"List2!BF191","v":""},{"$f":"List2!BG191","v":""},{"$f":"List2!BH191","v":""},{"$f":"List2!BI191","v":""},{"$f":"IF(ISERR(List2!BJ191),\"\",List2!BJ191)","v":""},{"$f":"IF(ISERR(List2!BK191),\"\",List2!BK191)","v":""}]
[{"$f":"List2!BF192","v":""},{"$f":"List2!BG192","v":""},{"$f":"List2!BH192","v":""},{"$f":"List2!BI192","v":""},{"$f":"IF(ISERR(List2!BJ192),\"\",List2!BJ192)","v":""},{"$f":"IF(ISERR(List2!BK192),\"\",List2!BK192)","v":""}]
[{"$f":"List2!BF193","v":""},{"$f":"List2!BG193","v":""},{"$f":"List2!BH193","v":""},{"$f":"List2!BI193","v":""},{"$f":"IF(ISERR(List2!BJ193),\"\",List2!BJ193)","v":""},{"$f":"IF(ISERR(List2!BK193),\"\",List2!BK193)","v":""}]
[{"$f":"List2!BF194","v":""},{"$f":"List2!BG194","v":""},{"$f":"List2!BH194","v":""},{"$f":"List2!BI194","v":""},{"$f":"IF(ISERR(List2!BJ194),\"\",List2!BJ194)","v":""},{"$f":"IF(ISERR(List2!BK194),\"\",List2!BK194)","v":""}]
[{"$f":"List2!BF195","v":""},{"$f":"List2!BG195","v":""},{"$f":"List2!BH195","v":""},{"$f":"List2!BI195","v":""},{"$f":"IF(ISERR(List2!BJ195),\"\",List2!BJ195)","v":""},{"$f":"IF(ISERR(List2!BK195),\"\",List2!BK195)","v":""}]
[{"$f":"List2!BF196","v":""},{"$f":"List2!BG196","v":""},{"$f":"List2!BH196","v":""},{"$f":"List2!BI196","v":""},{"$f":"IF(ISERR(List2!BJ196),\"\",List2!BJ196)","v":""},{"$f":"IF(ISERR(List2!BK196),\"\",List2!BK196)","v":""}]
[{"$f":"List2!BF197","v":""},{"$f":"List2!BG197","v":""},{"$f":"List2!BH197","v":""},{"$f":"List2!BI197","v":""},{"$f":"IF(ISERR(List2!BJ197),\"\",List2!BJ197)","v":""},{"$f":"IF(ISERR(List2!BK197),\"\",List2!BK197)","v":""}]
[{"$f":"List2!BF198","v":""},{"$f":"List2!BG198","v":""},{"$f":"List2!BH198","v":""},{"$f":"List2!BI198","v":""},{"$f":"IF(ISERR(List2!BJ198),\"\",List2!BJ198)","v":""},{"$f":"IF(ISERR(List2!BK198),\"\",List2!BK198)","v":""}]
[{"$f":"List2!BF199","v":""},{"$f":"List2!BG199","v":""},{"$f":"List2!BH199","v":""},{"$f":"List2!BI199","v":""},{"$f":"IF(ISERR(List2!BJ199),\"\",List2!BJ199)","v":""},{"$f":"IF(ISERR(List2!BK199),\"\",List2!BK199)","v":""}]
[{"$f":"List2!BF200","v":""},{"$f":"List2!BG200","v":""},{"$f":"List2!BH200","v":""},{"$f":"List2!BI200","v":""},{"$f":"IF(ISERR(List2!BJ200),\"\",List2!BJ200)","v":""},{"$f":"IF(ISERR(List2!BK200),\"\",List2!BK200)","v":""}]
[{"$f":"List2!BF201","v":""},{"$f":"List2!BG201","v":""},{"$f":"List2!BH201","v":""},{"$f":"List2!BI201","v":""},{"$f":"IF(ISERR(List2!BJ201),\"\",List2!BJ201)","v":""},{"$f":"IF(ISERR(List2!BK201),\"\",List2!BK201)","v":""}]
[{"$f":"List2!BF202","v":""},{"$f":"List2!BG202","v":""},{"$f":"List2!BH202","v":""},{"$f":"List2!BI202","v":""},{"$f":"IF(ISERR(List2!BJ202),\"\",List2!BJ202)","v":""},{"$f":"IF(ISERR(List2!BK202),\"\",List2!BK202)","v":""}]
[{"$f":"List2!BF203","v":""},{"$f":"List2!BG203","v":""},{"$f":"List2!BH203","v":""},{"$f":"List2!BI203","v":""},{"$f":"IF(ISERR(List2!BJ203),\"\",List2!BJ203)","v":""},{"$f":"IF(ISERR(List2!BK203),\"\",List2!BK203)","v":""}]
[{"$f":"List2!BF204","v":""},{"$f":"List2!BG204","v":""},{"$f":"List2!BH204","v":""},{"$f":"List2!BI204","v":""},{"$f":"IF(ISERR(List2!BJ204),\"\",List2!BJ204)","v":""},{"$f":"IF(ISERR(List2!BK204),\"\",List2!BK204)","v":""}]
[{"$f":"List2!BF205","v":""},{"$f":"List2!BG205","v":""},{"$f":"List2!BH205","v":""},{"$f":"List2!BI205","v":""},{"$f":"IF(ISERR(List2!BJ205),\"\",List2!BJ205)","v":""},{"$f":"IF(ISERR(List2!BK205),\"\",List2!BK205)","v":""}]
[{"$f":"List2!BF206","v":""},{"$f":"List2!BG206","v":""},{"$f":"List2!BH206","v":""},{"$f":"List2!BI206","v":""},{"$f":"IF(ISERR(List2!BJ206),\"\",List2!BJ206)","v":""},{"$f":"IF(ISERR(List2!BK206),\"\",List2!BK206)","v":""}]
[{"$f":"List2!BF207","v":""},{"$f":"List2!BG207","v":""},{"$f":"List2!BH207","v":""},{"$f":"List2!BI207","v":""},{"$f":"IF(ISERR(List2!BJ207),\"\",List2!BJ207)","v":""},{"$f":"IF(ISERR(List2!BK207),\"\",List2!BK207)","v":""}]
[{"$f":"List2!BF208","v":""},{"$f":"List2!BG208","v":""},{"$f":"List2!BH208","v":""},{"$f":"List2!BI208","v":""},{"$f":"IF(ISERR(List2!BJ208),\"\",List2!BJ208)","v":""},{"$f":"IF(ISERR(List2!BK208),\"\",List2!BK208)","v":""}]
[{"$f":"List2!BF209","v":""},{"$f":"List2!BG209","v":""},{"$f":"List2!BH209","v":""},{"$f":"List2!BI209","v":""},{"$f":"IF(ISERR(List2!BJ209),\"\",List2!BJ209)","v":""},{"$f":"IF(ISERR(List2!BK209),\"\",List2!BK209)","v":""}]
[{"$f":"List2!BF210","v":""},{"$f":"List2!BG210","v":""},{"$f":"List2!BH210","v":""},{"$f":"List2!BI210","v":""},{"$f":"IF(ISERR(List2!BJ210),\"\",List2!BJ210)","v":""},{"$f":"IF(ISERR(List2!BK210),\"\",List2!BK210)","v":""}]
[{"$f":"List2!BF211","v":""},{"$f":"List2!BG211","v":""},{"$f":"List2!BH211","v":""},{"$f":"List2!BI211","v":""},{"$f":"IF(ISERR(List2!BJ211),\"\",List2!BJ211)","v":""},{"$f":"IF(ISERR(List2!BK211),\"\",List2!BK211)","v":""}]
[{"$f":"List2!BF212","v":""},{"$f":"List2!BG212","v":""},{"$f":"List2!BH212","v":""},{"$f":"List2!BI212","v":""},{"$f":"IF(ISERR(List2!BJ212),\"\",List2!BJ212)","v":""},{"$f":"IF(ISERR(List2!BK212),\"\",List2!BK212)","v":""}]
[{"$f":"List2!BF213","v":""},{"$f":"List2!BG213","v":""},{"$f":"List2!BH213","v":""},{"$f":"List2!BI213","v":""},{"$f":"IF(ISERR(List2!BJ213),\"\",List2!BJ213)","v":""},{"$f":"IF(ISERR(List2!BK213),\"\",List2!BK213)","v":""}]
[{"$f":"List2!BF214","v":""},{"$f":"List2!BG214","v":""},{"$f":"List2!BH214","v":""},{"$f":"List2!BI214","v":""},{"$f":"IF(ISERR(List2!BJ214),\"\",List2!BJ214)","v":""},{"$f":"IF(ISERR(List2!BK214),\"\",List2!BK214)","v":""}]
[{"$f":"List2!BF215","v":""},{"$f":"List2!BG215","v":""},{"$f":"List2!BH215","v":""},{"$f":"List2!BI215","v":""},{"$f":"IF(ISERR(List2!BJ215),\"\",List2!BJ215)","v":""},{"$f":"IF(ISERR(List2!BK215),\"\",List2!BK215)","v":""}]
[{"$f":"List2!BF216","v":""},{"$f":"List2!BG216","v":""},{"$f":"List2!BH216","v":""},{"$f":"List2!BI216","v":""},{"$f":"IF(ISERR(List2!BJ216),\"\",List2!BJ216)","v":""},{"$f":"IF(ISERR(List2!BK216),\"\",List2!BK216)","v":""}]
[{"$f":"List2!BF217","v":""},{"$f":"List2!BG217","v":""},{"$f":"List2!BH217","v":""},{"$f":"List2!BI217","v":""},{"$f":"IF(ISERR(List2!BJ217),\"\",List2!BJ217)","v":""},{"$f":"IF(ISERR(List2!BK217),\"\",List2!BK217)","v":""}]
[{"$f":"List2!BF218","v":""},{"$f":"List2!BG218","v":""},{"$f":"List2!BH218","v":""},{"$f":"List2!BI218","v":""},{"$f":"IF(ISERR(List2!BJ218),\"\",List2!BJ218)","v":""},{"$f":"IF(ISERR(List2!BK218),\"\",List2!BK218)","v":""}]
[{"$f":"List2!BF219","v":""},{"$f":"List2!BG219","v":""},{"$f":"List2!BH219","v":""},{"$f":"List2!BI219","v":""},{"$f":"IF(ISERR(List2!BJ219),\"\",List2!BJ219)","v":""},{"$f":"IF(ISERR(List2!BK219),\"\",List2!BK219)","v":""}]
[{"$f":"List2!BF220","v":""},{"$f":"List2!BG220","v":""},{"$f":"List2!BH220","v":""},{"$f":"List2!BI220","v":""},{"$f":"IF(ISERR(List2!BJ220),\"\",List2!BJ220)","v":""},{"$f":"IF(ISERR(List2!BK220),\"\",List2!BK220)","v":""}]
[{"$f":"List2!BF221","v":""},{"$f":"List2!BG221","v":""},{"$f":"List2!BH221","v":""},{"$f":"List2!BI221","v":""},{"$f":"IF(ISERR(List2!BJ221),\"\",List2!BJ221)","v":""},{"$f":"IF(ISERR(List2!BK221),\"\",List2!BK221)","v":""}]
[{"$f":"List2!BF222","v":""},{"$f":"List2!BG222","v":""},{"$f":"List2!BH222","v":""},{"$f":"List2!BI222","v":""},{"$f":"IF(ISERR(List2!BJ222),\"\",List2!BJ222)","v":""},{"$f":"IF(ISERR(List2!BK222),\"\",List2!BK222)","v":""}]
[{"$f":"List2!BF223","v":""},{"$f":"List2!BG223","v":""},{"$f":"List2!BH223","v":""},{"$f":"List2!BI223","v":""},{"$f":"IF(ISERR(List2!BJ223),\"\",List2!BJ223)","v":""},{"$f":"IF(ISERR(List2!BK223),\"\",List2!BK223)","v":""}]
[{"$f":"List2!BF224","v":""},{"$f":"List2!BG224","v":""},{"$f":"List2!BH224","v":""},{"$f":"List2!BI224","v":""},{"$f":"IF(ISERR(List2!BJ224),\"\",List2!BJ224)","v":""},{"$f":"IF(ISERR(List2!BK224),\"\",List2!BK224)","v":""}]
[{"$f":"List2!BF225","v":""},{"$f":"List2!BG225","v":""},{"$f":"List2!BH225","v":""},{"$f":"List2!BI225","v":""},{"$f":"IF(ISERR(List2!BJ225),\"\",List2!BJ225)","v":""},{"$f":"IF(ISERR(List2!BK225),\"\",List2!BK225)","v":""}]
[{"$f":"List2!BF226","v":""},{"$f":"List2!BG226","v":""},{"$f":"List2!BH226","v":""},{"$f":"List2!BI226","v":""},{"$f":"IF(ISERR(List2!BJ226),\"\",List2!BJ226)","v":""},{"$f":"IF(ISERR(List2!BK226),\"\",List2!BK226)","v":""}]
[{"$f":"List2!BF227","v":""},{"$f":"List2!BG227","v":""},{"$f":"List2!BH227","v":""},{"$f":"List2!BI227","v":""},{"$f":"IF(ISERR(List2!BJ227),\"\",List2!BJ227)","v":""},{"$f":"IF(ISERR(List2!BK227),\"\",List2!BK227)","v":""}]
[{"$f":"List2!BF228","v":""},{"$f":"List2!BG228","v":""},{"$f":"List2!BH228","v":""},{"$f":"List2!BI228","v":""},{"$f":"IF(ISERR(List2!BJ228),\"\",List2!BJ228)","v":""},{"$f":"IF(ISERR(List2!BK228),\"\",List2!BK228)","v":""}]
[{"$f":"List2!BF229","v":""},{"$f":"List2!BG229","v":""},{"$f":"List2!BH229","v":""},{"$f":"List2!BI229","v":""},{"$f":"IF(ISERR(List2!BJ229),\"\",List2!BJ229)","v":""},{"$f":"IF(ISERR(List2!BK229),\"\",List2!BK229)","v":""}]
[{"$f":"List2!BF230","v":""},{"$f":"List2!BG230","v":""},{"$f":"List2!BH230","v":""},{"$f":"List2!BI230","v":""},{"$f":"IF(ISERR(List2!BJ230),\"\",List2!BJ230)","v":""},{"$f":"IF(ISERR(List2!BK230),\"\",List2!BK230)","v":""}]
[{"$f":"List2!BF231","v":""},{"$f":"List2!BG231","v":""},{"$f":"List2!BH231","v":""},{"$f":"List2!BI231","v":""},{"$f":"IF(ISERR(List2!BJ231),\"\",List2!BJ231)","v":""},{"$f":"IF(ISERR(List2!BK231),\"\",List2!BK231)","v":""}]
[{"$f":"List2!BF232","v":""},{"$f":"List2!BG232","v":""},{"$f":"List2!BH232","v":""},{"$f":"List2!BI232","v":""},{"$f":"IF(ISERR(List2!BJ232),\"\",List2!BJ232)","v":""},{"$f":"IF(ISERR(List2!BK232),\"\",List2!BK232)","v":""}]
[{"$f":"List2!BF233","v":""},{"$f":"List2!BG233","v":""},{"$f":"List2!BH233","v":""},{"$f":"List2!BI233","v":""},{"$f":"IF(ISERR(List2!BJ233),\"\",List2!BJ233)","v":""},{"$f":"IF(ISERR(List2!BK233),\"\",List2!BK233)","v":""}]
[{"$f":"List2!BF234","v":""},{"$f":"List2!BG234","v":""},{"$f":"List2!BH234","v":""},{"$f":"List2!BI234","v":""},{"$f":"IF(ISERR(List2!BJ234),\"\",List2!BJ234)","v":""},{"$f":"IF(ISERR(List2!BK234),\"\",List2!BK234)","v":""}]
[{"$f":"List2!BF235","v":""},{"$f":"List2!BG235","v":""},{"$f":"List2!BH235","v":""},{"$f":"List2!BI235","v":""},{"$f":"IF(ISERR(List2!BJ235),\"\",List2!BJ235)","v":""},{"$f":"IF(ISERR(List2!BK235),\"\",List2!BK235)","v":""}]
[{"$f":"List2!BF236","v":""},{"$f":"List2!BG236","v":""},{"$f":"List2!BH236","v":""},{"$f":"List2!BI236","v":""},{"$f":"IF(ISERR(List2!BJ236),\"\",List2!BJ236)","v":""},{"$f":"IF(ISERR(List2!BK236),\"\",List2!BK236)","v":""}]
[{"$f":"List2!BF237","v":""},{"$f":"List2!BG237","v":""},{"$f":"List2!BH237","v":""},{"$f":"List2!BI237","v":""},{"$f":"IF(ISERR(List2!BJ237),\"\",List2!BJ237)","v":""},{"$f":"IF(ISERR(List2!BK237),\"\",List2!BK237)","v":""}]
[{"$f":"List2!BF238","v":""},{"$f":"List2!BG238","v":""},{"$f":"List2!BH238","v":""},{"$f":"List2!BI238","v":""},{"$f":"IF(ISERR(List2!BJ238),\"\",List2!BJ238)","v":""},{"$f":"IF(ISERR(List2!BK238),\"\",List2!BK238)","v":""}]
[{"$f":"List2!BF239","v":""},{"$f":"List2!BG239","v":""},{"$f":"List2!BH239","v":""},{"$f":"List2!BI239","v":""},{"$f":"IF(ISERR(List2!BJ239),\"\",List2!BJ239)","v":""},{"$f":"IF(ISERR(List2!BK239),\"\",List2!BK239)","v":""}]
[{"$f":"List2!BF240","v":""},{"$f":"List2!BG240","v":""},{"$f":"List2!BH240","v":""},{"$f":"List2!BI240","v":""},{"$f":"IF(ISERR(List2!BJ240),\"\",List2!BJ240)","v":""},{"$f":"IF(ISERR(List2!BK240),\"\",List2!BK240)","v":""}]
[{"$f":"List2!BF241","v":""},{"$f":"List2!BG241","v":""},{"$f":"List2!BH241","v":""},{"$f":"List2!BI241","v":""},{"$f":"IF(ISERR(List2!BJ241),\"\",List2!BJ241)","v":""},{"$f":"IF(ISERR(List2!BK241),\"\",List2!BK241)","v":""}]
[{"$f":"List2!BF242","v":""},{"$f":"List2!BG242","v":""},{"$f":"List2!BH242","v":""},{"$f":"List2!BI242","v":""},{"$f":"IF(ISERR(List2!BJ242),\"\",List2!BJ242)","v":""},{"$f":"IF(ISERR(List2!BK242),\"\",List2!BK242)","v":""}]
[{"$f":"List2!BF243","v":""},{"$f":"List2!BG243","v":""},{"$f":"List2!BH243","v":""},{"$f":"List2!BI243","v":""},{"$f":"IF(ISERR(List2!BJ243),\"\",List2!BJ243)","v":""},{"$f":"IF(ISERR(List2!BK243),\"\",List2!BK243)","v":""}]
[{"$f":"List2!BF244","v":""},{"$f":"List2!BG244","v":""},{"$f":"List2!BH244","v":""},{"$f":"List2!BI244","v":""},{"$f":"IF(ISERR(List2!BJ244),\"\",List2!BJ244)","v":""},{"$f":"IF(ISERR(List2!BK244),\"\",List2!BK244)","v":""}]
[{"$f":"List2!BF245","v":""},{"$f":"List2!BG245","v":""},{"$f":"List2!BH245","v":""},{"$f":"List2!BI245","v":""},{"$f":"IF(ISERR(List2!BJ245),\"\",List2!BJ245)","v":""},{"$f":"IF(ISERR(List2!BK245),\"\",List2!BK245)","v":""}]
[{"$f":"List2!BF246","v":""},{"$f":"List2!BG246","v":""},{"$f":"List2!BH246","v":""},{"$f":"List2!BI246","v":""},{"$f":"IF(ISERR(List2!BJ246),\"\",List2!BJ246)","v":""},{"$f":"IF(ISERR(List2!BK246),\"\",List2!BK246)","v":""}]
[{"$f":"List2!BF247","v":""},{"$f":"List2!BG247","v":""},{"$f":"List2!BH247","v":""},{"$f":"List2!BI247","v":""},{"$f":"IF(ISERR(List2!BJ247),\"\",List2!BJ247)","v":""},{"$f":"IF(ISERR(List2!BK247),\"\",List2!BK247)","v":""}]
[{"$f":"List2!BF248","v":""},{"$f":"List2!BG248","v":""},{"$f":"List2!BH248","v":""},{"$f":"List2!BI248","v":""},{"$f":"IF(ISERR(List2!BJ248),\"\",List2!BJ248)","v":""},{"$f":"IF(ISERR(List2!BK248),\"\",List2!BK248)","v":""}]
[{"$f":"List2!BF249","v":""},{"$f":"List2!BG249","v":""},{"$f":"List2!BH249","v":""},{"$f":"List2!BI249","v":""},{"$f":"IF(ISERR(List2!BJ249),\"\",List2!BJ249)","v":""},{"$f":"IF(ISERR(List2!BK249),\"\",List2!BK249)","v":""}]
[{"$f":"List2!BF250","v":""},{"$f":"List2!BG250","v":""},{"$f":"List2!BH250","v":""},{"$f":"List2!BI250","v":""},{"$f":"IF(ISERR(List2!BJ250),\"\",List2!BJ250)","v":""},{"$f":"IF(ISERR(List2!BK250),\"\",List2!BK250)","v":""}]
[{"$f":"List2!BF251","v":""},{"$f":"List2!BG251","v":""},{"$f":"List2!BH251","v":""},{"$f":"List2!BI251","v":""},{"$f":"IF(ISERR(List2!BJ251),\"\",List2!BJ251)","v":""},{"$f":"IF(ISERR(List2!BK251),\"\",List2!BK251)","v":""}]
[{"$f":"List2!BF252","v":""},{"$f":"List2!BG252","v":""},{"$f":"List2!BH252","v":""},{"$f":"List2!BI252","v":""},{"$f":"IF(ISERR(List2!BJ252),\"\",List2!BJ252)","v":""},{"$f":"IF(ISERR(List2!BK252),\"\",List2!BK252)","v":""}]
[{"$f":"List2!BF253","v":""},{"$f":"List2!BG253","v":""},{"$f":"List2!BH253","v":""},{"$f":"List2!BI253","v":""},{"$f":"IF(ISERR(List2!BJ253),\"\",List2!BJ253)","v":""},{"$f":"IF(ISERR(List2!BK253),\"\",List2!BK253)","v":""}]
[{"$f":"List2!BF254","v":""},{"$f":"List2!BG254","v":""},{"$f":"List2!BH254","v":""},{"$f":"List2!BI254","v":""},{"$f":"IF(ISERR(List2!BJ254),\"\",List2!BJ254)","v":""},{"$f":"IF(ISERR(List2!BK254),\"\",List2!BK254)","v":""}]
[{"$f":"List2!BF255","v":""},{"$f":"List2!BG255","v":""},{"$f":"List2!BH255","v":""},{"$f":"List2!BI255","v":""},{"$f":"IF(ISERR(List2!BJ255),\"\",List2!BJ255)","v":""},{"$f":"IF(ISERR(List2!BK255),\"\",List2!BK255)","v":""}]
[{"$f":"List2!BF256","v":""},{"$f":"List2!BG256","v":""},{"$f":"List2!BH256","v":""},{"$f":"List2!BI256","v":""},{"$f":"IF(ISERR(List2!BJ256),\"\",List2!BJ256)","v":""},{"$f":"IF(ISERR(List2!BK256),\"\",List2!BK256)","v":""}]
[{"$f":"List2!BF257","v":""},{"$f":"List2!BG257","v":""},{"$f":"List2!BH257","v":""},{"$f":"List2!BI257","v":""},{"$f":"IF(ISERR(List2!BJ257),\"\",List2!BJ257)","v":""},{"$f":"IF(ISERR(List2!BK257),\"\",List2!BK257)","v":""}]
[{"$f":"List2!BF258","v":""},{"$f":"List2!BG258","v":""},{"$f":"List2!BH258","v":""},{"$f":"List2!BI258","v":""},{"$f":"IF(ISERR(List2!BJ258),\"\",List2!BJ258)","v":""},{"$f":"IF(ISERR(List2!BK258),\"\",List2!BK258)","v":""}]
[{"$f":"List2!BF259","v":""},{"$f":"List2!BG259","v":""},{"$f":"List2!BH259","v":""},{"$f":"List2!BI259","v":""},{"$f":"IF(ISERR(List2!BJ259),\"\",List2!BJ259)","v":""},{"$f":"IF(ISERR(List2!BK259),\"\",List2!BK259)","v":""}]
[{"$f":"List2!BF260","v":""},{"$f":"List2!BG260","v":""},{"$f":"List2!BH260","v":""},{"$f":"List2!BI260","v":""},{"$f":"IF(ISERR(List2!BJ260),\"\",List2!BJ260)","v":""},{"$f":"IF(ISERR(List2!BK260),\"\",List2!BK260)","v":""}]
[{"$f":"List2!BF261","v":""},{"$f":"List2!BG261","v":""},{"$f":"List2!BH261","v":""},{"$f":"List2!BI261","v":""},{"$f":"IF(ISERR(List2!BJ261),\"\",List2!BJ261)","v":""},{"$f":"IF(ISERR(List2!BK261),\"\",List2!BK261)","v":""}]
[{"$f":"List2!BF262","v":""},{"$f":"List2!BG262","v":""},{"$f":"List2!BH262","v":""},{"$f":"List2!BI262","v":""},{"$f":"IF(ISERR(List2!BJ262),\"\",List2!BJ262)","v":""},{"$f":"IF(ISERR(List2!BK262),\"\",List2!BK262)","v":""}]
[{"$f":"List2!BF263","v":""},{"$f":"List2!BG263","v":""},{"$f":"List2!BH263","v":""},{"$f":"List2!BI263","v":""},{"$f":"IF(ISERR(List2!BJ263),\"\",List2!BJ263)","v":""},{"$f":"IF(ISERR(List2!BK263),\"\",List2!BK263)","v":""}]
[{"$f":"List2!BF264","v":""},{"$f":"List2!BG264","v":""},{"$f":"List2!BH264","v":""},{"$f":"List2!BI264","v":""},{"$f":"IF(ISERR(List2!BJ264),\"\",List2!BJ264)","v":""},{"$f":"IF(ISERR(List2!BK264),\"\",List2!BK264)","v":""}]
[{"$f":"List2!BF265","v":""},{"$f":"List2!BG265","v":""},{"$f":"List2!BH265","v":""},{"$f":"List2!BI265","v":""},{"$f":"IF(ISERR(List2!BJ265),\"\",List2!BJ265)","v":""},{"$f":"IF(ISERR(List2!BK265),\"\",List2!BK265)","v":""}]
[{"$f":"List2!BF266","v":""},{"$f":"List2!BG266","v":""},{"$f":"List2!BH266","v":""},{"$f":"List2!BI266","v":""},{"$f":"IF(ISERR(List2!BJ266),\"\",List2!BJ266)","v":""},{"$f":"IF(ISERR(List2!BK266),\"\",List2!BK266)","v":""}]
[{"$f":"List2!BF267","v":""},{"$f":"List2!BG267","v":""},{"$f":"List2!BH267","v":""},{"$f":"List2!BI267","v":""},{"$f":"IF(ISERR(List2!BJ267),\"\",List2!BJ267)","v":""},{"$f":"IF(ISERR(List2!BK267),\"\",List2!BK267)","v":""}]
[{"$f":"List2!BF268","v":""},{"$f":"List2!BG268","v":""},{"$f":"List2!BH268","v":""},{"$f":"List2!BI268","v":""},{"$f":"IF(ISERR(List2!BJ268),\"\",List2!BJ268)","v":""},{"$f":"IF(ISERR(List2!BK268),\"\",List2!BK268)","v":""}]
[{"$f":"List2!BF269","v":""},{"$f":"List2!BG269","v":""},{"$f":"List2!BH269","v":""},{"$f":"List2!BI269","v":""},{"$f":"IF(ISERR(List2!BJ269),\"\",List2!BJ269)","v":""},{"$f":"IF(ISERR(List2!BK269),\"\",List2!BK269)","v":""}]
[{"$f":"List2!BF270","v":""},{"$f":"List2!BG270","v":""},{"$f":"List2!BH270","v":""},{"$f":"List2!BI270","v":""},{"$f":"IF(ISERR(List2!BJ270),\"\",List2!BJ270)","v":""},{"$f":"IF(ISERR(List2!BK270),\"\",List2!BK270)","v":""}]
[{"$f":"List2!BF271","v":""},{"$f":"List2!BG271","v":""},{"$f":"List2!BH271","v":""},{"$f":"List2!BI271","v":""},{"$f":"IF(ISERR(List2!BJ271),\"\",List2!BJ271)","v":""},{"$f":"IF(ISERR(List2!BK271),\"\",List2!BK271)","v":""}]
[{"$f":"List2!BF272","v":""},{"$f":"List2!BG272","v":""},{"$f":"List2!BH272","v":""},{"$f":"List2!BI272","v":""},{"$f":"IF(ISERR(List2!BJ272),\"\",List2!BJ272)","v":""},{"$f":"IF(ISERR(List2!BK272),\"\",List2!BK272)","v":""}]
[{"$f":"List2!BF273","v":""},{"$f":"List2!BG273","v":""},{"$f":"List2!BH273","v":""},{"$f":"List2!BI273","v":""},{"$f":"IF(ISERR(List2!BJ273),\"\",List2!BJ273)","v":""},{"$f":"IF(ISERR(List2!BK273),\"\",List2!BK273)","v":""}]
[{"$f":"List2!BF274","v":""},{"$f":"List2!BG274","v":""},{"$f":"List2!BH274","v":""},{"$f":"List2!BI274","v":""},{"$f":"IF(ISERR(List2!BJ274),\"\",List2!BJ274)","v":""},{"$f":"IF(ISERR(List2!BK274),\"\",List2!BK274)","v":""}]
[{"$f":"List2!BF275","v":""},{"$f":"List2!BG275","v":""},{"$f":"List2!BH275","v":""},{"$f":"List2!BI275","v":""},{"$f":"IF(ISERR(List2!BJ275),\"\",List2!BJ275)","v":""},{"$f":"IF(ISERR(List2!BK275),\"\",List2!BK275)","v":""}]
[{"$f":"List2!BF276","v":""},{"$f":"List2!BG276","v":""},{"$f":"List2!BH276","v":""},{"$f":"List2!BI276","v":""},{"$f":"IF(ISERR(List2!BJ276),\"\",List2!BJ276)","v":""},{"$f":"IF(ISERR(List2!BK276),\"\",List2!BK276)","v":""}]
[{"$f":"List2!BF277","v":""},{"$f":"List2!BG277","v":""},{"$f":"List2!BH277","v":""},{"$f":"List2!BI277","v":""},{"$f":"IF(ISERR(List2!BJ277),\"\",List2!BJ277)","v":""},{"$f":"IF(ISERR(List2!BK277),\"\",List2!BK277)","v":""}]
[{"$f":"List2!BF278","v":""},{"$f":"List2!BG278","v":""},{"$f":"List2!BH278","v":""},{"$f":"List2!BI278","v":""},{"$f":"IF(ISERR(List2!BJ278),\"\",List2!BJ278)","v":""},{"$f":"IF(ISERR(List2!BK278),\"\",List2!BK278)","v":""}]
[{"$f":"List2!BF279","v":""},{"$f":"List2!BG279","v":""},{"$f":"List2!BH279","v":""},{"$f":"List2!BI279","v":""},{"$f":"IF(ISERR(List2!BJ279),\"\",List2!BJ279)","v":""},{"$f":"IF(ISERR(List2!BK279),\"\",List2!BK279)","v":""}]
[{"$f":"List2!BF280","v":""},{"$f":"List2!BG280","v":""},{"$f":"List2!BH280","v":""},{"$f":"List2!BI280","v":""},{"$f":"IF(ISERR(List2!BJ280),\"\",List2!BJ280)","v":""},{"$f":"IF(ISERR(List2!BK280),\"\",List2!BK280)","v":""}]
[{"$f":"List2!BF281","v":""},{"$f":"List2!BG281","v":""},{"$f":"List2!BH281","v":""},{"$f":"List2!BI281","v":""},{"$f":"IF(ISERR(List2!BJ281),\"\",List2!BJ281)","v":""},{"$f":"IF(ISERR(List2!BK281),\"\",List2!BK281)","v":""}]
[{"$f":"List2!BF282","v":""},{"$f":"List2!BG282","v":""},{"$f":"List2!BH282","v":""},{"$f":"List2!BI282","v":""},{"$f":"IF(ISERR(List2!BJ282),\"\",List2!BJ282)","v":""},{"$f":"IF(ISERR(List2!BK282),\"\",List2!BK282)","v":""}]
[{"$f":"List2!BF283","v":""},{"$f":"List2!BG283","v":""},{"$f":"List2!BH283","v":""},{"$f":"List2!BI283","v":""},{"$f":"IF(ISERR(List2!BJ283),\"\",List2!BJ283)","v":""},{"$f":"IF(ISERR(List2!BK283),\"\",List2!BK283)","v":""}]
[{"$f":"List2!BF284","v":""},{"$f":"List2!BG284","v":""},{"$f":"List2!BH284","v":""},{"$f":"List2!BI284","v":""},{"$f":"IF(ISERR(List2!BJ284),\"\",List2!BJ284)","v":""},{"$f":"IF(ISERR(List2!BK284),\"\",List2!BK284)","v":""}]
[{"$f":"List2!BF285","v":""},{"$f":"List2!BG285","v":""},{"$f":"List2!BH285","v":""},{"$f":"List2!BI285","v":""},{"$f":"IF(ISERR(List2!BJ285),\"\",List2!BJ285)","v":""},{"$f":"IF(ISERR(List2!BK285),\"\",List2!BK285)","v":""}]
[{"$f":"List2!BF286","v":""},{"$f":"List2!BG286","v":""},{"$f":"List2!BH286","v":""},{"$f":"List2!BI286","v":""},{"$f":"IF(ISERR(List2!BJ286),\"\",List2!BJ286)","v":""},{"$f":"IF(ISERR(List2!BK286),\"\",List2!BK286)","v":""}]
[{"$f":"List2!BF287","v":""},{"$f":"List2!BG287","v":""},{"$f":"List2!BH287","v":""},{"$f":"List2!BI287","v":""},{"$f":"IF(ISERR(List2!BJ287),\"\",List2!BJ287)","v":""},{"$f":"IF(ISERR(List2!BK287),\"\",List2!BK287)","v":""}]
[{"$f":"List2!BF288","v":""},{"$f":"List2!BG288","v":""},{"$f":"List2!BH288","v":""},{"$f":"List2!BI288","v":""},{"$f":"IF(ISERR(List2!BJ288),\"\",List2!BJ288)","v":""},{"$f":"IF(ISERR(List2!BK288),\"\",List2!BK288)","v":""}]
[{"$f":"List2!BF289","v":""},{"$f":"List2!BG289","v":""},{"$f":"List2!BH289","v":""},{"$f":"List2!BI289","v":""},{"$f":"IF(ISERR(List2!BJ289),\"\",List2!BJ289)","v":""},{"$f":"IF(ISERR(List2!BK289),\"\",List2!BK289)","v":""}]
[{"$f":"List2!BF290","v":""},{"$f":"List2!BG290","v":""},{"$f":"List2!BH290","v":""},{"$f":"List2!BI290","v":""},{"$f":"IF(ISERR(List2!BJ290),\"\",List2!BJ290)","v":""},{"$f":"IF(ISERR(List2!BK290),\"\",List2!BK290)","v":""}]
[{"$f":"List2!BF291","v":""},{"$f":"List2!BG291","v":""},{"$f":"List2!BH291","v":""},{"$f":"List2!BI291","v":""},{"$f":"IF(ISERR(List2!BJ291),\"\",List2!BJ291)","v":""},{"$f":"IF(ISERR(List2!BK291),\"\",List2!BK291)","v":""}]
[{"$f":"List2!BF292","v":""},{"$f":"List2!BG292","v":""},{"$f":"List2!BH292","v":""},{"$f":"List2!BI292","v":""},{"$f":"IF(ISERR(List2!BJ292),\"\",List2!BJ292)","v":""},{"$f":"IF(ISERR(List2!BK292),\"\",List2!BK292)","v":""}]
[{"$f":"List2!BF293","v":""},{"$f":"List2!BG293","v":""},{"$f":"List2!BH293","v":""},{"$f":"List2!BI293","v":""},{"$f":"IF(ISERR(List2!BJ293),\"\",List2!BJ293)","v":""},{"$f":"IF(ISERR(List2!BK293),\"\",List2!BK293)","v":""}]
[{"$f":"List2!BF294","v":""},{"$f":"List2!BG294","v":""},{"$f":"List2!BH294","v":""},{"$f":"List2!BI294","v":""},{"$f":"IF(ISERR(List2!BJ294),\"\",List2!BJ294)","v":""},{"$f":"IF(ISERR(List2!BK294),\"\",List2!BK294)","v":""}]
[{"$f":"List2!BF295","v":""},{"$f":"List2!BG295","v":""},{"$f":"List2!BH295","v":""},{"$f":"List2!BI295","v":""},{"$f":"IF(ISERR(List2!BJ295),\"\",List2!BJ295)","v":""},{"$f":"IF(ISERR(List2!BK295),\"\",List2!BK295)","v":""}]
[{"$f":"List2!BF296","v":""},{"$f":"List2!BG296","v":""},{"$f":"List2!BH296","v":""},{"$f":"List2!BI296","v":""},{"$f":"IF(ISERR(List2!BJ296),\"\",List2!BJ296)","v":""},{"$f":"IF(ISERR(List2!BK296),\"\",List2!BK296)","v":""}]
[{"$f":"List2!BF297","v":""},{"$f":"List2!BG297","v":""},{"$f":"List2!BH297","v":""},{"$f":"List2!BI297","v":""},{"$f":"IF(ISERR(List2!BJ297),\"\",List2!BJ297)","v":""},{"$f":"IF(ISERR(List2!BK297),\"\",List2!BK297)","v":""}]
[{"$f":"List2!BF298","v":""},{"$f":"List2!BG298","v":""},{"$f":"List2!BH298","v":""},{"$f":"List2!BI298","v":""},{"$f":"IF(ISERR(List2!BJ298),\"\",List2!BJ298)","v":""},{"$f":"IF(ISERR(List2!BK298),\"\",List2!BK298)","v":""}]
[{"$f":"List2!BF299","v":""},{"$f":"List2!BG299","v":""},{"$f":"List2!BH299","v":""},{"$f":"List2!BI299","v":""},{"$f":"IF(ISERR(List2!BJ299),\"\",List2!BJ299)","v":""},{"$f":"IF(ISERR(List2!BK299),\"\",List2!BK299)","v":""}]
[{"$f":"List2!BF300","v":""},{"$f":"List2!BG300","v":""},{"$f":"List2!BH300","v":""},{"$f":"List2!BI300","v":""},{"$f":"IF(ISERR(List2!BJ300),\"\",List2!BJ300)","v":""},{"$f":"IF(ISERR(List2!BK300),\"\",List2!BK300)","v":""}]
[{"$f":"List2!BF301","v":""},{"$f":"List2!BG301","v":""},{"$f":"List2!BH301","v":""},{"$f":"List2!BI301","v":""},{"$f":"IF(ISERR(List2!BJ301),\"\",List2!BJ301)","v":""},{"$f":"IF(ISERR(List2!BK301),\"\",List2!BK301)","v":""}]
[{"$f":"List2!BF302","v":""},{"$f":"List2!BG302","v":""},{"$f":"List2!BH302","v":""},{"$f":"List2!BI302","v":""},{"$f":"IF(ISERR(List2!BJ302),\"\",List2!BJ302)","v":""},{"$f":"IF(ISERR(List2!BK302),\"\",List2!BK302)","v":""}]
[{"$f":"List2!BF303","v":""},{"$f":"List2!BG303","v":""},{"$f":"List2!BH303","v":""},{"$f":"List2!BI303","v":""},{"$f":"IF(ISERR(List2!BJ303),\"\",List2!BJ303)","v":""},{"$f":"IF(ISERR(List2!BK303),\"\",List2!BK303)","v":""}]
[{"$f":"List2!BF304","v":""},{"$f":"List2!BG304","v":""},{"$f":"List2!BH304","v":""},{"$f":"List2!BI304","v":""},{"$f":"IF(ISERR(List2!BJ304),\"\",List2!BJ304)","v":""},{"$f":"IF(ISERR(List2!BK304),\"\",List2!BK304)","v":""}]
[{"$f":"List2!BF305","v":""},{"$f":"List2!BG305","v":""},{"$f":"List2!BH305","v":""},{"$f":"List2!BI305","v":""},{"$f":"IF(ISERR(List2!BJ305),\"\",List2!BJ305)","v":""},{"$f":"IF(ISERR(List2!BK305),\"\",List2!BK305)","v":""}]
[{"$f":"List2!BF306","v":""},{"$f":"List2!BG306","v":""},{"$f":"List2!BH306","v":""},{"$f":"List2!BI306","v":""},{"$f":"IF(ISERR(List2!BJ306),\"\",List2!BJ306)","v":""},{"$f":"IF(ISERR(List2!BK306),\"\",List2!BK306)","v":""}]
[{"$f":"List2!BF307","v":""},{"$f":"List2!BG307","v":""},{"$f":"List2!BH307","v":""},{"$f":"List2!BI307","v":""},{"$f":"IF(ISERR(List2!BJ307),\"\",List2!BJ307)","v":""},{"$f":"IF(ISERR(List2!BK307),\"\",List2!BK307)","v":""}]
[{"$f":"List2!BF308","v":""},{"$f":"List2!BG308","v":""},{"$f":"List2!BH308","v":""},{"$f":"List2!BI308","v":""},{"$f":"IF(ISERR(List2!BJ308),\"\",List2!BJ308)","v":""},{"$f":"IF(ISERR(List2!BK308),\"\",List2!BK308)","v":""}]
[{"$f":"List2!BF309","v":""},{"$f":"List2!BG309","v":""},{"$f":"List2!BH309","v":""},{"$f":"List2!BI309","v":""},{"$f":"IF(ISERR(List2!BJ309),\"\",List2!BJ309)","v":""},{"$f":"IF(ISERR(List2!BK309),\"\",List2!BK309)","v":""}]
[{"$f":"List2!BF310","v":""},{"$f":"List2!BG310","v":""},{"$f":"List2!BH310","v":""},{"$f":"List2!BI310","v":""},{"$f":"IF(ISERR(List2!BJ310),\"\",List2!BJ310)","v":""},{"$f":"IF(ISERR(List2!BK310),\"\",List2!BK310)","v":""}]
[{"$f":"List2!BF311","v":""},{"$f":"List2!BG311","v":""},{"$f":"List2!BH311","v":""},{"$f":"List2!BI311","v":""},{"$f":"IF(ISERR(List2!BJ311),\"\",List2!BJ311)","v":""},{"$f":"IF(ISERR(List2!BK311),\"\",List2!BK311)","v":""}]
[{"$f":"List2!BF312","v":""},{"$f":"List2!BG312","v":""},{"$f":"List2!BH312","v":""},{"$f":"List2!BI312","v":""},{"$f":"IF(ISERR(List2!BJ312),\"\",List2!BJ312)","v":""},{"$f":"IF(ISERR(List2!BK312),\"\",List2!BK312)","v":""}]
[{"$f":"List2!BF313","v":""},{"$f":"List2!BG313","v":""},{"$f":"List2!BH313","v":""},{"$f":"List2!BI313","v":""},{"$f":"IF(ISERR(List2!BJ313),\"\",List2!BJ313)","v":""},{"$f":"IF(ISERR(List2!BK313),\"\",List2!BK313)","v":""}]
[{"$f":"List2!BF314","v":""},{"$f":"List2!BG314","v":""},{"$f":"List2!BH314","v":""},{"$f":"List2!BI314","v":""},{"$f":"IF(ISERR(List2!BJ314),\"\",List2!BJ314)","v":""},{"$f":"IF(ISERR(List2!BK314),\"\",List2!BK314)","v":""}]
[{"$f":"List2!BF315","v":""},{"$f":"List2!BG315","v":""},{"$f":"List2!BH315","v":""},{"$f":"List2!BI315","v":""},{"$f":"IF(ISERR(List2!BJ315),\"\",List2!BJ315)","v":""},{"$f":"IF(ISERR(List2!BK315),\"\",List2!BK315)","v":""}]
[{"$f":"List2!BF316","v":""},{"$f":"List2!BG316","v":""},{"$f":"List2!BH316","v":""},{"$f":"List2!BI316","v":""},{"$f":"IF(ISERR(List2!BJ316),\"\",List2!BJ316)","v":""},{"$f":"IF(ISERR(List2!BK316),\"\",List2!BK316)","v":""}]
[{"$f":"List2!BF317","v":""},{"$f":"List2!BG317","v":""},{"$f":"List2!BH317","v":""},{"$f":"List2!BI317","v":""},{"$f":"IF(ISERR(List2!BJ317),\"\",List2!BJ317)","v":""},{"$f":"IF(ISERR(List2!BK317),\"\",List2!BK317)","v":""}]
[{"$f":"List2!BF318","v":""},{"$f":"List2!BG318","v":""},{"$f":"List2!BH318","v":""},{"$f":"List2!BI318","v":""},{"$f":"IF(ISERR(List2!BJ318),\"\",List2!BJ318)","v":""},{"$f":"IF(ISERR(List2!BK318),\"\",List2!BK318)","v":""}]
[{"$f":"List2!BF319","v":""},{"$f":"List2!BG319","v":""},{"$f":"List2!BH319","v":""},{"$f":"List2!BI319","v":""},{"$f":"IF(ISERR(List2!BJ319),\"\",List2!BJ319)","v":""},{"$f":"IF(ISERR(List2!BK319),\"\",List2!BK319)","v":""}]
[{"$f":"List2!BF320","v":""},{"$f":"List2!BG320","v":""},{"$f":"List2!BH320","v":""},{"$f":"List2!BI320","v":""},{"$f":"IF(ISERR(List2!BJ320),\"\",List2!BJ320)","v":""},{"$f":"IF(ISERR(List2!BK320),\"\",List2!BK320)","v":""}]
[{"$f":"List2!BF321","v":""},{"$f":"List2!BG321","v":""},{"$f":"List2!BH321","v":""},{"$f":"List2!BI321","v":""},{"$f":"IF(ISERR(List2!BJ321),\"\",List2!BJ321)","v":""},{"$f":"IF(ISERR(List2!BK321),\"\",List2!BK321)","v":""}]
[{"$f":"List2!BF322","v":""},{"$f":"List2!BG322","v":""},{"$f":"List2!BH322","v":""},{"$f":"List2!BI322","v":""},{"$f":"IF(ISERR(List2!BJ322),\"\",List2!BJ322)","v":""},{"$f":"IF(ISERR(List2!BK322),\"\",List2!BK322)","v":""}]
[{"$f":"List2!BF323","v":""},{"$f":"List2!BG323","v":""},{"$f":"List2!BH323","v":""},{"$f":"List2!BI323","v":""},{"$f":"IF(ISERR(List2!BJ323),\"\",List2!BJ323)","v":""},{"$f":"IF(ISERR(List2!BK323),\"\",List2!BK323)","v":""}]
[{"$f":"List2!BF324","v":""},{"$f":"List2!BG324","v":""},{"$f":"List2!BH324","v":""},{"$f":"List2!BI324","v":""},{"$f":"IF(ISERR(List2!BJ324),\"\",List2!BJ324)","v":""},{"$f":"IF(ISERR(List2!BK324),\"\",List2!BK324)","v":""}]
[{"$f":"List2!BF325","v":""},{"$f":"List2!BG325","v":""},{"$f":"List2!BH325","v":""},{"$f":"List2!BI325","v":""},{"$f":"IF(ISERR(List2!BJ325),\"\",List2!BJ325)","v":""},{"$f":"IF(ISERR(List2!BK325),\"\",List2!BK325)","v":""}]
[{"$f":"List2!BF326","v":""},{"$f":"List2!BG326","v":""},{"$f":"List2!BH326","v":""},{"$f":"List2!BI326","v":""},{"$f":"IF(ISERR(List2!BJ326),\"\",List2!BJ326)","v":""},{"$f":"IF(ISERR(List2!BK326),\"\",List2!BK326)","v":""}]
[{"$f":"List2!BF327","v":""},{"$f":"List2!BG327","v":""},{"$f":"List2!BH327","v":""},{"$f":"List2!BI327","v":""},{"$f":"IF(ISERR(List2!BJ327),\"\",List2!BJ327)","v":""},{"$f":"IF(ISERR(List2!BK327),\"\",List2!BK327)","v":""}]
[{"$f":"List2!BF328","v":""},{"$f":"List2!BG328","v":""},{"$f":"List2!BH328","v":""},{"$f":"List2!BI328","v":""},{"$f":"IF(ISERR(List2!BJ328),\"\",List2!BJ328)","v":""},{"$f":"IF(ISERR(List2!BK328),\"\",List2!BK328)","v":""}]
[{"$f":"List2!BF329","v":""},{"$f":"List2!BG329","v":""},{"$f":"List2!BH329","v":""},{"$f":"List2!BI329","v":""},{"$f":"IF(ISERR(List2!BJ329),\"\",List2!BJ329)","v":""},{"$f":"IF(ISERR(List2!BK329),\"\",List2!BK329)","v":""}]
[{"$f":"List2!BF330","v":""},{"$f":"List2!BG330","v":""},{"$f":"List2!BH330","v":""},{"$f":"List2!BI330","v":""},{"$f":"IF(ISERR(List2!BJ330),\"\",List2!BJ330)","v":""},{"$f":"IF(ISERR(List2!BK330),\"\",List2!BK330)","v":""}]
[{"$f":"List2!BF331","v":""},{"$f":"List2!BG331","v":""},{"$f":"List2!BH331","v":""},{"$f":"List2!BI331","v":""},{"$f":"IF(ISERR(List2!BJ331),\"\",List2!BJ331)","v":""},{"$f":"IF(ISERR(List2!BK331),\"\",List2!BK331)","v":""}]
[{"$f":"List2!BF332","v":""},{"$f":"List2!BG332","v":""},{"$f":"List2!BH332","v":""},{"$f":"List2!BI332","v":""},{"$f":"IF(ISERR(List2!BJ332),\"\",List2!BJ332)","v":""},{"$f":"IF(ISERR(List2!BK332),\"\",List2!BK332)","v":""}]
[{"$f":"List2!BF333","v":""},{"$f":"List2!BG333","v":""},{"$f":"List2!BH333","v":""},{"$f":"List2!BI333","v":""},{"$f":"IF(ISERR(List2!BJ333),\"\",List2!BJ333)","v":""},{"$f":"IF(ISERR(List2!BK333),\"\",List2!BK333)","v":""}]
[{"$f":"List2!BF334","v":""},{"$f":"List2!BG334","v":""},{"$f":"List2!BH334","v":""},{"$f":"List2!BI334","v":""},{"$f":"IF(ISERR(List2!BJ334),\"\",List2!BJ334)","v":""},{"$f":"IF(ISERR(List2!BK334),\"\",List2!BK334)","v":""}]
[{"$f":"List2!BF335","v":""},{"$f":"List2!BG335","v":""},{"$f":"List2!BH335","v":""},{"$f":"List2!BI335","v":""},{"$f":"IF(ISERR(List2!BJ335),\"\",List2!BJ335)","v":""},{"$f":"IF(ISERR(List2!BK335),\"\",List2!BK335)","v":""}]
[{"$f":"List2!BF336","v":""},{"$f":"List2!BG336","v":""},{"$f":"List2!BH336","v":""},{"$f":"List2!BI336","v":""},{"$f":"IF(ISERR(List2!BJ336),\"\",List2!BJ336)","v":""},{"$f":"IF(ISERR(List2!BK336),\"\",List2!BK336)","v":""}]
[{"$f":"List2!BF337","v":""},{"$f":"List2!BG337","v":""},{"$f":"List2!BH337","v":""},{"$f":"List2!BI337","v":""},{"$f":"IF(ISERR(List2!BJ337),\"\",List2!BJ337)","v":""},{"$f":"IF(ISERR(List2!BK337),\"\",List2!BK337)","v":""}]
[{"$f":"List2!BF338","v":""},{"$f":"List2!BG338","v":""},{"$f":"List2!BH338","v":""},{"$f":"List2!BI338","v":""},{"$f":"IF(ISERR(List2!BJ338),\"\",List2!BJ338)","v":""},{"$f":"IF(ISERR(List2!BK338),\"\",List2!BK338)","v":""}]
[{"$f":"List2!BF339","v":""},{"$f":"List2!BG339","v":""},{"$f":"List2!BH339","v":""},{"$f":"List2!BI339","v":""},{"$f":"IF(ISERR(List2!BJ339),\"\",List2!BJ339)","v":""},{"$f":"IF(ISERR(List2!BK339),\"\",List2!BK339)","v":""}]
[{"$f":"List2!BF340","v":""},{"$f":"List2!BG340","v":""},{"$f":"List2!BH340","v":""},{"$f":"List2!BI340","v":""},{"$f":"IF(ISERR(List2!BJ340),\"\",List2!BJ340)","v":""},{"$f":"IF(ISERR(List2!BK340),\"\",List2!BK340)","v":""}]
[{"$f":"List2!BF341","v":""},{"$f":"List2!BG341","v":""},{"$f":"List2!BH341","v":""},{"$f":"List2!BI341","v":""},{"$f":"IF(ISERR(List2!BJ341),\"\",List2!BJ341)","v":""},{"$f":"IF(ISERR(List2!BK341),\"\",List2!BK341)","v":""}]
[{"$f":"List2!BF342","v":""},{"$f":"List2!BG342","v":""},{"$f":"List2!BH342","v":""},{"$f":"List2!BI342","v":""},{"$f":"IF(ISERR(List2!BJ342),\"\",List2!BJ342)","v":""},{"$f":"IF(ISERR(List2!BK342),\"\",List2!BK342)","v":""}]
[{"$f":"List2!BF343","v":""},{"$f":"List2!BG343","v":""},{"$f":"List2!BH343","v":""},{"$f":"List2!BI343","v":""},{"$f":"IF(ISERR(List2!BJ343),\"\",List2!BJ343)","v":""},{"$f":"IF(ISERR(List2!BK343),\"\",List2!BK343)","v":""}]
[{"$f":"List2!BF344","v":""},{"$f":"List2!BG344","v":""},{"$f":"List2!BH344","v":""},{"$f":"List2!BI344","v":""},{"$f":"IF(ISERR(List2!BJ344),\"\",List2!BJ344)","v":""},{"$f":"IF(ISERR(List2!BK344),\"\",List2!BK344)","v":""}]
[{"$f":"List2!BF345","v":""},{"$f":"List2!BG345","v":""},{"$f":"List2!BH345","v":""},{"$f":"List2!BI345","v":""},{"$f":"IF(ISERR(List2!BJ345),\"\",List2!BJ345)","v":""},{"$f":"IF(ISERR(List2!BK345),\"\",List2!BK345)","v":""}]
[{"$f":"List2!BF346","v":""},{"$f":"List2!BG346","v":""},{"$f":"List2!BH346","v":""},{"$f":"List2!BI346","v":""},{"$f":"IF(ISERR(List2!BJ346),\"\",List2!BJ346)","v":""},{"$f":"IF(ISERR(List2!BK346),\"\",List2!BK346)","v":""}]
[{"$f":"List2!BF347","v":""},{"$f":"List2!BG347","v":""},{"$f":"List2!BH347","v":""},{"$f":"List2!BI347","v":""},{"$f":"IF(ISERR(List2!BJ347),\"\",List2!BJ347)","v":""},{"$f":"IF(ISERR(List2!BK347),\"\",List2!BK347)","v":""}]
[{"$f":"List2!BF348","v":""},{"$f":"List2!BG348","v":""},{"$f":"List2!BH348","v":""},{"$f":"List2!BI348","v":""},{"$f":"IF(ISERR(List2!BJ348),\"\",List2!BJ348)","v":""},{"$f":"IF(ISERR(List2!BK348),\"\",List2!BK348)","v":""}]
[{"$f":"List2!BF349","v":""},{"$f":"List2!BG349","v":""},{"$f":"List2!BH349","v":""},{"$f":"List2!BI349","v":""},{"$f":"IF(ISERR(List2!BJ349),\"\",List2!BJ349)","v":""},{"$f":"IF(ISERR(List2!BK349),\"\",List2!BK349)","v":""}]
[{"$f":"List2!BF350","v":""},{"$f":"List2!BG350","v":""},{"$f":"List2!BH350","v":""},{"$f":"List2!BI350","v":""},{"$f":"IF(ISERR(List2!BJ350),\"\",List2!BJ350)","v":""},{"$f":"IF(ISERR(List2!BK350),\"\",List2!BK350)","v":""}]
[{"$f":"List2!BF351","v":""},{"$f":"List2!BG351","v":""},{"$f":"List2!BH351","v":""},{"$f":"List2!BI351","v":""},{"$f":"IF(ISERR(List2!BJ351),\"\",List2!BJ351)","v":""},{"$f":"IF(ISERR(List2!BK351),\"\",List2!BK351)","v":""}]
[{"$f":"List2!BF352","v":""},{"$f":"List2!BG352","v":""},{"$f":"List2!BH352","v":""},{"$f":"List2!BI352","v":""},{"$f":"IF(ISERR(List2!BJ352),\"\",List2!BJ352)","v":""},{"$f":"IF(ISERR(List2!BK352),\"\",List2!BK352)","v":""}]
[{"$f":"List2!BF353","v":""},{"$f":"List2!BG353","v":""},{"$f":"List2!BH353","v":""},{"$f":"List2!BI353","v":""},{"$f":"IF(ISERR(List2!BJ353),\"\",List2!BJ353)","v":""},{"$f":"IF(ISERR(List2!BK353),\"\",List2!BK353)","v":""}]
[{"$f":"List2!BF354","v":""},{"$f":"List2!BG354","v":""},{"$f":"List2!BH354","v":""},{"$f":"List2!BI354","v":""},{"$f":"IF(ISERR(List2!BJ354),\"\",List2!BJ354)","v":""},{"$f":"IF(ISERR(List2!BK354),\"\",List2!BK354)","v":""}]
[{"$f":"List2!BF355","v":""},{"$f":"List2!BG355","v":""},{"$f":"List2!BH355","v":""},{"$f":"List2!BI355","v":""},{"$f":"IF(ISERR(List2!BJ355),\"\",List2!BJ355)","v":""},{"$f":"IF(ISERR(List2!BK355),\"\",List2!BK355)","v":""}]
[{"$f":"List2!BF356","v":""},{"$f":"List2!BG356","v":""},{"$f":"List2!BH356","v":""},{"$f":"List2!BI356","v":""},{"$f":"IF(ISERR(List2!BJ356),\"\",List2!BJ356)","v":""},{"$f":"IF(ISERR(List2!BK356),\"\",List2!BK356)","v":""}]
[{"$f":"List2!BF357","v":""},{"$f":"List2!BG357","v":""},{"$f":"List2!BH357","v":""},{"$f":"List2!BI357","v":""},{"$f":"IF(ISERR(List2!BJ357),\"\",List2!BJ357)","v":""},{"$f":"IF(ISERR(List2!BK357),\"\",List2!BK357)","v":""}]
[{"$f":"List2!BF358","v":""},{"$f":"List2!BG358","v":""},{"$f":"List2!BH358","v":""},{"$f":"List2!BI358","v":""},{"$f":"IF(ISERR(List2!BJ358),\"\",List2!BJ358)","v":""},{"$f":"IF(ISERR(List2!BK358),\"\",List2!BK358)","v":""}]
[{"$f":"List2!BF359","v":""},{"$f":"List2!BG359","v":""},{"$f":"List2!BH359","v":""},{"$f":"List2!BI359","v":""},{"$f":"IF(ISERR(List2!BJ359),\"\",List2!BJ359)","v":""},{"$f":"IF(ISERR(List2!BK359),\"\",List2!BK359)","v":""}]
[{"$f":"List2!BF360","v":""},{"$f":"List2!BG360","v":""},{"$f":"List2!BH360","v":""},{"$f":"List2!BI360","v":""},{"$f":"IF(ISERR(List2!BJ360),\"\",List2!BJ360)","v":""},{"$f":"IF(ISERR(List2!BK360),\"\",List2!BK360)","v":""}]
[{"$f":"List2!BF361","v":""},{"$f":"List2!BG361","v":""},{"$f":"List2!BH361","v":""},{"$f":"List2!BI361","v":""},{"$f":"IF(ISERR(List2!BJ361),\"\",List2!BJ361)","v":""},{"$f":"IF(ISERR(List2!BK361),\"\",List2!BK361)","v":""}]
[{"$f":"List2!BF362","v":""},{"$f":"List2!BG362","v":""},{"$f":"List2!BH362","v":""},{"$f":"List2!BI362","v":""},{"$f":"IF(ISERR(List2!BJ362),\"\",List2!BJ362)","v":""},{"$f":"IF(ISERR(List2!BK362),\"\",List2!BK362)","v":""}]
[{"$f":"List2!BF363","v":""},{"$f":"List2!BG363","v":""},{"$f":"List2!BH363","v":""},{"$f":"List2!BI363","v":""},{"$f":"IF(ISERR(List2!BJ363),\"\",List2!BJ363)","v":""},{"$f":"IF(ISERR(List2!BK363),\"\",List2!BK363)","v":""}]
[{"$f":"List2!BF364","v":""},{"$f":"List2!BG364","v":""},{"$f":"List2!BH364","v":""},{"$f":"List2!BI364","v":""},{"$f":"IF(ISERR(List2!BJ364),\"\",List2!BJ364)","v":""},{"$f":"IF(ISERR(List2!BK364),\"\",List2!BK364)","v":""}]
[{"$f":"List2!BF365","v":""},{"$f":"List2!BG365","v":""},{"$f":"List2!BH365","v":""},{"$f":"List2!BI365","v":""},{"$f":"IF(ISERR(List2!BJ365),\"\",List2!BJ365)","v":""},{"$f":"IF(ISERR(List2!BK365),\"\",List2!BK365)","v":""}]
[{"$f":"List2!BF366","v":""},{"$f":"List2!BG366","v":""},{"$f":"List2!BH366","v":""},{"$f":"List2!BI366","v":""},{"$f":"IF(ISERR(List2!BJ366),\"\",List2!BJ366)","v":""},{"$f":"IF(ISERR(List2!BK366),\"\",List2!BK366)","v":""}]
[{"$f":"List2!BF367","v":""},{"$f":"List2!BG367","v":""},{"$f":"List2!BH367","v":""},{"$f":"List2!BI367","v":""},{"$f":"IF(ISERR(List2!BJ367),\"\",List2!BJ367)","v":""},{"$f":"IF(ISERR(List2!BK367),\"\",List2!BK367)","v":""}]
[{"$f":"List2!BF368","v":""},{"$f":"List2!BG368","v":""},{"$f":"List2!BH368","v":""},{"$f":"List2!BI368","v":""},{"$f":"IF(ISERR(List2!BJ368),\"\",List2!BJ368)","v":""},{"$f":"IF(ISERR(List2!BK368),\"\",List2!BK368)","v":""}]
[{"$f":"List2!BF369","v":""},{"$f":"List2!BG369","v":""},{"$f":"List2!BH369","v":""},{"$f":"List2!BI369","v":""},{"$f":"IF(ISERR(List2!BJ369),\"\",List2!BJ369)","v":""},{"$f":"IF(ISERR(List2!BK369),\"\",List2!BK369)","v":""}]
[{"$f":"List2!BF370","v":""},{"$f":"List2!BG370","v":""},{"$f":"List2!BH370","v":""},{"$f":"List2!BI370","v":""},{"$f":"IF(ISERR(List2!BJ370),\"\",List2!BJ370)","v":""},{"$f":"IF(ISERR(List2!BK370),\"\",List2!BK370)","v":""}]
[{"$f":"List2!BF371","v":""},{"$f":"List2!BG371","v":""},{"$f":"List2!BH371","v":""},{"$f":"List2!BI371","v":""},{"$f":"IF(ISERR(List2!BJ371),\"\",List2!BJ371)","v":""},{"$f":"IF(ISERR(List2!BK371),\"\",List2!BK371)","v":""}]
[{"$f":"List2!BF372","v":""},{"$f":"List2!BG372","v":""},{"$f":"List2!BH372","v":""},{"$f":"List2!BI372","v":""},{"$f":"IF(ISERR(List2!BJ372),\"\",List2!BJ372)","v":""},{"$f":"IF(ISERR(List2!BK372),\"\",List2!BK372)","v":""}]
[{"$f":"List2!BF373","v":""},{"$f":"List2!BG373","v":""},{"$f":"List2!BH373","v":""},{"$f":"List2!BI373","v":""},{"$f":"IF(ISERR(List2!BJ373),\"\",List2!BJ373)","v":""},{"$f":"IF(ISERR(List2!BK373),\"\",List2!BK373)","v":""}]
[{"$f":"List2!BF374","v":""},{"$f":"List2!BG374","v":""},{"$f":"List2!BH374","v":""},{"$f":"List2!BI374","v":""},{"$f":"IF(ISERR(List2!BJ374),\"\",List2!BJ374)","v":""},{"$f":"IF(ISERR(List2!BK374),\"\",List2!BK374)","v":""}]
[{"$f":"List2!BF375","v":""},{"$f":"List2!BG375","v":""},{"$f":"List2!BH375","v":""},{"$f":"List2!BI375","v":""},{"$f":"IF(ISERR(List2!BJ375),\"\",List2!BJ375)","v":""},{"$f":"IF(ISERR(List2!BK375),\"\",List2!BK375)","v":""}]
[{"$f":"List2!BF376","v":""},{"$f":"List2!BG376","v":""},{"$f":"List2!BH376","v":""},{"$f":"List2!BI376","v":""},{"$f":"IF(ISERR(List2!BJ376),\"\",List2!BJ376)","v":""},{"$f":"IF(ISERR(List2!BK376),\"\",List2!BK376)","v":""}]
[{"$f":"List2!BF377","v":""},{"$f":"List2!BG377","v":""},{"$f":"List2!BH377","v":""},{"$f":"List2!BI377","v":""},{"$f":"IF(ISERR(List2!BJ377),\"\",List2!BJ377)","v":""},{"$f":"IF(ISERR(List2!BK377),\"\",List2!BK377)","v":""}]
[{"$f":"List2!BF378","v":""},{"$f":"List2!BG378","v":""},{"$f":"List2!BH378","v":""},{"$f":"List2!BI378","v":""},{"$f":"IF(ISERR(List2!BJ378),\"\",List2!BJ378)","v":""},{"$f":"IF(ISERR(List2!BK378),\"\",List2!BK378)","v":""}]
[{"$f":"List2!BF379","v":""},{"$f":"List2!BG379","v":""},{"$f":"List2!BH379","v":""},{"$f":"List2!BI379","v":""},{"$f":"IF(ISERR(List2!BJ379),\"\",List2!BJ379)","v":""},{"$f":"IF(ISERR(List2!BK379),\"\",List2!BK379)","v":""}]
[{"$f":"List2!BF380","v":""},{"$f":"List2!BG380","v":""},{"$f":"List2!BH380","v":""},{"$f":"List2!BI380","v":""},{"$f":"IF(ISERR(List2!BJ380),\"\",List2!BJ380)","v":""},{"$f":"IF(ISERR(List2!BK380),\"\",List2!BK380)","v":""}]
[{"$f":"List2!BF381","v":""},{"$f":"List2!BG381","v":""},{"$f":"List2!BH381","v":""},{"$f":"List2!BI381","v":""},{"$f":"IF(ISERR(List2!BJ381),\"\",List2!BJ381)","v":""},{"$f":"IF(ISERR(List2!BK381),\"\",List2!BK381)","v":""}]
[{"$f":"List2!BF382","v":""},{"$f":"List2!BG382","v":""},{"$f":"List2!BH382","v":""},{"$f":"List2!BI382","v":""},{"$f":"IF(ISERR(List2!BJ382),\"\",List2!BJ382)","v":""},{"$f":"IF(ISERR(List2!BK382),\"\",List2!BK382)","v":""}]
[{"$f":"List2!BF383","v":""},{"$f":"List2!BG383","v":""},{"$f":"List2!BH383","v":""},{"$f":"List2!BI383","v":""},{"$f":"IF(ISERR(List2!BJ383),\"\",List2!BJ383)","v":""},{"$f":"IF(ISERR(List2!BK383),\"\",List2!BK383)","v":""}]
[{"$f":"List2!BF384","v":""},{"$f":"List2!BG384","v":""},{"$f":"List2!BH384","v":""},{"$f":"List2!BI384","v":""},{"$f":"IF(ISERR(List2!BJ384),\"\",List2!BJ384)","v":""},{"$f":"IF(ISERR(List2!BK384),\"\",List2!BK384)","v":""}]
[{"$f":"List2!BF385","v":""},{"$f":"List2!BG385","v":""},{"$f":"List2!BH385","v":""},{"$f":"List2!BI385","v":""},{"$f":"IF(ISERR(List2!BJ385),\"\",List2!BJ385)","v":""},{"$f":"IF(ISERR(List2!BK385),\"\",List2!BK385)","v":""}]
[{"$f":"List2!BF386","v":""},{"$f":"List2!BG386","v":""},{"$f":"List2!BH386","v":""},{"$f":"List2!BI386","v":""},{"$f":"IF(ISERR(List2!BJ386),\"\",List2!BJ386)","v":""},{"$f":"IF(ISERR(List2!BK386),\"\",List2!BK386)","v":""}]
[{"$f":"List2!BF387","v":""},{"$f":"List2!BG387","v":""},{"$f":"List2!BH387","v":""},{"$f":"List2!BI387","v":""},{"$f":"IF(ISERR(List2!BJ387),\"\",List2!BJ387)","v":""},{"$f":"IF(ISERR(List2!BK387),\"\",List2!BK387)","v":""}]
[{"$f":"List2!BF388","v":""},{"$f":"List2!BG388","v":""},{"$f":"List2!BH388","v":""},{"$f":"List2!BI388","v":""},{"$f":"IF(ISERR(List2!BJ388),\"\",List2!BJ388)","v":""},{"$f":"IF(ISERR(List2!BK388),\"\",List2!BK388)","v":""}]
[{"$f":"List2!BF389","v":""},{"$f":"List2!BG389","v":""},{"$f":"List2!BH389","v":""},{"$f":"List2!BI389","v":""},{"$f":"IF(ISERR(List2!BJ389),\"\",List2!BJ389)","v":""},{"$f":"IF(ISERR(List2!BK389),\"\",List2!BK389)","v":""}]
[{"$f":"List2!BF390","v":""},{"$f":"List2!BG390","v":""},{"$f":"List2!BH390","v":""},{"$f":"List2!BI390","v":""},{"$f":"IF(ISERR(List2!BJ390),\"\",List2!BJ390)","v":""},{"$f":"IF(ISERR(List2!BK390),\"\",List2!BK390)","v":""}]
[{"$f":"List2!BF391","v":""},{"$f":"List2!BG391","v":""},{"$f":"List2!BH391","v":""},{"$f":"List2!BI391","v":""},{"$f":"IF(ISERR(List2!BJ391),\"\",List2!BJ391)","v":""},{"$f":"IF(ISERR(List2!BK391),\"\",List2!BK391)","v":""}]
[{"$f":"List2!BF392","v":""},{"$f":"List2!BG392","v":""},{"$f":"List2!BH392","v":""},{"$f":"List2!BI392","v":""},{"$f":"IF(ISERR(List2!BJ392),\"\",List2!BJ392)","v":""},{"$f":"IF(ISERR(List2!BK392),\"\",List2!BK392)","v":""}]
[{"$f":"List2!BF393","v":""},{"$f":"List2!BG393","v":""},{"$f":"List2!BH393","v":""},{"$f":"List2!BI393","v":""},{"$f":"IF(ISERR(List2!BJ393),\"\",List2!BJ393)","v":""},{"$f":"IF(ISERR(List2!BK393),\"\",List2!BK393)","v":""}]
[{"$f":"List2!BF394","v":""},{"$f":"List2!BG394","v":""},{"$f":"List2!BH394","v":""},{"$f":"List2!BI394","v":""},{"$f":"IF(ISERR(List2!BJ394),\"\",List2!BJ394)","v":""},{"$f":"IF(ISERR(List2!BK394),\"\",List2!BK394)","v":""}]
[{"$f":"List2!BF395","v":""},{"$f":"List2!BG395","v":""},{"$f":"List2!BH395","v":""},{"$f":"List2!BI395","v":""},{"$f":"IF(ISERR(List2!BJ395),\"\",List2!BJ395)","v":""},{"$f":"IF(ISERR(List2!BK395),\"\",List2!BK395)","v":""}]
[{"$f":"List2!BF396","v":""},{"$f":"List2!BG396","v":""},{"$f":"List2!BH396","v":""},{"$f":"List2!BI396","v":""},{"$f":"IF(ISERR(List2!BJ396),\"\",List2!BJ396)","v":""},{"$f":"IF(ISERR(List2!BK396),\"\",List2!BK396)","v":""}]
[{"$f":"List2!BF397","v":""},{"$f":"List2!BG397","v":""},{"$f":"List2!BH397","v":""},{"$f":"List2!BI397","v":""},{"$f":"IF(ISERR(List2!BJ397),\"\",List2!BJ397)","v":""},{"$f":"IF(ISERR(List2!BK397),\"\",List2!BK397)","v":""}]
[{"$f":"List2!BF398","v":""},{"$f":"List2!BG398","v":""},{"$f":"List2!BH398","v":""},{"$f":"List2!BI398","v":""},{"$f":"IF(ISERR(List2!BJ398),\"\",List2!BJ398)","v":""},{"$f":"IF(ISERR(List2!BK398),\"\",List2!BK398)","v":""}]
[{"$f":"List2!BF399","v":""},{"$f":"List2!BG399","v":""},{"$f":"List2!BH399","v":""},{"$f":"List2!BI399","v":""},{"$f":"IF(ISERR(List2!BJ399),\"\",List2!BJ399)","v":""},{"$f":"IF(ISERR(List2!BK399),\"\",List2!BK399)","v":""}]
[{"$f":"List2!BF400","v":""},{"$f":"List2!BG400","v":""},{"$f":"List2!BH400","v":""},{"$f":"List2!BI400","v":""},{"$f":"IF(ISERR(List2!BJ400),\"\",List2!BJ400)","v":""},{"$f":"IF(ISERR(List2!BK400),\"\",List2!BK400)","v":""}]
[{"$f":"List2!BF401","v":""},{"$f":"List2!BG401","v":""},{"$f":"List2!BH401","v":""},{"$f":"List2!BI401","v":""},{"$f":"IF(ISERR(List2!BJ401),\"\",List2!BJ401)","v":""},{"$f":"IF(ISERR(List2!BK401),\"\",List2!BK401)","v":""}]
[{"$f":"List2!BF402","v":""},{"$f":"List2!BG402","v":""},{"$f":"List2!BH402","v":""},{"$f":"List2!BI402","v":""},{"$f":"IF(ISERR(List2!BJ402),\"\",List2!BJ402)","v":""},{"$f":"IF(ISERR(List2!BK402),\"\",List2!BK402)","v":""}]
[{"$f":"List2!BF403","v":""},{"$f":"List2!BG403","v":""},{"$f":"List2!BH403","v":""},{"$f":"List2!BI403","v":""},{"$f":"IF(ISERR(List2!BJ403),\"\",List2!BJ403)","v":""},{"$f":"IF(ISERR(List2!BK403),\"\",List2!BK403)","v":""}]
[{"$f":"List2!BF404","v":""},{"$f":"List2!BG404","v":""},{"$f":"List2!BH404","v":""},{"$f":"List2!BI404","v":""},{"$f":"IF(ISERR(List2!BJ404),\"\",List2!BJ404)","v":""},{"$f":"IF(ISERR(List2!BK404),\"\",List2!BK404)","v":""}]
[{"$f":"List2!BF405","v":""},{"$f":"List2!BG405","v":""},{"$f":"List2!BH405","v":""},{"$f":"List2!BI405","v":""},{"$f":"IF(ISERR(List2!BJ405),\"\",List2!BJ405)","v":""},{"$f":"IF(ISERR(List2!BK405),\"\",List2!BK405)","v":""}]
[{"$f":"List2!BF406","v":""},{"$f":"List2!BG406","v":""},{"$f":"List2!BH406","v":""},{"$f":"List2!BI406","v":""},{"$f":"IF(ISERR(List2!BJ406),\"\",List2!BJ406)","v":""},{"$f":"IF(ISERR(List2!BK406),\"\",List2!BK406)","v":""}]
[{"$f":"List2!BF407","v":""},{"$f":"List2!BG407","v":""},{"$f":"List2!BH407","v":""},{"$f":"List2!BI407","v":""},{"$f":"IF(ISERR(List2!BJ407),\"\",List2!BJ407)","v":""},{"$f":"IF(ISERR(List2!BK407),\"\",List2!BK407)","v":""}]
[{"$f":"List2!BF408","v":""},{"$f":"List2!BG408","v":""},{"$f":"List2!BH408","v":""},{"$f":"List2!BI408","v":""},{"$f":"IF(ISERR(List2!BJ408),\"\",List2!BJ408)","v":""},{"$f":"IF(ISERR(List2!BK408),\"\",List2!BK408)","v":""}]
[{"$f":"List2!BF409","v":""},{"$f":"List2!BG409","v":""},{"$f":"List2!BH409","v":""},{"$f":"List2!BI409","v":""},{"$f":"IF(ISERR(List2!BJ409),\"\",List2!BJ409)","v":""},{"$f":"IF(ISERR(List2!BK409),\"\",List2!BK409)","v":""}]
[{"$f":"List2!BF410","v":""},{"$f":"List2!BG410","v":""},{"$f":"List2!BH410","v":""},{"$f":"List2!BI410","v":""},{"$f":"IF(ISERR(List2!BJ410),\"\",List2!BJ410)","v":""},{"$f":"IF(ISERR(List2!BK410),\"\",List2!BK410)","v":""}]
[{"$f":"List2!BF411","v":""},{"$f":"List2!BG411","v":""},{"$f":"List2!BH411","v":""},{"$f":"List2!BI411","v":""},{"$f":"IF(ISERR(List2!BJ411),\"\",List2!BJ411)","v":""},{"$f":"IF(ISERR(List2!BK411),\"\",List2!BK411)","v":""}]
[{"$f":"List2!BF412","v":""},{"$f":"List2!BG412","v":""},{"$f":"List2!BH412","v":""},{"$f":"List2!BI412","v":""},{"$f":"IF(ISERR(List2!BJ412),\"\",List2!BJ412)","v":""},{"$f":"IF(ISERR(List2!BK412),\"\",List2!BK412)","v":""}]
[{"$f":"List2!BF413","v":""},{"$f":"List2!BG413","v":""},{"$f":"List2!BH413","v":""},{"$f":"List2!BI413","v":""},{"$f":"IF(ISERR(List2!BJ413),\"\",List2!BJ413)","v":""},{"$f":"IF(ISERR(List2!BK413),\"\",List2!BK413)","v":""}]
[{"$f":"List2!BF414","v":""},{"$f":"List2!BG414","v":""},{"$f":"List2!BH414","v":""},{"$f":"List2!BI414","v":""},{"$f":"IF(ISERR(List2!BJ414),\"\",List2!BJ414)","v":""},{"$f":"IF(ISERR(List2!BK414),\"\",List2!BK414)","v":""}]
[{"$f":"List2!BF415","v":""},{"$f":"List2!BG415","v":""},{"$f":"List2!BH415","v":""},{"$f":"List2!BI415","v":""},{"$f":"IF(ISERR(List2!BJ415),\"\",List2!BJ415)","v":""},{"$f":"IF(ISERR(List2!BK415),\"\",List2!BK415)","v":""}]
[{"$f":"List2!BF416","v":""},{"$f":"List2!BG416","v":""},{"$f":"List2!BH416","v":""},{"$f":"List2!BI416","v":""},{"$f":"IF(ISERR(List2!BJ416),\"\",List2!BJ416)","v":""},{"$f":"IF(ISERR(List2!BK416),\"\",List2!BK416)","v":""}]
[{"$f":"List2!BF417","v":""},{"$f":"List2!BG417","v":""},{"$f":"List2!BH417","v":""},{"$f":"List2!BI417","v":""},{"$f":"IF(ISERR(List2!BJ417),\"\",List2!BJ417)","v":""},{"$f":"IF(ISERR(List2!BK417),\"\",List2!BK417)","v":""}]
[{"$f":"List2!BF418","v":""},{"$f":"List2!BG418","v":""},{"$f":"List2!BH418","v":""},{"$f":"List2!BI418","v":""},{"$f":"IF(ISERR(List2!BJ418),\"\",List2!BJ418)","v":""},{"$f":"IF(ISERR(List2!BK418),\"\",List2!BK418)","v":""}]
[{"$f":"List2!BF419","v":""},{"$f":"List2!BG419","v":""},{"$f":"List2!BH419","v":""},{"$f":"List2!BI419","v":""},{"$f":"IF(ISERR(List2!BJ419),\"\",List2!BJ419)","v":""},{"$f":"IF(ISERR(List2!BK419),\"\",List2!BK419)","v":""}]
[{"$f":"List2!BF420","v":""},{"$f":"List2!BG420","v":""},{"$f":"List2!BH420","v":""},{"$f":"List2!BI420","v":""},{"$f":"IF(ISERR(List2!BJ420),\"\",List2!BJ420)","v":""},{"$f":"IF(ISERR(List2!BK420),\"\",List2!BK420)","v":""}]
[{"$f":"List2!BF421","v":""},{"$f":"List2!BG421","v":""},{"$f":"List2!BH421","v":""},{"$f":"List2!BI421","v":""},{"$f":"IF(ISERR(List2!BJ421),\"\",List2!BJ421)","v":""},{"$f":"IF(ISERR(List2!BK421),\"\",List2!BK421)","v":""}]
[{"$f":"List2!BF422","v":""},{"$f":"List2!BG422","v":""},{"$f":"List2!BH422","v":""},{"$f":"List2!BI422","v":""},{"$f":"IF(ISERR(List2!BJ422),\"\",List2!BJ422)","v":""},{"$f":"IF(ISERR(List2!BK422),\"\",List2!BK422)","v":""}]
[{"$f":"List2!BF423","v":""},{"$f":"List2!BG423","v":""},{"$f":"List2!BH423","v":""},{"$f":"List2!BI423","v":""},{"$f":"IF(ISERR(List2!BJ423),\"\",List2!BJ423)","v":""},{"$f":"IF(ISERR(List2!BK423),\"\",List2!BK423)","v":""}]
[{"$f":"List2!BF424","v":""},{"$f":"List2!BG424","v":""},{"$f":"List2!BH424","v":""},{"$f":"List2!BI424","v":""},{"$f":"IF(ISERR(List2!BJ424),\"\",List2!BJ424)","v":""},{"$f":"IF(ISERR(List2!BK424),\"\",List2!BK424)","v":""}]
[{"$f":"List2!BF425","v":""},{"$f":"List2!BG425","v":""},{"$f":"List2!BH425","v":""},{"$f":"List2!BI425","v":""},{"$f":"IF(ISERR(List2!BJ425),\"\",List2!BJ425)","v":""},{"$f":"IF(ISERR(List2!BK425),\"\",List2!BK425)","v":""}]
[{"$f":"List2!BF426","v":""},{"$f":"List2!BG426","v":""},{"$f":"List2!BH426","v":""},{"$f":"List2!BI426","v":""},{"$f":"IF(ISERR(List2!BJ426),\"\",List2!BJ426)","v":""},{"$f":"IF(ISERR(List2!BK426),\"\",List2!BK426)","v":""}]
[{"$f":"List2!BF427","v":""},{"$f":"List2!BG427","v":""},{"$f":"List2!BH427","v":""},{"$f":"List2!BI427","v":""},{"$f":"IF(ISERR(List2!BJ427),\"\",List2!BJ427)","v":""},{"$f":"IF(ISERR(List2!BK427),\"\",List2!BK427)","v":""}]
[{"$f":"List2!BF428","v":""},{"$f":"List2!BG428","v":""},{"$f":"List2!BH428","v":""},{"$f":"List2!BI428","v":""},{"$f":"IF(ISERR(List2!BJ428),\"\",List2!BJ428)","v":""},{"$f":"IF(ISERR(List2!BK428),\"\",List2!BK428)","v":""}]
[{"$f":"List2!BF429","v":""},{"$f":"List2!BG429","v":""},{"$f":"List2!BH429","v":""},{"$f":"List2!BI429","v":""},{"$f":"IF(ISERR(List2!BJ429),\"\",List2!BJ429)","v":""},{"$f":"IF(ISERR(List2!BK429),\"\",List2!BK429)","v":""}]
[{"$f":"List2!BF430","v":""},{"$f":"List2!BG430","v":""},{"$f":"List2!BH430","v":""},{"$f":"List2!BI430","v":""},{"$f":"IF(ISERR(List2!BJ430),\"\",List2!BJ430)","v":""},{"$f":"IF(ISERR(List2!BK430),\"\",List2!BK430)","v":""}]
[{"$f":"List2!BF431","v":""},{"$f":"List2!BG431","v":""},{"$f":"List2!BH431","v":""},{"$f":"List2!BI431","v":""},{"$f":"IF(ISERR(List2!BJ431),\"\",List2!BJ431)","v":""},{"$f":"IF(ISERR(List2!BK431),\"\",List2!BK431)","v":""}]
[{"$f":"List2!BF432","v":""},{"$f":"List2!BG432","v":""},{"$f":"List2!BH432","v":""},{"$f":"List2!BI432","v":""},{"$f":"IF(ISERR(List2!BJ432),\"\",List2!BJ432)","v":""},{"$f":"IF(ISERR(List2!BK432),\"\",List2!BK432)","v":""}]
[{"$f":"List2!BF433","v":""},{"$f":"List2!BG433","v":""},{"$f":"List2!BH433","v":""},{"$f":"List2!BI433","v":""},{"$f":"IF(ISERR(List2!BJ433),\"\",List2!BJ433)","v":""},{"$f":"IF(ISERR(List2!BK433),\"\",List2!BK433)","v":""}]
[{"$f":"List2!BF434","v":""},{"$f":"List2!BG434","v":""},{"$f":"List2!BH434","v":""},{"$f":"List2!BI434","v":""},{"$f":"IF(ISERR(List2!BJ434),\"\",List2!BJ434)","v":""},{"$f":"IF(ISERR(List2!BK434),\"\",List2!BK434)","v":""}]
[{"$f":"List2!BF435","v":""},{"$f":"List2!BG435","v":""},{"$f":"List2!BH435","v":""},{"$f":"List2!BI435","v":""},{"$f":"IF(ISERR(List2!BJ435),\"\",List2!BJ435)","v":""},{"$f":"IF(ISERR(List2!BK435),\"\",List2!BK435)","v":""}]
[{"$f":"List2!BF436","v":""},{"$f":"List2!BG436","v":""},{"$f":"List2!BH436","v":""},{"$f":"List2!BI436","v":""},{"$f":"IF(ISERR(List2!BJ436),\"\",List2!BJ436)","v":""},{"$f":"IF(ISERR(List2!BK436),\"\",List2!BK436)","v":""}]
[{"$f":"List2!BF437","v":""},{"$f":"List2!BG437","v":""},{"$f":"List2!BH437","v":""},{"$f":"List2!BI437","v":""},{"$f":"IF(ISERR(List2!BJ437),\"\",List2!BJ437)","v":""},{"$f":"IF(ISERR(List2!BK437),\"\",List2!BK437)","v":""}]
[{"$f":"List2!BF438","v":""},{"$f":"List2!BG438","v":""},{"$f":"List2!BH438","v":""},{"$f":"List2!BI438","v":""},{"$f":"IF(ISERR(List2!BJ438),\"\",List2!BJ438)","v":""},{"$f":"IF(ISERR(List2!BK438),\"\",List2!BK438)","v":""}]
[{"$f":"List2!BF439","v":""},{"$f":"List2!BG439","v":""},{"$f":"List2!BH439","v":""},{"$f":"List2!BI439","v":""},{"$f":"IF(ISERR(List2!BJ439),\"\",List2!BJ439)","v":""},{"$f":"IF(ISERR(List2!BK439),\"\",List2!BK439)","v":""}]
[{"$f":"List2!BF440","v":""},{"$f":"List2!BG440","v":""},{"$f":"List2!BH440","v":""},{"$f":"List2!BI440","v":""},{"$f":"IF(ISERR(List2!BJ440),\"\",List2!BJ440)","v":""},{"$f":"IF(ISERR(List2!BK440),\"\",List2!BK440)","v":""}]
[{"$f":"List2!BF441","v":""},{"$f":"List2!BG441","v":""},{"$f":"List2!BH441","v":""},{"$f":"List2!BI441","v":""},{"$f":"IF(ISERR(List2!BJ441),\"\",List2!BJ441)","v":""},{"$f":"IF(ISERR(List2!BK441),\"\",List2!BK441)","v":""}]
[{"$f":"List2!BF442","v":""},{"$f":"List2!BG442","v":""},{"$f":"List2!BH442","v":""},{"$f":"List2!BI442","v":""},{"$f":"IF(ISERR(List2!BJ442),\"\",List2!BJ442)","v":""},{"$f":"IF(ISERR(List2!BK442),\"\",List2!BK442)","v":""}]
[{"$f":"List2!BF443","v":""},{"$f":"List2!BG443","v":""},{"$f":"List2!BH443","v":""},{"$f":"List2!BI443","v":""},{"$f":"IF(ISERR(List2!BJ443),\"\",List2!BJ443)","v":""},{"$f":"IF(ISERR(List2!BK443),\"\",List2!BK443)","v":""}]
[{"$f":"List2!BF444","v":""},{"$f":"List2!BG444","v":""},{"$f":"List2!BH444","v":""},{"$f":"List2!BI444","v":""},{"$f":"IF(ISERR(List2!BJ444),\"\",List2!BJ444)","v":""},{"$f":"IF(ISERR(List2!BK444),\"\",List2!BK444)","v":""}]
[{"$f":"List2!BF445","v":""},{"$f":"List2!BG445","v":""},{"$f":"List2!BH445","v":""},{"$f":"List2!BI445","v":""},{"$f":"IF(ISERR(List2!BJ445),\"\",List2!BJ445)","v":""},{"$f":"IF(ISERR(List2!BK445),\"\",List2!BK445)","v":""}]
[{"$f":"List2!BF446","v":""},{"$f":"List2!BG446","v":""},{"$f":"List2!BH446","v":""},{"$f":"List2!BI446","v":""},{"$f":"IF(ISERR(List2!BJ446),\"\",List2!BJ446)","v":""},{"$f":"IF(ISERR(List2!BK446),\"\",List2!BK446)","v":""}]
[{"$f":"List2!BF447","v":""},{"$f":"List2!BG447","v":""},{"$f":"List2!BH447","v":""},{"$f":"List2!BI447","v":""},{"$f":"IF(ISERR(List2!BJ447),\"\",List2!BJ447)","v":""},{"$f":"IF(ISERR(List2!BK447),\"\",List2!BK447)","v":""}]
[{"$f":"List2!BF448","v":""},{"$f":"List2!BG448","v":""},{"$f":"List2!BH448","v":""},{"$f":"List2!BI448","v":""},{"$f":"IF(ISERR(List2!BJ448),\"\",List2!BJ448)","v":""},{"$f":"IF(ISERR(List2!BK448),\"\",List2!BK448)","v":""}]
[{"$f":"List2!BF449","v":""},{"$f":"List2!BG449","v":""},{"$f":"List2!BH449","v":""},{"$f":"List2!BI449","v":""},{"$f":"IF(ISERR(List2!BJ449),\"\",List2!BJ449)","v":""},{"$f":"IF(ISERR(List2!BK449),\"\",List2!BK449)","v":""}]
[{"$f":"List2!BF450","v":""},{"$f":"List2!BG450","v":""},{"$f":"List2!BH450","v":""},{"$f":"List2!BI450","v":""},{"$f":"IF(ISERR(List2!BJ450),\"\",List2!BJ450)","v":""},{"$f":"IF(ISERR(List2!BK450),\"\",List2!BK450)","v":""}]
[{"$f":"List2!BF451","v":""},{"$f":"List2!BG451","v":""},{"$f":"List2!BH451","v":""},{"$f":"List2!BI451","v":""},{"$f":"IF(ISERR(List2!BJ451),\"\",List2!BJ451)","v":""},{"$f":"IF(ISERR(List2!BK451),\"\",List2!BK451)","v":""}]
[{"$f":"List2!BF452","v":""},{"$f":"List2!BG452","v":""},{"$f":"List2!BH452","v":""},{"$f":"List2!BI452","v":""},{"$f":"IF(ISERR(List2!BJ452),\"\",List2!BJ452)","v":""},{"$f":"IF(ISERR(List2!BK452),\"\",List2!BK452)","v":""}]
[{"$f":"List2!BF453","v":""},{"$f":"List2!BG453","v":""},{"$f":"List2!BH453","v":""},{"$f":"List2!BI453","v":""},{"$f":"IF(ISERR(List2!BJ453),\"\",List2!BJ453)","v":""},{"$f":"IF(ISERR(List2!BK453),\"\",List2!BK453)","v":""}]
[{"$f":"List2!BF454","v":""},{"$f":"List2!BG454","v":""},{"$f":"List2!BH454","v":""},{"$f":"List2!BI454","v":""},{"$f":"IF(ISERR(List2!BJ454),\"\",List2!BJ454)","v":""},{"$f":"IF(ISERR(List2!BK454),\"\",List2!BK454)","v":""}]
[{"$f":"List2!BF455","v":""},{"$f":"List2!BG455","v":""},{"$f":"List2!BH455","v":""},{"$f":"List2!BI455","v":""},{"$f":"IF(ISERR(List2!BJ455),\"\",List2!BJ455)","v":""},{"$f":"IF(ISERR(List2!BK455),\"\",List2!BK455)","v":""}]
[{"$f":"List2!BF456","v":""},{"$f":"List2!BG456","v":""},{"$f":"List2!BH456","v":""},{"$f":"List2!BI456","v":""},{"$f":"IF(ISERR(List2!BJ456),\"\",List2!BJ456)","v":""},{"$f":"IF(ISERR(List2!BK456),\"\",List2!BK456)","v":""}]
[{"$f":"List2!BF457","v":""},{"$f":"List2!BG457","v":""},{"$f":"List2!BH457","v":""},{"$f":"List2!BI457","v":""},{"$f":"IF(ISERR(List2!BJ457),\"\",List2!BJ457)","v":""},{"$f":"IF(ISERR(List2!BK457),\"\",List2!BK457)","v":""}]
[{"$f":"List2!BF458","v":""},{"$f":"List2!BG458","v":""},{"$f":"List2!BH458","v":""},{"$f":"List2!BI458","v":""},{"$f":"IF(ISERR(List2!BJ458),\"\",List2!BJ458)","v":""},{"$f":"IF(ISERR(List2!BK458),\"\",List2!BK458)","v":""}]
[{"$f":"List2!BF459","v":""},{"$f":"List2!BG459","v":""},{"$f":"List2!BH459","v":""},{"$f":"List2!BI459","v":""},{"$f":"IF(ISERR(List2!BJ459),\"\",List2!BJ459)","v":""},{"$f":"IF(ISERR(List2!BK459),\"\",List2!BK459)","v":""}]
[{"$f":"List2!BF460","v":""},{"$f":"List2!BG460","v":""},{"$f":"List2!BH460","v":""},{"$f":"List2!BI460","v":""},{"$f":"IF(ISERR(List2!BJ460),\"\",List2!BJ460)","v":""},{"$f":"IF(ISERR(List2!BK460),\"\",List2!BK460)","v":""}]
[{"$f":"List2!BF461","v":""},{"$f":"List2!BG461","v":""},{"$f":"List2!BH461","v":""},{"$f":"List2!BI461","v":""},{"$f":"IF(ISERR(List2!BJ461),\"\",List2!BJ461)","v":""},{"$f":"IF(ISERR(List2!BK461),\"\",List2!BK461)","v":""}]
[{"$f":"List2!BF462","v":""},{"$f":"List2!BG462","v":""},{"$f":"List2!BH462","v":""},{"$f":"List2!BI462","v":""},{"$f":"IF(ISERR(List2!BJ462),\"\",List2!BJ462)","v":""},{"$f":"IF(ISERR(List2!BK462),\"\",List2!BK462)","v":""}]
[{"$f":"List2!BF463","v":""},{"$f":"List2!BG463","v":""},{"$f":"List2!BH463","v":""},{"$f":"List2!BI463","v":""},{"$f":"IF(ISERR(List2!BJ463),\"\",List2!BJ463)","v":""},{"$f":"IF(ISERR(List2!BK463),\"\",List2!BK463)","v":""}]
[{"$f":"List2!BF464","v":""},{"$f":"List2!BG464","v":""},{"$f":"List2!BH464","v":""},{"$f":"List2!BI464","v":""},{"$f":"IF(ISERR(List2!BJ464),\"\",List2!BJ464)","v":""},{"$f":"IF(ISERR(List2!BK464),\"\",List2!BK464)","v":""}]
[{"$f":"List2!BF465","v":""},{"$f":"List2!BG465","v":""},{"$f":"List2!BH465","v":""},{"$f":"List2!BI465","v":""},{"$f":"IF(ISERR(List2!BJ465),\"\",List2!BJ465)","v":""},{"$f":"IF(ISERR(List2!BK465),\"\",List2!BK465)","v":""}]
[{"$f":"List2!BF466","v":""},{"$f":"List2!BG466","v":""},{"$f":"List2!BH466","v":""},{"$f":"List2!BI466","v":""},{"$f":"IF(ISERR(List2!BJ466),\"\",List2!BJ466)","v":""},{"$f":"IF(ISERR(List2!BK466),\"\",List2!BK466)","v":""}]
[{"$f":"List2!BF467","v":""},{"$f":"List2!BG467","v":""},{"$f":"List2!BH467","v":""},{"$f":"List2!BI467","v":""},{"$f":"IF(ISERR(List2!BJ467),\"\",List2!BJ467)","v":""},{"$f":"IF(ISERR(List2!BK467),\"\",List2!BK467)","v":""}]
[{"$f":"List2!BF468","v":""},{"$f":"List2!BG468","v":""},{"$f":"List2!BH468","v":""},{"$f":"List2!BI468","v":""},{"$f":"IF(ISERR(List2!BJ468),\"\",List2!BJ468)","v":""},{"$f":"IF(ISERR(List2!BK468),\"\",List2!BK468)","v":""}]
[{"$f":"List2!BF469","v":""},{"$f":"List2!BG469","v":""},{"$f":"List2!BH469","v":""},{"$f":"List2!BI469","v":""},{"$f":"IF(ISERR(List2!BJ469),\"\",List2!BJ469)","v":""},{"$f":"IF(ISERR(List2!BK469),\"\",List2!BK469)","v":""}]
[{"$f":"List2!BF470","v":""},{"$f":"List2!BG470","v":""},{"$f":"List2!BH470","v":""},{"$f":"List2!BI470","v":""},{"$f":"IF(ISERR(List2!BJ470),\"\",List2!BJ470)","v":""},{"$f":"IF(ISERR(List2!BK470),\"\",List2!BK470)","v":""}]
[{"$f":"List2!BF471","v":""},{"$f":"List2!BG471","v":""},{"$f":"List2!BH471","v":""},{"$f":"List2!BI471","v":""},{"$f":"IF(ISERR(List2!BJ471),\"\",List2!BJ471)","v":""},{"$f":"IF(ISERR(List2!BK471),\"\",List2!BK471)","v":""}]
[{"$f":"List2!BF472","v":""},{"$f":"List2!BG472","v":""},{"$f":"List2!BH472","v":""},{"$f":"List2!BI472","v":""},{"$f":"IF(ISERR(List2!BJ472),\"\",List2!BJ472)","v":""},{"$f":"IF(ISERR(List2!BK472),\"\",List2!BK472)","v":""}]
[{"$f":"List2!BF473","v":""},{"$f":"List2!BG473","v":""},{"$f":"List2!BH473","v":""},{"$f":"List2!BI473","v":""},{"$f":"IF(ISERR(List2!BJ473),\"\",List2!BJ473)","v":""},{"$f":"IF(ISERR(List2!BK473),\"\",List2!BK473)","v":""}]
[{"$f":"List2!BF474","v":""},{"$f":"List2!BG474","v":""},{"$f":"List2!BH474","v":""},{"$f":"List2!BI474","v":""},{"$f":"IF(ISERR(List2!BJ474),\"\",List2!BJ474)","v":""},{"$f":"IF(ISERR(List2!BK474),\"\",List2!BK474)","v":""}]
[{"$f":"List2!BF475","v":""},{"$f":"List2!BG475","v":""},{"$f":"List2!BH475","v":""},{"$f":"List2!BI475","v":""},{"$f":"IF(ISERR(List2!BJ475),\"\",List2!BJ475)","v":""},{"$f":"IF(ISERR(List2!BK475),\"\",List2!BK475)","v":""}]
[{"$f":"List2!BF476","v":""},{"$f":"List2!BG476","v":""},{"$f":"List2!BH476","v":""},{"$f":"List2!BI476","v":""},{"$f":"IF(ISERR(List2!BJ476),\"\",List2!BJ476)","v":""},{"$f":"IF(ISERR(List2!BK476),\"\",List2!BK476)","v":""}]
[{"$f":"List2!BF477","v":""},{"$f":"List2!BG477","v":""},{"$f":"List2!BH477","v":""},{"$f":"List2!BI477","v":""},{"$f":"IF(ISERR(List2!BJ477),\"\",List2!BJ477)","v":""},{"$f":"IF(ISERR(List2!BK477),\"\",List2!BK477)","v":""}]
[{"$f":"List2!BF478","v":""},{"$f":"List2!BG478","v":""},{"$f":"List2!BH478","v":""},{"$f":"List2!BI478","v":""},{"$f":"IF(ISERR(List2!BJ478),\"\",List2!BJ478)","v":""},{"$f":"IF(ISERR(List2!BK478),\"\",List2!BK478)","v":""}]
[{"$f":"List2!BF479","v":""},{"$f":"List2!BG479","v":""},{"$f":"List2!BH479","v":""},{"$f":"List2!BI479","v":""},{"$f":"IF(ISERR(List2!BJ479),\"\",List2!BJ479)","v":""},{"$f":"IF(ISERR(List2!BK479),\"\",List2!BK479)","v":""}]
[{"$f":"List2!BF480","v":""},{"$f":"List2!BG480","v":""},{"$f":"List2!BH480","v":""},{"$f":"List2!BI480","v":""},{"$f":"IF(ISERR(List2!BJ480),\"\",List2!BJ480)","v":""},{"$f":"IF(ISERR(List2!BK480),\"\",List2!BK480)","v":""}]
[{"$f":"List2!BF481","v":""},{"$f":"List2!BG481","v":""},{"$f":"List2!BH481","v":""},{"$f":"List2!BI481","v":""},{"$f":"IF(ISERR(List2!BJ481),\"\",List2!BJ481)","v":""},{"$f":"IF(ISERR(List2!BK481),\"\",List2!BK481)","v":""}]
[{"$f":"List2!BF482","v":""},{"$f":"List2!BG482","v":""},{"$f":"List2!BH482","v":""},{"$f":"List2!BI482","v":""},{"$f":"IF(ISERR(List2!BJ482),\"\",List2!BJ482)","v":""},{"$f":"IF(ISERR(List2!BK482),\"\",List2!BK482)","v":""}]
[{"$f":"List2!BF483","v":""},{"$f":"List2!BG483","v":""},{"$f":"List2!BH483","v":""},{"$f":"List2!BI483","v":""},{"$f":"IF(ISERR(List2!BJ483),\"\",List2!BJ483)","v":""},{"$f":"IF(ISERR(List2!BK483),\"\",List2!BK483)","v":""}]
[{"$f":"List2!BF484","v":""},{"$f":"List2!BG484","v":""},{"$f":"List2!BH484","v":""},{"$f":"List2!BI484","v":""},{"$f":"IF(ISERR(List2!BJ484),\"\",List2!BJ484)","v":""},{"$f":"IF(ISERR(List2!BK484),\"\",List2!BK484)","v":""}]
[{"$f":"List2!BF485","v":""},{"$f":"List2!BG485","v":""},{"$f":"List2!BH485","v":""},{"$f":"List2!BI485","v":""},{"$f":"IF(ISERR(List2!BJ485),\"\",List2!BJ485)","v":""},{"$f":"IF(ISERR(List2!BK485),\"\",List2!BK485)","v":""}]
[{"$f":"List2!BF486","v":""},{"$f":"List2!BG486","v":""},{"$f":"List2!BH486","v":""},{"$f":"List2!BI486","v":""},{"$f":"IF(ISERR(List2!BJ486),\"\",List2!BJ486)","v":""},{"$f":"IF(ISERR(List2!BK486),\"\",List2!BK486)","v":""}]
[{"$f":"List2!BF487","v":""},{"$f":"List2!BG487","v":""},{"$f":"List2!BH487","v":""},{"$f":"List2!BI487","v":""},{"$f":"IF(ISERR(List2!BJ487),\"\",List2!BJ487)","v":""},{"$f":"IF(ISERR(List2!BK487),\"\",List2!BK487)","v":""}]
[{"$f":"List2!BF488","v":""},{"$f":"List2!BG488","v":""},{"$f":"List2!BH488","v":""},{"$f":"List2!BI488","v":""},{"$f":"IF(ISERR(List2!BJ488),\"\",List2!BJ488)","v":""},{"$f":"IF(ISERR(List2!BK488),\"\",List2!BK488)","v":""}]
[{"$f":"List2!BF489","v":""},{"$f":"List2!BG489","v":""},{"$f":"List2!BH489","v":""},{"$f":"List2!BI489","v":""},{"$f":"IF(ISERR(List2!BJ489),\"\",List2!BJ489)","v":""},{"$f":"IF(ISERR(List2!BK489),\"\",List2!BK489)","v":""}]
[{"$f":"List2!BF490","v":""},{"$f":"List2!BG490","v":""},{"$f":"List2!BH490","v":""},{"$f":"List2!BI490","v":""},{"$f":"IF(ISERR(List2!BJ490),\"\",List2!BJ490)","v":""},{"$f":"IF(ISERR(List2!BK490),\"\",List2!BK490)","v":""}]
[{"$f":"List2!BF491","v":""},{"$f":"List2!BG491","v":""},{"$f":"List2!BH491","v":""},{"$f":"List2!BI491","v":""},{"$f":"IF(ISERR(List2!BJ491),\"\",List2!BJ491)","v":""},{"$f":"IF(ISERR(List2!BK491),\"\",List2!BK491)","v":""}]
[{"$f":"List2!BF492","v":""},{"$f":"List2!BG492","v":""},{"$f":"List2!BH492","v":""},{"$f":"List2!BI492","v":""},{"$f":"IF(ISERR(List2!BJ492),\"\",List2!BJ492)","v":""},{"$f":"IF(ISERR(List2!BK492),\"\",List2!BK492)","v":""}]
[{"$f":"List2!BF493","v":""},{"$f":"List2!BG493","v":""},{"$f":"List2!BH493","v":""},{"$f":"List2!BI493","v":""},{"$f":"IF(ISERR(List2!BJ493),\"\",List2!BJ493)","v":""},{"$f":"IF(ISERR(List2!BK493),\"\",List2!BK493)","v":""}]
[{"$f":"List2!BF494","v":""},{"$f":"List2!BG494","v":""},{"$f":"List2!BH494","v":""},{"$f":"List2!BI494","v":""},{"$f":"IF(ISERR(List2!BJ494),\"\",List2!BJ494)","v":""},{"$f":"IF(ISERR(List2!BK494),\"\",List2!BK494)","v":""}]
[{"$f":"List2!BF495","v":""},{"$f":"List2!BG495","v":""},{"$f":"List2!BH495","v":""},{"$f":"List2!BI495","v":""},{"$f":"IF(ISERR(List2!BJ495),\"\",List2!BJ495)","v":""},{"$f":"IF(ISERR(List2!BK495),\"\",List2!BK495)","v":""}]
[{"$f":"List2!BF496","v":""},{"$f":"List2!BG496","v":""},{"$f":"List2!BH496","v":""},{"$f":"List2!BI496","v":""},{"$f":"IF(ISERR(List2!BJ496),\"\",List2!BJ496)","v":""},{"$f":"IF(ISERR(List2!BK496),\"\",List2!BK496)","v":""}]
[{"$f":"List2!BF497","v":""},{"$f":"List2!BG497","v":""},{"$f":"List2!BH497","v":""},{"$f":"List2!BI497","v":""},{"$f":"IF(ISERR(List2!BJ497),\"\",List2!BJ497)","v":""},{"$f":"IF(ISERR(List2!BK497),\"\",List2!BK497)","v":""}]
[{"$f":"List2!BF498","v":""},{"$f":"List2!BG498","v":""},{"$f":"List2!BH498","v":""},{"$f":"List2!BI498","v":""},{"$f":"IF(ISERR(List2!BJ498),\"\",List2!BJ498)","v":""},{"$f":"IF(ISERR(List2!BK498),\"\",List2!BK498)","v":""}]
[{"$f":"List2!BF499","v":""},{"$f":"List2!BG499","v":""},{"$f":"List2!BH499","v":""},{"$f":"List2!BI499","v":""},{"$f":"IF(ISERR(List2!BJ499),\"\",List2!BJ499)","v":""},{"$f":"IF(ISERR(List2!BK499),\"\",List2!BK499)","v":""}]

{"sheet":"List4","index":3,"n_rows":27,"n_cols":6,"rows_kept":27,"cut":false,"hidden":false,"merged":[[26,1,41,15],[4,1,10,15],[24,1,24,15],[25,1,25,4],[25,5,25,12]]}
[]
[null,"Kalkulátor RPSN"]
[null,"v. 1.3b","KFA@ 2014"]
[]
[null,"Tato aplikace je využitelná k výpočtu roční procentní sazby nákladů na spotřebitelský úvěr (RPSN) ve smyslu § 10 zákona č. 145/2010 Sb., o spotřebitelském úvěru.\n\nVěřitel (poskytovatel úvěru), případně zprostředkovatel, má podle zákona č. 145/2010 Sb. povinnost dlužníka (zájemce o úvěr) s touto hodnotou seznámit před případným uzavřením smlouvy, rovněž jako v rámci reklamy, obsahuje-li tato reklama jakékoli sdělení o nákladech úvěru. Údaj o výši RPSN je povinnou náležitostí smlouvy.\n\nKalkulátor RPSN vychází z předpokladu, že úvěr je čerpán jednorázově a v plné výši, rovněž jako že je splácen anuitně - tj. v pravidelném intervalu (např. měsíčním) s neměnnou výší splátky. Jsou-li součástí úvěrové smlouvy průběžně placené poplatky, vychází se z toho, že jsou placeny společně se splátkami úvěru."]
[]
[]
[]
[]
[]
[]
[]
[]
[]
[]
[]
[]
[]
[]
[null,"UPOZORNĚNÍ:  Funkčnost tohoto kalkulátoru je omezená jen na vybrané typy spotřebitelských úvěrů. Plnohodnotný kalkulátor pro výpočet RPSN je k dispozici na webových stránkách Evropské komise:\n\n"]
[]
[]
[]
[]
[null,"UPOZORNĚNÍ:  Funkčnost tohoto kalkulátoru je omezená jen na vybrané typy spotřebitelských úvěrů. Plnohodnotný kalkulátor pro výpočet RPSN je k dispozici na"]
[null,"webových stránkách Evropské komise:",null,null,null,"http://ec.europa.eu/consumers/rights/docs/simulator_2014_en.xls"]
[null,"\nRSPN vyjadřuje celkové náklady spotřebitelského úvěru pro spotřebitele vyjádřené jako roční procentní podíl z celkové výše spotřebitelského úvěru. RPSN se počítá na roční bázi podle vzorce uvedeného v příloze č. 5 k zákonu č. 145/2010 Sb. Při správně spočítané RPSN platí rovnost mezi sumou čistých současných hodnot všech čerpání spotřebitele a sumou všech jeho plateb.\n\nJestliže smlouva, ve které se sjednává spotřebitelský úvěr, neobsahuje informace stanovené zákonem (včetně správného údaje o výši RPSN), a spotřebitel tuto skutečnost uplatní u věřitele, pokládá se spotřebitelský úvěr od počátku za úročený ve výši diskontní sazby platné v době uzavření této smlouvy uveřejněné Českou národní bankou a ujednání o jiných platbách na spotřebitelský úvěr jsou neplatná.\n\nMechanismus výpočtu je shodný i u spotřebitelských úvěrů poskytnutých v režimu zákona č. 321/2001 Sb., o některých podmínkách sjednávání spotřebitelského úvěru, který byl účinný do 31. prosince 2010. Mohou se však lišit vstupní údaje (náklady), které je nutno při výpočtu RPSN zohlednit. Podle tohoto zákona platí, že v případě, kdy smlouva o úvěru RPSN neobsahuje, nebo obsahuje RPSN v nesprávné výši, se pokládá spotřebitelský úvěr za úvěr úročený ve výši diskontní sazby platné v době uzavření smlouvy, uveřejněné pro příslušné období Českou národní bankou; ujednání o jiných platbách na spotřebitelský úvěr se stávají neplatnými, to vše s účinností ode dne, kdy spotřebitel tuto skutečnost uplatní u věřitele."]

{"sheet":"List5","index":4,"n_rows":31,"n_cols":8,"rows_kept":31,"cut":false,"hidden":false,"merged":[[20,3,20,5],[21,3,21,5],[23,3,23,5],[14,3,14,5],[1,0,1,9],[3,0,3,9],[5,3,5,7],[11,3,11,5],[6,3,6,7],[2,0,2,9],[29,1,29,8],[17,3,17,7],[12,3,12,7],[22,3,22,7],[8,3,8,7],[14,6,14,7],[23,6,23,7],[24,6,24,7],[10,3,10,5],[24,3,24,5],[15,3,15,5],[13,3,13,5],[9,3,9,5],[16,3,16,5],[18,3,18,5],[19,3,19,5]]}
[]
[]
["     Zadané parametry úvěru"]
["    a vypočtená hodnota RPSN"]
[]
["Dlužník (spotřebitel):",null,null,{"$f":"List2!I6","v":"Ing. Radek Urban"}]
["Poskytovatel úvěru (věřitel):",null,null,{"$f":"List2!I5","v":"Petr Kalousek, Ph.D."}]
[]
["Parametry smlouvy/nabídky:",null,null,"Výše úvěru"]
[null,null,null,"Celková výše spotřebitelského úvěru:",null,null,{"$f":"List2!G5","v":10000},"Kč"]
[null,null,null,"  z toho úvěr na poplatek za sjednání:",null,null,{"$f":"List2!G7","v":0},"Kč"]
[null,null,null,"  z toho úvěr pro potřeby spotřebitele:",null,null,{"$f":"credit","v":10000},"Kč"]
[null,null,null,"Anuitní splátky úvěru:"]
[null,null,null,"Frekvence splácení:",null,null,{"$f":"List2!I4","v":"měsíční"}]
[null,null,null,"Sjednaný počet splátek:",null,null,{"$f":"pocet","v":12}]
[null,null,null,"Sjednaná pravidelná splátka:",null,null,{"$f":"splatka","v":1000},"Kč"]
[null,null,null,"Poslední pravidelná splátka:",null,null,{"$f":"splatka2","v":1000},"Kč"]
[null,null,null,"Ostatní náklady úvěru (pojistné, poplatky):"]
[null,null,null,"Poplatek za uzavření smlouvy (hotov.):",null,null,{"$f":"List2!B7","v":100},"Kč"]
[null,null,null,"Jiný poplatek splatný hotově ihned:",null,null,{"$f":"List2!B8","v":0},"Kč"]
[null,null,null,"Průběžný pravidelný poplatek 1:",null,null,{"$f":"List2!B9","v":0},"Kč"]
[null,null,null,"Průběžný pravidelný poplatek 2:",null,null,{"$f":"List2!B10","v":0},"Kč"]
[null,null,null,"Časové údaje:"]
[null,null,null,"Datum uzavření smlouvy:",null,null,{"$f":"List2!I11","v":"1.1.2012"}]
[null,null,null,"Datum první splátky:",null,null,{"$f":"List2!I12","v":"1.2.2012"}]
[]
[null,null,null,null,"RPSN:",{"$f":"List2!G6","v":0.44122704462380508}]
[]
[]
["Tisk proveden:",{"$f":"NOW()","v":"2014-07-30T11:35:45.670"}]
["Kalkulátor RPSN. V 1.0. 2014. Kancelář finančního arbitra."]

{"sheet":"List6","index":5,"n_rows":11,"n_cols":4,"rows_kept":11,"cut":false,"hidden":false,"merged":[]}
["vyse",10000]
["financost",0]
["cisty",10000]
[]
["vyse",10000,null,"cisty"]
["financost",0]
["cisty",10000]
[]
["vyse",0,null,"financost"]
["financost",0]
["cisty",0]